Workbook

Sheet Attente
B2: Outil de simulation des impacts économiques de pratiques agroforestières | C2: Simulation tool to assess the economic impacts | D2: Outil de simulation des impacts économiques | E2: Simulation tool to assess the economic impacts | F2: Outil de simulation des impacts économiques | G2: Simulation tool to assess the economic impacts | H2: Outil de simulation des impacts économiques | I2: Simulation tool to assess the economic impacts
B6: Simulation tool to assess the economic impacts of agroforestry practices
B16: Veuillez patienter...
A200: EN

Sheet Langue
B2: Outil de simulation des impacts économiques de pratiques agroforestières | C2: Simulation tool to assess the economic impacts | D2: Outil de simulation des impacts économiques | E2: Simulation tool to assess the economic impacts | F2: Outil de simulation des impacts économiques | G2: Simulation tool to assess the economic impacts | H2: Outil de simulation des impacts économiques | I2: Simulation tool to assess the economic impacts
B6: Simulation tool to assess the economic impacts of agroforestry practices
F129: 0
F131: 0
F133: 0
A200: FR

Sheet Dictionnaire
A1: Traduction du logiciel
A3: Paramètres | B3: Parameters
A4: Français | B4: Anglais
A5: Les informations ci-dessous sont utilisées lors des calculs mais elles ne sont pas remises à zéro lors d'une nouvelle simulation. Ces informations peuvent être modifiées et doivent être mises à jour régulièrement. Elles peuvent être remises leur valeur par défaut en cliquant sur le bouton "Paramètres par défaut" ci-dessus. | B5: The information below is used for calculation purposes but is not erased when a new simulation is started. This data can be modified and must be updated on a regular basis.
A6: Informations concernant le taux d'actualisation et d'inflation
A7: Taux d'actualisation annuel ? (valeur calculée, ne pas modifier) | B7: Discount rate per annum?
A8: Taux d'inflation annuel ? (utiliser les flèches pour modifier le pourcentage) | B8: Annual inflation rate?
A10: Informations concernant les coûts d'établissement
A11: Rouleau de pailllis de plastique de 1,2 ou 1,5 m de large | B11: Plastic mulch roll (1.2 or 1.5 m in width)
A12: Petite collerette (30 cm X 30 cm) | B12: Small plastic squares (30 cm X 30 cm)
A13: Grande collerette (1 m X 1 m) | B13: Large plastic squares (1 m X 1 m)
A14: Biodisque (60 cm) | B14: Biodisc (60 cm)
A15: Broches servant à fixer les collerettes | B15: Metal clips
A16: broches/collerette | B16: metal clips/collar
A17: Taux horaire pour la main d'œuvre lors de l'établissement et l'entretien de la haie ($/h) | B17: Hourly labour rate for establishing and maintaining hedge ($/h)
A18: Frais de déplacement ($/km) | B18: Travel expenses ($/km)
A19: Taux horaire pour les travaux mécaniques de préparation du sol ($/h) | B19: Hourly rate for mechanical soil preparation work ($/h)
A20: Plans et devis (montant forfaitaire) | B20: Drawings and specifications (contracted)
A22: Informations concernant les coûts d'entretien
A23: Taux de mortalité anticipé la première année suivant la plantation | B23: Mortality rate the year after the plantation
A24: Taux horaire (machinerie et main d'œuvre) pour le fauchage et l'inspection phytosanitaire ($/h) | B24: Hourly rate (labour and machinery) for mowing and phytosanitary inspection ($/h)
A25: Taux horaire (machinerie et main d'œuvre) pour la taille de formation et l'élagage | B25: Hourly rate (labour and machinery) for tree pruning ($/h)
A26: Nombre de fauchages par année | B26: Number of mowing per year
A27: Frais de déplacement avec la machinerie ($/km) | B27: Cost of transporting machinery ($/km)
A28: Spirale de protection contre les rongeurs | B28: Anti-rodent spiral tree guard
A29: Gaine de protection contre les chevreuils (Climanet) | B29: Anti-deer protective sleeve (installed)
A31: Informations concernant les pertes liées à l'espace cultivable
A32: Marges sur coûts variables/ha, utilisés pour les calculs liés à la perte d'espace cultivable | B32: Variable margin, return on expenditures/ha (used in calculating loss of cultivable area)
A33: Cultures | B33: Crop
A34: Marge sur coûts variables/ha * | B34: Variable margin, return on expenditures/ha *
A35: Foin | B35: Forage
A36: Avoine | B36: Oat
A37: Avoine biologique | B37: Organic oat
A38: Blé d'alimentation animale | B38: Animal feed wheat
A39: Blé d'alimentation humaine | B39: Wheat for human consumption
A40: Blé panifiable biologique | B40: Organic bread wheat
A41: Orge d'alimentation animale | B41: Animal feed barley
A42: Orge biologique | B42: Organic barley
A43: Maïs fourrager | B43: Forage corn
A44: Maïs grain | B44: Grain corn
A45: Maïs grain biologique | B45: Organic grain corn
A46: Soya | B46: Soybean
A47: Soya alimentation humaine biologique | B47: Soy Organic Food
A48: Canola | B48: Canola
A49: Canola biologique | B49: Organic canola
A50: Autre 1** | B50: Other 1**
A51: Autre 2** | B51: Other 2**
A52: Autre 3** | B52: Other 3**
A53: Autre 4** | B53: Other 4**
A54: Autre 5** | B54: Other 5**
A55: Autre 6** | B55: Other 6**
A56: Autre 7** | B56: Other 7**
A57: Autre 8** | B57: Other 8**
A58: Autre 9** | B58: Other 9**
A59: Autre 10** | B59: Other 10**
A60: Autre 11** | B60: Other 11**
A62: Informations concernant les revenus liés à la récolte du bois
A63: Prix de vente incluant le transport | B63: Income from wood harvesting including transport
A64: Essences | B64: Species
A65: Valeur si le bois est vendu pour le sciage | B65: Value when sold for lumber
A66: Valeur si le bois est vendu pour le déroulage | B66: Value when sold for rotary cutting
A67: Valeur si le bois est vendu pour du bois de chauffage | B67: Value when sold for heating
A68: Valeur de la biomasse brut (pâte ou autres destinations) | B68: Value of raw biomass (for pulp or other purposes)
A69: $/Corde de 8' (non débité) | B69: $/8-foot cord (non debited)
A70: $/TMV | B70: $/green metric ton
A71: Épinettes, Pins ou Thuyas | B71: Spruce, pine, cedar
A72: Peupliers hybrides | B72: Hybrid poplar
A73: Feuillus nobles | B73: Hardwoods
A74: Saules hybrides (tonne M.S.) | B74: Hybrid willow (ton D.M.)
A76: Le menu simulation permet de changer tous ces paramètres | B76: The simulation menu offers the opportunity to modify these parameters
A78: Informations concernant les revenus liés à l'amélioration des rendements
A79: Quelle est la hauteur maximale d'une haie de peupliers hybrides à maturité? | B79: Maximum height of hybrid poplar hedge at maturity?
A80: Quelle est la hauteur maximale d'une haie de conifères ou de feuillus nobles à maturité? | B80: Maximum height of conifer/hardwood hedge at maturity?
A81: Quelle est la hauteur maximale d'une haie de saules à maturité? | B81: Maximum height of willow hedge at maturity?
A82: Quelle est la hauteur maximale d'une haie d'arbustes à maturité? | B82: Maximum height of shrub hedge at maturity?
A83: Augmentations de la marge (produits sur débours/ha) utilisées pour les calculs liées à la protection de culture (résultat obtenu en multipliant le rendement par le prix à la tonne par une augmentation de rendement de 1%). | B83: Margin (return on expenditures/ha) improvements, used in calculating data related to crop protection (1% yield increase)
A84: Cultures | B84: Crop
A85: Augmentation de la marge (produits sur débours/ha) avec protection de culture* | B85: Improved margin (return on investment/ha) with crop protection*
A86: Foin | B86: Forage
A87: Avoine | B87: Oat
A88: Blé (alimentation animale) | B88: Wheat (animal feeding)
A89: Orge | B89: Barley
A90: Maïs fourrager | B90: Forage corn
A91: Maïs grain | B91: Grain corn
A92: Soya | B92: Soybean
A93: Haricot sec | B93: Blueberry
A94: Autre 1** | B94: Other 1**
A95: Autre 2** | B95: Other 2**
A96: Autre 3** | B96: Other 3**
A97: Autre 4** | B97: Other 4**
A98: Autre 5** | B98: Other 5**
A99: Autre 6** | B99: Other 6**
A100: Autre 7** | B100: Other 7**
A101: Autre 8** | B101: Other 8**
A102: Autre 9** | B102: Other 9**
A103: Autre 10** | B103: Other 10**
A104: Autre 11** | B104: Other 11**
A105: ** Modifier les noms pour pouvoir les sélectionner dans le choix de la rotation du questionnaire | B105: ** Change the names to select them in the choice of the rotation of the questionnaire
A106: *(adaptés des budgets du CRAAQ, 2018, 2019, 2020 et 2021) | B106: *(adapted from CRAAQ budgets, 2018, 2019, 2020 et 2021)
A107: Informations concernant les paramètres | B107: Information on parameters
A109: Menu principal
A110: Français | B110: Anglais
A111: Outil de simulation des impacts économiques | B111: Simulation tool to assess the economic impacts
A112: de pratiques agroforestières | B112: of agroforestry practices
A113: Ce programme de simulation a été conçu pour faciliter la prise de décision lors de l'établissement de haies brise-vent, de bandes riveraines boisées ou de massifs de saule. | B113: This simulation program was developed to assist in making decisions when establishing a shelterbelt or a wooded riparian buffer.
A114: Dans le cas d'une première utilisation, il est conseillé de consulter les rubriques "Instructions" et "Paramètres économiques" avant de commencer. | B114: Before initial use, we recommend reading the "Instructions" and "Economic parameters" sections.
A115: Pour débloquer les macros, veuillez enregistrer le fichier sur votre disque dur et cliquer sur le lien ci-dessous pour la procédure. | B115: To activate macros, you should save the file on your hard drive first then click on the link below for the tutorial.
A116: Débloquer les macros (Microsoft) | B116: Activating macros (Microsoft).
A117: Révisé février 2024 | B117: Revised February, 2024
A119: À propos du logiciel | B119: About this program
A120: Français | B120: Anglais
A121: Outil de simulation des impacts économiques de pratiques agroforestières version 24.02.1 (février 2024) | B121: Simulation tool to assess the economic impacts of agro-forestal practices version 24.02.1 (February, 2024)
A123: Remerciements | B123: Acknowledgements
A124: Français | B124: Anglais
A126: Questionnaire
A127: Français | B127: Anglais
A128: Section 1 : Établissement de la haie | B128: Section 1: Establishing the hedge
A129: Taux d'actualisation annuel ? | B129: Discount rate per annum?
A130: Longueur de la haie (m) ? | B130: Length of hedge (m)?
A131: Nombre de rangées ? (maximum 7) | B131: Number of rows (up to 3)?
A132: Espacement entre les rangées (m) ? | B132: Spacing between rows (m)?
A133: Quelle est la séquence d'établissement des arbres et/ou arbustes ? | B133: Planting sequence of trees/shrubs?
A134: Espèce no.1 | B134: Species 1
A135: Espèce no.2 | B135: Species 2
A136: Espèce no.3 | B136: Species 3
A137: Espèce no.4 | B137: Species 4
A138: Espèce no.5 | B138: Species 5
A139: Espèce no.6 | B139: Species 6
A140: Espèce no.7 | B140: Species 7
A141: Rangée 1 | B141: Row 1
A142: Rangée 2 | B142: Row 2
A143: Rangée 3 | B143: Row 3
A144: Rangée 4 | B144: Row 4
A145: Rangée 5 | B145: Row 5
A146: Rangée 6 | B146: Row 6
A147: Rangée 7 | B147: Row 7
A148: Quel est l'espacement entre les végétaux (m) ? | B148: Spacing between plants (m) ?
A149: Rangée 1 | B149: Row 1
A150: Rangée 2 | B150: Row 2
A151: Rangée 3 | B151: Row 3
A152: Rangée 4 | B152: Row 4
A153: Rangée 5 | B153: Row 5
A154: Rangée 6 | B154: Row 6
A155: Rangée 7 | B155: Row 7
A156: Type de paillis utilisé ? | B156: Type of plastic mulch used ?
A157: Largeur du plastique si déroulé ? | B157: Width of unrolled plastic mulch ?
A158: pieds | B158: feet
A159: Déroulé en longueur | B159: Rolled down
A160: Grandes collerettes | B160: Large plastic squares
A161: Biodisques | B161: Biodisc
A162: Oui | B162: Yes
A163: Non | B163: No
A164: Quels sont les coûts des végétaux ($) ? | B164: Cost of plants ($) ?
A165: Épinettes, Pins ou Thuyas (CON) | B165: Spruce, pine, cedar (CON)
A166: Peupliers hybrides (PEH) | B166: Hybrid poplar (HPO)
A167: Feuillus nobles (FNO) | B167: Hardwoods (HWD)
A168: Arbustes (ARB) | B168: Shrubs (SHR)
A169: Saules hybrides (SAH) | B169: Hybrid willow (HWL)
A170: Inscrire la distance entre le site d'établissement et le point de départ des ouvriers | B170: Indicate distance between planting site and location of workers
A171: Subvention (programme Prime-Vert par défaut) | B171: Grant (Prime-Vert program by default)
A172: Spécifier: | B172: Specify:
A173: Désirez-vous effectuer votre établissement avec des arbres de fort calibre ? | B173: Will you be planting large trees?
A175: Section 2 : Entretien de la haie | B175: Section 2: Maintaining the hedge
A176: Désirez-vous effectuer les activités d'entretien suivantes ? | B176: Will you be conducting the following maintenance operations?
A177: Remplacement des arbres morts la deuxième année | B177: Replacement of dead trees in the second year
A178: Fauchage et inspection phytosanitaire (1 fois par an, 1 à 5 ans) | B178: Mowing and phytosanitary inspection (once a year, years 1 to 5)
A179: Taille de formation et élagage | B179: Pruning
A180: Recépage des arbustes | B180: Shrub coppicing
A181: Protection contre les ravageurs | B181: Protection from deers and rodents
A182: Si oui, spécifiez lesquels | B182: If so, select one option:
A183: Subventions | B183: Grants
A185: Section 3 : Perte d'espace cultivable | B185: Section 3: Loss of cultivable area
A186: Si la longueur de la haie est de | B186: If length of planned hedge is
A187: Quelle est la longueur de la haie implantée dans un champ cultivé ? | B187: What will be the length of the hedge to be established in a crop field?
A188: Quelle est la durée de la rotation de culture ? | B188: Duration of rotation?
A189: Quelle est la rotation de culture ? | B189: Sequence of rotation?
A190: ans | B190: years
A191: 1re | B191: 1st
A192: 2e | B192: 2nd
A193: 3e | B193: 3rd
A194: 4e | B194: 4th
A195: 5e | B195: 5th
A196: 6e | B196: 6th
A197: 7e | B197: 7th
A198: 8e | B198: 8th
A199: 9e | B199: 9th
A200: 10e | B200: 10th
A201: 11e | B201: 11th
A202: 12e | B202: 12th
A203: 13e | B203: 13th
A204: 14e | B204: 14th
A205: 15e | B205: 15th
A206: 16e | B206: 16th
A207: 17e | B207: 17th
A208: 18e | B208: 18th
A209: 19e | B209: 19th
A210: 20e | B210: 20th
A212: Section 4 : Chauffage des bâtiments d'élevage | B212: Section 4: Heating of livestock buildings
A213: Quels sont les coûts annuels de chauffage des bâtiments qui seront protégés? | B213: Annual heating costs of buildings that will be protected by the hedge?
A214: Quel est le type de ventilation de votre bâtiment? | B214: Type of ventilation of the livestock building?
... 1146 more rows

Sheet Menu principal
B2: =IF(Langue!A200 = "FR",Dictionnaire!A111,Dictionnaire!B111) -> Outil de simulation des impacts économiques
B3: =IF(Langue!$A$200 = "FR",Dictionnaire!A112,Dictionnaire!B112) -> de pratiques agroforestières
C4: =IF(Langue!$A$200 = "FR",Dictionnaire!A113,Dictionnaire!B113) -> Ce programme de simulation a été conçu pour faciliter la prise de décision lors de l'établissement de haies brise-vent, de bandes riveraines boisées ou de massifs de saule.
C6: =IF(Langue!$A$200 = "FR",Dictionnaire!A114,Dictionnaire!B114) -> Dans le cas d'une première utilisation, il est conseillé de consulter les rubriques "Instructions" et "Paramètres économiques" avant de commencer.
C25: IMPORTANT
C26: =IF(Langue!$A$200 = "FR",Dictionnaire!A115,Dictionnaire!B115) -> Pour débloquer les macros, veuillez enregistrer le fichier sur votre disque dur et cliquer sur le lien ci-dessous pour la procédure.
C27: =IF(Langue!$A$200 = "FR",Dictionnaire!A116,Dictionnaire!B116) -> Débloquer les macros (Microsoft)
E40: =IF(Langue!$A$200 = "FR",Dictionnaire!A117,Dictionnaire!B117) -> Révisé février 2024
F129: 1.25
F131: 2
F133: 0.2

Sheet Instructions
B2: Instructions

Sheet Paramètres
B2: =IF(Langue!A200 = "FR",Dictionnaire!A3,Dictionnaire!B3) -> Paramètres
B6: IMPORTANT
B8: =IF(Langue!A200 = "FR",Dictionnaire!A5,Dictionnaire!B5) -> Les informations ci-dessous sont utilisées lors des calculs mais elles ne sont pas remises à zéro lors d'une nouvelle simulation. Ces informations peuvent être modifiées et doivent être mises à jour régulièrement. Elles peuvent être remises leur valeur par défaut en cliquant sur le bouton "Paramètres par défaut" ci-dessus.
B14: =IF(Langue!$A$200 = "FR",Dictionnaire!$A7,Dictionnaire!$B7) -> Taux d'actualisation annuel ? (valeur calculée, ne pas modifier) | I14: =Questionnaire!#REF! ->  | S14: =IF(Langue!$A$200 = "FR",Dictionnaire!$A7,Dictionnaire!$B7) -> Taux d'actualisation annuel ? (valeur calculée, ne pas modifier) | Z14: =Questionnaire!E14 -> 0.06 | AC14: Taux d'actualisation annuel | AF14: =Z14 -> 0.06 | AH14: Fred a demandé de mettre 6% par défaut dans le questionnaire tout simplement (2022-07-14)
B16: Taux d'intérêt perçu sur les placements ? | I16: =AE16 -> 0 | S16: Taux d'intérêt perçu sur les placements ? | Z16: =AV16 -> 0 | AC16: Taux d'intérêt perçu sur les placements | AE16: 0 | AF16: =AE16/10000 -> 0 | AH16: F:\CEPAF\Logiciel d'analyse économique\Références\Banque du Canada\Calcul des taux moyens
B18: Taux d'intérêt payé sur les emprunts ? | I18: =AE18 -> 0 | S18: Taux d'intérêt payé sur les emprunts ? | Z18: =AV18 -> 0 | AC18: Taux d'intérêt payé sur les emprunts | AE18: 0 | AF18: =AE18/10000 -> 0 | AH18: F:\CEPAF\Logiciel d'analyse économique\Références\Banque du Canada\Calcul des taux moyens
B20: =IF(Langue!$A$200 = "FR",Dictionnaire!$A8,Dictionnaire!$B8) -> Taux d'inflation annuel ? (utiliser les flèches pour modifier le pourcentage) | I20: =$AF20 -> 0.02 | S20: =IF(Langue!$A$200 = "FR",Dictionnaire!$A8,Dictionnaire!$B8) -> Taux d'inflation annuel ? (utiliser les flèches pour modifier le pourcentage) | Z20: =$AF20 -> 0.02 | AC20: Taux d'inflation annuel | AD20: 0.02 | AE20: 200 | AF20: =AE20/10000 -> 0.02 | AH20: F:\CEPAF\Logiciel d'analyse économique\Références\Banque du Canada\Calcul des taux moyens
B24: =IF(Langue!$A$200 = "FR",Dictionnaire!$A11,Dictionnaire!$B11) -> Rouleau de pailllis de plastique de 1,2 ou 1,5 m de large | I24: 225 | S24: =IF(Langue!$A$200 = "FR",Dictionnaire!$A11,Dictionnaire!$B11) -> Rouleau de pailllis de plastique de 1,2 ou 1,5 m de large | Z24: 225
B25: =IF(Langue!$A$200 = "FR",Dictionnaire!$A12,Dictionnaire!$B12) -> Petite collerette (30 cm X 30 cm) | F25: 2 | G25: =IF(Langue!$A$200 = "FR",Dictionnaire!$A16,Dictionnaire!$B16) -> broches/collerette | I25: 0.63 | S25: =IF(Langue!$A$200 = "FR",Dictionnaire!$A12,Dictionnaire!$B12) -> Petite collerette (30 cm X 30 cm) | W25: 2 | X25: =IF(Langue!$A$200 = "FR",Dictionnaire!$A16,Dictionnaire!$B16) -> broches/collerette | Z25: 0.63
B26: =IF(Langue!$A$200 = "FR",Dictionnaire!$A13,Dictionnaire!$B13) -> Grande collerette (1 m X 1 m) | F26: 9 | G26: =IF(Langue!$A$200 = "FR",Dictionnaire!$A16,Dictionnaire!$B16) -> broches/collerette | I26: 2 | S26: =IF(Langue!$A$200 = "FR",Dictionnaire!$A13,Dictionnaire!$B13) -> Grande collerette (1 m X 1 m) | W26: 9 | X26: =IF(Langue!$A$200 = "FR",Dictionnaire!$A16,Dictionnaire!$B16) -> broches/collerette | Z26: 2
B27: =IF(Langue!$A$200 = "FR",Dictionnaire!$A14,Dictionnaire!$B14) -> Biodisque (60 cm) | F27: 5 | G27: =IF(Langue!$A$200 = "FR",Dictionnaire!$A16,Dictionnaire!$B16) -> broches/collerette | I27: 2 | S27: =IF(Langue!$A$200 = "FR",Dictionnaire!$A14,Dictionnaire!$B14) -> Biodisque (60 cm) | W27: 5 | X27: =IF(Langue!$A$200 = "FR",Dictionnaire!$A16,Dictionnaire!$B16) -> broches/collerette | Z27: 2
B28: =IF(Langue!$A$200 = "FR",Dictionnaire!$A15,Dictionnaire!$B15) -> Broches servant à fixer les collerettes | I28: 0.23 | S28: =IF(Langue!$A$200 = "FR",Dictionnaire!$A15,Dictionnaire!$B15) -> Broches servant à fixer les collerettes | Z28: 0.23
B29: =IF(Langue!$A$200 = "FR",Dictionnaire!$A17,Dictionnaire!$B17) -> Taux horaire pour la main d'œuvre lors de l'établissement et l'entretien de la haie ($/h) | I29: 35 | S29: =IF(Langue!$A$200 = "FR",Dictionnaire!$A17,Dictionnaire!$B17) -> Taux horaire pour la main d'œuvre lors de l'établissement et l'entretien de la haie ($/h) | Z29: 35
B30: =IF(Langue!$A$200 = "FR",Dictionnaire!$A18,Dictionnaire!$B18) -> Frais de déplacement ($/km) | I30: 0.5 | S30: =IF(Langue!$A$200 = "FR",Dictionnaire!$A18,Dictionnaire!$B18) -> Frais de déplacement ($/km) | Z30: 0.5
B31: =IF(Langue!$A$200 = "FR",Dictionnaire!$A19,Dictionnaire!$B19) -> Taux horaire pour les travaux mécaniques de préparation du sol ($/h) | I31: 150 | S31: =IF(Langue!$A$200 = "FR",Dictionnaire!$A19,Dictionnaire!$B19) -> Taux horaire pour les travaux mécaniques de préparation du sol ($/h) | Z31: 150
B32: =IF(Langue!$A$200 = "FR",Dictionnaire!$A20,Dictionnaire!$B20) -> Plans et devis (montant forfaitaire) | I32: 800 | S32: =IF(Langue!$A$200 = "FR",Dictionnaire!$A20,Dictionnaire!$B20) -> Plans et devis (montant forfaitaire) | Z32: 800
B36: =IF(Langue!$A$200 = "FR",Dictionnaire!$A23,Dictionnaire!$B23) -> Taux de mortalité anticipé la première année suivant la plantation | I36: 0.05 | S36: =IF(Langue!$A$200 = "FR",Dictionnaire!$A23,Dictionnaire!$B23) -> Taux de mortalité anticipé la première année suivant la plantation | Z36: 0.05
B37: =IF(Langue!$A$200 = "FR",Dictionnaire!$A24,Dictionnaire!$B24) -> Taux horaire (machinerie et main d'œuvre) pour le fauchage et l'inspection phytosanitaire ($/h) | I37: 45 | S37: =IF(Langue!$A$200 = "FR",Dictionnaire!$A24,Dictionnaire!$B24) -> Taux horaire (machinerie et main d'œuvre) pour le fauchage et l'inspection phytosanitaire ($/h) | Z37: 45
B38: =IF(Langue!$A$200 = "FR",Dictionnaire!$A25,Dictionnaire!$B25) -> Taux horaire (machinerie et main d'œuvre) pour la taille de formation et l'élagage | I38: 75 | S38: =IF(Langue!$A$200 = "FR",Dictionnaire!$A25,Dictionnaire!$B25) -> Taux horaire (machinerie et main d'œuvre) pour la taille de formation et l'élagage | Z38: 75
B39: =IF(Langue!$A$200 = "FR",Dictionnaire!$A26,Dictionnaire!$B26) -> Nombre de fauchages par année | I39: 2 | S39: =IF(Langue!$A$200 = "FR",Dictionnaire!$A26,Dictionnaire!$B26) -> Nombre de fauchages par année | Z39: 2
B40: =IF(Langue!$A$200 = "FR",Dictionnaire!$A27,Dictionnaire!$B27) -> Frais de déplacement avec la machinerie ($/km) | I40: 0.7 | S40: =IF(Langue!$A$200 = "FR",Dictionnaire!$A27,Dictionnaire!$B27) -> Frais de déplacement avec la machinerie ($/km) | Z40: 0.7
B41: =IF(Langue!$A$200 = "FR",Dictionnaire!$A28,Dictionnaire!$B28) -> Spirale de protection contre les rongeurs | I41: 1.25 | S41: =IF(Langue!$A$200 = "FR",Dictionnaire!$A28,Dictionnaire!$B28) -> Spirale de protection contre les rongeurs | Z41: 1.25
B42: =IF(Langue!$A$200 = "FR",Dictionnaire!$A29,Dictionnaire!$B29) -> Gaine de protection contre les chevreuils (Climanet) | I42: 7.5 | S42: =IF(Langue!$A$200 = "FR",Dictionnaire!$A29,Dictionnaire!$B29) -> Gaine de protection contre les chevreuils (Climanet) | Z42: 7.5
B46: =IF(Langue!$A$200 = "FR",Dictionnaire!$A32,Dictionnaire!$B32) -> Marges sur coûts variables/ha, utilisés pour les calculs liés à la perte d'espace cultivable | F46: =IF(Langue!$A$200 = "FR",Dictionnaire!$A33,Dictionnaire!$B33) -> Cultures | H46: =IF(Langue!$A$200 = "FR",Dictionnaire!$A34,Dictionnaire!$B34) -> Marge sur coûts variables/ha * | S46: =IF(Langue!$A$200 = "FR",Dictionnaire!$A32,Dictionnaire!$B32) -> Marges sur coûts variables/ha, utilisés pour les calculs liés à la perte d'espace cultivable | W46: =IF(Langue!$A$200 = "FR",Dictionnaire!$A33,Dictionnaire!$B33) -> Cultures | Y46: =IF(Langue!$A$200 = "FR",Dictionnaire!$A34,Dictionnaire!$B34) -> Marge sur coûts variables/ha *
F48: =IF(Langue!$A$200 = "FR",Dictionnaire!$A35,Dictionnaire!$B35) -> Foin | H48: 521 | J48: CRAAQ, Foin - Analyse comparative provinciale 2021 - Analyse de données Agritel - 2023 (AGDEX 120/891) | W48: =IF(Langue!$A$200 = "FR",Dictionnaire!$A35,Dictionnaire!$B35) -> Foin | Y48: 521 | AA48: CRAAQ, Foin - Analyse comparative provinciale 2021 - Analyse de données Agritel - 2023 (AGDEX 120/891)
F49: =IF(Langue!$A$200 = "FR",Dictionnaire!$A36,Dictionnaire!$B36) -> Avoine | H49: 468 | J49: CRAAQ, Avoine d'alimentation animale - Budget à l'hectare - 2022 (AGDEX 113/821a) | W49: =IF(Langue!$A$200 = "FR",Dictionnaire!$A36,Dictionnaire!$B36) -> Avoine | Y49: 468 | AA49: CRAAQ, Avoine d'alimentation animale - Budget à l'hectare - 2022 (AGDEX 113/821a)
F50: =IF(Langue!$A$200 = "FR",Dictionnaire!$A37,Dictionnaire!$B37) -> Avoine biologique | H50: 222 | J50: CRAAQ, Avoine biologique - Budget à l'hectare - 2023 (AGDEX 113.19/821b) | W50: =IF(Langue!$A$200 = "FR",Dictionnaire!$A37,Dictionnaire!$B37) -> Avoine biologique | Y50: 222 | AA50: CRAAQ, Avoine biologique - Budget à l'hectare - 2023 (AGDEX 113.19/821b)
F51: =IF(Langue!$A$200 = "FR",Dictionnaire!$A38,Dictionnaire!$B38) -> Blé d'alimentation animale | H51: 540 | J51: CRAAQ, Blé fourrager de printemps - Budget à l'hectare - 2023 (AGDEX 112/891a) | W51: =IF(Langue!$A$200 = "FR",Dictionnaire!$A38,Dictionnaire!$B38) -> Blé d'alimentation animale | Y51: 540 | AA51: CRAAQ, Blé fourrager de printemps - Budget à l'hectare - 2023 (AGDEX 112/891a)
F52: =IF(Langue!$A$200 = "FR",Dictionnaire!$A39,Dictionnaire!$B39) -> Blé d'alimentation humaine | H52: 629 | J52: CRAAQ, Blé panifiable de pintemps - Budget à l'hectare - 2023 (AGDEX 112/891b) | W52: =IF(Langue!$A$200 = "FR",Dictionnaire!$A39,Dictionnaire!$B39) -> Blé d'alimentation humaine | Y52: 629 | AA52: CRAAQ, Blé panifiable de pintemps - Budget à l'hectare - 2023 (AGDEX 112/891b)
F53: =IF(Langue!$A$200 = "FR",Dictionnaire!$A40,Dictionnaire!$B40) -> Blé panifiable biologique | H53: 744 | J53: CRAAQ, Blé panifiable biologique – Budget à l'hectare – 2023 (AGDEX 112.19/821) | W53: =IF(Langue!$A$200 = "FR",Dictionnaire!$A40,Dictionnaire!$B40) -> Blé panifiable biologique | Y53: 744 | AA53: CRAAQ, Blé panifiable biologique – Budget à l'hectare – 2023 (AGDEX 112.19/821)
F54: =IF(Langue!$A$200 = "FR",Dictionnaire!$A41,Dictionnaire!$B41) -> Orge d'alimentation animale | H54: 458 | J54: CRAAQ, Orge d'alimentation animale - Budget - 2022 (AGDEX 114/821a) | W54: =IF(Langue!$A$200 = "FR",Dictionnaire!$A41,Dictionnaire!$B41) -> Orge d'alimentation animale | Y54: 458 | AA54: CRAAQ, Orge d'alimentation animale - Budget - 2022 (AGDEX 114/821a)
B55: =IF(Langue!$A$200 = "FR",Dictionnaire!$A105,Dictionnaire!$B105) -> ** Modifier les noms pour pouvoir les sélectionner dans le choix de la rotation du questionnaire | F55: =IF(Langue!$A$200 = "FR",Dictionnaire!$A42,Dictionnaire!$B42) -> Orge biologique | H55: 557 | J55: CRAAQ, Orge biologique - Budget à l'hectare - 2023 (AGDEX 114.19/821b) | S55: =IF(Langue!$A$200 = "FR",Dictionnaire!$A105,Dictionnaire!$B105) -> ** Modifier les noms pour pouvoir les sélectionner dans le choix de la rotation du questionnaire | W55: =IF(Langue!$A$200 = "FR",Dictionnaire!$A42,Dictionnaire!$B42) -> Orge biologique | Y55: 557 | AA55: CRAAQ, Orge biologique - Budget à l'hectare - 2023 (AGDEX 114.19/821b)
F56: =IF(Langue!$A$200 = "FR",Dictionnaire!$A43,Dictionnaire!$B43) -> Maïs fourrager | H56: 1381 | J56: CRAAQ, Maïs fourrager - Budget à l'hectare - 2022 (AGDEX 111/821a) | W56: =IF(Langue!$A$200 = "FR",Dictionnaire!$A43,Dictionnaire!$B43) -> Maïs fourrager | Y56: 1381 | AA56: CRAAQ, Maïs fourrager - Budget à l'hectare - 2022 (AGDEX 111/821a)
F57: =IF(Langue!$A$200 = "FR",Dictionnaire!$A44,Dictionnaire!$B44) -> Maïs grain | H57: 2068 | J57: CRAAQ, Maïs-grain - Budget à l'hectare - 2022 (AGDEX 111/821b) | W57: =IF(Langue!$A$200 = "FR",Dictionnaire!$A44,Dictionnaire!$B44) -> Maïs grain | Y57: 2068 | AA57: CRAAQ, Maïs-grain - Budget à l'hectare - 2022 (AGDEX 111/821b)
F58: =IF(Langue!$A$200 = "FR",Dictionnaire!$A45,Dictionnaire!$B45) -> Maïs grain biologique | H58: 3401 | J58: CRAAQ, Maïs-grain biologique – Budget à l'hectare – 2023 (AGDEX 111.19/821a) | W58: =IF(Langue!$A$200 = "FR",Dictionnaire!$A45,Dictionnaire!$B45) -> Maïs grain biologique | Y58: 3401 | AA58: CRAAQ, Maïs-grain biologique – Budget à l'hectare – 2023 (AGDEX 111.19/821a)
F59: =IF(Langue!$A$200 = "FR",Dictionnaire!$A46,Dictionnaire!$B46) -> Soya | H59: 1057 | J59: CRAAQ, Soya - Analyse comparative provinciale 2021 - Analyse de données Agritel - 2023 (AGDEX 141/891) | W59: =IF(Langue!$A$200 = "FR",Dictionnaire!$A46,Dictionnaire!$B46) -> Soya | Y59: 1057 | AA59: CRAAQ, Soya - Analyse comparative provinciale 2021 - Analyse de données Agritel - 2023 (AGDEX 141/891)
F60: =IF(Langue!$A$200 = "FR",Dictionnaire!$A47,Dictionnaire!$B47) -> Soya alimentation humaine biologique | H60: 2772 | J60: CRAAQ, Soya humain biologique – Budget à l'hectare – 2023 (AGDEX 141.19/821) | W60: =IF(Langue!$A$200 = "FR",Dictionnaire!$A47,Dictionnaire!$B47) -> Soya alimentation humaine biologique | Y60: 2772 | AA60: CRAAQ, Soya humain biologique – Budget à l'hectare – 2023 (AGDEX 141.19/821)
F61: =IF(Langue!$A$200 = "FR",Dictionnaire!$A48,Dictionnaire!$B48) -> Canola | H61: 693 | J61: CRAAQ, Canola - Budget à l'hectare - 2022 (AGDEX 149/821) | W61: =IF(Langue!$A$200 = "FR",Dictionnaire!$A48,Dictionnaire!$B48) -> Canola | Y61: 693 | AA61: CRAAQ, Canola - Budget à l'hectare - 2022 (AGDEX 149/821)
F62: =IF(Langue!$A$200 = "FR",Dictionnaire!$A49,Dictionnaire!$B49) -> Canola biologique | H62: 2306 | J62: CRAAQ, Canola biologique – Budget à l'hectare – 2023 (AGDEX 149.19/821) | W62: =IF(Langue!$A$200 = "FR",Dictionnaire!$A49,Dictionnaire!$B49) -> Canola biologique | Y62: 2306 | AA62: CRAAQ, Canola biologique – Budget à l'hectare – 2023 (AGDEX 149.19/821)
F63: =IF(Langue!$A$200 = "FR",Dictionnaire!$A50,Dictionnaire!$B50) -> Autre 1** | H63: 0 | W63: =IF(Langue!$A$200 = "FR",Dictionnaire!$A50,Dictionnaire!$B50) -> Autre 1** | Y63: 0
F64: =IF(Langue!$A$200 = "FR",Dictionnaire!$A51,Dictionnaire!$B51) -> Autre 2** | H64: 0 | W64: =IF(Langue!$A$200 = "FR",Dictionnaire!$A51,Dictionnaire!$B51) -> Autre 2** | Y64: 0
F65: =IF(Langue!$A$200 = "FR",Dictionnaire!$A52,Dictionnaire!$B52) -> Autre 3** | H65: 0 | W65: =IF(Langue!$A$200 = "FR",Dictionnaire!$A52,Dictionnaire!$B52) -> Autre 3** | Y65: 0
F66: =IF(Langue!$A$200 = "FR",Dictionnaire!$A53,Dictionnaire!$B53) -> Autre 4** | H66: 0 | W66: =IF(Langue!$A$200 = "FR",Dictionnaire!$A53,Dictionnaire!$B53) -> Autre 4** | Y66: 0
F67: =IF(Langue!$A$200 = "FR",Dictionnaire!$A54,Dictionnaire!$B54) -> Autre 5** | H67: 0 | W67: =IF(Langue!$A$200 = "FR",Dictionnaire!$A54,Dictionnaire!$B54) -> Autre 5** | Y67: 0
F68: =IF(Langue!$A$200 = "FR",Dictionnaire!$A55,Dictionnaire!$B55) -> Autre 6** | H68: 0 | W68: =IF(Langue!$A$200 = "FR",Dictionnaire!$A55,Dictionnaire!$B55) -> Autre 6** | Y68: 0
F69: =IF(Langue!$A$200 = "FR",Dictionnaire!$A56,Dictionnaire!$B56) -> Autre 7** | H69: 0 | W69: =IF(Langue!$A$200 = "FR",Dictionnaire!$A56,Dictionnaire!$B56) -> Autre 7** | Y69: 0
F70: =IF(Langue!$A$200 = "FR",Dictionnaire!$A57,Dictionnaire!$B57) -> Autre 8** | H70: 0 | W70: =IF(Langue!$A$200 = "FR",Dictionnaire!$A57,Dictionnaire!$B57) -> Autre 8** | Y70: 0
F71: =IF(Langue!$A$200 = "FR",Dictionnaire!$A58,Dictionnaire!$B58) -> Autre 9** | H71: 0 | W71: =IF(Langue!$A$200 = "FR",Dictionnaire!$A58,Dictionnaire!$B58) -> Autre 9** | Y71: 0
F72: =IF(Langue!$A$200 = "FR",Dictionnaire!$A59,Dictionnaire!$B59) -> Autre 10** | H72: 0 | W72: =IF(Langue!$A$200 = "FR",Dictionnaire!$A59,Dictionnaire!$B59) -> Autre 10** | Y72: 0
H73: =IF(Langue!$A$200 = "FR",Dictionnaire!$A106,Dictionnaire!$B106) -> *(adaptés des budgets du CRAAQ, 2018, 2019, 2020 et 2021) | Y73: =IF(Langue!$A$200 = "FR",Dictionnaire!$A106,Dictionnaire!$B106) -> *(adaptés des budgets du CRAAQ, 2018, 2019, 2020 et 2021)
B78: =IF(Langue!$A$200 = "FR",Dictionnaire!$A63,Dictionnaire!$B63) -> Prix de vente incluant le transport | D78: =IF(Langue!$A$200 = "FR",Dictionnaire!$A64,Dictionnaire!$B64) -> Essences | F78: =IF(Langue!$A$200 = "FR",Dictionnaire!$A65,Dictionnaire!$B65) -> Valeur si le bois est vendu pour le sciage | G78: =IF(Langue!$A$200 = "FR",Dictionnaire!$A66,Dictionnaire!$B66) -> Valeur si le bois est vendu pour le déroulage | H78: =IF(Langue!$A$200 = "FR",Dictionnaire!$A67,Dictionnaire!$B67) -> Valeur si le bois est vendu pour du bois de chauffage | I78: =IF(Langue!$A$200 = "FR",Dictionnaire!$A68,Dictionnaire!$B68) -> Valeur de la biomasse brut (pâte ou autres destinations) | S78: =IF(Langue!$A$200 = "FR",Dictionnaire!$A63,Dictionnaire!$B63) -> Prix de vente incluant le transport | U78: =IF(Langue!$A$200 = "FR",Dictionnaire!$A64,Dictionnaire!$B64) -> Essences | W78: =IF(Langue!$A$200 = "FR",Dictionnaire!$A65,Dictionnaire!$B65) -> Valeur si le bois est vendu pour le sciage | X78: =IF(Langue!$A$200 = "FR",Dictionnaire!$A66,Dictionnaire!$B66) -> Valeur si le bois est vendu pour le déroulage | Y78: =IF(Langue!$A$200 = "FR",Dictionnaire!$A67,Dictionnaire!$B67) -> Valeur si le bois est vendu pour du bois de chauffage | Z78: =IF(Langue!$A$200 = "FR",Dictionnaire!$A68,Dictionnaire!$B68) -> Valeur de la biomasse brut (pâte ou autres destinations)
F81: $/m3 solide | G81: $/m3 solide | H81: =IF(Langue!$A$200 = "FR",Dictionnaire!$A69,Dictionnaire!$B69) -> $/Corde de 8' (non débité) | I81: =IF(Langue!$A$200 = "FR",Dictionnaire!$A70,Dictionnaire!$B70) -> $/TMV | W81: $/m3 solide | X81: $/m3 solide | Y81: =IF(Langue!$A$200 = "FR",Dictionnaire!$A69,Dictionnaire!$B69) -> $/Corde de 8' (non débité) | Z81: =IF(Langue!$A$200 = "FR",Dictionnaire!$A70,Dictionnaire!$B70) -> $/TMV
D82: =IF(Langue!$A$200 = "FR",Dictionnaire!$A71,Dictionnaire!$B71) -> Épinettes, Pins ou Thuyas | F82: 52 | I82: 30 | U82: =IF(Langue!$A$200 = "FR",Dictionnaire!$A71,Dictionnaire!$B71) -> Épinettes, Pins ou Thuyas | W82: 52 | Z82: 30
D83: =IF(Langue!$A$200 = "FR",Dictionnaire!$A72,Dictionnaire!$B72) -> Peupliers hybrides | F83: 41 | G83: 65 | I83: 32 | U83: =IF(Langue!$A$200 = "FR",Dictionnaire!$A72,Dictionnaire!$B72) -> Peupliers hybrides | W83: 41 | X83: 65 | Z83: 32
D84: =IF(Langue!$A$200 = "FR",Dictionnaire!$A73,Dictionnaire!$B73) -> Feuillus nobles | F84: 61 | G84: 145 | H84: 225 | I84: 40 | U84: =IF(Langue!$A$200 = "FR",Dictionnaire!$A73,Dictionnaire!$B73) -> Feuillus nobles | W84: 61 | X84: 145 | Y84: 225 | Z84: 40
D85: =IF(Langue!$A$200 = "FR",Dictionnaire!$A74,Dictionnaire!$B74) -> Saules hybrides (tonne M.S.) | I85: 32 | U85: =IF(Langue!$A$200 = "FR",Dictionnaire!$A74,Dictionnaire!$B74) -> Saules hybrides (tonne M.S.) | Z85: 32
G88: =IF(Langue!$A$200 = "FR",Dictionnaire!$A76,Dictionnaire!$B76) -> Le menu simulation permet de changer tous ces paramètres | X88: =IF(Langue!$A$200 = "FR",Dictionnaire!$A76,Dictionnaire!$B76) -> Le menu simulation permet de changer tous ces paramètres
O95: ...
O96: ...
B100: =IF(Langue!$A$200 = "FR",Dictionnaire!$A79,Dictionnaire!$B79) -> Quelle est la hauteur maximale d'une haie de peupliers hybrides à maturité? | I100: 25 | J100: m | S100: =IF(Langue!$A$200 = "FR",Dictionnaire!$A79,Dictionnaire!$B79) -> Quelle est la hauteur maximale d'une haie de peupliers hybrides à maturité? | Z100: 25 | AA100: m
B101: =IF(Langue!$A$200 = "FR",Dictionnaire!$A80,Dictionnaire!$B80) -> Quelle est la hauteur maximale d'une haie de conifères ou de feuillus nobles à maturité? | I101: 15 | J101: m | S101: =IF(Langue!$A$200 = "FR",Dictionnaire!$A80,Dictionnaire!$B80) -> Quelle est la hauteur maximale d'une haie de conifères ou de feuillus nobles à maturité? | Z101: 15 | AA101: m
B102: =IF(Langue!$A$200 = "FR",Dictionnaire!$A81,Dictionnaire!$B81) -> Quelle est la hauteur maximale d'une haie de saules à maturité? | I102: 6 | J102: m | S102: =IF(Langue!$A$200 = "FR",Dictionnaire!$A81,Dictionnaire!$B81) -> Quelle est la hauteur maximale d'une haie de saules à maturité? | Z102: 6 | AA102: m
B103: =IF(Langue!$A$200 = "FR",Dictionnaire!$A82,Dictionnaire!$B82) -> Quelle est la hauteur maximale d'une haie d'arbustes à maturité? | I103: 3 | J103: m | S103: =IF(Langue!$A$200 = "FR",Dictionnaire!$A82,Dictionnaire!$B82) -> Quelle est la hauteur maximale d'une haie d'arbustes à maturité? | Z103: 3 | AA103: m
B105: =IF(Langue!$A$200 = "FR",Dictionnaire!$A83,Dictionnaire!$B83) -> Augmentations de la marge (produits sur débours/ha) utilisées pour les calculs liées à la protection de culture (résultat obtenu en multipliant le rendement par le prix à la tonne par une augmentation de rendement de 1%). | F105: =IF(Langue!$A$200 = "FR",Dictionnaire!$A84,Dictionnaire!$B84) -> Cultures | H105: =IF(Langue!$A$200 = "FR",Dictionnaire!$A85,Dictionnaire!$B85) -> Augmentation de la marge (produits sur débours/ha) avec protection de culture* | L105: Rendement (t/ha) | M105: Prix de vente ($/t) | S105: =IF(Langue!$A$200 = "FR",Dictionnaire!$A83,Dictionnaire!$B83) -> Augmentations de la marge (produits sur débours/ha) utilisées pour les calculs liées à la protection de culture (résultat obtenu en multipliant le rendement par le prix à la tonne par une augmentation de rendement de 1%). | W105: =IF(Langue!$A$200 = "FR",Dictionnaire!$A84,Dictionnaire!$B84) -> Cultures | Y105: =IF(Langue!$A$200 = "FR",Dictionnaire!$A85,Dictionnaire!$B85) -> Augmentation de la marge (produits sur débours/ha) avec protection de culture*
F107: =F48 -> Foin | H107: 12.38 | J107: CRAAQ, Foin - Analyse comparative provinciale 2021 - Analyse de données Agritel - 2023 (AGDEX 120/891) | W107: =W48 -> Foin | Y107: 12.38 | AA107: CRAAQ, Foin - Analyse comparative provinciale 2021 - Analyse de données Agritel - 2023 (AGDEX 120/891)
F108: =F49 -> Avoine | H108: 7.93 | J108: CRAAQ, Avoine d'alimentation animale - Budget à l'hectare - 2022 (AGDEX 113/821a) | W108: =W49 -> Avoine | Y108: 7.93 | AA108: CRAAQ, Avoine d'alimentation animale - Budget à l'hectare - 2022 (AGDEX 113/821a)
F109: Avoine biologique | H109: 11.96 | J109: CRAAQ, Avoine biologique - Budget à l'hectare - 2023 (AGDEX 113.19/821b) | W109: Avoine biologique | Y109: 11.96 | AA109: CRAAQ, Avoine biologique - Budget à l'hectare - 2023 (AGDEX 113.19/821b)
F110: Blé d'alimentation animale | H110: 11.77 | J110: CRAAQ, Blé fourrager de printemps - Budget à l'hectare - 2023 (AGDEX 112/891a) | W110: Blé d'alimentation animale | Y110: 11.77 | AA110: CRAAQ, Blé fourrager de printemps - Budget à l'hectare - 2023 (AGDEX 112/891a)
F111: Blé d'alimentation humaine | H111: 13.11 | J111: CRAAQ, Blé panifiable de pintemps - Budget à l'hectare - 2023 (AGDEX 112/891b) | W111: Blé d'alimentation humaine | Y111: 13.11 | AA111: CRAAQ, Blé panifiable de pintemps - Budget à l'hectare - 2023 (AGDEX 112/891b)
F112: Blé panifiable biologique | H112: 19.23 | J112: CRAAQ, Blé panifiable biologique – Budget à l'hectare – 2023 (AGDEX 112.19/821) | W112: Blé panifiable biologique | Y112: 19.23 | AA112: CRAAQ, Blé panifiable biologique – Budget à l'hectare – 2023 (AGDEX 112.19/821)
F113: Orge d'alimentation animale | H113: 11.27 | J113: CRAAQ, Orge d'alimentation animale - Budget - 2022 (AGDEX 114/821a) | W113: Orge d'alimentation animale | Y113: 11.27 | AA113: CRAAQ, Orge d'alimentation animale - Budget - 2022 (AGDEX 114/821a)
F114: Orge biologique | H114: 14.8 | J114: CRAAQ, Orge biologique - Budget à l'hectare - 2023 (AGDEX 114.19/821b) | W114: Orge biologique | Y114: 14.8 | AA114: CRAAQ, Orge biologique - Budget à l'hectare - 2023 (AGDEX 114.19/821b)
B115: =IF(Langue!$A$200 = "FR",Dictionnaire!$A105,Dictionnaire!$B105) -> ** Modifier les noms pour pouvoir les sélectionner dans le choix de la rotation du questionnaire | F115: Maïs fourrager | H115: 33.14 | J115: CRAAQ, Maïs fourrager - Budget à l'hectare - 2022 (AGDEX 111/821a) | S115: =IF(Langue!$A$200 = "FR",Dictionnaire!$A105,Dictionnaire!$B105) -> ** Modifier les noms pour pouvoir les sélectionner dans le choix de la rotation du questionnaire | W115: Maïs fourrager | Y115: 33.14 | AA115: CRAAQ, Maïs fourrager - Budget à l'hectare - 2022 (AGDEX 111/821a)
F116: Maïs grain | H116: 37.5 | J116: CRAAQ, Maïs-grain - Budget à l'hectare - 2022 (AGDEX 111/821b) | W116: Maïs grain | Y116: 37.5 | AA116: CRAAQ, Maïs-grain - Budget à l'hectare - 2022 (AGDEX 111/821b)
F117: Maïs grain biologique | H117: 50.41 | J117: CRAAQ, Maïs-grain biologique – Budget à l'hectare – 2023 (AGDEX 111.19/821a) | W117: Maïs grain biologique | Y117: 50.41 | AA117: CRAAQ, Maïs-grain biologique – Budget à l'hectare – 2023 (AGDEX 111.19/821a)
F118: Soya | H118: 19.11 | J118: CRAAQ, Soya - Analyse comparative provinciale 2021 - Analyse de données Agritel - 2023 (AGDEX 141/891) | W118: Soya | Y118: 19.11 | AA118: CRAAQ, Soya - Analyse comparative provinciale 2021 - Analyse de données Agritel - 2023 (AGDEX 141/891)
F119: Soya alimentation humaine biologique | H119: 34.31 | J119: CRAAQ, Soya humain biologique – Budget à l'hectare – 2023 (AGDEX 141.19/821) | W119: Soya alimentation humaine biologique | Y119: 34.31 | AA119: CRAAQ, Soya humain biologique – Budget à l'hectare – 2023 (AGDEX 141.19/821)
F120: Canola | H120: 17.23 | J120: CRAAQ, Canola - Budget à l'hectare - 2022 (AGDEX 149/821) | W120: Canola | Y120: 17.23 | AA120: CRAAQ, Canola - Budget à l'hectare - 2022 (AGDEX 149/821)
F121: Canola biologique | H121: 33 | J121: CRAAQ, Canola biologique – Budget à l'hectare – 2023 (AGDEX 149.19/821) | W121: Canola biologique | Y121: 33 | AA121: CRAAQ, Canola biologique – Budget à l'hectare – 2023 (AGDEX 149.19/821)
F122: Autre 1** | H122: 0 | W122: Autre 1** | Y122: 0
F123: Autre 2** | H123: 0 | W123: Autre 2** | Y123: 0
F124: Autre 3** | H124: 0 | W124: Autre 3** | Y124: 0
F125: Autre 4** | H125: 0 | W125: Autre 4** | Y125: 0
F126: Autre 5** | H126: 0 | W126: Autre 5** | Y126: 0
F127: Autre 6** | H127: 0 | W127: Autre 6** | Y127: 0
F128: Autre 7** | H128: 0 | W128: Autre 7** | Y128: 0
F129: Autre 8** | H129: 0 | W129: Autre 8** | Y129: 0
F130: Autre 9** | H130: 0 | W130: Autre 9** | Y130: 0
F131: Autre 10** | H131: 0 | W131: Autre 10** | Y131: 0
H132: =IF(Langue!$A$200 = "FR",Dictionnaire!$A106,Dictionnaire!$B106) -> *(adaptés des budgets du CRAAQ, 2018, 2019, 2020 et 2021) | Y132: =IF(Langue!$A$200 = "FR",Dictionnaire!$A106,Dictionnaire!$B106) -> *(adaptés des budgets du CRAAQ, 2018, 2019, 2020 et 2021)
B190: =IF(Langue!$A$200 = "FR",Dictionnaire!A107,Dictionnaire!B107) -> Informations concernant les paramètres | S190: =IF(Langue!$A$200 = "FR",Dictionnaire!R107,Dictionnaire!S107) -> 0
A200: EN

Sheet Remerciements
C2: =IF(Langue!$A$200 = "FR",Dictionnaire!A123,Dictionnaire!B123) -> Remerciements
B50: =IF(Langue!$A$200 = "FR",Dictionnaire!A119,Dictionnaire!B119) -> À propos du logiciel
B56: =IF(Langue!$A$200 = "FR",Dictionnaire!A121,Dictionnaire!B121) -> Outil de simulation des impacts économiques de pratiques agroforestières version 24.02.1 (février 2024)

Sheet Menu simulation
D2: =IF(Langue!$A$200 = "FR",Dictionnaire!A297,Dictionnaire!B297) -> Menu simulation
B6: =IF(Langue!$A$200 = "FR",Dictionnaire!A299,Dictionnaire!B299) -> Étape 1 : choisissez à quelle fin vous désirez faire l'implantation de vos végétaux | H6: FALSE
H8: FALSE
H10: TRUE
H12: FALSE
B14: =IF(Langue!$A$200 = "FR",Dictionnaire!A300,Dictionnaire!B300) -> Étape 2 : complétez le questionnaire

Sheet Questionnaire
B2: Questionnaire
AB11: Liste rangée | AD11: choix
B12: =IF(Langue!$A$200 = "FR",Dictionnaire!A128,Dictionnaire!B128) -> Section 1 : Établissement de la haie | AB12: 1 | AC12: 1 | AD12: 0
AB13: 2 | AC13: 2
B14: =IF(Langue!$A$200 = "FR",Dictionnaire!A129,Dictionnaire!B129) -> Taux d'actualisation annuel ? | E14: 0.06 | AB14: 3 | AC14: 3
AB15: 4 | AC15: 4
B16: =IF(Langue!$A$200 = "FR",Dictionnaire!A130,Dictionnaire!B130) -> Longueur de la haie (m) ? | E16: 0 | AB16: 5 | AC16: 5
AB17: 6 | AC17: 6
B18: =IF(Langue!$A$200 = "FR",Dictionnaire!A131,Dictionnaire!B131) -> Nombre de rangées ? (maximum 7) | E18: =AD12*1 -> 0 | AB18: 7 | AC18: 7
B20: =IF(Langue!$A$200 = "FR",Dictionnaire!A132,Dictionnaire!B132) -> Espacement entre les rangées (m) ? | E20: 0 | F20: m | AD20: 195
B22: =IF(Langue!$A$200 = "FR",Dictionnaire!A133,Dictionnaire!B133) -> Quelle est la séquence d'établissement des arbres et/ou arbustes ? | AK22: Zone de calcul pour rangee à récolter
C24: =IF(Langue!$A$200 = "FR",Dictionnaire!A134,Dictionnaire!B134) -> Espèce no.1 | D24: =IF(Langue!$A$200 = "FR",Dictionnaire!A135,Dictionnaire!B135) -> Espèce no.2 | E24: =IF(Langue!$A$200 = "FR",Dictionnaire!A136,Dictionnaire!B136) -> Espèce no.3 | F24: =IF(Langue!$A$200 = "FR",Dictionnaire!A137,Dictionnaire!B137) -> Espèce no.4 | G24: =IF(Langue!$A$200 = "FR",Dictionnaire!A138,Dictionnaire!B138) -> Espèce no.5 | H24: =IF(Langue!$A$200 = "FR",Dictionnaire!A139,Dictionnaire!B139) -> Espèce no.6 | I24: =IF(Langue!$A$200 = "FR",Dictionnaire!A140,Dictionnaire!B140) -> Espèce no.7 | AK24: PRES PEH | AL24: PRES FNO | AM24: PRES CON | AN24: PRE ARB | AO24: PRS SAULE | AP24: NB PEH | AQ24: NB FNO | AR24: NB CON | AS24: PRE ARB | AT24: PRS SAULE | AU24: Total | AV24: % ARB | AW24: % SAH | AX24: espacement | AY24: nb plant dans la haie | AZ24: nb arbuste | BA24: pres_ARB_SAH | BB24: CON_PEH | BC24: FNO_ARB | BD24: CON_PEH_SANFNO_sans_arb
B25: =IF(Langue!$A$200 = "FR",Dictionnaire!A141,Dictionnaire!B141) -> Rangée 1 | AC25: =C25 -> 0 | AD25: 0 | AE25: 0 | AF25: 0 | AG25: 0 | AH25: 0 | AI25: 0 | AJ25: Rangée 1 | AK25: =IF($E$18<1,0,(IF(COUNTIF($C25:$I25,"PEH")>0,1,IF(COUNTIF($C25:$I25,"HPO")>0,1,0)))) -> 0 | AL25: =IF($E$18<1,0,(IF(COUNTIF($C25:$I25,"FNO")>0,1,IF(COUNTIF($C25:$I25,"HWD")>0,1,0)))) -> 0 | AM25: =IF($E$18<1,0,(IF(COUNTIF($C25:$I25,"CON")>0,1,IF(COUNTIF($C25:$I25,"CON")>0,1,0)))) -> 0 | AN25: =IF($E$18<1,0,(IF(COUNTIF($C25:$I25,"ARB")>0,1,IF(COUNTIF($C25:$I25,"SHR")>0,1,0)))) -> 0 | AO25: =IF($E$18<1,0,(IF(COUNTIF($C25:$I25,"SAH")>0,1,IF(COUNTIF($C25:$I25,"HWL")>0,1,0)))) -> 0 | AP25: =IF($E$18<1,0,COUNTIF($C25:$I25,"PEH")+COUNTIF($C25:$I25,"HPO")) -> 0 | AQ25: =IF($E$18<1,0,COUNTIF($C25:$I25,"FNO")+COUNTIF($C25:$I25,"HWD")) -> 0 | AR25: =IF($E$18<1,0,COUNTIF($C25:$I25,"CON")) -> 0 | AS25: =IF($E$18<1,0,COUNTIF($C25:$I25,"ARB")+COUNTIF($C25:$I25,"SHR")) -> 0 | AT25: =IF($E$18<1,0,COUNTIF($C25:$I25,"SAH")+COUNTIF($C25:$I25,"HWL")) -> 0 | AU25: =SUM(AP25:AT25) -> 0 | AV25: =AS25/AU25 ->  | AW25: =AT25/AU25 ->  | AX25: =C35*1 -> 0 | AY25: =$E$16/AX25/AU25 ->  | AZ25: =AY25*AS25 ->  | BA25: =IF((AO25+AN25)>=1,1,0) -> 0 | BB25: =IF((AM25+AP25)>=1,1,0) -> 0 | BC25: =IF((AL25+BA25)>=2,1,0) -> 0 | BD25: =IF(AND(BB25>=1,AL25<1,BA25<1),1,0) -> 0
B26: =IF(Langue!$A$200 = "FR",Dictionnaire!A142,Dictionnaire!B142) -> Rangée 2 | AC26: 0 | AD26: 0 | AE26: 0 | AF26: 0 | AG26: 0 | AH26: 0 | AI26: 0 | AJ26: Rangée 2 | AK26: =IF($E$18<2,0,(IF(COUNTIF($C26:$I26,"PEH")>0,1,IF(COUNTIF($C26:$I26,"HPO")>0,1,0)))) -> 0 | AL26: =IF($E$18<2,0,IF(COUNTIF($C26:$I26,"FNO")>0,1,IF(COUNTIF($C26:$I26,"HWD")>0,1,0))) -> 0 | AM26: =IF($E$18<2,0,(IF(COUNTIF($C26:$I26,"CON")>0,1,IF(COUNTIF($C26:$I26,"CON")>0,1,0)))) -> 0 | AN26: =IF($E$18<2,0,(IF(COUNTIF($C26:$I26,"ARB")>0,1,IF(COUNTIF($C26:$I26,"SHR")>0,1,0)))) -> 0 | AO26: =IF($E$18<2,0,(IF(COUNTIF($C26:$I26,"SAH")>0,1,IF(COUNTIF($C26:$I26,"HWL")>0,1,0)))) -> 0 | AP26: =IF($E$18<2,0,COUNTIF($C26:$I26,"PEH")+COUNTIF($C26:$I26,"HPO")) -> 0 | AQ26: =IF($E$18<2,0,COUNTIF($C26:$I26,"FNO")+COUNTIF($C26:$I26,"HWD")) -> 0 | AR26: =IF($E$18<2,0,COUNTIF($C26:$I26,"CON")) -> 0 | AS26: =IF($E$18<2,0,COUNTIF($C26:$I26,"ARB")+COUNTIF($C26:$I26,"SHR")) -> 0 | AT26: =IF($E$18<2,0,COUNTIF($C26:$I26,"SAH")+COUNTIF($C26:$I26,"HWL")) -> 0 | AU26: =SUM(AP26:AT26) -> 0 | AV26: =AS26/AU26 ->  | AW26: =AT26/AU26 ->  | AX26: =C36*1 -> 0 | AZ26: =AY26*AS26 ->  | BA26: =IF((AO26+AN26)>=1,1,0) -> 0 | BB26: =IF((AM26+AP26)>=1,1,0) -> 0 | BC26: =IF((AL26+BA26)>=2,1,0) -> 0 | BD26: =IF(AND(BB26>=1,AL26<1,BA26<1),1,0) -> 0
B27: =IF(Langue!$A$200 = "FR",Dictionnaire!A143,Dictionnaire!B143) -> Rangée 3 | AC27: 0 | AD27: 0 | AE27: 0 | AF27: 0 | AG27: 0 | AH27: 0 | AI27: 0 | AJ27: Rangée 3 | AK27: =IF($E$18<3,0,(IF(COUNTIF($C27:$I27,"PEH")>0,1,IF(COUNTIF($C27:$I27,"HPO")>0,1,0)))) -> 0 | AL27: =IF($E$18<3,0,(IF(COUNTIF($C27:$I27,"FNO")>0,1,IF(COUNTIF($C27:$I27,"HWD")>0,1,0)))) -> 0 | AM27: =IF($E$18<3,0,(IF(COUNTIF($C27:$I27,"CON")>0,1,IF(COUNTIF($C27:$I27,"CON")>0,1,0)))) -> 0 | AN27: =IF($E$18<3,0,(IF(COUNTIF($C27:$I27,"ARB")>0,1,IF(COUNTIF($C27:$I27,"SHR")>0,1,0)))) -> 0 | AO27: =IF($E$18<3,0,(IF(COUNTIF($C27:$I27,"SAH")>0,1,IF(COUNTIF($C27:$I27,"HWL")>0,1,0)))) -> 0 | AP27: =IF($E$18<3,0,(COUNTIF($C27:$I27,"PEH")+COUNTIF($C27:$I27,"HPO"))) -> 0 | AQ27: =IF($E$18<3,0,(COUNTIF($C27:$I27,"FNO")+COUNTIF($C27:$I27,"HWD"))) -> 0 | AR27: =IF($E$18<3,0,COUNTIF($C27:$I27,"CON")) -> 0 | AS27: =IF($E$18<3,0,(COUNTIF($C27:$I27,"ARB")+COUNTIF($C27:$I27,"SHR"))) -> 0 | AT27: =IF($E$18<3,0,COUNTIF($C27:$I27,"SAH")+COUNTIF($C27:$I27,"HWL")) -> 0 | AU27: 0 | AX27: 0 | AY27: =$E$16/AX27/AU27 ->  | BA27: 0 | BB27: 0 | BC27: 0 | BD27: 0
B28: =IF(Langue!$A$200 = "FR",Dictionnaire!A144,Dictionnaire!B144) -> Rangée 4 | AC28: 0 | AD28: 0 | AE28: 0 | AF28: 0 | AG28: 0 | AH28: 0 | AI28: 0 | AJ28: Rangée 4 | AK28: =IF($E$18<4,0,(IF(COUNTIF($C28:$I28,"PEH")>0,1,IF(COUNTIF($C28:$I28,"HPO")>0,1,0)))) -> 0 | AL28: =IF($E$18<4,0,(IF(COUNTIF($C28:$I28,"FNO")>0,1,IF(COUNTIF($C28:$I28,"HWD")>0,1,0)))) -> 0 | AM28: =IF($E$18<4,0,(IF(COUNTIF($C28:$I28,"CON")>0,1,IF(COUNTIF($C28:$I28,"CON")>0,1,0)))) -> 0 | AN28: =IF($E$18<4,0,(IF(COUNTIF($C28:$I28,"ARB")>0,1,IF(COUNTIF($C28:$I28,"SHR")>0,1,0)))) -> 0 | AO28: =IF($E$18<4,0,(IF(COUNTIF($C28:$I28,"SAH")>0,1,IF(COUNTIF($C28:$I28,"HWL")>0,1,0)))) -> 0 | AP28: =IF($E$18<4,0,(COUNTIF($C28:$I28,"PEH")+COUNTIF($C28:$I28,"HPO"))) -> 0 | AQ28: =IF($E$18<4,0,(COUNTIF($C28:$I28,"FNO")+COUNTIF($C28:$I28,"HWD"))) -> 0 | AR28: =IF($E$18<4,0,COUNTIF($C28:$I28,"CON")) -> 0 | AS28: =IF($E$18<4,0,(COUNTIF($C28:$I28,"ARB")+COUNTIF($C28:$I28,"SHR"))) -> 0 | AT28: =IF($E$18<4,0,COUNTIF($C28:$I28,"SAH")+COUNTIF($C28:$I28,"HWL")) -> 0 | AU28: 0 | AX28: 0 | BA28: 0 | BB28: 0 | BC28: 0 | BD28: 0
B29: =IF(Langue!$A$200 = "FR",Dictionnaire!A145,Dictionnaire!B145) -> Rangée 5 | AJ29: Rangée 5 | AK29: =IF($E$18<5,0,(IF(COUNTIF($C29:$I29,"PEH")>0,1,IF(COUNTIF($C29:$I29,"HPO")>0,1,0)))) -> 0 | AL29: =IF($E$18<5,0,(IF(COUNTIF($C29:$I29,"FNO")>0,1,IF(COUNTIF($C29:$I29,"HWD")>0,1,0)))) -> 0 | AM29: =IF($E$18<5,0,(IF(COUNTIF($C29:$I29,"CON")>0,1,IF(COUNTIF($C29:$I29,"CON")>0,1,0)))) -> 0 | AN29: =IF($E$18<5,0,(IF(COUNTIF($C29:$I29,"ARB")>0,1,IF(COUNTIF($C29:$I29,"SHR")>0,1,0)))) -> 0 | AO29: =IF($E$18<5,0,(IF(COUNTIF($C29:$I29,"SAH")>0,1,IF(COUNTIF($C29:$I29,"HWL")>0,1,0)))) -> 0 | AP29: =IF($E$18<5,0,(COUNTIF($C29:$I29,"PEH")+COUNTIF($C29:$I29,"HPO"))) -> 0 | AQ29: =IF($E$18<5,0,(COUNTIF($C29:$I29,"FNO")+COUNTIF($C29:$I29,"HWD"))) -> 0 | AR29: =IF($E$18<5,0,COUNTIF($C29:$I29,"CON")) -> 0 | AS29: =IF($E$18<5,0,(COUNTIF($C29:$I29,"ARB")+COUNTIF($C29:$I29,"SHR"))) -> 0 | AT29: =IF($E$18<5,0,COUNTIF($C29:$I29,"SAH")+COUNTIF($C29:$I29,"HWL")) -> 0 | AU29: 0 | AX29: 0 | BA29: 0 | BB29: 0 | BC29: 0 | BD29: 0
B30: =IF(Langue!$A$200 = "FR",Dictionnaire!A146,Dictionnaire!B146) -> Rangée 6 | AJ30: Rangée 6 | AK30: =IF($E$18<6,0,(IF(COUNTIF($C30:$I30,"PEH")>0,1,IF(COUNTIF($C30:$I30,"HPO")>0,1,0)))) -> 0 | AL30: =IF($E$18<6,0,(IF(COUNTIF($C30:$I30,"FNO")>0,1,IF(COUNTIF($C30:$I30,"HWD")>0,1,0)))) -> 0 | AM30: =IF($E$18<6,0,(IF(COUNTIF($C30:$I30,"CON")>0,1,IF(COUNTIF($C30:$I30,"CON")>0,1,0)))) -> 0 | AN30: =IF($E$18<6,0,(IF(COUNTIF($C30:$I30,"ARB")>0,1,IF(COUNTIF($C30:$I30,"SHR")>0,1,0)))) -> 0 | AO30: =IF($E$18<6,0,(IF(COUNTIF($C30:$I30,"SAH")>0,1,IF(COUNTIF($C30:$I30,"HWL")>0,1,0)))) -> 0 | AP30: =IF($E$18<6,0,(COUNTIF($C30:$I30,"PEH")+COUNTIF($C30:$I30,"HPO"))) -> 0 | AQ30: =IF($E$18<6,0,(COUNTIF($C30:$I30,"FNO")+COUNTIF($C30:$I30,"HWD"))) -> 0 | AR30: =IF($E$18<6,0,COUNTIF($C30:$I30,"CON")) -> 0 | AS30: =IF($E$18<6,0,(COUNTIF($C30:$I30,"ARB")+COUNTIF($C30:$I30,"SHR"))) -> 0 | AT30: =IF($E$18<6,0,COUNTIF($C30:$I30,"SAH")+COUNTIF($C30:$I30,"HWL")) -> 0 | AU30: 0 | AX30: 0 | BA30: 0 | BB30: 0 | BC30: 0 | BD30: 0
B31: =IF(Langue!$A$200 = "FR",Dictionnaire!A147,Dictionnaire!B147) -> Rangée 7 | AJ31: Rangée 7 | AK31: =IF($E$18<7,0,(IF(COUNTIF($C31:$I31,"PEH")>0,1,IF(COUNTIF($C31:$I31,"HPO")>0,1,0)))) -> 0 | AL31: =IF($E$18<7,0,(IF(COUNTIF($C31:$I31,"FNO")>0,1,IF(COUNTIF($C31:$I31,"HWD")>0,1,0)))) -> 0 | AM31: =IF($E$18<7,0,(IF(COUNTIF($C31:$I31,"CON")>0,1,IF(COUNTIF($C31:$I31,"CON")>0,1,0)))) -> 0 | AN31: =IF($E$18<7,0,(IF(COUNTIF($C31:$I31,"ARB")>0,1,IF(COUNTIF($C31:$I31,"SHR")>0,1,0)))) -> 0 | AO31: =IF($E$18<7,0,(IF(COUNTIF($C31:$I31,"SAH")>0,1,IF(COUNTIF($C31:$I31,"HWL")>0,1,0)))) -> 0 | AP31: =IF($E$18<7,0,(COUNTIF($C31:$I31,"PEH")+COUNTIF($C31:$I31,"HPO"))) -> 0 | AQ31: =IF($E$18<7,0,(COUNTIF($C31:$I31,"FNO")+COUNTIF($C31:$I31,"HWD"))) -> 0 | AR31: =IF($E$18<7,0,COUNTIF($C31:$I31,"CON")) -> 0 | AS31: =IF($E$18<7,0,(COUNTIF($C31:$I31,"ARB")+COUNTIF($C31:$I31,"SHR"))) -> 0 | AT31: =IF($E$18<7,0,COUNTIF($C31:$I31,"SAH")+COUNTIF($C31:$I31,"HWL")) -> 0 | AU31: 0 | AX31: 0 | BA31: 0 | BB31: 0 | BC31: 0 | BD31: 0
AK32: =IF(SUM(AK25:AK31)>0,1,"") ->  | AL32: =IF(SUM(AL25:AL31)>0,1,"") ->  | AU32: Recloter bois ou biomasse?
B33: =IF(Langue!$A$200 = "FR",Dictionnaire!A148,Dictionnaire!B148) -> Quel est l'espacement entre les végétaux (m) ? | AJ33: R1 | AK33: =IF($C$111=FALSE,"",(IF(AK$25=0,"",(IF(Langue!$A$200="FR",Dictionnaire!$A$162,Dictionnaire!$B$162))))) ->  | AL33: =IF($C$113=FALSE,"",(IF(AL$25=0,"",(IF(Langue!$A$200="FR",Dictionnaire!$A$162,Dictionnaire!$B$162))))) ->  | AM33: =IF($C$112=FALSE,"",(IF(AM$25=0,"",(IF(Langue!$A$200="FR",Dictionnaire!$A$162,Dictionnaire!$B$162))))) ->  | AN33: =IF($C$112=FALSE,"",(IF(AN$25=0,"",(IF(Langue!$A$200="FR",Dictionnaire!$A$162,Dictionnaire!$B$162))))) ->  | AO33: =IF($C$114=FALSE,"",(IF(AO$25=0,"",(IF(Langue!$A$200="FR",Dictionnaire!$A$162,Dictionnaire!$B$162))))) ->  | AU33: =SUM(AK32,AL32,AM32,AO32) -> 0 | AV33: =(IF(AU$33=0,"",(IF(Langue!$A$200="FR",Dictionnaire!$A$162,Dictionnaire!$B$162)))) -> 
AK34: =IF($C$111=FALSE,"",(IF(AK$25=0,"",(IF(Langue!$A$200="FR",Dictionnaire!$A$163,Dictionnaire!$B$163))))) ->  | AL34: =IF($C$113=FALSE,"",(IF(AL$25=0,"",(IF(Langue!$A$200="FR",Dictionnaire!$A$163,Dictionnaire!$B$163))))) ->  | AM34: =IF($C$112=FALSE,"",(IF(AM$25=0,"",(IF(Langue!$A$200="FR",Dictionnaire!$A$163,Dictionnaire!$B$163))))) ->  | AN34: =IF($C$112=FALSE,"",(IF(AN$25=0,"",(IF(Langue!$A$200="FR",Dictionnaire!$A$163,Dictionnaire!$B$163))))) ->  | AO34: =IF($C$114=FALSE,"",(IF(AO$25=0,"",(IF(Langue!$A$200="FR",Dictionnaire!$A$163,Dictionnaire!$B$163))))) ->  | AV34: =(IF(AU$33=0,"",(IF(Langue!$A$200="FR",Dictionnaire!$A$163,Dictionnaire!$B$163)))) -> 
B35: =IF(Langue!$A$200 = "FR",Dictionnaire!A149,Dictionnaire!B149) -> Rangée 1 | C35: 0 | AJ35: R2 | AK35: =IF($C$111=FALSE,"",(IF(AK$26=0,"",(IF(Langue!$A$200="FR",Dictionnaire!$A$162,Dictionnaire!$B$162))))) ->  | AL35: =IF($C$113=FALSE,"",(IF(AL$26=0,"",(IF(Langue!$A$200="FR",Dictionnaire!$A$162,Dictionnaire!$B$162))))) ->  | AM35: =IF($C$112=FALSE,"",(IF(AM$26=0,"",(IF(Langue!$A$200="FR",Dictionnaire!$A$162,Dictionnaire!$B$162))))) ->  | AN35: =IF($C$112=FALSE,"",(IF(AN$26=0,"",(IF(Langue!$A$200="FR",Dictionnaire!$A$162,Dictionnaire!$B$162))))) ->  | AO35: =IF($C$114=FALSE,"",(IF(AO$26=0,"",(IF(Langue!$A$200="FR",Dictionnaire!$A$162,Dictionnaire!$B$162))))) ->  | AV35: Oui
B36: =IF(Langue!$A$200 = "FR",Dictionnaire!A150,Dictionnaire!B150) -> Rangée 2 | C36: 0 | AK36: =IF($C$111=FALSE,"",(IF(AK$26=0,"",(IF(Langue!$A$200="FR",Dictionnaire!$A$163,Dictionnaire!$B$163))))) ->  | AL36: =IF($C$113=FALSE,"",(IF(AL$26=0,"",(IF(Langue!$A$200="FR",Dictionnaire!$A$163,Dictionnaire!$B$163))))) ->  | AM36: =IF($C$112=FALSE,"",(IF(AM$26=0,"",(IF(Langue!$A$200="FR",Dictionnaire!$A$163,Dictionnaire!$B$163))))) ->  | AN36: =IF($C$112=FALSE,"",(IF(AN$26=0,"",(IF(Langue!$A$200="FR",Dictionnaire!$A$163,Dictionnaire!$B$163))))) ->  | AO36: =IF($C$114=FALSE,"",(IF(AO$26=0,"",(IF(Langue!$A$200="FR",Dictionnaire!$A$163,Dictionnaire!$B$163))))) ->  | AV36: Valeur par défaut | AW36: =(IF(Langue!$A$200="FR",Dictionnaire!$A$163,Dictionnaire!$B$163)) -> Non
B37: =IF(Langue!$A$200 = "FR",Dictionnaire!A151,Dictionnaire!B151) -> Rangée 3 | C37: 0 | AJ37: R3 | AK37: =IF($C$111=FALSE,"",(IF(AK$27=0,"",(IF(Langue!$A$200="FR",Dictionnaire!$A$162,Dictionnaire!$B$162))))) ->  | AL37: =IF($C$113=FALSE,"",(IF(AL$27=0,"",(IF(Langue!$A$200="FR",Dictionnaire!$A$162,Dictionnaire!$B$162))))) ->  | AM37: =IF($C$112=FALSE,"",(IF(AM$27=0,"",(IF(Langue!$A$200="FR",Dictionnaire!$A$162,Dictionnaire!$B$162))))) ->  | AN37: =IF($C$112=FALSE,"",(IF(AN$27=0,"",(IF(Langue!$A$200="FR",Dictionnaire!$A$162,Dictionnaire!$B$162))))) ->  | AO37: =IF($C$114=FALSE,"",(IF(AO$27=0,"",(IF(Langue!$A$200="FR",Dictionnaire!$A$162,Dictionnaire!$B$162))))) -> 
B38: =IF(Langue!$A$200 = "FR",Dictionnaire!A152,Dictionnaire!B152) -> Rangée 4 | C38: 0 | AK38: =IF($C$111=FALSE,"",(IF(AK$27=0,"",(IF(Langue!$A$200="FR",Dictionnaire!$A$163,Dictionnaire!$B$163))))) ->  | AL38: =IF($C$113=FALSE,"",(IF(AL$27=0,"",(IF(Langue!$A$200="FR",Dictionnaire!$A$163,Dictionnaire!$B$163))))) ->  | AM38: =IF($C$112=FALSE,"",(IF(AM$27=0,"",(IF(Langue!$A$200="FR",Dictionnaire!$A$163,Dictionnaire!$B$163))))) ->  | AN38: =IF($C$112=FALSE,"",(IF(AN$27=0,"",(IF(Langue!$A$200="FR",Dictionnaire!$A$163,Dictionnaire!$B$163))))) ->  | AO38: =IF($C$114=FALSE,"",(IF(AO$27=0,"",(IF(Langue!$A$200="FR",Dictionnaire!$A$163,Dictionnaire!$B$163))))) -> 
B39: =IF(Langue!$A$200 = "FR",Dictionnaire!A153,Dictionnaire!B153) -> Rangée 5 | C39: 0 | AJ39: R4 | AK39: =IF($C$111=FALSE,"",(IF(AK$28=0,"",(IF(Langue!$A$200="FR",Dictionnaire!$A$162,Dictionnaire!$B$162))))) ->  | AL39: =IF($C$113=FALSE,"",(IF(AL$28=0,"",(IF(Langue!$A$200="FR",Dictionnaire!$A$162,Dictionnaire!$B$162))))) ->  | AM39: =IF($C$112=FALSE,"",(IF(AM$28=0,"",(IF(Langue!$A$200="FR",Dictionnaire!$A$162,Dictionnaire!$B$162))))) ->  | AN39: =IF($C$112=FALSE,"",(IF(AN$28=0,"",(IF(Langue!$A$200="FR",Dictionnaire!$A$162,Dictionnaire!$B$162))))) ->  | AO39: =IF($C$114=FALSE,"",(IF(AO$28=0,"",(IF(Langue!$A$200="FR",Dictionnaire!$A$162,Dictionnaire!$B$162))))) -> 
B40: =IF(Langue!$A$200 = "FR",Dictionnaire!A154,Dictionnaire!B154) -> Rangée 6 | C40: 0 | AK40: =IF($C$111=FALSE,"",(IF(AK$28=0,"",(IF(Langue!$A$200="FR",Dictionnaire!$A$163,Dictionnaire!$B$163))))) ->  | AL40: =IF($C$113=FALSE,"",(IF(AL$28=0,"",(IF(Langue!$A$200="FR",Dictionnaire!$A$163,Dictionnaire!$B$163))))) ->  | AM40: =IF($C$112=FALSE,"",(IF(AM$28=0,"",(IF(Langue!$A$200="FR",Dictionnaire!$A$163,Dictionnaire!$B$163))))) ->  | AN40: =IF($C$112=FALSE,"",(IF(AN$28=0,"",(IF(Langue!$A$200="FR",Dictionnaire!$A$163,Dictionnaire!$B$163))))) ->  | AO40: =IF($C$114=FALSE,"",(IF(AO$28=0,"",(IF(Langue!$A$200="FR",Dictionnaire!$A$163,Dictionnaire!$B$163))))) -> 
B41: =IF(Langue!$A$200 = "FR",Dictionnaire!A155,Dictionnaire!B155) -> Rangée 7 | C41: 0 | AJ41: R5 | AK41: =IF($C$111=FALSE,"",(IF(AK$29=0,"",(IF(Langue!$A$200="FR",Dictionnaire!$A$162,Dictionnaire!$B$162))))) ->  | AL41: =IF($C$113=FALSE,"",(IF(AL$29=0,"",(IF(Langue!$A$200="FR",Dictionnaire!$A$162,Dictionnaire!$B$162))))) ->  | AM41: =IF($C$112=FALSE,"",(IF(AM$29=0,"",(IF(Langue!$A$200="FR",Dictionnaire!$A$162,Dictionnaire!$B$162))))) ->  | AN41: =IF($C$112=FALSE,"",(IF(AN$29=0,"",(IF(Langue!$A$200="FR",Dictionnaire!$A$162,Dictionnaire!$B$162))))) ->  | AO41: =IF($C$114=FALSE,"",(IF(AO$29=0,"",(IF(Langue!$A$200="FR",Dictionnaire!$A$162,Dictionnaire!$B$162))))) -> 
AK42: =IF($C$111=FALSE,"",(IF(AK$29=0,"",(IF(Langue!$A$200="FR",Dictionnaire!$A$163,Dictionnaire!$B$163))))) ->  | AL42: =IF($C$113=FALSE,"",(IF(AL$29=0,"",(IF(Langue!$A$200="FR",Dictionnaire!$A$163,Dictionnaire!$B$163))))) ->  | AM42: =IF($C$112=FALSE,"",(IF(AM$29=0,"",(IF(Langue!$A$200="FR",Dictionnaire!$A$163,Dictionnaire!$B$163))))) ->  | AN42: =IF($C$112=FALSE,"",(IF(AN$29=0,"",(IF(Langue!$A$200="FR",Dictionnaire!$A$163,Dictionnaire!$B$163))))) ->  | AO42: =IF($C$114=FALSE,"",(IF(AO$29=0,"",(IF(Langue!$A$200="FR",Dictionnaire!$A$163,Dictionnaire!$B$163))))) -> 
B43: =IF(Langue!$A$200 = "FR",Dictionnaire!A156,Dictionnaire!B156) -> Type de paillis utilisé ? | D43: Déroulé en longueur | E43: =IF(Langue!$A$200 = "FR",Dictionnaire!A157,Dictionnaire!B157) -> Largeur du plastique si déroulé ? | G43: 4 | H43: =IF(Langue!$A$200 = "FR",Dictionnaire!A158,Dictionnaire!B158) -> pieds | AC43: 4 | AD43: =IF(OR($D$43="Déroulé en longueur",$D$43="Rolled down"),4,0) -> 4 | AJ43: R6 | AK43: =IF($C$111=FALSE,"",(IF(AK$30=0,"",(IF(Langue!$A$200="FR",Dictionnaire!$A$162,Dictionnaire!$B$162))))) ->  | AL43: =IF($C$113=FALSE,"",(IF(AL$30=0,"",(IF(Langue!$A$200="FR",Dictionnaire!$A$162,Dictionnaire!$B$162))))) ->  | AM43: =IF($C$112=FALSE,"",(IF(AM$30=0,"",(IF(Langue!$A$200="FR",Dictionnaire!$A$162,Dictionnaire!$B$162))))) ->  | AN43: =IF($C$112=FALSE,"",(IF(AN$30=0,"",(IF(Langue!$A$200="FR",Dictionnaire!$A$162,Dictionnaire!$B$162))))) ->  | AO43: =IF($C$114=FALSE,"",(IF(AO$30=0,"",(IF(Langue!$A$200="FR",Dictionnaire!$A$162,Dictionnaire!$B$162))))) -> 
AC44: 5 | AD44: =IF(OR($D$43="Déroulé en longueur",$D$43="Rolled down"),5,0) -> 5 | AK44: =IF($C$111=FALSE,"",(IF(AK$30=0,"",(IF(Langue!$A$200="FR",Dictionnaire!$A$163,Dictionnaire!$B$163))))) ->  | AL44: =IF($C$113=FALSE,"",(IF(AL$30=0,"",(IF(Langue!$A$200="FR",Dictionnaire!$A$163,Dictionnaire!$B$163))))) ->  | AM44: =IF($C$112=FALSE,"",(IF(AM$30=0,"",(IF(Langue!$A$200="FR",Dictionnaire!$A$163,Dictionnaire!$B$163))))) ->  | AN44: =IF($C$112=FALSE,"",(IF(AN$30=0,"",(IF(Langue!$A$200="FR",Dictionnaire!$A$163,Dictionnaire!$B$163))))) ->  | AO44: =IF($C$114=FALSE,"",(IF(AO$30=0,"",(IF(Langue!$A$200="FR",Dictionnaire!$A$163,Dictionnaire!$B$163))))) -> 
AC45: =IF(Langue!$A$200 = "FR",Dictionnaire!A159,Dictionnaire!B159) -> Déroulé en longueur | AJ45: R7 | AK45: =IF($C$111=FALSE,"",(IF(AK$31=0,"",(IF(Langue!$A$200="FR",Dictionnaire!$A$162,Dictionnaire!$B$162))))) ->  | AL45: =IF($C$113=FALSE,"",(IF(AL$31=0,"",(IF(Langue!$A$200="FR",Dictionnaire!$A$162,Dictionnaire!$B$162))))) ->  | AM45: =IF($C$112=FALSE,"",(IF(AM$31=0,"",(IF(Langue!$A$200="FR",Dictionnaire!$A$162,Dictionnaire!$B$162))))) ->  | AN45: =IF($C$112=FALSE,"",(IF(AN$31=0,"",(IF(Langue!$A$200="FR",Dictionnaire!$A$162,Dictionnaire!$B$162))))) ->  | AO45: =IF($C$114=FALSE,"",(IF(AO$31=0,"",(IF(Langue!$A$200="FR",Dictionnaire!$A$162,Dictionnaire!$B$162))))) -> 
B46: =IF(Langue!$A$200 = "FR",Dictionnaire!A164,Dictionnaire!B164) -> Quels sont les coûts des végétaux ($) ? | AC46: =IF(Langue!$A$200 = "FR",Dictionnaire!A160,Dictionnaire!B160) -> Grandes collerettes | AK46: =IF($C$111=FALSE,"",(IF(AK$31=0,"",(IF(Langue!$A$200="FR",Dictionnaire!$A$163,Dictionnaire!$B$163))))) ->  | AL46: =IF($C$113=FALSE,"",(IF(AL$31=0,"",(IF(Langue!$A$200="FR",Dictionnaire!$A$163,Dictionnaire!$B$163))))) ->  | AM46: =IF($C$112=FALSE,"",(IF(AM$31=0,"",(IF(Langue!$A$200="FR",Dictionnaire!$A$163,Dictionnaire!$B$163))))) ->  | AN46: =IF($C$112=FALSE,"",(IF(AN$31=0,"",(IF(Langue!$A$200="FR",Dictionnaire!$A$163,Dictionnaire!$B$163))))) ->  | AO46: =IF($C$114=FALSE,"",(IF(AO$31=0,"",(IF(Langue!$A$200="FR",Dictionnaire!$A$163,Dictionnaire!$B$163))))) -> 
AC47: =IF(Langue!$A$200 = "FR",Dictionnaire!A161,Dictionnaire!B161) -> Biodisques | AJ47: Toute | AK47: =IF($C$111=FALSE,"",(IF(SUM(AK25:AK31)=0,"",(IF(Langue!$A$200="FR",Dictionnaire!$A$162,Dictionnaire!$B$162))))) ->  | AL47: =IF($C$113=FALSE,"",(IF(SUM(AL25:AL31)=0,"",(IF(Langue!$A$200="FR",Dictionnaire!$A$162,Dictionnaire!$B$162))))) ->  | AM47: =IF($C$112=FALSE,"",(IF(SUM(AM25:AM31)=0,"",(IF(Langue!$A$200="FR",Dictionnaire!$A$162,Dictionnaire!$B$162))))) ->  | AN47: =IF($C$112=FALSE,"",(IF(SUM(AN25:AN31)=0,"",(IF(Langue!$A$200="FR",Dictionnaire!$A$162,Dictionnaire!$B$162))))) ->  | AO47: =IF($C$114=FALSE,"",(IF(SUM(AO25:AO31)=0,"",(IF(Langue!$A$200="FR",Dictionnaire!$A$162,Dictionnaire!$B$162))))) -> 
D48: =IF(Langue!$A$200 = "FR",Dictionnaire!A165,Dictionnaire!B165) -> Épinettes, Pins ou Thuyas (CON) | E48: 9 | AD48: 0 | AK48: =IF($C$111=FALSE,"",(IF(SUM(AK25:AK31)=0,"",(IF(Langue!$A$200="FR",Dictionnaire!$A$163,Dictionnaire!$B$163))))) ->  | AL48: =IF($C$113=FALSE,"",(IF(SUM(AL25:AL31)=0,"",(IF(Langue!$A$200="FR",Dictionnaire!$A$163,Dictionnaire!$B$163))))) ->  | AM48: =IF($C$112=FALSE,"",(IF(SUM(AM25:AM31)=0,"",(IF(Langue!$A$200="FR",Dictionnaire!$A$163,Dictionnaire!$B$163))))) ->  | AN48: =IF($C$112=FALSE,"",(IF(SUM(AN25:AN31)=0,"",(IF(Langue!$A$200="FR",Dictionnaire!$A$163,Dictionnaire!$B$163))))) ->  | AO48: =IF($C$114=FALSE,"",(IF(SUM(AO25:AO31)=0,"",(IF(Langue!$A$200="FR",Dictionnaire!$A$163,Dictionnaire!$B$163))))) -> 
D49: =IF(Langue!$A$200 = "FR",Dictionnaire!A166,Dictionnaire!B166) -> Peupliers hybrides (PEH) | E49: 9 | AD49: 0.25 | AE49: Rangée 1 | AF49: Rangée 2 | AG49: Rangée 3 | AH49: Rangée 4 | AI49: Rangée 5 | AJ49: Rangée 6 | AK49: Rangée 7
D50: =IF(Langue!$A$200 = "FR",Dictionnaire!A167,Dictionnaire!B167) -> Feuillus nobles (FNO) | E50: 9 | AC50: =IF(Langue!$A$200 = "FR",Dictionnaire!A285,Dictionnaire!B285) -> CON | AD50: 0.375
D51: =IF(Langue!$A$200 = "FR",Dictionnaire!A168,Dictionnaire!B168) -> Arbustes (ARB) | E51: 9 | AC51: =IF(Langue!$A$200 = "FR",Dictionnaire!A286,Dictionnaire!B286) -> PEH | AD51: 0.5 | AE51: =IF($E$18>=1,$AC50,"") ->  | AF51: =IF($E$18>=2,$AC50,"") ->  | AG51: =IF($E$18>=3,$AC50,"") ->  | AH51: =IF($E$18>=4,$AC50,"") ->  | AI51: =IF($E$18>=5,$AC50,"") ->  | AJ51: =IF($E$18>=6,$AC50,"") ->  | AK51: =IF($E$18>=7,$AC50,"") -> 
D52: =IF(Langue!$A$200 = "FR",Dictionnaire!A169,Dictionnaire!B169) -> Saules hybrides (SAH) | E52: 0.5 | AC52: =IF(Langue!$A$200 = "FR",Dictionnaire!A287,Dictionnaire!B287) -> FNO | AD52: 0.75 | AE52: =IF($E$18>=1,$AC51,"") ->  | AF52: =IF($E$18>=2,$AC51,"") ->  | AG52: =IF($E$18>=3,$AC51,"") ->  | AH52: =IF($E$18>=4,$AC51,"") ->  | AI52: =IF($E$18>=5,$AC51,"") ->  | AJ52: =IF($E$18>=6,$AC51,"") ->  | AK52: =IF($E$18>=7,$AC51,"") -> 
AC53: =IF(Langue!$A$200 = "FR",Dictionnaire!A288,Dictionnaire!B288) -> ARB | AD53: 1 | AE53: =IF($E$18>=1,$AC52,"") ->  | AF53: =IF($E$18>=2,$AC52,"") ->  | AG53: =IF($E$18>=3,$AC52,"") ->  | AH53: =IF($E$18>=4,$AC52,"") ->  | AI53: =IF($E$18>=5,$AC52,"") ->  | AJ53: =IF($E$18>=6,$AC52,"") ->  | AK53: =IF($E$18>=7,$AC52,"") -> 
AC54: =IF(Langue!$A$200 = "FR",Dictionnaire!A289,Dictionnaire!B289) -> SAH | AD54: 1.5 | AE54: =IF($E$18>=1,$AC53,"") ->  | AF54: =IF($E$18>=2,$AC53,"") ->  | AG54: =IF($E$18>=3,$AC53,"") ->  | AH54: =IF($E$18>=4,$AC53,"") ->  | AI54: =IF($E$18>=5,$AC53,"") ->  | AJ54: =IF($E$18>=6,$AC53,"") ->  | AK54: =IF($E$18>=7,$AC53,"") -> 
AD55: 2 | AE55: =IF($E$18>=1,$AC54,"") ->  | AF55: =IF($E$18>=2,$AC54,"") ->  | AG55: =IF($E$18>=3,$AC54,"") ->  | AH55: =IF($E$18>=4,$AC54,"") ->  | AI55: =IF($E$18>=5,$AC54,"") ->  | AJ55: =IF($E$18>=6,$AC54,"") ->  | AK55: =IF($E$18>=7,$AC54,"") -> 
B56: =IF(Langue!$A$200 = "FR",Dictionnaire!A170,Dictionnaire!B170) -> Inscrire la distance entre le site d'établissement et le point de départ des ouvriers | H56: 0 | I56: km | AD56: 3
AD57: 4
B58: =IF(Langue!$A$200 = "FR",Dictionnaire!A171,Dictionnaire!B171) -> Subvention (programme Prime-Vert par défaut) | H58: 0.7 | AD58: 5
AC59: Choix | AD59: 6
B60: =IF(Langue!$A$200 = "FR",Dictionnaire!A173,Dictionnaire!B173) -> Désirez-vous effectuer votre établissement avec des arbres de fort calibre ? | H60: Non | AC60: =IF(Langue!$A$200 = "FR",Dictionnaire!A162,Dictionnaire!B162) -> Oui
AC61: =IF(Langue!$A$200 = "FR",Dictionnaire!A163,Dictionnaire!B163) -> Non | AD61: Rangée 1 | AE61: Rangée 2 | AF61: Rangée 3 | AG61: Rangée 4 | AH61: Rangée 5 | AI61: Rangée 6 | AJ61: Rangée 7 | AK61: Rangée 1 | AL61: Rangée 2 | AM61: Rangée 3 | AN61: Rangée 4 | AO61: Rangée 5 | AP61: Rangée 6 | AQ61: Rangée 7
B62: =IF(Langue!$A$200 = "FR",Dictionnaire!A181,Dictionnaire!B181) -> Protection contre les ravageurs | H62: Non
B64: =IF(Langue!$A$200 = "FR",Dictionnaire!A182,Dictionnaire!B182) -> Si oui, spécifiez lesquels | F64: FALSE | G64: 0 | H64: FALSE
AD65: =IF($E$18<1,"",IF(OR($BC$25>=1,$BD$25>=1),"",IF(($BA$25+$BB$25)>=2,"",IF($AL$25>=1,"",$AD$59)))) ->  | AE65: =IF($E$18<2,"",IF(OR($BC$26>=1,$BD$26>=1),"",IF(($BB$26+$BA$26)>=2,"",IF($AL$26>=1,"",$AD$59)))) ->  | AF65: =IF($E$18<3,"",IF(OR($BC$27>=1,$BD$27>=1),"",IF(($BB$27+$BA$27)>=2,"",IF($AL$27>=1,"",$AD$59)))) ->  | AG65: =IF($E$18<4,"",IF(OR($BC$28>=1,$BD$28>=1),"",IF(($BB$28+$BA$28)>=2,"",IF($AL$28>=1,"",$AD$59)))) ->  | AH65: =IF($E$18<5,"",IF(OR($BC$29>=1,$BD$29>=1),"",IF(($BB$29+$BA$29)>=2,"",IF($AL$29>=1,"",$AD$59)))) ->  | AI65: =IF($E$18<6,"",IF(OR($BC$30>=1,$BD$30>=1),"",IF(($BB$30+$BA$30)>=2,"",IF($AL$30>=1,"",$AD$59)))) ->  | AJ65: =IF($E$18<7,"",IF(OR($BC$31>=1,$BD$31>=1),"",IF(($BB$31+$BA$31)>=2,"",IF($AL$31>=1,"",$AD$59)))) ->  | AK65: =CONCATENATE($AC65,AD65) -> 
B66: =IF(Langue!$A$200 = "FR",Dictionnaire!A175,Dictionnaire!B175) -> Section 2 : Entretien de la haie | AD66: =IF($E$18>=1,$AD48,"") ->  | AE66: =IF($E$18>=2,$AD48,"") ->  | AF66: =IF($E$18>=3,$AD48,"") ->  | AG66: =IF($E$18>=4,$AD48,"") ->  | AH66: =IF($E$18>=5,$AD48,"") ->  | AI66: =IF($E$18>=6,$AD48,"") ->  | AJ66: =IF($E$18>=7,$AD48,"") ->  | AK66: =CONCATENATE($AC66,AD66) ->  | AL66: =CONCATENATE($AC66,AE66) -> 
AD67: =IF($E$18<1,"",IF(OR($BC$25>=1,$BD$25=1),$AD$55,IF(($BA$25+$BB$25)>=2,$AD$54,IF($AL$25>=1,$AD$55,$AD$49)))) ->  | AE67: =IF($E$18<2,"",IF(OR($BC$26>=1,$BD$26=1),$AD$55,IF(($BA$26+$BB$26)>=2,$AD$54,IF($AL$26>=1,$AD$55,$AD$49)))) ->  | AF67: =IF($E$18<3,"",IF(OR($BC$27>=1,$BD$27>=1),$AD$55,IF(($BB$27+$BA$27)>=2,$AD$54,IF($AL$27>=1,$AD$55,$AD$49)))) ->  | AG67: =IF($E$18<4,"",IF(OR($BC$28>=1,$BD$28>=1),$AD$55,IF(($BB$28+$BA$28)>=2,$AD$54,IF($AL$28>=1,$AD$55,$AD$49)))) ->  | AH67: =IF($E$18<5,"",IF(OR($BC$29>=1,$BD$29>=1),$AD$55,IF(($BB$29+$BA$29)>=2,$AD$54,IF($AL$29>=1,$AD$55,$AD$49)))) ->  | AI67: =IF($E$18<6,"",IF(OR($BC$30>=1,$BD$30>=1),$AD$55,IF(($BB$30+$BA$30)>=2,$AD$54,IF($AL$30>=1,$AD$55,$AD$49)))) ->  | AJ67: =IF($E$18<7,"",IF(OR($BC$31>=1,$BD$31>=1),$AD$55,IF(($BB$31+$BA$31)>=2,$AD$54,IF($AL$31>=1,$AD$55,$AD$49)))) ->  | AK67: =CONCATENATE($AC67,AD67) -> 
B68: =IF(Langue!$A$200 = "FR",Dictionnaire!A176,Dictionnaire!B176) -> Désirez-vous effectuer les activités d'entretien suivantes ? | F68: =IF(Langue!$A$200 = "FR",Dictionnaire!A183,Dictionnaire!B183) -> Subventions | G68: 0,7 | AD68: =IF($E$18<1,"",IF(OR($BC$25>=1,$BD$25>=1),$AD$56,IF(($BA$25+$BB$25)>=2,$AD$55,IF($AL$25>=1,$AD$56,$AD$50)))) ->  | AE68: =IF($E$18<2,"",IF(OR($BC$26>=1,$BD$26>=1),$AD$56,IF(($BA$26+$BB$26)>=2,$AD$55,IF($AL$26>=1,$AD$56,$AD$50)))) ->  | AF68: =IF($E$18<3,"",IF(OR($BC$27>=1,$BD$27>=1),$AD$56,IF(($BB$27+$BA$27)>=2,$AD$55,IF($AL$27>=1,$AD$56,$AD$50)))) ->  | AG68: =IF($E$18<4,"",IF(OR($BC$28>=1,$BD$28>=1),$AD$56,IF(($BB$28+$BA$28)>=2,$AD$55,IF($AL$28>=1,$AD$56,$AD$50)))) ->  | AH68: =IF($E$18<5,"",IF(OR($BC$29>=1,$BD$29>=1),$AD$56,IF(($BB$29+$BA$29)>=2,$AD$55,IF($AL$29>=1,$AD$56,$AD$50)))) ->  | AI68: =IF($E$18<6,"",IF(OR($BC$30>=1,$BD$30>=1),$AD$56,IF(($BB$30+$BA$30)>=2,$AD$55,IF($AL$30>=1,$AD$56,$AD$50)))) ->  | AJ68: =IF($E$18<7,"",IF(OR($BC$31>=1,$BD$31>=1),$AD$56,IF(($BB$31+$BA$31)>=2,$AD$55,IF($AL$31>=1,$AD$56,$AD$50)))) -> 
AD69: =IF($E$18<1,"",IF(OR($BC$25>=1,$BD$25>=1),$AD$57,IF(($BA$25+$BB$25)>=2,$AD$56,IF($AL$25>=1,$AD$57,$AD$51)))) ->  | AE69: =IF($E$18<2,"",IF(OR($BC$26>=1,$BD$26>=1),$AD$57,IF(($BB$26+$BA$26)>=2,$AD$56,IF($AL$26>=1,$AD$57,$AD$51)))) ->  | AF69: =IF($E$18<3,"",IF(OR($BC$27>=1,$BD$27>=1),$AD$57,IF(($BB$27+$BA$27)>=2,$AD$56,IF($AL$27>=1,$AD$57,$AD$51)))) ->  | AG69: =IF($E$18<4,"",IF(OR($BC$28>=1,$BD$28>=1),$AD$57,IF(($BB$28+$BA$28)>=2,$AD$56,IF($AL$28>=1,$AD$57,$AD$51)))) ->  | AH69: =IF($E$18<5,"",IF(OR($BC$29>=1,$BD$29>=1),$AD$57,IF(($BB$29+$BA$29)>=2,$AD$56,IF($AL$29>=1,$AD$57,$AD$51)))) ->  | AI69: =IF($E$18<6,"",IF(OR($BC$30>=1,$BD$30>=1),$AD$57,IF(($BB$30+$BA$30)>=2,$AD$56,IF($AL$30>=1,$AD$57,$AD$51)))) ->  | AJ69: =IF($E$18<7,"",IF(OR($BC$31>=1,$BD$31>=1),$AD$57,IF(($BB$31+$BA$31)>=2,$AD$56,IF($AL$31>=1,$AD$57,$AD$51)))) -> 
C70: =IF(Langue!$A$200 = "FR",Dictionnaire!A177,Dictionnaire!B177) -> Remplacement des arbres morts la deuxième année | G70: Oui | AD70: =IF($E$18<1,"",IF(OR($BC$25>=1,$BD$25>=1),$AD$58,IF(($BA$25+$BB$25)>=2,$AD$57,IF($AL$25>=1,$AD$58,$AD$52)))) ->  | AE70: =IF($E$18<2,"",IF(OR($BC$26>=1,$BD$26>=1),$AD$58,IF(($BB$26+$BA$26)>=2,$AD$57,IF($AL$26>=1,$AD$58,$AD$52)))) ->  | AF70: =IF($E$18<3,"",IF(OR($BC$27>=1,$BD$27>=1),$AD$58,IF(($BB$27+$BA$27)>=2,$AD$57,IF($AL$27>=1,$AD$58,$AD$52)))) ->  | AG70: =IF($E$18<4,"",IF(OR($BC$28>=1,$BD$28>=1),$AD$58,IF(($BB$28+$BA$28)>=2,$AD$57,IF($AL$28>=1,$AD$58,$AD$52)))) ->  | AH70: =IF($E$18<5,"",IF(OR($BC$29>=1,$BD$29>=1),$AD$58,IF(($BB$29+$BA$29)>=2,$AD$57,IF($AL$29>=1,$AD$58,$AD$52)))) ->  | AI70: =IF($E$18<6,"",IF(OR($BC$30>=1,$BD$30>=1),$AD$58,IF(($BB$30+$BA$30)>=2,$AD$57,IF($AL$30>=1,$AD$58,$AD$52)))) ->  | AJ70: =IF($E$18<7,"",IF(OR($BC$31>=1,$BD$31>=1),$AD$58,IF(($BB$31+$BA$31)>=2,$AD$57,IF($AL$31>=1,$AD$58,$AD$52)))) -> 
AD71: =IF($E$18<1,"",IF(OR($BC$25>=1,$BD$25>=1),$AD$59,IF(($BA$25+$BB$25)>=2,$AD$58,IF($AL$25>=1,$AD$59,$AD$53)))) ->  | AE71: =IF($E$18<2,"",IF(OR($BC$26>=1,$BD$26>=1),$AD$59,IF(($BB$26+$BA$26)>=2,$AD$58,IF($AL$26>=1,$AD$59,$AD$53)))) ->  | AF71: =IF($E$18<3,"",IF(OR($BC$27>=1,$BD$27>=1),$AD$59,IF(($BB$27+$BA$27)>=2,$AD$58,IF($AL$27>=1,$AD$59,$AD$53)))) ->  | AG71: =IF($E$18<4,"",IF(OR($BC$28>=1,$BD$28>=1),$AD$59,IF(($BB$28+$BA$28)>=2,$AD$58,IF($AL$28>=1,$AD$59,$AD$53)))) ->  | AH71: =IF($E$18<5,"",IF(OR($BC$29>=1,$BD$29>=1),$AD$59,IF(($BB$29+$BA$29)>=2,$AD$58,IF($AL$29>=1,$AD$59,$AD$53)))) ->  | AI71: =IF($E$18<6,"",IF(OR($BC$30>=1,$BD$30>=1),$AD$59,IF(($BB$30+$BA$30)>=2,$AD$58,IF($AL$30>=1,$AD$59,$AD$53)))) ->  | AJ71: =IF($E$18<7,"",IF(OR($BC$31>=1,$BD$31>=1),$AD$59,IF(($BB$31+$BA$31)>=2,$AD$58,IF($AL$31>=1,$AD$59,$AD$53)))) -> 
C72: =IF(Langue!$A$200 = "FR",Dictionnaire!A178,Dictionnaire!B178) -> Fauchage et inspection phytosanitaire (1 fois par an, 1 à 5 ans) | G72: Oui | AD72: =IF($E$18<1,"",IF(OR($BC$25>=1,$BD$25>=1),"",IF(($BA$25+$BB$25)>=2,$AD$59,IF($AL$25>=1,"",$AD$54)))) ->  | AE72: =IF($E$18<2,"",IF(OR($BC$26>=1,$BD$26>=1),"",IF(($BB$26+$BA$26)>=2,$AD$59,IF($AL$26>=1,"",$AD$54)))) ->  | AF72: =IF($E$18<3,"",IF(OR($BC$27>=1,$BD$27>=1),"",IF(($BB$27+$BA$27)>=2,$AD$59,IF($AL$27>=1,"",$AD$54)))) ->  | AG72: =IF($E$18<4,"",IF(OR($BC$28>=1,$BD$28>=1),"",IF(($BB$28+$BA$28)>=2,$AD$59,IF($AL$28>=1,"",$AD$54)))) ->  | AH72: =IF($E$18<5,"",IF(OR($BC$29>=1,$BD$29>=1),"",IF(($BB$29+$BA$29)>=2,$AD$59,IF($AL$29>=1,"",$AD$54)))) ->  | AI72: =IF($E$18<6,"",IF(OR($BC$30>=1,$BD$30>=1),"",IF(($BB$30+$BA$30)>=2,$AD$59,IF($AL$30>=1,"",$AD$54)))) ->  | AJ72: =IF($E$18<7,"",IF(OR($BC$31>=1,$BD$31>=1),"",IF(($BB$31+$BA$31)>=2,$AD$59,IF($AL$31>=1,"",$AD$54)))) -> 
AD73: =IF($E$18<1,"",IF(OR($BC$25>=1,$BD$25>=1),"",IF(($BA$25+$BB$25)>=2,"",IF($AL$25>=1,"",$AD$55)))) ->  | AE73: =IF($E$18<2,"",IF(OR($BC$26>=1,$BD$26>=1),"",IF(($BB$26+$BA$26)>=2,"",IF($AL$26>=1,"",$AD$55)))) ->  | AF73: =IF($E$18<3,"",IF(OR($BC$27>=1,$BD$27>=1),"",IF(($BB$27+$BA$27)>=2,"",IF($AL$27>=1,"",$AD$55)))) ->  | AG73: =IF($E$18<4,"",IF(OR($BC$28>=1,$BD$28>=1),"",IF(($BB$28+$BA$28)>=2,"",IF($AL$28>=1,"",$AD$55)))) ->  | AH73: =IF($E$18<5,"",IF(OR($BC$29>=1,$BD$29>=1),"",IF(($BB$29+$BA$29)>=2,"",IF($AL$29>=1,"",$AD$55)))) ->  | AI73: =IF($E$18<6,"",IF(OR($BC$30>=1,$BD$30>=1),"",IF(($BB$30+$BA$30)>=2,"",IF($AL$30>=1,"",$AD$55)))) ->  | AJ73: =IF($E$18<7,"",IF(OR($BC$31>=1,$BD$31>=1),"",IF(($BB$31+$BA$31)>=2,"",IF($AL$31>=1,"",$AD$55)))) -> 
C74: =IF(Langue!$A$200 = "FR",Dictionnaire!A179,Dictionnaire!B179) -> Taille de formation et élagage | G74: Oui | AD74: =IF($E$18<1,"",IF(OR($BC$25>=1,$BD$25>=1),"",IF(($BA$25+$BB$25)>=2,"",IF($AL$25>=1,"",$AD$56)))) ->  | AE74: =IF($E$18<2,"",IF(OR($BC$26>=1,$BD$26>=1),"",IF(($BB$26+$BA$26)>=2,"",IF($AL$26>=1,"",$AD$56)))) ->  | AF74: =IF($E$18<3,"",IF(OR($BC$27>=1,$BD$27>=1),"",IF(($BB$27+$BA$27)>=2,"",IF($AL$27>=1,"",$AD$56)))) ->  | AG74: =IF($E$18<4,"",IF(OR($BC$28>=1,$BD$28>=1),"",IF(($BB$28+$BA$28)>=2,"",IF($AL$28>=1,"",$AD$56)))) ->  | AH74: =IF($E$18<5,"",IF(OR($BC$29>=1,$BD$29>=1),"",IF(($BB$29+$BA$29)>=2,"",IF($AL$29>=1,"",$AD$56)))) ->  | AI74: =IF($E$18<6,"",IF(OR($BC$30>=1,$BD$30>=1),"",IF(($BB$30+$BA$30)>=2,"",IF($AL$30>=1,"",$AD$56)))) ->  | AJ74: =IF($E$18<7,"",IF(OR($BC$31>=1,$BD$31>=1),"",IF(($BB$31+$BA$31)>=2,"",IF($AL$31>=1,"",$AD$56)))) -> 
AD75: =IF($E$18<1,"",IF(OR($BC$25>=1,$BD$25>=1),"",IF(($BA$25+$BB$25)>=2,"",IF($AL$25>=1,"",$AD$57)))) ->  | AE75: =IF($E$18<2,"",IF(OR($BC$26>=1,$BD$26>=1),"",IF(($BB$26+$BA$26)>=2,"",IF($AL$26>=1,"",$AD$57)))) ->  | AF75: =IF($E$18<3,"",IF(OR($BC$27>=1,$BD$27>=1),"",IF(($BB$27+$BA$27)>=2,"",IF($AL$27>=1,"",$AD$57)))) ->  | AG75: =IF($E$18<4,"",IF(OR($BC$28>=1,$BD$28>=1),"",IF(($BB$28+$BA$28)>=2,"",IF($AL$28>=1,"",$AD$57)))) ->  | AH75: =IF($E$18<5,"",IF(OR($BC$29>=1,$BD$29>=1),"",IF(($BB$29+$BA$29)>=2,"",IF($AL$29>=1,"",$AD$57)))) ->  | AI75: =IF($E$18<6,"",IF(OR($BC$30>=1,$BD$30>=1),"",IF(($BB$30+$BA$30)>=2,"",IF($AL$30>=1,"",$AD$57)))) ->  | AJ75: =IF($E$18<7,"",IF(OR($BC$31>=1,$BD$31>=1),"",IF(($BB$31+$BA$31)>=2,"",IF($AL$31>=1,"",$AD$57)))) -> 
C76: =IF(Langue!$A$200 = "FR",Dictionnaire!A180,Dictionnaire!B180) -> Recépage des arbustes | G76: Oui | AD76: =IF($E$18<1,"",IF(OR($BC$25>=1,$BD$25>=1),"",IF(($BA$25+$BB$25)>=2,"",IF($AL$25>=1,"",$AD$58)))) ->  | AE76: =IF($E$18<2,"",IF(OR($BC$26>=1,$BD$26>=1),"",IF(($BB$26+$BA$26)>=2,"",IF($AL$26>=1,"",$AD$58)))) ->  | AF76: =IF($E$18<3,"",IF(OR($BC$27>=1,$BD$27>=1),"",IF(($BB$27+$BA$27)>=2,"",IF($AL$27>=1,"",$AD$58)))) ->  | AG76: =IF($E$18<4,"",IF(OR($BC$28>=1,$BD$28>=1),"",IF(($BB$28+$BA$28)>=2,"",IF($AL$28>=1,"",$AD$58)))) ->  | AH76: =IF($E$18<5,"",IF(OR($BC$29>=1,$BD$29>=1),"",IF(($BB$29+$BA$29)>=2,"",IF($AL$29>=1,"",$AD$58)))) ->  | AI76: =IF($E$18<6,"",IF(OR($BC$30>=1,$BD$30>=1),"",IF(($BB$30+$BA$30)>=2,"",IF($AL$30>=1,"",$AD$58)))) ->  | AJ76: =IF($E$18<7,"",IF(OR($BC$31>=1,$BD$31>=1),"",IF(($BB$31+$BA$31)>=2,"",IF($AL$31>=1,"",$AD$58)))) -> 
AC77: Choix subvention | AD77: 0.7
B78: =IF(Langue!$A$200 = "FR",Dictionnaire!A185,Dictionnaire!B185) -> Section 3 : Perte d'espace cultivable | AD78: 0.9
B80: =CONCATENATE(IF(Langue!$A$200 = "FR",Dictionnaire!A186,Dictionnaire!B186),E16," m") -> Si la longueur de la haie est de 0 m | AC80: ...
B81: =IF(Langue!$A$200 = "FR",Dictionnaire!A187,Dictionnaire!B187) -> Quelle est la longueur de la haie implantée dans un champ cultivé ? | G81: 0 | H81: m | AC81: =Paramètres!F107 -> Foin | AE81: Liste année
AC82: =Paramètres!F108 -> Avoine | AE82: 0 | AF82: 0
B83: =IF(Langue!$A$200 = "FR",Dictionnaire!A188,Dictionnaire!B188) -> Quelle est la durée de la rotation de culture ? | G83: =AF82*1 -> 0 | H83: =IF(Langue!$A$200 = "FR",Dictionnaire!A190,Dictionnaire!B190) -> ans | AC83: =Paramètres!F109 -> Avoine biologique | AE83: 1
AC84: =Paramètres!F110 -> Blé d'alimentation animale | AE84: 2
B85: =IF(Langue!$A$200 = "FR",Dictionnaire!A189,Dictionnaire!B189) -> Quelle est la rotation de culture ? | F85: 0 | AC85: =Paramètres!F111 -> Blé d'alimentation humaine | AE85: 3
AC86: =Paramètres!F112 -> Blé panifiable biologique | AE86: 4
B87: =IF(Langue!$A$200 = "FR",Dictionnaire!A191,Dictionnaire!B191) -> 1re | C87: ... | D87: =IF(Langue!$A$200 = "FR",Dictionnaire!A194,Dictionnaire!B194) -> 4e | E87: ... | F87: =IF(Langue!$A$200 = "FR",Dictionnaire!A197,Dictionnaire!B197) -> 7e | G87: ... | H87: =IF(Langue!$A$200 = "FR",Dictionnaire!A200,Dictionnaire!B200) -> 10e | I87: ... | J87: =IF(Langue!$A$200 = "FR",Dictionnaire!A203,Dictionnaire!B203) -> 13e | K87: ... | L87: =IF(Langue!$A$200 = "FR",Dictionnaire!A206,Dictionnaire!B206) -> 16e | M87: ... | N87: =IF(Langue!$A$200 = "FR",Dictionnaire!A209,Dictionnaire!B209) -> 19e | O87: ... | AC87: =Paramètres!F113 -> Orge d'alimentation animale | AE87: 5
B88: =IF(Langue!$A$200 = "FR",Dictionnaire!A192,Dictionnaire!B192) -> 2e | C88: ... | D88: =IF(Langue!$A$200 = "FR",Dictionnaire!A195,Dictionnaire!B195) -> 5e | E88: ... | F88: =IF(Langue!$A$200 = "FR",Dictionnaire!A198,Dictionnaire!B198) -> 8e | G88: ... | H88: =IF(Langue!$A$200 = "FR",Dictionnaire!A201,Dictionnaire!B201) -> 11e | I88: ... | J88: =IF(Langue!$A$200 = "FR",Dictionnaire!A204,Dictionnaire!B204) -> 14e | K88: ... | L88: =IF(Langue!$A$200 = "FR",Dictionnaire!A207,Dictionnaire!B207) -> 17e | M88: ... | N88: =IF(Langue!$A$200 = "FR",Dictionnaire!A210,Dictionnaire!B210) -> 20e | O88: ... | AC88: =Paramètres!F114 -> Orge biologique | AE88: 6
B89: =IF(Langue!$A$200 = "FR",Dictionnaire!A193,Dictionnaire!B193) -> 3e | C89: ... | D89: =IF(Langue!$A$200 = "FR",Dictionnaire!A196,Dictionnaire!B196) -> 6e | E89: ... | F89: =IF(Langue!$A$200 = "FR",Dictionnaire!A199,Dictionnaire!B199) -> 9e | G89: ... | H89: =IF(Langue!$A$200 = "FR",Dictionnaire!A202,Dictionnaire!B202) -> 12e | I89: ... | J89: =IF(Langue!$A$200 = "FR",Dictionnaire!A205,Dictionnaire!B205) -> 15e | K89: ... | L89: =IF(Langue!$A$200 = "FR",Dictionnaire!A208,Dictionnaire!B208) -> 18e | M89: ... | AC89: =Paramètres!F115 -> Maïs fourrager | AE89: 7
AC90: =Paramètres!F116 -> Maïs grain | AE90: 8
B91: =IF(Langue!$A$200 = "FR",Dictionnaire!A212,Dictionnaire!B212) -> Section 4 : Chauffage des bâtiments d'élevage | AC91: =Paramètres!F117 -> Maïs grain biologique | AE91: 9
AC92: =Paramètres!F118 -> Soya | AE92: 10
B93: =IF(Langue!$A$200 = "FR",Dictionnaire!A213,Dictionnaire!B213) -> Quels sont les coûts annuels de chauffage des bâtiments qui seront protégés? | H93: 0 | AC93: =Paramètres!F119 -> Soya alimentation humaine biologique | AE93: 11
AC94: =Paramètres!F120 -> Canola | AE94: 12
B95: =IF(Langue!$A$200 = "FR",Dictionnaire!A214,Dictionnaire!B214) -> Quel est le type de ventilation de votre bâtiment? | G95: FALSE | H95: FALSE | AC95: =Paramètres!F121 -> Canola biologique | AE95: 13
AC96: =Paramètres!F122 -> Autre 1** | AE96: 14
B97: =IF(Langue!$A$200 = "FR",Dictionnaire!A215,Dictionnaire!B215) -> À quel pourcentage s'élèveront les économies de chauffage à la maturité des haies ? | H97: 0.1 | AC97: =Paramètres!F123 -> Autre 2** | AE97: 15
AC98: =Paramètres!F124 -> Autre 3** | AE98: 16
B99: =IF(Langue!$A$200 = "FR",Dictionnaire!A217,Dictionnaire!B217) -> Section 5 : Déneigement | AC99: =Paramètres!F125 -> Autre 4** | AE99: 17
AC100: =Paramètres!F126 -> Autre 5** | AE100: 18
B101: =IF(Langue!$A$200 = "FR",Dictionnaire!A218,Dictionnaire!B218) -> Combien d'heures par année sont consacrées aux opérations de déneigement dans le secteur qui sera protégé par la haie ? | AC101: =Paramètres!F127 -> Autre 6** | AE101: 19
H102: 0 | I102: =IF(Langue!$A$200 = "FR",Dictionnaire!A219,Dictionnaire!B219) -> heures | AC102: =Paramètres!F128 -> Autre 7** | AE102: 20
AC103: =Paramètres!F129 -> Autre 8**
B104: =IF(Langue!$A$200 = "FR",Dictionnaire!A220,Dictionnaire!B220) -> Taux horaire pour les opérations de déneigement ? | H104: 85 | I104: =IF(Langue!$A$200 = "FR",Dictionnaire!A221,Dictionnaire!B221) -> $/heures | AC104: =Paramètres!F130 -> Autre 9**
AC105: =Paramètres!F131 -> Autre 10**
B106: =IF(Langue!$A$200 = "FR",Dictionnaire!$A$223,Dictionnaire!$B$223) -> Section 6 : Récolte de bois | AC106: =Paramètres!F132 -> 0
AC107: =Paramètres!F133 -> 0
B108: =IF(Langue!$A$200 = "FR",Dictionnaire!A227,Dictionnaire!B227) -> Voulez-vous récolter du bois ou de la biomasse?
B109: =IF(Langue!$A$200 = "FR",Dictionnaire!A224,Dictionnaire!B224) -> Quelle espèce prévoyez-vous récolter ? | F109: =IF(Langue!$A$200 = "FR",Dictionnaire!A225,Dictionnaire!B225) -> À quelle fin destinez-vous le bois? | I109: =IF(Langue!$A$200 = "FR",Dictionnaire!A296,Dictionnaire!B296) -> Quelle(s) rangée(s) voulez-vous récolter ?
H110: 1 | I110: 2 | J110: 3 | K110: 4 | L110: 5 | M110: 6 | N110: 7
C111: FALSE | F111: Sciage
C112: FALSE | F112: Sciage | AC112: Choix PEH | AD112: Choix CON | AE112: Choix FNO | AF112: Choix SAH
C113: FALSE | F113: Sciage | AC113: =IF(Langue!$A$200 = "FR",Dictionnaire!A291,Dictionnaire!B291) -> Sciage | AD113: =IF(Langue!$A$200 = "FR",Dictionnaire!A291,Dictionnaire!B291) -> Sciage | AE113: =IF(Langue!$A$200 = "FR",Dictionnaire!A291,Dictionnaire!B291) -> Sciage | AF113: =IF(Langue!$A$200 = "FR",Dictionnaire!A294,Dictionnaire!B294) -> Pâte ou biomasse
C114: FALSE | F114: Pâte ou biomasse | AC114: =IF(Langue!$A$200 = "FR",Dictionnaire!A292,Dictionnaire!B292) -> Déroulage | AD114: =IF(Langue!$A$200 = "FR",Dictionnaire!A294,Dictionnaire!B294) -> Pâte ou biomasse | AE114: =IF(Langue!$A$200 = "FR",Dictionnaire!A292,Dictionnaire!B292) -> Déroulage
AC115: =IF(Langue!$A$200 = "FR",Dictionnaire!A294,Dictionnaire!B294) -> Pâte ou biomasse | AE115: =IF(Langue!$A$200 = "FR",Dictionnaire!A293,Dictionnaire!B293) -> Bois de chauffage
B116: =IF(Langue!$A$200 = "FR",Dictionnaire!A226,Dictionnaire!B226) -> Quel pourcentage de marge brute prévoyez-vous en retirer ? | AE116: =IF(Langue!$A$200 = "FR",Dictionnaire!A294,Dictionnaire!B294) -> Pâte ou biomasse
F117: =IF(Langue!$A$200 = "FR",Dictionnaire!A286,Dictionnaire!B286) -> PEH | G117: 0.35
F118: =IF(Langue!$A$200 = "FR",Dictionnaire!A285,Dictionnaire!B285) -> CON | G118: 0.35 | AC118: Élagage | AD118: Taille de form + élagage | AE118: Taille de form + élagage
F119: =IF(Langue!$A$200 = "FR",Dictionnaire!A287,Dictionnaire!B287) -> FNO | G119: 0.35 | AC119: =IF($G$76="Oui",1,IF($G$76="Yes",1,0)) -> 1 | AD119: =IF(AND($G$74="Oui",$G$76="Oui"),1,IF(AND($G$74="Yes",$G$76="Yes"),1,0)) -> 1 | AE119: =IF(AND($G$74="Oui",$G$76="Oui"),1,IF(AND($G$74="Yes",$G$76="Yes"),1,0)) -> 1
F120: =IF(Langue!$A$200 = "FR",Dictionnaire!A289,Dictionnaire!B289) -> SAH | G120: 0.35 | AC120: =IF($C$111=FALSE,"",IF(SUM($AK$25:$AK$31)<1,"",IF(AC$119=1,AC113,AC115))) ->  | AD120: =IF($C$112=FALSE,"",IF(SUM($AM$25:$AM$31)<1,"",IF(AD$119=1,AD113,AD114))) ->  | AE120: =IF($C$113=FALSE,"",IF(SUM($AL$25:$AL$31)<1,"",IF(AE$119=1,AE113,AE115))) ->  | AF120: =IF($C$114=FALSE,"",IF(SUM($AO$25:$AO$31)<1,"",AF113)) -> 
AC121: =IF($C$111=FALSE,"",IF(SUM($AK$25:$AK$31)<1,"",IF(AC$119=1,AC114,""))) ->  | AD121: =IF($C$112=FALSE,"",IF(SUM($AM$25:$AM$31)<1,"",IF(AD$119=1,AD114,""))) ->  | AE121: =IF($C$113=FALSE,"",IF(SUM($AL$25:$AL$31)<1,"",IF(AE$119=1,AE114,AE116))) -> 
B122: =IF(Langue!$A$200 = "FR",Dictionnaire!A228,Dictionnaire!B228) -> Section 7 : Récolte de petits fruits | AC122: =IF($C$111=FALSE,"",IF(SUM($AK$25:$AK$31)<1,"",IF(AC$119=1,AC115,""))) ->  | AE122: =IF($C$113=FALSE,"",IF(SUM($AL$25:$AL$31)<1,"",IF(AE$119=1,AE115,""))) -> 
AE123: =IF($C$113=FALSE,"",IF(SUM($AL$25:$AL$31)<1,"",IF(AE$119=1,AE116,""))) -> 
B124: =IF(Langue!$A$200 = "FR",Dictionnaire!A229,Dictionnaire!B229) -> Parmi les arbustes que vous désirez établir, quel pourcentage sont des arbustes fruitiers ? | H124: 0
B126: =IF(Langue!$A$200 = "FR",Dictionnaire!A230,Dictionnaire!B230) -> Prévoyez-vous récolter des fruits ? | F126: Non
B129: =IF(Langue!$A$200 = "FR",Dictionnaire!A231,Dictionnaire!B231) -> Si oui, combien de kg par plant ? | F129: 1.25 | G129: =IF(Langue!$A$200 = "FR",Dictionnaire!A232,Dictionnaire!B232) -> kg/plant
B131: =IF(Langue!$A$200 = "FR",Dictionnaire!A233,Dictionnaire!B233) -> À quel prix ? | F131: 0.8 | G131: /kg | AC131: Rendement
AC132: 2.5
B133: =IF(Langue!$A$200 = "FR",Dictionnaire!A234,Dictionnaire!B234) -> Quel pourcentage de marge brute prévoyez-vous en retirer ? | F133: 0.2 | AC133: 5
AC134: 10
B135: =IF(Langue!$A$200 = "FR",Dictionnaire!A236,Dictionnaire!B236) -> Section 8 : Pertes de sol | AC135: Pertes de sol
B136: =IF(Langue!$A$200 = "FR",Dictionnaire!A237,Dictionnaire!B237) -> (Ne s'applique pas à la protection des bâtiments) | AC136: 0
AC137: 15
B138: =IF(Langue!$A$200 = "FR",Dictionnaire!A238,Dictionnaire!B238) -> À combien évaluez-vous la valeur des pertes de sol ? | F138: 0 | G138: =IF(Langue!$A$200 = "FR",Dictionnaire!A239,Dictionnaire!B239) -> $/ha/année | AC138: 30
AC139: 45
B141: =IF(Langue!$A$200 = "FR",Dictionnaire!A241,Dictionnaire!B241) -> Section 9 : Amélioration des rendements de culture
B142: =IF(Langue!$A$200 = "FR",Dictionnaire!A242,Dictionnaire!B242) -> (Ne s'applique pas à la protection des bâtiments)
B144: =IF(Langue!$A$200 = "FR",Dictionnaire!A243,Dictionnaire!B243) -> Est-ce que la haie offrira une protection pour les cultures ? | F144: Non | AC144: Choix multiple H
AC145: 5
B146: =CONCATENATE(IF(Langue!$A$200 = "FR",Dictionnaire!A186,Dictionnaire!B186),E16," m") -> Si la longueur de la haie est de 0 m | AC146: 10
B147: =IF(Langue!$A$200 = "FR",Dictionnaire!A244,Dictionnaire!B244) -> Quelle est la longueur de la haie qui protégera un champ cultivé ? | G147: 0 | H147: m | AC147: 15
AC148: 20
B149: =IF(Langue!$A$200 = "FR",Dictionnaire!A245,Dictionnaire!B245) -> Sur quel multiple de la hauteur (H) l'augmentation de rendement est-elle perceptible ? | H149: 0 | I149: H
B151: =IF(Langue!$A$200 = "FR",Dictionnaire!A246,Dictionnaire!B246) -> Quel pourcentage d'amélioration de rendement anticipez-vous ? | F151: 2.5 | G151: %
B153: =IF(Langue!$A$200 = "FR",Dictionnaire!A248,Dictionnaire!B248) -> Section 10 : Crédits de carbone
B155: =IF(Langue!$A$200 = "FR",Dictionnaire!A249,Dictionnaire!B249) -> À combien évaluez-vous le prix de la réduction d’une tonne des GES ? | G155: 0 | H155: =IF(Langue!$A$200 = "FR",Dictionnaire!A250,Dictionnaire!B250) -> /tonne CO2
B218: =IF(Langue!$A$200 = "FR",Dictionnaire!A252,Dictionnaire!B252) -> Informations
B219: =IF(Langue!$A$200 = "FR",Dictionnaire!A253,Dictionnaire!B253) -> Est-ce que la haie offrira une protection pour les cultures ?
B243: =IF(Langue!$A$200 = "FR",Dictionnaire!A254,Dictionnaire!B254) -> Quels sont les coûts annuels de chauffage des bâtiments qui seront protégés?
F245: 0
F247: 0
B250: =IF(Langue!$A$200 = "FR",Dictionnaire!A255,Dictionnaire!B255) -> Quel est le type de ventilation de votre bâtiment?
B260: =IF(Langue!$A$200 = "FR",Dictionnaire!A256,Dictionnaire!B256) -> À quel pourcentage d'économie s'élèveront les économies de chauffage à la maturité des haies ?
B276: =IF(Langue!$A$200 = "FR",Dictionnaire!A257,Dictionnaire!B257) -> Combien d'heures par année sont consacrées aux opérations de déneigement ?
B294: =IF(Langue!$A$200 = "FR",Dictionnaire!A258,Dictionnaire!B258) -> Taux horaire pour les opérations de déneigement ?
B310: =IF(Langue!$A$200 = "FR",Dictionnaire!A259,Dictionnaire!B259) -> Longueur de la haie (m) ?
B328: =IF(Langue!$A$200 = "FR",Dictionnaire!A260,Dictionnaire!B260) -> Nombre de rangée ? (maximum 7)
B344: =IF(Langue!$A$200 = "FR",Dictionnaire!A261,Dictionnaire!B261) -> Espacement entre les rangées (m) ?
B362: =IF(Langue!$A$200 = "FR",Dictionnaire!A262,Dictionnaire!B262) -> Quels sont les coûts des végétaux ($) ?
B394: =IF(Langue!$A$200 = "FR",Dictionnaire!A263,Dictionnaire!B263) -> Quelle est la séquence d'établissement des arbres et/ou arbustes ?
B412: =IF(Langue!$A$200 = "FR",Dictionnaire!A264,Dictionnaire!B264) -> Inscrire la distance entre le site d'établissement et le point de départ des ouvriers
B430: =IF(Langue!$A$200 = "FR",Dictionnaire!A265,Dictionnaire!B265) -> Quel est l'espacement entre les végétaux (m) ?
B446: =IF(Langue!$A$200 = "FR",Dictionnaire!A266,Dictionnaire!B266) -> Quelle largeur de paillis de plastique utiliserez-vous ?
B464: =IF(Langue!$A$200 = "FR",Dictionnaire!A267,Dictionnaire!B267) -> Quel est le pourcentage des coûts d'établissement qui sera remboursé par des subventions ?
B480: =IF(Langue!$A$200 = "FR",Dictionnaire!A268,Dictionnaire!B268) -> Est-ce que vous voulez effectuer votre établissement avec des arbres de fort calibre ?
B498: =IF(Langue!$A$200 = "FR",Dictionnaire!A269,Dictionnaire!B269) -> Désirez-vous effectuer les activités d'entretiens suivantes ?
B514: Quel longueur de la haie est implantée dans un champs cultivé ?
B540: =IF(Langue!$A$200 = "FR",Dictionnaire!A270,Dictionnaire!B270) -> Quelle est la longueur de la haie implantée dans un champ cultivé ?
B558: =IF(Langue!$A$200 = "FR",Dictionnaire!A271,Dictionnaire!B271) -> Quelle est la durée de la rotation de culture ?
B574: =IF(Langue!$A$200 = "FR",Dictionnaire!A272,Dictionnaire!B272) -> Quelle est la rotation de culture ?
B592: =IF(Langue!$A$200 = "FR",Dictionnaire!A273,Dictionnaire!B273) -> Quel bois prévoyez-vous récolter ?
B608: =IF(Langue!$A$200 = "FR",Dictionnaire!A274,Dictionnaire!B274) -> À quelle fin destinez-vous le bois?
B637: =IF(Langue!$A$200 = "FR",Dictionnaire!A275,Dictionnaire!B275) -> Quel pourcentage de marge brute prévoyez-vous en retirer ?
B650: =IF(Langue!$A$200 = "FR",Dictionnaire!A276,Dictionnaire!B276) -> Parmis les arbustes que vous désirez établir, quel pourcentage sont des arbustes fruitiers ?
B668: =IF(Langue!$A$200 = "FR",Dictionnaire!A277,Dictionnaire!B277) -> Prévoyez-vous de récolter les fruits
B684: =IF(Langue!$A$200 = "FR",Dictionnaire!A278,Dictionnaire!B278) -> Combien de kg par plant prévoyez-vous récolter ?
B702: =IF(Langue!$A$200 = "FR",Dictionnaire!A279,Dictionnaire!B279) -> À quel prix prévoyez-vous vendre les petits fruits ?
B718: =IF(Langue!$A$200 = "FR",Dictionnaire!A280,Dictionnaire!B280) -> Quel pourcentage de marge brute prévoyez-vous en retirer ?
B736: =IF(Langue!$A$200 = "FR",Dictionnaire!A281,Dictionnaire!B281) -> À combien évaluez-vous la valeur des pertes de sol ?
B752: =IF(Langue!$A$200 = "FR",Dictionnaire!A282,Dictionnaire!B282) -> Quel pourcentage d'amélioration de rendement anticipez-vous ?
B770: À combien évaluez-vous le prix de la réduction d’une tonne des GES ?
B775: =IF(Langue!$A$200 = "FR",Dictionnaire!A283,Dictionnaire!B283) -> À combien évaluez-vous le prix de la réduction d’une tonne des GES ?

Sheet Bilan des calculs
C2: =IF(Langue!$A$200 = "FR",Dictionnaire!A717,Dictionnaire!B717) -> Tableau synthèse
C3: =IF(Langue!$A$200 = "FR",Dictionnaire!A718,Dictionnaire!B718) -> (progression de la marge actualisée cumulative)
C5: =IF(Langue!$A$200 = "FR",Dictionnaire!A719,Dictionnaire!B719) -> Délai de récupération | G5: =F98 -> > 40 | H5: =G98 -> ans | J5: =IF(Langue!$A$200 = "FR",Dictionnaire!A720,Dictionnaire!B720) -> Carbone séquestré (tonnes de CO² équivalent) après 40 ans | M5: ='Crédits carbone'!H42 -> 0
C9: =IF(Langue!$A$200 = "FR",Dictionnaire!A722,Dictionnaire!B722) -> Période | D9: =IF(Langue!$A$200 = "FR",Dictionnaire!A723,Dictionnaire!B723) -> Améliorations | F9: =IF(Langue!$A$200 = "FR",Dictionnaire!A724,Dictionnaire!B724) -> Détériorations | H9: =IF(Langue!$A$200 = "FR",Dictionnaire!A725,Dictionnaire!B725) -> Marge | J9: =IF(Langue!$A$200 = "FR",Dictionnaire!A726,Dictionnaire!B726) -> Marge actualisée | L9: =IF(Langue!$A$200 = "FR",Dictionnaire!A727,Dictionnaire!B727) -> Marge actualisée cumulative
C12: =IF(Langue!$A$200 = "FR",Dictionnaire!A728,Dictionnaire!B728) -> 0-5 ans | D12: =SUM('Coûts d''implantation'!C7,'Calcul espace cultivable'!C7,'Entretien des écrans boisés'!C7,'Calcul d''économie de chauffage'!C7,'Calcul d''économie déneigement'!C7,'Calcul du rendement en bois'!C7,'Calcul du rendement en petits f'!C7,'Amélioration de rendement'!C7,'Pertes de sol'!C7,'Crédits carbone'!C7) -> 0 | F12: =SUM('Coûts d''implantation'!E7,'Calcul espace cultivable'!E7,'Entretien des écrans boisés'!E7,'Calcul d''économie de chauffage'!E7,'Calcul d''économie déneigement'!E7,'Calcul du rendement en bois'!E7,'Calcul du rendement en petits f'!E7,'Amélioration de rendement'!E7,'Pertes de sol'!E7,'Crédits carbone'!E7) -> -90 | H12: =SUM('Coûts d''implantation'!G7,'Calcul espace cultivable'!G7,'Entretien des écrans boisés'!G7,'Calcul d''économie de chauffage'!G7,'Calcul d''économie déneigement'!G7,'Calcul du rendement en bois'!G7,'Calcul du rendement en petits f'!G7,'Amélioration de rendement'!G7,'Pertes de sol'!G7,'Crédits carbone'!G7) -> -90 | J12: =SUM('Coûts d''implantation'!H7,'Calcul espace cultivable'!H7,'Entretien des écrans boisés'!H7,'Calcul d''économie de chauffage'!H7,'Calcul d''économie déneigement'!H7,'Calcul du rendement en bois'!H7,'Calcul du rendement en petits f'!H7,'Amélioration de rendement'!H7,'Pertes de sol'!H7,'Crédits carbone'!H7) -> -75.82254814 | L12: =SUM('Coûts d''implantation'!I7,'Calcul espace cultivable'!I7,'Entretien des écrans boisés'!I7,'Calcul d''économie de chauffage'!I7,'Calcul d''économie déneigement'!I7,'Calcul du rendement en bois'!I7,'Calcul du rendement en petits f'!I7,'Amélioration de rendement'!I7,'Pertes de sol'!I7,'Crédits carbone'!I7) -> -75.82254814
C13: =IF(Langue!$A$200 = "FR",Dictionnaire!A729,Dictionnaire!B729) -> 5-10 ans | D13: =SUM('Coûts d''implantation'!C9,'Calcul espace cultivable'!C9,'Entretien des écrans boisés'!C9,'Calcul d''économie de chauffage'!C9,'Calcul d''économie déneigement'!C9,'Calcul du rendement en bois'!C9,'Calcul du rendement en petits f'!C9,'Amélioration de rendement'!C9,'Pertes de sol'!C9,'Crédits carbone'!C9) -> 0 | F13: =SUM('Coûts d''implantation'!E9,'Calcul espace cultivable'!E9,'Entretien des écrans boisés'!E9,'Calcul d''économie de chauffage'!E9,'Calcul d''économie déneigement'!E9,'Calcul du rendement en bois'!E9,'Calcul du rendement en petits f'!E9,'Amélioration de rendement'!E9,'Pertes de sol'!E9,'Crédits carbone'!E9) -> 0 | H13: =SUM('Coûts d''implantation'!G9,'Calcul espace cultivable'!G9,'Entretien des écrans boisés'!G9,'Calcul d''économie de chauffage'!G9,'Calcul d''économie déneigement'!G9,'Calcul du rendement en bois'!G9,'Calcul du rendement en petits f'!G9,'Amélioration de rendement'!G9,'Pertes de sol'!G9,'Crédits carbone'!G9) -> 0 | J13: =SUM('Coûts d''implantation'!H9,'Calcul espace cultivable'!H9,'Entretien des écrans boisés'!H9,'Calcul d''économie de chauffage'!H9,'Calcul d''économie déneigement'!H9,'Calcul du rendement en bois'!H9,'Calcul du rendement en petits f'!H9,'Amélioration de rendement'!H9,'Pertes de sol'!H9,'Crédits carbone'!H9) -> 0 | L13: =SUM('Coûts d''implantation'!I9,'Calcul espace cultivable'!I9,'Entretien des écrans boisés'!I9,'Calcul d''économie de chauffage'!I9,'Calcul d''économie déneigement'!I9,'Calcul du rendement en bois'!I9,'Calcul du rendement en petits f'!I9,'Amélioration de rendement'!I9,'Pertes de sol'!I9,'Crédits carbone'!I9) -> -75.82254814
C14: =IF(Langue!$A$200 = "FR",Dictionnaire!A730,Dictionnaire!B730) -> 10-20 ans | D14: =SUM('Coûts d''implantation'!C11,'Calcul espace cultivable'!C11,'Entretien des écrans boisés'!C11,'Calcul d''économie de chauffage'!C11,'Calcul d''économie déneigement'!C11,'Calcul du rendement en bois'!C11,'Calcul du rendement en petits f'!C11,'Amélioration de rendement'!C11,'Pertes de sol'!C11,'Crédits carbone'!C11) -> 0 | F14: =SUM('Coûts d''implantation'!E11,'Calcul espace cultivable'!E11,'Entretien des écrans boisés'!E11,'Calcul d''économie de chauffage'!E11,'Calcul d''économie déneigement'!E11,'Calcul du rendement en bois'!E11,'Calcul du rendement en petits f'!E11,'Amélioration de rendement'!E11,'Pertes de sol'!E11,'Crédits carbone'!E11) -> 0 | H14: =SUM('Coûts d''implantation'!G11,'Calcul espace cultivable'!G11,'Entretien des écrans boisés'!G11,'Calcul d''économie de chauffage'!G11,'Calcul d''économie déneigement'!G11,'Calcul du rendement en bois'!G11,'Calcul du rendement en petits f'!G11,'Amélioration de rendement'!G11,'Pertes de sol'!G11,'Crédits carbone'!G11) -> 0 | J14: =SUM('Coûts d''implantation'!H11,'Calcul espace cultivable'!H11,'Entretien des écrans boisés'!H11,'Calcul d''économie de chauffage'!H11,'Calcul d''économie déneigement'!H11,'Calcul du rendement en bois'!H11,'Calcul du rendement en petits f'!H11,'Amélioration de rendement'!H11,'Pertes de sol'!H11,'Crédits carbone'!H11) -> 0 | L14: =SUM('Coûts d''implantation'!I11,'Calcul espace cultivable'!I11,'Entretien des écrans boisés'!I11,'Calcul d''économie de chauffage'!I11,'Calcul d''économie déneigement'!I11,'Calcul du rendement en bois'!I11,'Calcul du rendement en petits f'!I11,'Amélioration de rendement'!I11,'Pertes de sol'!I11,'Crédits carbone'!I11) -> -75.82254814
C15: =IF(Langue!$A$200 = "FR",Dictionnaire!A731,Dictionnaire!B731) -> 20-40 ans | D15: =SUM('Coûts d''implantation'!C13,'Calcul espace cultivable'!C13,'Entretien des écrans boisés'!C13,'Calcul d''économie de chauffage'!C13,'Calcul d''économie déneigement'!C13,'Calcul du rendement en bois'!C13,'Calcul du rendement en petits f'!C13,'Amélioration de rendement'!C13,'Pertes de sol'!C13,'Crédits carbone'!C13) -> 0 | F15: =SUM('Coûts d''implantation'!E13,'Calcul espace cultivable'!E13,'Entretien des écrans boisés'!E13,'Calcul d''économie de chauffage'!E13,'Calcul d''économie déneigement'!E13,'Calcul du rendement en bois'!E13,'Calcul du rendement en petits f'!E13,'Amélioration de rendement'!E13,'Pertes de sol'!E13,'Crédits carbone'!E13) -> 0 | H15: =SUM('Coûts d''implantation'!G13,'Calcul espace cultivable'!G13,'Entretien des écrans boisés'!G13,'Calcul d''économie de chauffage'!G13,'Calcul d''économie déneigement'!G13,'Calcul du rendement en bois'!G13,'Calcul du rendement en petits f'!G13,'Amélioration de rendement'!G13,'Pertes de sol'!G13,'Crédits carbone'!G13) -> 0 | J15: =SUM('Coûts d''implantation'!H13,'Calcul espace cultivable'!H13,'Entretien des écrans boisés'!H13,'Calcul d''économie de chauffage'!H13,'Calcul d''économie déneigement'!H13,'Calcul du rendement en bois'!H13,'Calcul du rendement en petits f'!H13,'Amélioration de rendement'!H13,'Pertes de sol'!H13,'Crédits carbone'!H13) -> 0 | L15: =SUM('Coûts d''implantation'!I13,'Calcul espace cultivable'!I13,'Entretien des écrans boisés'!I13,'Calcul d''économie de chauffage'!I13,'Calcul d''économie déneigement'!I13,'Calcul du rendement en bois'!I13,'Calcul du rendement en petits f'!I13,'Amélioration de rendement'!I13,'Pertes de sol'!I13,'Crédits carbone'!I13) -> -75.82254814
C17: =IF(Langue!$A$200 = "FR",Dictionnaire!A733,Dictionnaire!B733) -> Résultats | I17: =IF(Langue!$A$200 = "FR",Dictionnaire!A734,Dictionnaire!B734) -> Menus
B98: =IF(Langue!$A$200 = "FR",Dictionnaire!A736,Dictionnaire!B736) -> Délai de récupération | F98: > 40 | G98: =IF(Langue!$A$200 = "FR",Dictionnaire!A737,Dictionnaire!B737) -> ans
B102: =IF(Langue!$A$200 = "FR",Dictionnaire!A738,Dictionnaire!B738) -> Année | C102: =IF(Langue!$A$200 = "FR",Dictionnaire!A739,Dictionnaire!B739) -> Marge actualisée de l'année en cours | D102: =IF(Langue!$A$200 = "FR",Dictionnaire!A740,Dictionnaire!B740) -> Marge actualisée cumulative | E102: =IF(Langue!$A$200 = "FR",Dictionnaire!A741,Dictionnaire!B741) -> Coûts d'implantation des écrans boisés | F102: =IF(Langue!$A$200 = "FR",Dictionnaire!A742,Dictionnaire!B742) -> Coûts des pertes d'espace cultivable | G102: =IF(Langue!$A$200 = "FR",Dictionnaire!A743,Dictionnaire!B743) -> Coûts de l'entretien des écrans boisés | H102: =IF(Langue!$A$200 = "FR",Dictionnaire!A744,Dictionnaire!B744) -> Réduction des coûts de chauffage des bâtiments | I102: =IF(Langue!$A$200 = "FR",Dictionnaire!A745,Dictionnaire!B745) -> Réduction des coûts de déneigement | J102: =IF(Langue!$A$200 = "FR",Dictionnaire!A746,Dictionnaire!B746) -> Revenu en bois | K102: =IF(Langue!$A$200 = "FR",Dictionnaire!A747,Dictionnaire!B747) -> Revenu en PFNL | L102: =IF(Langue!$A$200 = "FR",Dictionnaire!A748,Dictionnaire!B748) -> Amélioration de rendements | M102: =IF(Langue!$A$200 = "FR",Dictionnaire!A749,Dictionnaire!B749) -> Diminution des pertes de sol | N102: =IF(Langue!$A$200 = "FR",Dictionnaire!A750,Dictionnaire!B750) -> Revenus liés aux crédits carbone
B103: 0 | C103: 0 | D103: 0 | E103: 0 | F103: 0 | G103: 0 | H103: 0 | I103: 0 | J103: 0 | K103: 0 | L103: 0 | M103: 0 | N103: 0
B104: 1 | C104: =SUM(E104:N104) -> -16.98113208 | D104: =C104 -> -16.98113208 | E104: ='Coûts d''implantation'!H7 -> 0 | F104: ='Calcul espace cultivable'!E114 -> 0 | G104: ='Entretien des écrans boisés'!E100 -> -16.98113208 | H104: ='Calcul d''économie de chauffage'!E100 -> 0 | I104: ='Calcul d''économie déneigement'!E100 -> 0 | J104: ='Calcul du rendement en bois'!E96 -> 0 | K104: ='Calcul du rendement en petits f'!E100 -> 0 | L104: ='Amélioration de rendement'!E114 -> 0 | M104: ='Pertes de sol'!E100 -> 0 | N104: ='Crédits carbone'!E103 -> 0
B105: 2 | C105: =SUM(E105:N105) -> -16.01993592 | D105: =D104+C105 -> -33.001068 | F105: ='Calcul espace cultivable'!E115 -> 0 | G105: ='Entretien des écrans boisés'!E101 -> -16.01993592 | H105: ='Calcul d''économie de chauffage'!E101 -> 0 | I105: ='Calcul d''économie déneigement'!E101 -> 0 | J105: ='Calcul du rendement en bois'!E97 -> 0 | K105: ='Calcul du rendement en petits f'!E101 -> 0 | L105: ='Amélioration de rendement'!E115 -> 0 | M105: ='Pertes de sol'!E101 -> 0 | N105: ='Crédits carbone'!E104 -> 0
B106: 3 | C106: -15.11314709 | D106: =D105+C106 -> -48.11421509 | F106: ='Calcul espace cultivable'!E116 -> 0 | G106: ='Entretien des écrans boisés'!E102 -> -15.11314709 | H106: ='Calcul d''économie de chauffage'!E102 -> 0 | I106: ='Calcul d''économie déneigement'!E102 -> 0 | J106: ='Calcul du rendement en bois'!E98 -> 0 | K106: ='Calcul du rendement en petits f'!E102 -> 0 | L106: ='Amélioration de rendement'!E116 -> 0 | M106: ='Pertes de sol'!E102 -> 0 | N106: ='Crédits carbone'!E105 -> 0
B107: 4 | C107: -14.25768594 | D107: -62.37190103 | F107: ='Calcul espace cultivable'!E117 -> 0 | G107: ='Entretien des écrans boisés'!E103 -> -14.25768594 | H107: ='Calcul d''économie de chauffage'!E103 -> 0 | I107: ='Calcul d''économie déneigement'!E103 -> 0 | J107: ='Calcul du rendement en bois'!E99 -> 0 | K107: ='Calcul du rendement en petits f'!E103 -> 0 | L107: ='Amélioration de rendement'!E117 -> 0 | M107: ='Pertes de sol'!E103 -> 0 | N107: ='Crédits carbone'!E106 -> 0
B108: 5 | C108: -13.45064711 | D108: -75.82254814 | F108: ='Calcul espace cultivable'!E118 -> 0 | G108: ='Entretien des écrans boisés'!E104 -> -13.45064711 | H108: ='Calcul d''économie de chauffage'!E104 -> 0 | I108: ='Calcul d''économie déneigement'!E104 -> 0 | J108: ='Calcul du rendement en bois'!E100 -> 0 | K108: ='Calcul du rendement en petits f'!E104 -> 0 | L108: ='Amélioration de rendement'!E118 -> 0 | M108: ='Pertes de sol'!E104 -> 0 | N108: ='Crédits carbone'!E107 -> 0
B109: 6 | C109: 0 | D109: -75.82254814 | F109: ='Calcul espace cultivable'!E119 -> 0 | G109: ='Entretien des écrans boisés'!E105 -> 0 | H109: ='Calcul d''économie de chauffage'!E105 -> 0 | I109: ='Calcul d''économie déneigement'!E105 -> 0 | J109: ='Calcul du rendement en bois'!E101 -> 0 | K109: ='Calcul du rendement en petits f'!E105 -> 0 | L109: ='Amélioration de rendement'!E119 -> 0 | M109: ='Pertes de sol'!E105 -> 0 | N109: ='Crédits carbone'!E108 -> 0
B110: 7 | C110: 0 | D110: -75.82254814 | F110: ='Calcul espace cultivable'!E120 -> 0 | G110: ='Entretien des écrans boisés'!E106 -> 0 | H110: ='Calcul d''économie de chauffage'!E106 -> 0 | I110: ='Calcul d''économie déneigement'!E106 -> 0 | J110: ='Calcul du rendement en bois'!E102 -> 0 | K110: ='Calcul du rendement en petits f'!E106 -> 0 | L110: ='Amélioration de rendement'!E120 -> 0 | M110: ='Pertes de sol'!E106 -> 0 | N110: ='Crédits carbone'!E109 -> 0
B111: 8 | C111: 0 | D111: -75.82254814 | F111: ='Calcul espace cultivable'!E121 -> 0 | G111: ='Entretien des écrans boisés'!E107 -> 0 | H111: ='Calcul d''économie de chauffage'!E107 -> 0 | I111: ='Calcul d''économie déneigement'!E107 -> 0 | J111: ='Calcul du rendement en bois'!E103 -> 0 | K111: ='Calcul du rendement en petits f'!E107 -> 0 | L111: ='Amélioration de rendement'!E121 -> 0 | M111: ='Pertes de sol'!E107 -> 0 | N111: ='Crédits carbone'!E110 -> 0
B112: 9 | C112: 0 | D112: -75.82254814 | F112: ='Calcul espace cultivable'!E122 -> 0 | G112: ='Entretien des écrans boisés'!E108 -> 0 | H112: ='Calcul d''économie de chauffage'!E108 -> 0 | I112: ='Calcul d''économie déneigement'!E108 -> 0 | J112: ='Calcul du rendement en bois'!E104 -> 0 | K112: ='Calcul du rendement en petits f'!E108 -> 0 | L112: ='Amélioration de rendement'!E122 -> 0 | M112: ='Pertes de sol'!E108 -> 0 | N112: ='Crédits carbone'!E111 -> 0
B113: 10 | C113: 0 | D113: -75.82254814 | F113: ='Calcul espace cultivable'!E123 -> 0 | G113: ='Entretien des écrans boisés'!E109 -> 0 | H113: ='Calcul d''économie de chauffage'!E109 -> 0 | I113: ='Calcul d''économie déneigement'!E109 -> 0 | J113: ='Calcul du rendement en bois'!E105 -> 0 | K113: ='Calcul du rendement en petits f'!E109 -> 0 | L113: ='Amélioration de rendement'!E123 -> 0 | M113: ='Pertes de sol'!E109 -> 0 | N113: ='Crédits carbone'!E112 -> 0
B114: 11 | C114: 0 | D114: -75.82254814 | F114: ='Calcul espace cultivable'!E124 -> 0 | G114: ='Entretien des écrans boisés'!E110 -> 0 | H114: ='Calcul d''économie de chauffage'!E110 -> 0 | I114: ='Calcul d''économie déneigement'!E110 -> 0 | J114: ='Calcul du rendement en bois'!E106 -> 0 | K114: ='Calcul du rendement en petits f'!E110 -> 0 | L114: ='Amélioration de rendement'!E124 -> 0 | M114: ='Pertes de sol'!E110 -> 0 | N114: ='Crédits carbone'!E113 -> 0
B115: 12 | C115: 0 | D115: -75.82254814 | F115: ='Calcul espace cultivable'!E125 -> 0 | G115: ='Entretien des écrans boisés'!E111 -> 0 | H115: ='Calcul d''économie de chauffage'!E111 -> 0 | I115: ='Calcul d''économie déneigement'!E111 -> 0 | J115: ='Calcul du rendement en bois'!E107 -> 0 | K115: ='Calcul du rendement en petits f'!E111 -> 0 | L115: ='Amélioration de rendement'!E125 -> 0 | M115: ='Pertes de sol'!E111 -> 0 | N115: ='Crédits carbone'!E114 -> 0
B116: 13 | C116: 0 | D116: -75.82254814 | F116: ='Calcul espace cultivable'!E126 -> 0 | G116: ='Entretien des écrans boisés'!E112 -> 0 | H116: ='Calcul d''économie de chauffage'!E112 -> 0 | I116: ='Calcul d''économie déneigement'!E112 -> 0 | J116: ='Calcul du rendement en bois'!E108 -> 0 | K116: ='Calcul du rendement en petits f'!E112 -> 0 | L116: ='Amélioration de rendement'!E126 -> 0 | M116: ='Pertes de sol'!E112 -> 0 | N116: ='Crédits carbone'!E115 -> 0
B117: 14 | C117: 0 | D117: -75.82254814 | F117: ='Calcul espace cultivable'!E127 -> 0 | G117: ='Entretien des écrans boisés'!E113 -> 0 | H117: ='Calcul d''économie de chauffage'!E113 -> 0 | I117: ='Calcul d''économie déneigement'!E113 -> 0 | J117: ='Calcul du rendement en bois'!E109 -> 0 | K117: ='Calcul du rendement en petits f'!E113 -> 0 | L117: ='Amélioration de rendement'!E127 -> 0 | M117: ='Pertes de sol'!E113 -> 0 | N117: ='Crédits carbone'!E116 -> 0
B118: 15 | C118: 0 | D118: -75.82254814 | F118: ='Calcul espace cultivable'!E128 -> 0 | G118: ='Entretien des écrans boisés'!E114 -> 0 | H118: ='Calcul d''économie de chauffage'!E114 -> 0 | I118: ='Calcul d''économie déneigement'!E114 -> 0 | J118: ='Calcul du rendement en bois'!E110 -> 0 | K118: ='Calcul du rendement en petits f'!E114 -> 0 | L118: ='Amélioration de rendement'!E128 -> 0 | M118: ='Pertes de sol'!E114 -> 0 | N118: ='Crédits carbone'!E117 -> 0
B119: 16 | C119: 0 | D119: -75.82254814 | F119: ='Calcul espace cultivable'!E129 -> 0 | G119: ='Entretien des écrans boisés'!E115 -> 0 | H119: ='Calcul d''économie de chauffage'!E115 -> 0 | I119: ='Calcul d''économie déneigement'!E115 -> 0 | J119: ='Calcul du rendement en bois'!E111 -> 0 | K119: ='Calcul du rendement en petits f'!E115 -> 0 | L119: ='Amélioration de rendement'!E129 -> 0 | M119: ='Pertes de sol'!E115 -> 0 | N119: ='Crédits carbone'!E118 -> 0
B120: 17 | C120: 0 | D120: -75.82254814 | F120: ='Calcul espace cultivable'!E130 -> 0 | G120: ='Entretien des écrans boisés'!E116 -> 0 | H120: ='Calcul d''économie de chauffage'!E116 -> 0 | I120: ='Calcul d''économie déneigement'!E116 -> 0 | J120: ='Calcul du rendement en bois'!E112 -> 0 | K120: ='Calcul du rendement en petits f'!E116 -> 0 | L120: ='Amélioration de rendement'!E130 -> 0 | M120: ='Pertes de sol'!E116 -> 0 | N120: ='Crédits carbone'!E119 -> 0
B121: 18 | C121: 0 | D121: -75.82254814 | F121: ='Calcul espace cultivable'!E131 -> 0 | G121: ='Entretien des écrans boisés'!E117 -> 0 | H121: ='Calcul d''économie de chauffage'!E117 -> 0 | I121: ='Calcul d''économie déneigement'!E117 -> 0 | J121: ='Calcul du rendement en bois'!E113 -> 0 | K121: ='Calcul du rendement en petits f'!E117 -> 0 | L121: ='Amélioration de rendement'!E131 -> 0 | M121: ='Pertes de sol'!E117 -> 0 | N121: ='Crédits carbone'!E120 -> 0
B122: 19 | C122: 0 | D122: -75.82254814 | F122: ='Calcul espace cultivable'!E132 -> 0 | G122: ='Entretien des écrans boisés'!E118 -> 0 | H122: ='Calcul d''économie de chauffage'!E118 -> 0 | I122: ='Calcul d''économie déneigement'!E118 -> 0 | J122: ='Calcul du rendement en bois'!E114 -> 0 | K122: ='Calcul du rendement en petits f'!E118 -> 0 | L122: ='Amélioration de rendement'!E132 -> 0 | M122: ='Pertes de sol'!E118 -> 0 | N122: ='Crédits carbone'!E121 -> 0
B123: 20 | C123: 0 | D123: -75.82254814 | F123: ='Calcul espace cultivable'!E133 -> 0 | G123: ='Entretien des écrans boisés'!E119 -> 0 | H123: ='Calcul d''économie de chauffage'!E119 -> 0 | I123: ='Calcul d''économie déneigement'!E119 -> 0 | J123: ='Calcul du rendement en bois'!E115 -> 0 | K123: ='Calcul du rendement en petits f'!E119 -> 0 | L123: ='Amélioration de rendement'!E133 -> 0 | M123: ='Pertes de sol'!E119 -> 0 | N123: ='Crédits carbone'!E122 -> 0
B124: 21 | C124: 0 | D124: -75.82254814 | F124: ='Calcul espace cultivable'!E134 -> 0 | G124: ='Entretien des écrans boisés'!E120 -> 0 | H124: ='Calcul d''économie de chauffage'!E120 -> 0 | I124: ='Calcul d''économie déneigement'!E120 -> 0 | J124: ='Calcul du rendement en bois'!E116 -> 0 | K124: ='Calcul du rendement en petits f'!E120 -> 0 | L124: ='Amélioration de rendement'!E134 -> 0 | M124: ='Pertes de sol'!E120 -> 0 | N124: ='Crédits carbone'!E123 -> 0
B125: 22 | C125: 0 | D125: -75.82254814 | F125: ='Calcul espace cultivable'!E135 -> 0 | G125: ='Entretien des écrans boisés'!E121 -> 0 | H125: ='Calcul d''économie de chauffage'!E121 -> 0 | I125: ='Calcul d''économie déneigement'!E121 -> 0 | J125: ='Calcul du rendement en bois'!E117 -> 0 | K125: ='Calcul du rendement en petits f'!E121 -> 0 | L125: ='Amélioration de rendement'!E135 -> 0 | M125: ='Pertes de sol'!E121 -> 0 | N125: ='Crédits carbone'!E124 -> 0
B126: 23 | C126: 0 | D126: -75.82254814 | F126: ='Calcul espace cultivable'!E136 -> 0 | G126: ='Entretien des écrans boisés'!E122 -> 0 | H126: ='Calcul d''économie de chauffage'!E122 -> 0 | I126: ='Calcul d''économie déneigement'!E122 -> 0 | J126: ='Calcul du rendement en bois'!E118 -> 0 | K126: ='Calcul du rendement en petits f'!E122 -> 0 | L126: ='Amélioration de rendement'!E136 -> 0 | M126: ='Pertes de sol'!E122 -> 0 | N126: ='Crédits carbone'!E125 -> 0
B127: 24 | C127: 0 | D127: -75.82254814 | F127: ='Calcul espace cultivable'!E137 -> 0 | G127: ='Entretien des écrans boisés'!E123 -> 0 | H127: ='Calcul d''économie de chauffage'!E123 -> 0 | I127: ='Calcul d''économie déneigement'!E123 -> 0 | J127: ='Calcul du rendement en bois'!E119 -> 0 | K127: ='Calcul du rendement en petits f'!E123 -> 0 | L127: ='Amélioration de rendement'!E137 -> 0 | M127: ='Pertes de sol'!E123 -> 0 | N127: ='Crédits carbone'!E126 -> 0
B128: 25 | C128: 0 | D128: -75.82254814 | F128: ='Calcul espace cultivable'!E138 -> 0 | G128: ='Entretien des écrans boisés'!E124 -> 0 | H128: ='Calcul d''économie de chauffage'!E124 -> 0 | I128: ='Calcul d''économie déneigement'!E124 -> 0 | J128: ='Calcul du rendement en bois'!E120 -> 0 | K128: ='Calcul du rendement en petits f'!E124 -> 0 | L128: ='Amélioration de rendement'!E138 -> 0 | M128: ='Pertes de sol'!E124 -> 0 | N128: ='Crédits carbone'!E127 -> 0
B129: 26 | C129: 0 | D129: -75.82254814 | F129: ='Calcul espace cultivable'!E139 -> 0 | G129: ='Entretien des écrans boisés'!E125 -> 0 | H129: ='Calcul d''économie de chauffage'!E125 -> 0 | I129: ='Calcul d''économie déneigement'!E125 -> 0 | J129: ='Calcul du rendement en bois'!E121 -> 0 | K129: ='Calcul du rendement en petits f'!E125 -> 0 | L129: ='Amélioration de rendement'!E139 -> 0 | M129: ='Pertes de sol'!E125 -> 0 | N129: ='Crédits carbone'!E128 -> 0
B130: 27 | C130: 0 | D130: -75.82254814 | F130: ='Calcul espace cultivable'!E140 -> 0 | G130: ='Entretien des écrans boisés'!E126 -> 0 | H130: ='Calcul d''économie de chauffage'!E126 -> 0 | I130: ='Calcul d''économie déneigement'!E126 -> 0 | J130: ='Calcul du rendement en bois'!E122 -> 0 | K130: ='Calcul du rendement en petits f'!E126 -> 0 | L130: ='Amélioration de rendement'!E140 -> 0 | M130: ='Pertes de sol'!E126 -> 0 | N130: ='Crédits carbone'!E129 -> 0
B131: 28 | C131: 0 | D131: -75.82254814 | F131: ='Calcul espace cultivable'!E141 -> 0 | G131: ='Entretien des écrans boisés'!E127 -> 0 | H131: ='Calcul d''économie de chauffage'!E127 -> 0 | I131: ='Calcul d''économie déneigement'!E127 -> 0 | J131: ='Calcul du rendement en bois'!E123 -> 0 | K131: ='Calcul du rendement en petits f'!E127 -> 0 | L131: ='Amélioration de rendement'!E141 -> 0 | M131: ='Pertes de sol'!E127 -> 0 | N131: ='Crédits carbone'!E130 -> 0
B132: 29 | C132: 0 | D132: -75.82254814 | F132: ='Calcul espace cultivable'!E142 -> 0 | G132: ='Entretien des écrans boisés'!E128 -> 0 | H132: ='Calcul d''économie de chauffage'!E128 -> 0 | I132: ='Calcul d''économie déneigement'!E128 -> 0 | J132: ='Calcul du rendement en bois'!E124 -> 0 | K132: ='Calcul du rendement en petits f'!E128 -> 0 | L132: ='Amélioration de rendement'!E142 -> 0 | M132: ='Pertes de sol'!E128 -> 0 | N132: ='Crédits carbone'!E131 -> 0
B133: 30 | C133: 0 | D133: -75.82254814 | F133: ='Calcul espace cultivable'!E143 -> 0 | G133: ='Entretien des écrans boisés'!E129 -> 0 | H133: ='Calcul d''économie de chauffage'!E129 -> 0 | I133: ='Calcul d''économie déneigement'!E129 -> 0 | J133: ='Calcul du rendement en bois'!E125 -> 0 | K133: ='Calcul du rendement en petits f'!E129 -> 0 | L133: ='Amélioration de rendement'!E143 -> 0 | M133: ='Pertes de sol'!E129 -> 0 | N133: ='Crédits carbone'!E132 -> 0
B134: 31 | C134: 0 | D134: -75.82254814 | F134: ='Calcul espace cultivable'!E144 -> 0 | G134: ='Entretien des écrans boisés'!E130 -> 0 | H134: ='Calcul d''économie de chauffage'!E130 -> 0 | I134: ='Calcul d''économie déneigement'!E130 -> 0 | J134: ='Calcul du rendement en bois'!E126 -> 0 | K134: ='Calcul du rendement en petits f'!E130 -> 0 | L134: ='Amélioration de rendement'!E144 -> 0 | M134: ='Pertes de sol'!E130 -> 0 | N134: ='Crédits carbone'!E133 -> 0
B135: 32 | C135: 0 | D135: -75.82254814 | F135: ='Calcul espace cultivable'!E145 -> 0 | G135: ='Entretien des écrans boisés'!E131 -> 0 | H135: ='Calcul d''économie de chauffage'!E131 -> 0 | I135: ='Calcul d''économie déneigement'!E131 -> 0 | J135: ='Calcul du rendement en bois'!E127 -> 0 | K135: ='Calcul du rendement en petits f'!E131 -> 0 | L135: ='Amélioration de rendement'!E145 -> 0 | M135: ='Pertes de sol'!E131 -> 0 | N135: ='Crédits carbone'!E134 -> 0
B136: 33 | C136: 0 | D136: -75.82254814 | F136: ='Calcul espace cultivable'!E146 -> 0 | G136: ='Entretien des écrans boisés'!E132 -> 0 | H136: ='Calcul d''économie de chauffage'!E132 -> 0 | I136: ='Calcul d''économie déneigement'!E132 -> 0 | J136: ='Calcul du rendement en bois'!E128 -> 0 | K136: ='Calcul du rendement en petits f'!E132 -> 0 | L136: ='Amélioration de rendement'!E146 -> 0 | M136: ='Pertes de sol'!E132 -> 0 | N136: ='Crédits carbone'!E135 -> 0
B137: 34 | C137: 0 | D137: -75.82254814 | F137: ='Calcul espace cultivable'!E147 -> 0 | G137: ='Entretien des écrans boisés'!E133 -> 0 | H137: ='Calcul d''économie de chauffage'!E133 -> 0 | I137: ='Calcul d''économie déneigement'!E133 -> 0 | J137: ='Calcul du rendement en bois'!E129 -> 0 | K137: ='Calcul du rendement en petits f'!E133 -> 0 | L137: ='Amélioration de rendement'!E147 -> 0 | M137: ='Pertes de sol'!E133 -> 0 | N137: ='Crédits carbone'!E136 -> 0
B138: 35 | C138: 0 | D138: -75.82254814 | F138: ='Calcul espace cultivable'!E148 -> 0 | G138: ='Entretien des écrans boisés'!E134 -> 0 | H138: ='Calcul d''économie de chauffage'!E134 -> 0 | I138: ='Calcul d''économie déneigement'!E134 -> 0 | J138: ='Calcul du rendement en bois'!E130 -> 0 | K138: ='Calcul du rendement en petits f'!E134 -> 0 | L138: ='Amélioration de rendement'!E148 -> 0 | M138: ='Pertes de sol'!E134 -> 0 | N138: ='Crédits carbone'!E137 -> 0
B139: 36 | C139: 0 | D139: -75.82254814 | F139: ='Calcul espace cultivable'!E149 -> 0 | G139: ='Entretien des écrans boisés'!E135 -> 0 | H139: ='Calcul d''économie de chauffage'!E135 -> 0 | I139: ='Calcul d''économie déneigement'!E135 -> 0 | J139: ='Calcul du rendement en bois'!E131 -> 0 | K139: ='Calcul du rendement en petits f'!E135 -> 0 | L139: ='Amélioration de rendement'!E149 -> 0 | M139: ='Pertes de sol'!E135 -> 0 | N139: ='Crédits carbone'!E138 -> 0
B140: 37 | C140: 0 | D140: -75.82254814 | F140: ='Calcul espace cultivable'!E150 -> 0 | G140: ='Entretien des écrans boisés'!E136 -> 0 | H140: ='Calcul d''économie de chauffage'!E136 -> 0 | I140: ='Calcul d''économie déneigement'!E136 -> 0 | J140: ='Calcul du rendement en bois'!E132 -> 0 | K140: ='Calcul du rendement en petits f'!E136 -> 0 | L140: ='Amélioration de rendement'!E150 -> 0 | M140: ='Pertes de sol'!E136 -> 0 | N140: ='Crédits carbone'!E139 -> 0
B141: 38 | C141: 0 | D141: -75.82254814 | F141: ='Calcul espace cultivable'!E151 -> 0 | G141: ='Entretien des écrans boisés'!E137 -> 0 | H141: ='Calcul d''économie de chauffage'!E137 -> 0 | I141: ='Calcul d''économie déneigement'!E137 -> 0 | J141: ='Calcul du rendement en bois'!E133 -> 0 | K141: ='Calcul du rendement en petits f'!E137 -> 0 | L141: ='Amélioration de rendement'!E151 -> 0 | M141: ='Pertes de sol'!E137 -> 0 | N141: ='Crédits carbone'!E140 -> 0
B142: 39 | C142: 0 | D142: -75.82254814 | F142: ='Calcul espace cultivable'!E152 -> 0 | G142: ='Entretien des écrans boisés'!E138 -> 0 | H142: ='Calcul d''économie de chauffage'!E138 -> 0 | I142: ='Calcul d''économie déneigement'!E138 -> 0 | J142: ='Calcul du rendement en bois'!E134 -> 0 | K142: ='Calcul du rendement en petits f'!E138 -> 0 | L142: ='Amélioration de rendement'!E152 -> 0 | M142: ='Pertes de sol'!E138 -> 0 | N142: ='Crédits carbone'!E141 -> 0
B143: 40 | C143: 0 | D143: -75.82254814 | F143: ='Calcul espace cultivable'!E153 -> 0 | G143: ='Entretien des écrans boisés'!E139 -> 0 | H143: ='Calcul d''économie de chauffage'!E139 -> 0 | I143: ='Calcul d''économie déneigement'!E139 -> 0 | J143: ='Calcul du rendement en bois'!E135 -> 0 | K143: ='Calcul du rendement en petits f'!E139 -> 0 | L143: ='Amélioration de rendement'!E153 -> 0 | M143: ='Pertes de sol'!E139 -> 0 | N143: ='Crédits carbone'!E142 -> 0
C145: =IF(Langue!$A$200 = "FR",Dictionnaire!A733,Dictionnaire!B733) -> Résultats | I145: =IF(Langue!$A$200 = "FR",Dictionnaire!A734,Dictionnaire!B734) -> Menus

Sheet Graphique coûts-revenus
B22: =IF(Langue!$A$200 = "FR",Dictionnaire!A733,Dictionnaire!B733) -> Résultats | F22: Menus
AF51: Coûts
AE52: Total des coûts | AF52: =SUM(AF53:AF55) -> -75.82254814 | AG52: =SUM(AG53:AG55) -> 1
AE53: =IF(Langue!$A$200 = "FR",Dictionnaire!A700,Dictionnaire!B700) -> Coûts liés à l'implantation des écrans boisés | AF53: =AI69 -> 0 | AG53: =AF53/AF52 -> 0
C54: =IF(Langue!$A$200 = "FR",Dictionnaire!A712,Dictionnaire!B712) -> Revenus en bois non actualisés | D54: ='Calcul du rendement en bois'!C136 -> 0 | AE54: =IF(Langue!$A$200 = "FR",Dictionnaire!A701,Dictionnaire!B701) -> Coûts liés aux pertes d'espace cultivable | AF54: =AI74 -> 0 | AG54: =AF54/AF52 -> 0
AE55: =IF(Langue!$A$200 = "FR",Dictionnaire!A702,Dictionnaire!B702) -> Coûts liés à l'entretien des écrans boisés | AF55: =AI79 -> -75.82254814 | AG55: =AF55/AF52 -> 1 | AI55: Marge | AJ55: =AF52+AF58 -> -75.82254814
B56: =IF(Langue!$A$200 = "FR",Dictionnaire!A733,Dictionnaire!B733) -> Résultats | F56: Menus
AF57: Bénéfices
AE58: Total des bénéfices | AF58: =SUM(AF59:AF65) -> 0 | AG58: =SUM(AG59:AG65) -> 
AE59: =IF(Langue!$A$200 = "FR",Dictionnaire!A704,Dictionnaire!B704) -> Revenus liés aux économies de chauffage | AF59: =AI84 -> 0 | AG59: =AF59/AF58 -> 
AE60: =IF(Langue!$A$200 = "FR",Dictionnaire!A705,Dictionnaire!B705) -> Revenus liés aux économies de déneigement | AF60: =AI89 -> 0 | AG60: =AF60/AF58 -> 
AE61: =IF(Langue!$A$200 = "FR",Dictionnaire!A706,Dictionnaire!B706) -> Revenus liés à la production de petits fruits | AF61: =AI99 -> 0 | AG61: =AF61/AF58 -> 
AE62: =IF(Langue!$A$200 = "FR",Dictionnaire!A707,Dictionnaire!B707) -> Revenus liés à la récolte du bois | AF62: =AI94 -> 0 | AG62: =AF62/AF58 -> 
AE63: =IF(Langue!$A$200 = "FR",Dictionnaire!A708,Dictionnaire!B708) -> Revenus liés à l'augmentation de rendement | AF63: =AI104 -> 0 | AG63: =AF63/AF58 -> 
AE64: =IF(Langue!$A$200 = "FR",Dictionnaire!A709,Dictionnaire!B709) -> Économies liées diminutions de pertes de sol | AF64: =AI109 -> 0 | AG64: =AF64/AF58 -> 
AE65: =IF(Langue!$A$200 = "FR",Dictionnaire!A710,Dictionnaire!B710) -> Revenus liés aux crédits carbone | AF65: =AI114 -> 0 | AG65: =AF65/AF58 -> 
AC67: Coûts cumulatifs actualisés liés à l'implantation à 5 ans | AE67: Coûts cumulatifs actualisés liés à l'implantation à 10 ans | AG67: Coûts cumulatifs actualisés liés à l'implantation à 20 ans | AI67: Coûts cumulatifs actualisés liés à l'implantation à 40 ans
AC69: ='Coûts d''implantation'!$F$104 -> 0 | AE69: ='Coûts d''implantation'!$G$109 -> 0 | AG69: ='Coûts d''implantation'!$G$119 -> 0 | AI69: ='Coûts d''implantation'!$G$139 -> 0
AC72: Pertes cumulatives actualisées liées à l'espace cultivable à 5 ans | AE72: Pertes cumulatives actualisées liées à l'espace cultivable à 10 ans | AG72: Pertes cumulatives actualisées liées à l'espace cultivable à 20 ans | AI72: Pertes cumulatives actualisées liées à l'espace cultivable à 40 ans
AC74: ='Calcul espace cultivable'!$F$118 -> 0 | AE74: ='Calcul espace cultivable'!$G$123 -> 0 | AG74: ='Calcul espace cultivable'!$G$133 -> 0 | AI74: ='Calcul espace cultivable'!$G$153 -> 0
AC77: Coûts cumulatifs actualisés liés à l'entretien à 5 ans | AE77: Coûts cumulatifs actualisés liés à l'entretien à 10 ans | AG77: Coûts cumulatifs actualisés liés à l'entretien à 20 ans | AI77: Coûts cumulatifs actualisés liés à l'entretien à 40 ans
AC79: ='Entretien des écrans boisés'!$F$104 -> -75.82254814 | AE79: ='Entretien des écrans boisés'!$G$109 -> -75.82254814 | AG79: ='Entretien des écrans boisés'!$G$119 -> -75.82254814 | AI79: ='Entretien des écrans boisés'!$G$139 -> -75.82254814
AC82: Économies cumulatives actualisées liées au chauffage à 5 ans | AE82: Économies cumulatives actualisées liées au chauffage à 10 ans | AG82: Économies cumulatives actualisées liées au chauffage à 20 ans | AI82: Économies cumulatives actualisées liées au chauffage à 40 ans
AC84: ='Calcul d''économie de chauffage'!$F$104 -> 0 | AE84: ='Calcul d''économie de chauffage'!$G$109 -> 0 | AG84: ='Calcul d''économie de chauffage'!$G$119 -> 0 | AI84: ='Calcul d''économie de chauffage'!$G$139 -> 0
AC87: Économies cumulatives actualisées liées au déneigement à 5 ans | AE87: Économies cumulatives actualisées liées au déneigement à 10 ans | AG87: Économies cumulatives actualisées liées au déneigement à 20 ans | AI87: Économies cumulatives actualisées liées au déneigement à 40 ans
AC89: ='Calcul d''économie déneigement'!$F$104 -> 0 | AE89: ='Calcul d''économie déneigement'!$G$109 -> 0 | AG89: ='Calcul d''économie déneigement'!$G$119 -> 0 | AI89: ='Calcul d''économie déneigement'!$G$139 -> 0
AC92: Revenus cumulatifs actualisés liés au bois à 5 ans | AE92: Revenus cumulatifs actualisés liés au bois à 10 ans | AG92: Revenus cumulatifs actualisés liés au bois à 20 ans | AI92: Revenus cumulatifs actualisés liés au bois à 40 ans
AC94: ='Calcul du rendement en bois'!$F$14 -> 0 | AE94: ='Calcul du rendement en bois'!$G$105 -> 0 | AG94: ='Calcul du rendement en bois'!$G$115 -> 0 | AI94: ='Calcul du rendement en bois'!$G$135 -> 0
AC97: Revenus cumulatifs actualisés liés aux petits fruits à 5 ans | AE97: Revenus cumulatifs actualisés liés aux petits fruits à 10 ans | AG97: Revenus cumulatifs actualisés liés aux petits fruits à 20 ans | AI97: Revenus cumulatifs actualisés liés aux petits fruits à 40 ans
AC99: ='Calcul du rendement en petits f'!$F$104 -> 0 | AE99: ='Calcul du rendement en petits f'!$G$109 -> 0 | AG99: ='Calcul du rendement en petits f'!$G$119 -> 0 | AI99: ='Calcul du rendement en petits f'!$G$139 -> 0
AC102: Revenus liés à l'augmentation de rendement actualisés à 5 ans | AE102: Revenus liés à l'augmentation de rendement actualisés à 10 ans | AG102: Revenus liés à l'augmentation de rendement actualisés à 20 ans | AI102: Revenus liés à l'augmentation de rendement actualisés à 40 ans
AC104: ='Amélioration de rendement'!F118 -> 0 | AE104: ='Amélioration de rendement'!G123 -> 0 | AG104: ='Amélioration de rendement'!G133 -> 0 | AI104: ='Amélioration de rendement'!G153 -> 0
AC107: Revenus cumulatifs actualisés liés pertes de sol à 5 ans | AE107: Revenus cumulatifs actualisés liés aux pertes de sol à 10 ans | AG107: Revenus cumulatifs actualisés liés aux pertes de sol à 20 ans | AI107: Revenus cumulatifs actualisés liés aux pertes de sol à 40 ans
AC109: ='Pertes de sol'!F104 -> 0 | AE109: ='Pertes de sol'!G109 -> 0 | AG109: ='Pertes de sol'!G119 -> 0 | AI109: ='Pertes de sol'!G139 -> 0
AC112: Revenus cumulatifs actualisés liés aux crédits carbone à 5 ans | AE112: Revenus cumulatifs actualisés liés aux crédits carbone à 10 ans | AG112: Revenus cumulatifs actualisés liés aux crédits carbone à 20 ans | AI112: Revenus cumulatifs actualisés liés aux crédits carbone à 40 ans
AC114: ='Crédits carbone'!F107 -> 0 | AE114: ='Crédits carbone'!G112 -> 0 | AG114: ='Crédits carbone'!G122 -> 0 | AI114: ='Crédits carbone'!G142 -> 0

Sheet Graphique marge actualisée
AC2: Année | AD2: Marge actualisée de l'année en cours | AE2: Marge actualisée cumulative
AD3: ($) | AE3: ($)
AC4: 0 | AD4: 0 | AE4: 0
AC5: 1 | AD5: ='Bilan des calculs'!C104 -> -16.98113208 | AE5: ='Bilan des calculs'!D104 -> -16.98113208
AC6: 2 | AD6: ='Bilan des calculs'!C105 -> -16.01993592 | AE6: ='Bilan des calculs'!D105 -> -33.001068
AC7: 3 | AD7: ='Bilan des calculs'!C106 -> -15.11314709 | AE7: ='Bilan des calculs'!D106 -> -48.11421509
AC8: 4 | AD8: ='Bilan des calculs'!C107 -> -14.25768594 | AE8: ='Bilan des calculs'!D107 -> -62.37190103
AC9: 5 | AD9: ='Bilan des calculs'!C108 -> -13.45064711 | AE9: ='Bilan des calculs'!D108 -> -75.82254814
AC10: 6 | AD10: ='Bilan des calculs'!C109 -> 0 | AE10: ='Bilan des calculs'!D109 -> -75.82254814
AC11: 7 | AD11: ='Bilan des calculs'!C110 -> 0 | AE11: ='Bilan des calculs'!D110 -> -75.82254814
AC12: 8 | AD12: ='Bilan des calculs'!C111 -> 0 | AE12: ='Bilan des calculs'!D111 -> -75.82254814
AC13: 9 | AD13: ='Bilan des calculs'!C112 -> 0 | AE13: ='Bilan des calculs'!D112 -> -75.82254814
AC14: 10 | AD14: ='Bilan des calculs'!C113 -> 0 | AE14: ='Bilan des calculs'!D113 -> -75.82254814
AC15: 11 | AD15: ='Bilan des calculs'!C114 -> 0 | AE15: ='Bilan des calculs'!D114 -> -75.82254814
AC16: 12 | AD16: ='Bilan des calculs'!C115 -> 0 | AE16: ='Bilan des calculs'!D115 -> -75.82254814
AC17: 13 | AD17: ='Bilan des calculs'!C116 -> 0 | AE17: ='Bilan des calculs'!D116 -> -75.82254814
AC18: 14 | AD18: ='Bilan des calculs'!C117 -> 0 | AE18: ='Bilan des calculs'!D117 -> -75.82254814
AC19: 15 | AD19: ='Bilan des calculs'!C118 -> 0 | AE19: ='Bilan des calculs'!D118 -> -75.82254814
AC20: 16 | AD20: ='Bilan des calculs'!C119 -> 0 | AE20: ='Bilan des calculs'!D119 -> -75.82254814
AC21: 17 | AD21: ='Bilan des calculs'!C120 -> 0 | AE21: ='Bilan des calculs'!D120 -> -75.82254814
B22: =IF(Langue!$A$200 = "FR",Dictionnaire!A733,Dictionnaire!B733) -> Résultats | F22: Menus | AC22: 18 | AD22: ='Bilan des calculs'!C121 -> 0 | AE22: ='Bilan des calculs'!D121 -> -75.82254814
AC23: 19 | AD23: ='Bilan des calculs'!C122 -> 0 | AE23: ='Bilan des calculs'!D122 -> -75.82254814
AC24: 20 | AD24: ='Bilan des calculs'!C123 -> 0 | AE24: ='Bilan des calculs'!D123 -> -75.82254814
AC25: 21 | AD25: ='Bilan des calculs'!C124 -> 0 | AE25: ='Bilan des calculs'!D124 -> -75.82254814
AC26: 22 | AD26: ='Bilan des calculs'!C125 -> 0 | AE26: ='Bilan des calculs'!D125 -> -75.82254814
AC27: 23 | AD27: ='Bilan des calculs'!C126 -> 0 | AE27: ='Bilan des calculs'!D126 -> -75.82254814
AC28: 24 | AD28: ='Bilan des calculs'!C127 -> 0 | AE28: ='Bilan des calculs'!D127 -> -75.82254814
AC29: 25 | AD29: ='Bilan des calculs'!C128 -> 0 | AE29: ='Bilan des calculs'!D128 -> -75.82254814
AC30: 26 | AD30: ='Bilan des calculs'!C129 -> 0 | AE30: ='Bilan des calculs'!D129 -> -75.82254814
AC31: 27 | AD31: ='Bilan des calculs'!C130 -> 0 | AE31: ='Bilan des calculs'!D130 -> -75.82254814
AC32: 28 | AD32: ='Bilan des calculs'!C131 -> 0 | AE32: ='Bilan des calculs'!D131 -> -75.82254814
AC33: 29 | AD33: ='Bilan des calculs'!C132 -> 0 | AE33: ='Bilan des calculs'!D132 -> -75.82254814
AC34: 30 | AD34: ='Bilan des calculs'!C133 -> 0 | AE34: ='Bilan des calculs'!D133 -> -75.82254814
AC35: 31 | AD35: ='Bilan des calculs'!C134 -> 0 | AE35: ='Bilan des calculs'!D134 -> -75.82254814
AC36: 32 | AD36: ='Bilan des calculs'!C135 -> 0 | AE36: ='Bilan des calculs'!D135 -> -75.82254814
AC37: 33 | AD37: ='Bilan des calculs'!C136 -> 0 | AE37: ='Bilan des calculs'!D136 -> -75.82254814
AC38: 34 | AD38: ='Bilan des calculs'!C137 -> 0 | AE38: ='Bilan des calculs'!D137 -> -75.82254814
AC39: 35 | AD39: ='Bilan des calculs'!C138 -> 0 | AE39: ='Bilan des calculs'!D138 -> -75.82254814
AC40: 36 | AD40: ='Bilan des calculs'!C139 -> 0 | AE40: ='Bilan des calculs'!D139 -> -75.82254814
AC41: 37 | AD41: ='Bilan des calculs'!C140 -> 0 | AE41: ='Bilan des calculs'!D140 -> -75.82254814
AC42: 38 | AD42: ='Bilan des calculs'!C141 -> 0 | AE42: ='Bilan des calculs'!D141 -> -75.82254814
AC43: 39 | AD43: ='Bilan des calculs'!C142 -> 0 | AE43: ='Bilan des calculs'!D142 -> -75.82254814
AC44: 40 | AD44: ='Bilan des calculs'!C143 -> 0 | AE44: ='Bilan des calculs'!D143 -> -75.82254814

Sheet Bilan-Carbone
B2: =IF(Langue!$A$200 = "FR",Dictionnaire!$A1469,Dictionnaire!$B1469) -> Carbone séquestré (tonnes de CO² équivalent) après 40 ans | AC2: Année | AD2: Marge actualisée de l'année en cours | AE2: Marge actualisée cumulative | AH2: Pour choisir type de haie
AD3: ($) | AE3: ($)
AC4: 0 | AD4: 0 | AE4: 0
B5: =IF(Langue!$A$200 = "FR",Dictionnaire!$A1470,Dictionnaire!$B1470) -> Type de haie: | C5: =AH9 -> pour bande riveraine | AC5: 1 | AD5: ='Bilan des calculs'!C104 -> -16.98113208 | AE5: ='Bilan des calculs'!D104 -> -16.98113208 | AH5: =IF(AND(Langue!$A$200="FR",'Menu simulation'!H6=TRUE),Dictionnaire!$A1493,IF(AND(Langue!$A$200="EN",'Menu simulation'!H6=TRUE),(Dictionnaire!$B1493),"")) ->  | AI5: =IF(AH5="",0,1) -> 0
AH6: =IF(AND(Langue!$A$200="FR",'Menu simulation'!H8=TRUE),Dictionnaire!$A1494,IF(AND(Langue!$A$200="EN",'Menu simulation'!H8=TRUE),(Dictionnaire!$B1494),"")) ->  | AI6: =IF(AH6="",0,1) -> 0
C7: =IF(Langue!$A$200 = "FR",Dictionnaire!$A1485,Dictionnaire!$B1485) -> Arbres | G7: =IF(Langue!$A$200 = "FR",Dictionnaire!$A1491,Dictionnaire!$B1491) -> Arbustes** | I7: =IF(Langue!$A$200 = "FR",Dictionnaire!$A1478,Dictionnaire!$B1478) -> Total Tonnes de CO2 | J7: =IF(Langue!$A$200 = "FR",Dictionnaire!$A1482,Dictionnaire!$B1482) -> Crédits carbone | AC7: 2 | AD7: ='Bilan des calculs'!C105 -> -16.01993592 | AE7: ='Bilan des calculs'!D105 -> -33.001068 | AH7: =IF(AND(Langue!$A$200="FR",'Menu simulation'!H10=TRUE),Dictionnaire!$A1495,IF(AND(Langue!$A$200="EN",'Menu simulation'!H10=TRUE),(Dictionnaire!$B1495),"")) -> pour bande riveraine | AI7: =IF(AH7="",0,1) -> 1
C8: =IF(Langue!$A$200 = "FR",Dictionnaire!$A1486,Dictionnaire!$B1486) -> Résineux | D8: =IF(Langue!$A$200 = "FR",Dictionnaire!$A1487,Dictionnaire!$B1487) -> Feuillus nobles | E8: =IF(Langue!$A$200 = "FR",Dictionnaire!$A1488,Dictionnaire!$B1488) -> Peupliers hybrides* | F8: =IF(Langue!$A$200 = "FR",Dictionnaire!$A1478,Dictionnaire!$B1478) -> Total Tonnes de CO2 | G8: =IF(Langue!$A$200 = "FR",Dictionnaire!$A1489,Dictionnaire!$B1489) -> Arbustes | H8: =IF(Langue!$A$200 = "FR",Dictionnaire!$A1490,Dictionnaire!$B1490) -> Saules hybrides | AH8: =IF(AND(Langue!$A$200="FR",'Menu simulation'!H12=TRUE),Dictionnaire!$A1496,IF(AND(Langue!$A$200="EN",'Menu simulation'!H12=TRUE),(Dictionnaire!$B1496),"")) ->  | AI8: =IF(AH8="",0,1) -> 0
B9: =IF(Langue!$A$200 = "FR",Dictionnaire!$A1471,Dictionnaire!$B1471) -> Rangée 1 | C9: ='Crédits carbone'!$I$53/1000 -> 0 | D9: ='Crédits carbone'!$I$56/1000 -> 0 | E9: =('Crédits carbone'!$I$54+'Crédits carbone'!$I$55)/1000 -> 0 | F9: =C9+D9+E9 -> 0 | G9: ='Crédits carbone'!$I$50/1000 -> 0 | H9: ='Crédits carbone'!$I$58/1000 -> 0 | I9: =H9+G9+F9 -> 0 | J9: =I9*$D$18 -> 0 | AC9: 3 | AD9: ='Bilan des calculs'!C106 -> -15.11314709 | AE9: ='Bilan des calculs'!D106 -> -48.11421509 | AH9: =IF(AI5=1,AH5,IF(AI6=1,AH6,IF(AI7=1,AH7,IF(AI8=1,AH8,"")))) -> pour bande riveraine
B10: =IF(Langue!$A$200 = "FR",Dictionnaire!$A1472,Dictionnaire!$B1472) -> Rangée 2 | C10: ='Crédits carbone'!$J$53/1000 -> 0 | D10: ='Crédits carbone'!$J$56/1000 -> 0 | E10: =('Crédits carbone'!$J$54+'Crédits carbone'!$J$55)/1000 -> 0 | F10: =C10+D10+E10 -> 0 | G10: ='Crédits carbone'!$J$50/1000 -> 0 | H10: ='Crédits carbone'!$J$58/1000 -> 0 | I10: =H10+G10+F10 -> 0 | J10: 0 | AC10: 4 | AD10: ='Bilan des calculs'!C107 -> -14.25768594 | AE10: ='Bilan des calculs'!D107 -> -62.37190103
B11: =IF(Langue!$A$200 = "FR",Dictionnaire!$A1473,Dictionnaire!$B1473) -> Rangée 3 | C11: ='Crédits carbone'!$K$53/1000 -> 0 | D11: ='Crédits carbone'!$K$56/1000 -> 0 | E11: =('Crédits carbone'!$K$54+'Crédits carbone'!$K$55)/1000 -> 0 | F11: 0 | G11: ='Crédits carbone'!$K$50/1000 -> 0 | H11: ='Crédits carbone'!$K$58/1000 -> 0 | I11: 0 | J11: 0 | AC11: 5 | AD11: ='Bilan des calculs'!C108 -> -13.45064711 | AE11: ='Bilan des calculs'!D108 -> -75.82254814
B12: =IF(Langue!$A$200 = "FR",Dictionnaire!$A1474,Dictionnaire!$B1474) -> Rangée 4 | C12: ='Crédits carbone'!$L$53/1000 -> 0 | D12: ='Crédits carbone'!$L$56/1000 -> 0 | E12: =('Crédits carbone'!$L$54+'Crédits carbone'!$L$55)/1000 -> 0 | F12: 0 | G12: ='Crédits carbone'!$L$50/1000 -> 0 | H12: ='Crédits carbone'!$L$58/1000 -> 0 | I12: 0 | J12: 0 | AC12: 6 | AD12: ='Bilan des calculs'!C109 -> 0 | AE12: ='Bilan des calculs'!D109 -> -75.82254814
B13: =IF(Langue!$A$200 = "FR",Dictionnaire!$A1475,Dictionnaire!$B1475) -> Rangée 5 | C13: ='Crédits carbone'!$M$53/1000 -> 0 | D13: ='Crédits carbone'!$M$56/1000 -> 0 | E13: =('Crédits carbone'!$M$54+'Crédits carbone'!$M$55)/1000 -> 0 | F13: 0 | G13: ='Crédits carbone'!$M$50/1000 -> 0 | H13: ='Crédits carbone'!$M$58/1000 -> 0 | I13: 0 | J13: 0 | AC13: 7 | AD13: ='Bilan des calculs'!C110 -> 0 | AE13: ='Bilan des calculs'!D110 -> -75.82254814
B14: =IF(Langue!$A$200 = "FR",Dictionnaire!$A1476,Dictionnaire!$B1476) -> Rangée 6 | C14: ='Crédits carbone'!$N$53/1000 -> 0 | D14: ='Crédits carbone'!$N$56/1000 -> 0 | E14: =('Crédits carbone'!$N$54+'Crédits carbone'!$N$55)/1000 -> 0 | F14: 0 | G14: ='Crédits carbone'!$N$50/1000 -> 0 | H14: ='Crédits carbone'!$N$58/1000 -> 0 | I14: 0 | J14: 0 | AC14: 8 | AD14: ='Bilan des calculs'!C111 -> 0 | AE14: ='Bilan des calculs'!D111 -> -75.82254814
B15: =IF(Langue!$A$200 = "FR",Dictionnaire!$A1477,Dictionnaire!$B1477) -> Rangée 7 | C15: ='Crédits carbone'!$O$53/1000 -> 0 | D15: ='Crédits carbone'!$O$56/1000 -> 0 | E15: =('Crédits carbone'!$O$54+'Crédits carbone'!$O$55)/1000 -> 0 | F15: 0 | G15: ='Crédits carbone'!$O$50/1000 -> 0 | H15: ='Crédits carbone'!$O$58/1000 -> 0 | I15: 0 | J15: 0 | AC15: 9 | AD15: ='Bilan des calculs'!C112 -> 0 | AE15: ='Bilan des calculs'!D112 -> -75.82254814
B16: =IF(Langue!$A$200 = "FR",Dictionnaire!$A1478,Dictionnaire!$B1478) -> Total Tonnes de CO2 | C16: ='Crédits carbone'!$P$53/1000 -> 0 | D16: ='Crédits carbone'!$P$56/1000 -> 0 | E16: =('Crédits carbone'!$P$54+'Crédits carbone'!$P$55)/1000 -> 0 | F16: 0 | G16: ='Crédits carbone'!$P$50/1000 -> 0 | H16: ='Crédits carbone'!$P$58/1000 -> 0 | I16: 0 | J16: 0 | AC16: 10 | AD16: ='Bilan des calculs'!C113 -> 0 | AE16: ='Bilan des calculs'!D113 -> -75.82254814
AC17: 11 | AD17: ='Bilan des calculs'!C114 -> 0 | AE17: ='Bilan des calculs'!D114 -> -75.82254814
B18: =IF(Langue!$A$200 = "FR",Dictionnaire!$A1483,Dictionnaire!$B1483) -> Prix de la réduction d’une tonne des GES : | D18: =Questionnaire!G155 -> 0 | E18: =IF(Langue!$A$200 = "FR",Dictionnaire!$A1484,Dictionnaire!$B1484) -> /tonne CO2 | AC18: 12 | AD18: ='Bilan des calculs'!C115 -> 0 | AE18: ='Bilan des calculs'!D115 -> -75.82254814
AC19: 13 | AD19: ='Bilan des calculs'!C116 -> 0 | AE19: ='Bilan des calculs'!D116 -> -75.82254814
B21: =IF(Langue!$A$200 = "FR",Dictionnaire!$A1480,Dictionnaire!$B1480) -> *Pour le PEH, la valeur de CO2-C indiquer comprend la valeur à 20 ans si il y a eu récolte ou à 40 ans si pas de récolte à 20 ans | AC21: 14 | AD21: ='Bilan des calculs'!C117 -> 0 | AE21: ='Bilan des calculs'!D117 -> -75.82254814
B22: =IF(Langue!$A$200 = "FR",Dictionnaire!$A1481,Dictionnaire!$B1481) -> **Pour les arbustes, la valeur de CO2-C indiquer comprend la valeur à 10 ans | AC22: 15 | AD22: ='Bilan des calculs'!C118 -> 0 | AE22: ='Bilan des calculs'!D118 -> -75.82254814
AC23: 17 | AD23: ='Bilan des calculs'!C120 -> 0 | AE23: ='Bilan des calculs'!D120 -> -75.82254814
B24: =IF(Langue!$A$200 = "FR",Dictionnaire!A733,Dictionnaire!B733) -> Résultats | F24: Menus | AC24: 18 | AD24: ='Bilan des calculs'!C121 -> 0 | AE24: ='Bilan des calculs'!D121 -> -75.82254814
AC25: 19 | AD25: ='Bilan des calculs'!C122 -> 0 | AE25: ='Bilan des calculs'!D122 -> -75.82254814
AC26: 20 | AD26: ='Bilan des calculs'!C123 -> 0 | AE26: ='Bilan des calculs'!D123 -> -75.82254814
AC27: 21 | AD27: ='Bilan des calculs'!C124 -> 0 | AE27: ='Bilan des calculs'!D124 -> -75.82254814
AC28: 22 | AD28: ='Bilan des calculs'!C125 -> 0 | AE28: ='Bilan des calculs'!D125 -> -75.82254814
AC29: 23 | AD29: ='Bilan des calculs'!C126 -> 0 | AE29: ='Bilan des calculs'!D126 -> -75.82254814
AC30: 24 | AD30: ='Bilan des calculs'!C127 -> 0 | AE30: ='Bilan des calculs'!D127 -> -75.82254814
AC31: 25 | AD31: ='Bilan des calculs'!C128 -> 0 | AE31: ='Bilan des calculs'!D128 -> -75.82254814
AC32: 26 | AD32: ='Bilan des calculs'!C129 -> 0 | AE32: ='Bilan des calculs'!D129 -> -75.82254814
AC33: 27 | AD33: ='Bilan des calculs'!C130 -> 0 | AE33: ='Bilan des calculs'!D130 -> -75.82254814
AC34: 28 | AD34: ='Bilan des calculs'!C131 -> 0 | AE34: ='Bilan des calculs'!D131 -> -75.82254814
AC35: 29 | AD35: ='Bilan des calculs'!C132 -> 0 | AE35: ='Bilan des calculs'!D132 -> -75.82254814
AC36: 30 | AD36: ='Bilan des calculs'!C133 -> 0 | AE36: ='Bilan des calculs'!D133 -> -75.82254814
AC37: 31 | AD37: ='Bilan des calculs'!C134 -> 0 | AE37: ='Bilan des calculs'!D134 -> -75.82254814
AC38: 32 | AD38: ='Bilan des calculs'!C135 -> 0 | AE38: ='Bilan des calculs'!D135 -> -75.82254814
AC39: 33 | AD39: ='Bilan des calculs'!C136 -> 0 | AE39: ='Bilan des calculs'!D136 -> -75.82254814
AC40: 34 | AD40: ='Bilan des calculs'!C137 -> 0 | AE40: ='Bilan des calculs'!D137 -> -75.82254814
AC41: 35 | AD41: ='Bilan des calculs'!C138 -> 0 | AE41: ='Bilan des calculs'!D138 -> -75.82254814
AC42: 36 | AD42: ='Bilan des calculs'!C139 -> 0 | AE42: ='Bilan des calculs'!D139 -> -75.82254814
AC43: 37 | AD43: ='Bilan des calculs'!C140 -> 0 | AE43: ='Bilan des calculs'!D140 -> -75.82254814
AC44: 38 | AD44: ='Bilan des calculs'!C141 -> 0 | AE44: ='Bilan des calculs'!D141 -> -75.82254814
AC45: 39 | AD45: ='Bilan des calculs'!C142 -> 0 | AE45: ='Bilan des calculs'!D142 -> -75.82254814
AC46: 40 | AD46: ='Bilan des calculs'!C143 -> 0 | AE46: ='Bilan des calculs'!D143 -> -75.82254814

Sheet Compilation
B3: Simulation en cours
A4: =IF(Langue!$A$200 = "FR",Dictionnaire!A485,Dictionnaire!B485) -> Description du scénario
A5: Date
A7: =Paramètres!B2 -> Paramètres
A8: =Paramètres!B14 -> Taux d'actualisation annuel ? (valeur calculée, ne pas modifier) | B8: =Paramètres!I14 -> 
A9: =Paramètres!B16 -> Taux d'intérêt perçu sur les placements ? | B9: =Paramètres!I16 -> 0
A10: =Paramètres!B18 -> Taux d'intérêt payé sur les emprunts ? | B10: =Paramètres!I18 -> 0
A11: =Paramètres!B20 -> Taux d'inflation annuel ? (utiliser les flèches pour modifier le pourcentage) | B11: =Paramètres!I20 -> 0.02
A12: =Paramètres!B24 -> Rouleau de pailllis de plastique de 1,2 ou 1,5 m de large | B12: =Paramètres!I24 -> 225
A13: =Paramètres!B25 -> Petite collerette (30 cm X 30 cm) | B13: =Paramètres!I25 -> 0.63
A14: =Paramètres!B28 -> Broches servant à fixer les collerettes | B14: =Paramètres!I28 -> 0.23
A15: =Paramètres!B29 -> Taux horaire pour la main d'œuvre lors de l'établissement et l'entretien de la haie ($/h) | B15: =Paramètres!I29 -> 35
A16: =Paramètres!B30 -> Frais de déplacement ($/km) | B16: =Paramètres!I30 -> 0.5
A17: =Paramètres!B31 -> Taux horaire pour les travaux mécaniques de préparation du sol ($/h) | B17: =Paramètres!I31 -> 150
A18: =Paramètres!B32 -> Plans et devis (montant forfaitaire) | B18: =Paramètres!I32 -> 800
A19: =Paramètres!B36 -> Taux de mortalité anticipé la première année suivant la plantation | B19: =Paramètres!I36 -> 0.05
A20: =Paramètres!B37 -> Taux horaire (machinerie et main d'œuvre) pour le fauchage et l'inspection phytosanitaire ($/h) | B20: =Paramètres!I37 -> 45
A21: =Paramètres!B39 -> Nombre de fauchages par année | B21: =Paramètres!I39 -> 2
A22: =Paramètres!B40 -> Frais de déplacement avec la machinerie ($/km) | B22: =Paramètres!I40 -> 0.7
A23: =Paramètres!B41 -> Spirale de protection contre les rongeurs | B23: =Paramètres!I41 -> 1.25
A24: =Paramètres!B42 -> Gaine de protection contre les chevreuils (Climanet) | B24: =Paramètres!I42 -> 7.5
A25: =Paramètres!B46 -> Marges sur coûts variables/ha, utilisés pour les calculs liés à la perte d'espace cultivable
A26: =Paramètres!F48 -> Foin | B26: =Paramètres!H48 -> 521
A27: =Paramètres!F49 -> Avoine | B27: =Paramètres!H49 -> 468
A28: =Paramètres!F50 -> Avoine biologique | B28: =Paramètres!H50 -> 222
A29: =Paramètres!F51 -> Blé d'alimentation animale | B29: =Paramètres!H51 -> 540
A30: =Paramètres!F52 -> Blé d'alimentation humaine | B30: =Paramètres!H52 -> 629
A31: =Paramètres!F53 -> Blé panifiable biologique | B31: =Paramètres!H53 -> 744
A32: =Paramètres!F54 -> Orge d'alimentation animale | B32: =Paramètres!H54 -> 458
A33: =Paramètres!F55 -> Orge biologique | B33: =Paramètres!H55 -> 557
A34: =Paramètres!B78 -> Prix de vente incluant le transport
A35: =CONCATENATE(Paramètres!F78," (",Paramètres!F81,")") -> Valeur si le bois est vendu pour le sciage ( $/m3 solide)
A36: =Paramètres!D82 -> Épinettes, Pins ou Thuyas | B36: =Paramètres!F82 -> 52
A37: =Paramètres!D83 -> Peupliers hybrides | B37: =Paramètres!F83 -> 41
A38: =Paramètres!D84 -> Feuillus nobles | B38: =Paramètres!F84 -> 61
A39: =CONCATENATE(Paramètres!G78," (",Paramètres!G81,")") -> Valeur si le bois est vendu pour le déroulage ( $/m3 solide)
A40: =Paramètres!D83 -> Peupliers hybrides | B40: =Paramètres!G83 -> 65
A41: =Paramètres!D84 -> Feuillus nobles | B41: =Paramètres!G84 -> 145
A42: =CONCATENATE(Paramètres!H78," (",Paramètres!H81,")") -> Valeur si le bois est vendu pour du bois de chauffage ($/Corde de 8' (non débité))
A43: =Paramètres!D84 -> Feuillus nobles | B43: =Paramètres!H84 -> 225
A44: =CONCATENATE(Paramètres!I78," (",Paramètres!I81,")") -> Valeur de la biomasse brut (pâte ou autres destinations) ($/TMV)
A45: =Paramètres!D82 -> Épinettes, Pins ou Thuyas | B45: =Paramètres!I82 -> 30
A46: =Paramètres!D83 -> Peupliers hybrides | B46: =Paramètres!I83 -> 32
A47: =Paramètres!D84 -> Feuillus nobles | B47: =Paramètres!I84 -> 40
A48: =Paramètres!D85 -> Saules hybrides (tonne M.S.) | B48: =Paramètres!I85 -> 32
A49: =Paramètres!B100 -> Quelle est la hauteur maximale d'une haie de peupliers hybrides à maturité? | B49: =Paramètres!I100 -> 25
A50: =Paramètres!B103 -> Quelle est la hauteur maximale d'une haie d'arbustes à maturité? | B50: =Paramètres!I103 -> 3
A51: =Paramètres!B105 -> Augmentations de la marge (produits sur débours/ha) utilisées pour les calculs liées à la protection de culture (résultat obtenu en multipliant le rendement par le prix à la tonne par une augmentation de rendement de 1%).
A52: =Paramètres!F107 -> Foin | B52: =Paramètres!H107 -> 12.38
A53: =Paramètres!F108 -> Avoine | B53: =Paramètres!H108 -> 7.93
A54: =Paramètres!F109 -> Avoine biologique | B54: =Paramètres!H110 -> 11.77
A55: =Paramètres!F110 -> Blé d'alimentation animale | B55: =Paramètres!H113 -> 11.27
A56: =Paramètres!F111 -> Blé d'alimentation humaine | B56: =Paramètres!H115 -> 33.14
A57: =Paramètres!F112 -> Blé panifiable biologique | B57: =Paramètres!H116 -> 37.5
A58: =Paramètres!F113 -> Orge d'alimentation animale | B58: =Paramètres!H118 -> 19.11
A59: =Paramètres!F114 -> Orge biologique | B59: =Paramètres!H120 -> 17.23
A61: =Questionnaire!B2 -> Questionnaire
A62: =IF(Langue!$A$200 = "FR",Dictionnaire!A543,Dictionnaire!B543) -> 1re étape : choisissez à quelle fin vous désirez faire l'implantation d'une haie brise-vent | B62: =IF(Langue!A200="FR",IF('Menu simulation'!H6=TRUE,"Protection de culture",IF('Menu simulation'!H8=TRUE,"Protection de bâtiment",IF('Menu simulation'!H10=TRUE,"Bande riveraine"))),IF('Menu simulation'!H6=TRUE,"Crop protection",IF('Menu simulation'!H8=TRUE,"Building protection",IF('Menu simulation'!H10=TRUE,"Buffer strip")))) -> Bande riveraine
A63: =Questionnaire!B12 -> Section 1 : Établissement de la haie
A64: =Questionnaire!B14 -> Taux d'actualisation annuel ? | B64: =Questionnaire!E14 -> 0.06
A65: =Questionnaire!B16 -> Longueur de la haie (m) ? | B65: =Questionnaire!E16 -> 0
A66: =Questionnaire!B18 -> Nombre de rangées ? (maximum 7) | B66: =Questionnaire!E18 -> 0
A67: =Questionnaire!B20 -> Espacement entre les rangées (m) ? | B67: =Questionnaire!E20 -> 0
A68: =Questionnaire!B22 -> Quelle est la séquence d'établissement des arbres et/ou arbustes ?
A69: =Questionnaire!C24 -> Espèce no.1
A70: =Questionnaire!B$25 -> Rangée 1 | B70: =Questionnaire!C25 -> 0
A71: =Questionnaire!B$26 -> Rangée 2 | B71: =Questionnaire!C26 -> 0
A72: =Questionnaire!B$27 -> Rangée 3 | B72: =Questionnaire!C27 -> 0
A73: =Questionnaire!B$28 -> Rangée 4 | B73: =Questionnaire!C28 -> 0
A74: =Questionnaire!B$29 -> Rangée 5 | B74: =Questionnaire!C29 -> 0
A75: =Questionnaire!B$30 -> Rangée 6 | B75: =Questionnaire!C30 -> 0
A76: =Questionnaire!B$31 -> Rangée 7 | B76: =Questionnaire!C31 -> 0
A77: =Questionnaire!D24 -> Espèce no.2
A78: =Questionnaire!B$25 -> Rangée 1 | B78: =Questionnaire!D25 -> 0
A79: =Questionnaire!B$26 -> Rangée 2 | B79: =Questionnaire!D26 -> 0
A80: =Questionnaire!B$27 -> Rangée 3 | B80: =Questionnaire!D27 -> 0
A81: =Questionnaire!B$28 -> Rangée 4 | B81: =Questionnaire!D28 -> 0
A82: =Questionnaire!B$29 -> Rangée 5 | B82: =Questionnaire!D29 -> 0
A83: =Questionnaire!B$30 -> Rangée 6 | B83: =Questionnaire!D30 -> 0
A84: =Questionnaire!B$31 -> Rangée 7 | B84: =Questionnaire!D31 -> 0
A85: =Questionnaire!E24 -> Espèce no.3
A86: =Questionnaire!B$25 -> Rangée 1 | B86: =Questionnaire!E25 -> 0
A87: =Questionnaire!B$26 -> Rangée 2 | B87: =Questionnaire!E26 -> 0
A88: =Questionnaire!B$27 -> Rangée 3 | B88: =Questionnaire!E27 -> 0
A89: =Questionnaire!B$28 -> Rangée 4 | B89: =Questionnaire!E28 -> 0
A90: =Questionnaire!B$29 -> Rangée 5 | B90: =Questionnaire!E29 -> 0
A91: =Questionnaire!B$30 -> Rangée 6 | B91: =Questionnaire!E30 -> 0
A92: =Questionnaire!B$31 -> Rangée 7 | B92: =Questionnaire!E31 -> 0
A93: =Questionnaire!F24 -> Espèce no.4
A94: =Questionnaire!B$25 -> Rangée 1 | B94: =Questionnaire!F25 -> 0
A95: =Questionnaire!B$26 -> Rangée 2 | B95: =Questionnaire!F26 -> 0
A96: =Questionnaire!B$27 -> Rangée 3 | B96: =Questionnaire!F27 -> 0
A97: =Questionnaire!B$28 -> Rangée 4 | B97: =Questionnaire!F28 -> 0
A98: =Questionnaire!B$29 -> Rangée 5 | B98: =Questionnaire!F29 -> 0
A99: =Questionnaire!B$30 -> Rangée 6 | B99: =Questionnaire!F30 -> 0
A100: =Questionnaire!B$31 -> Rangée 7 | B100: =Questionnaire!F31 -> 0
A101: =Questionnaire!G24 -> Espèce no.5
A102: =Questionnaire!B$25 -> Rangée 1 | B102: =Questionnaire!G25 -> 0
A103: =Questionnaire!B$26 -> Rangée 2 | B103: =Questionnaire!G26 -> 0
A104: =Questionnaire!B$27 -> Rangée 3 | B104: =Questionnaire!G27 -> 0
A105: =Questionnaire!B$28 -> Rangée 4 | B105: =Questionnaire!G28 -> 0
A106: =Questionnaire!B$29 -> Rangée 5 | B106: =Questionnaire!G29 -> 0
A107: =Questionnaire!B$30 -> Rangée 6 | B107: =Questionnaire!G30 -> 0
A108: =Questionnaire!B$31 -> Rangée 7 | B108: =Questionnaire!G31 -> 0
A109: =Questionnaire!H24 -> Espèce no.6
A110: =Questionnaire!B$25 -> Rangée 1 | B110: =Questionnaire!H25 -> 0
A111: =Questionnaire!B$26 -> Rangée 2 | B111: =Questionnaire!H26 -> 0
A112: =Questionnaire!B$27 -> Rangée 3 | B112: =Questionnaire!H27 -> 0
A113: =Questionnaire!B$28 -> Rangée 4 | B113: =Questionnaire!H28 -> 0
A114: =Questionnaire!B$29 -> Rangée 5 | B114: =Questionnaire!H29 -> 0
A115: =Questionnaire!B$30 -> Rangée 6 | B115: =Questionnaire!H30 -> 0
A116: =Questionnaire!B$31 -> Rangée 7 | B116: =Questionnaire!H31 -> 0
A117: =Questionnaire!I24 -> Espèce no.7
A118: =Questionnaire!B$25 -> Rangée 1 | B118: =Questionnaire!I25 -> 0
A119: =Questionnaire!B$26 -> Rangée 2 | B119: =Questionnaire!I26 -> 0
A120: =Questionnaire!B$27 -> Rangée 3 | B120: =Questionnaire!I27 -> 0
A121: =Questionnaire!B$28 -> Rangée 4 | B121: =Questionnaire!I28 -> 0
A122: =Questionnaire!B$29 -> Rangée 5 | B122: =Questionnaire!I29 -> 0
A123: =Questionnaire!B$30 -> Rangée 6 | B123: =Questionnaire!I30 -> 0
A124: =Questionnaire!B$31 -> Rangée 7 | B124: =Questionnaire!I31 -> 0
A125: =Questionnaire!B33 -> Quel est l'espacement entre les végétaux (m) ?
A126: =Questionnaire!B35 -> Rangée 1 | B126: =Questionnaire!C35 -> 0
A127: =Questionnaire!B36 -> Rangée 2 | B127: =Questionnaire!C36 -> 0
A128: =Questionnaire!B37 -> Rangée 3 | B128: =Questionnaire!C37 -> 0
A129: =Questionnaire!B38 -> Rangée 4 | B129: =Questionnaire!C38 -> 0
A130: =Questionnaire!B39 -> Rangée 5 | B130: =Questionnaire!C39 -> 0
A131: =Questionnaire!B40 -> Rangée 6 | B131: =Questionnaire!C40 -> 0
A132: =Questionnaire!B41 -> Rangée 7 | B132: =Questionnaire!C41 -> 0
A133: =Questionnaire!B43 -> Type de paillis utilisé ? | B133: =Questionnaire!G43 -> 4
A134: =Questionnaire!B46 -> Quels sont les coûts des végétaux ($) ?
A135: =Questionnaire!D48 -> Épinettes, Pins ou Thuyas (CON) | B135: =Questionnaire!E48 -> 9
A136: =Questionnaire!D49 -> Peupliers hybrides (PEH) | B136: =Questionnaire!E49 -> 9
A137: =Questionnaire!D50 -> Feuillus nobles (FNO) | B137: =Questionnaire!E50 -> 9
A138: =Questionnaire!D51 -> Arbustes (ARB) | B138: =Questionnaire!E51 -> 9
A139: =Questionnaire!D52 -> Saules hybrides (SAH) | B139: =Questionnaire!E52 -> 0.5
A140: =Questionnaire!B56 -> Inscrire la distance entre le site d'établissement et le point de départ des ouvriers | B140: =Questionnaire!H56 -> 0
A141: =Questionnaire!B58 -> Subvention (programme Prime-Vert par défaut) | B141: =Questionnaire!H58 -> 0.7
A142: =Questionnaire!B60 -> Désirez-vous effectuer votre établissement avec des arbres de fort calibre ? | B142: =Questionnaire!H60 -> Non
A144: =Questionnaire!B66 -> Section 2 : Entretien de la haie
A145: =Questionnaire!B68 -> Désirez-vous effectuer les activités d'entretien suivantes ?
A146: =Questionnaire!C70 -> Remplacement des arbres morts la deuxième année | B146: =Questionnaire!G70 -> Oui
A147: =Questionnaire!C72 -> Fauchage et inspection phytosanitaire (1 fois par an, 1 à 5 ans) | B147: =Questionnaire!G72 -> Oui
A148: =Questionnaire!C74 -> Taille de formation et élagage | B148: =Questionnaire!G74 -> Oui
A149: =Questionnaire!C76 -> Recépage des arbustes | B149: =Questionnaire!G76 -> Oui
A150: =Questionnaire!B62 -> Protection contre les ravageurs | B150: =Questionnaire!H62 -> Non
A151: =Questionnaire!B64 -> Si oui, spécifiez lesquels | B151: =IF(Questionnaire!F64=FALSE,"","Contre les chevreuils et les rongeurs") -> 
A153: =Questionnaire!B78 -> Section 3 : Perte d'espace cultivable | B153: =IF(Questionnaire!#REF!=FALSE,"","Contre les rongeurs seulement") -> 
A154: =Questionnaire!B81 -> Quelle est la longueur de la haie implantée dans un champ cultivé ? | B154: =Questionnaire!G81 -> 0
A155: =Questionnaire!B83 -> Quelle est la durée de la rotation de culture ? | B155: =Questionnaire!G83 -> 0
A156: =Questionnaire!B85 -> Quelle est la rotation de culture ?
A157: =Questionnaire!B87 -> 1re | B157: =Questionnaire!C$87 -> ...
A158: =Questionnaire!B88 -> 2e | B158: =Questionnaire!C$88 -> ...
A159: =Questionnaire!B89 -> 3e | B159: =Questionnaire!C$89 -> ...
A160: =Questionnaire!D87 -> 4e | B160: =Questionnaire!E$87 -> ...
A161: =Questionnaire!D88 -> 5e | B161: =Questionnaire!E$88 -> ...
A162: =Questionnaire!D89 -> 6e | B162: =Questionnaire!E$89 -> ...
A163: =Questionnaire!F87 -> 7e | B163: =Questionnaire!G$87 -> ...
A164: =Questionnaire!F88 -> 8e | B164: =Questionnaire!G$88 -> ...
A165: =Questionnaire!F89 -> 9e | B165: =Questionnaire!G$89 -> ...
A167: =Questionnaire!B91 -> Section 4 : Chauffage des bâtiments d'élevage
A168: =Questionnaire!B93 -> Quels sont les coûts annuels de chauffage des bâtiments qui seront protégés? | B168: =Questionnaire!H93 -> 0
A169: =Questionnaire!B95 -> Quel est le type de ventilation de votre bâtiment? | B169: =IF(Langue!A200="FR",CONCATENATE(IF(AND(Questionnaire!G95=FALSE,Questionnaire!H95=FALSE),"N/D",""),IF(AND(Questionnaire!G95=TRUE,Questionnaire!H95=FALSE),"Forcée",""),IF(AND(Questionnaire!G95=FALSE,Questionnaire!H95=TRUE),"Naturelle","")),CONCATENATE(IF(AND(Questionnaire!G95=FALSE,Questionnaire!H95=FALSE),"N/D",""),IF(AND(Questionnaire!G95=TRUE,Questionnaire!H95=FALSE),"Fan",""),IF(AND(Questionnaire!G95=FALSE,Questionnaire!H95=TRUE),"Natural",""))) -> N/D
A170: =Questionnaire!B97 -> À quel pourcentage s'élèveront les économies de chauffage à la maturité des haies ? | B170: =Questionnaire!H97 -> 0.1
A172: =Questionnaire!B99 -> Section 5 : Déneigement
A173: =Questionnaire!B101 -> Combien d'heures par année sont consacrées aux opérations de déneigement dans le secteur qui sera protégé par la haie ? | B173: =Questionnaire!H102 -> 0
A174: =Questionnaire!B104 -> Taux horaire pour les opérations de déneigement ? | B174: =Questionnaire!H104 -> 85
A176: =Questionnaire!B106 -> Section 6 : Récolte de bois
A177: =Questionnaire!B109 -> Quelle espèce prévoyez-vous récolter ?
A178: =Questionnaire!D$49 -> Peupliers hybrides (PEH) | B178: =Questionnaire!C111 -> FALSE
A179: =Questionnaire!D$48 -> Épinettes, Pins ou Thuyas (CON) | B179: =Questionnaire!C112 -> FALSE
A180: =Questionnaire!D$50 -> Feuillus nobles (FNO) | B180: =Questionnaire!C113 -> FALSE
A181: =Questionnaire!D$52 -> Saules hybrides (SAH) | B181: =Questionnaire!C114 -> FALSE
A182: =Questionnaire!F109 -> À quelle fin destinez-vous le bois?
A183: =Questionnaire!D$49 -> Peupliers hybrides (PEH) | B183: =Questionnaire!F111 -> Sciage
A184: =Questionnaire!D$48 -> Épinettes, Pins ou Thuyas (CON) | B184: =Questionnaire!F112 -> Sciage
A185: =Questionnaire!D$50 -> Feuillus nobles (FNO) | B185: =Questionnaire!F113 -> Sciage
A186: =Questionnaire!D$52 -> Saules hybrides (SAH) | B186: =Questionnaire!F114 -> Pâte ou biomasse
A187: =Questionnaire!B116 -> Quel pourcentage de marge brute prévoyez-vous en retirer ?
A188: =Questionnaire!D$49 -> Peupliers hybrides (PEH) | B188: =Questionnaire!G117 -> 0.35
A189: =Questionnaire!D$48 -> Épinettes, Pins ou Thuyas (CON) | B189: =Questionnaire!G118 -> 0.35
A190: =Questionnaire!D$50 -> Feuillus nobles (FNO) | B190: =Questionnaire!G119 -> 0.35
A191: =Questionnaire!D$52 -> Saules hybrides (SAH) | B191: =Questionnaire!G120 -> 0.35
A193: =Questionnaire!B122 -> Section 7 : Récolte de petits fruits
A194: =Questionnaire!B124 -> Parmi les arbustes que vous désirez établir, quel pourcentage sont des arbustes fruitiers ? | B194: =Questionnaire!H124 -> 0
A195: =Questionnaire!B126 -> Prévoyez-vous récolter des fruits ? | B195: =Questionnaire!F126 -> Non
A196: =Questionnaire!B129 -> Si oui, combien de kg par plant ? | B196: =Questionnaire!F129 -> 1.25
A197: =Questionnaire!B131 -> À quel prix ? | B197: =Questionnaire!F131 -> 0.8
A198: =Questionnaire!B133 -> Quel pourcentage de marge brute prévoyez-vous en retirer ? | B198: =Questionnaire!F133 -> 0.2
A200: =Questionnaire!B135 -> Section 8 : Pertes de sol
A201: =Questionnaire!B138 -> À combien évaluez-vous la valeur des pertes de sol ? | B201: =Questionnaire!F138 -> 0
A203: =Questionnaire!B141 -> Section 9 : Amélioration des rendements de culture
A204: =Questionnaire!B144 -> Est-ce que la haie offrira une protection pour les cultures ? | B204: =Questionnaire!F144 -> Non
A205: =Questionnaire!B149 -> Sur quel multiple de la hauteur (H) l'augmentation de rendement est-elle perceptible ? | B205: =Questionnaire!H149 -> 0
A206: =Questionnaire!B151 -> Quel pourcentage d'amélioration de rendement anticipez-vous ? | B206: =Questionnaire!F151 -> 2.5
A208: =Questionnaire!B153 -> Section 10 : Crédits de carbone
A209: =Questionnaire!B155 -> À combien évaluez-vous le prix de la réduction d’une tonne des GES ? | B209: =Questionnaire!G155 -> 0
A210: ='Bilan des calculs'!J5 -> Carbone séquestré (tonnes de CO² équivalent) après 40 ans | B210: ='Bilan des calculs'!M5 -> 0
A212: =IF(Langue!$A$200 = "FR",Dictionnaire!A693,Dictionnaire!B693) -> Bilan des calculs
A213: =IF(Langue!$A$200 = "FR",Dictionnaire!A694,Dictionnaire!B694) -> Marge actualisée cumulative
A214: ='Bilan des calculs'!C12 -> 0-5 ans | B214: ='Bilan des calculs'!L12 -> -75.82254814
... 16 more rows

Sheet Devis d'implantation des écrans
W2: Type de collerettes | Y2: Temps de pose (min/unité)
K3: Longueur totale plantée (m) | P3: =F6*F8 -> 0 | W3: Déroulé en longueur | X3: =A52 -> Petite collerette (30 cm X 30 cm) | Y3: 3
W4: Grandes collerettes | X4: =A53 -> Grande collerette (1 m X 1 m) | Y4: 5
W5: Biodisques | X5: =A54 -> Biodisque (60 cm) | Y5: 4
A6: Longueur de la haie (m) | F6: =Questionnaire!E16 -> 0
A7: Type de paillis | F7: =Questionnaire!D43 -> Déroulé en longueur
A8: Nombre de rangées | F8: =Questionnaire!E18 -> 0 | W8: Format de plants | X8: Temps de pose (min/unité)
A9: Longueur déroulée (m) | F9: =IF(F7=Questionnaire!AC45,F6*F8,0) -> 0 | W9: Boutures | X9: 0.5
A10: Espacement entre les rangs (m) | F10: =Questionnaire!E20 -> 0 | W10: Racines nues 30 à 60 cm de hauteur | X10: 3
A11: Numéro de la rangée | F11: 1 | G11: 2 | H11: 3 | I11: 4 | J11: 5 | K11: 6 | L11: 7 | W11: 45 cavités | X11: 2
A12: Espacement entre les végétaux (m) | F12: =IF(Questionnaire!$E18>0,Questionnaire!$C35,0) -> 0 | G12: =IF(Questionnaire!$E18>1,Questionnaire!$C36,0) -> 0 | H12: =IF(Questionnaire!$E18>2,Questionnaire!$C37,0) -> 0 | I12: =IF(Questionnaire!$E18>3,Questionnaire!$C38,0) -> 0 | J12: =IF(Questionnaire!$E18>4,Questionnaire!$C39,0) -> 0 | K12: =IF(Questionnaire!$E18>5,Questionnaire!$C40,0) -> 0 | L12: =IF(Questionnaire!$E18>6,Questionnaire!$C41,0) -> 0 | W12: 25 cavités (PFD) | X12: 3
A13: Nombre de végétaux | F13: =IF(F12>0,$F6/F12,0) -> 0 | G13: =IF(G12>0,$F6/G12,0) -> 0 | H13: 0 | I13: 0 | J13: 0 | K13: 0 | L13: 0 | W13: Pots 1 gallon | X13: 5
E14: Densité réellle | F14: =IF($F6=0,0,F13/$F6) -> 0 | G14: 0 | H14: 0 | I14: 0 | J14: 0 | K14: 0 | L14: 0 | W14: Pots 2 gallons | X14: 7
W16: Protecteurs | X16: Temps de pose (min/unité)
W17: Protecteurs à mulots | X17: 2
W18: Protecteurs à chevreuils | X18: 10
A19: Arrangement des végétaux | H19: Séquence d'arbres et/ou arbustes | R19: Nombre de répétition par espèce | W19: Structures pour la faune et auxiliaires | X19: 10
A20: Haie | B20: Rangée | E20: Longueur | H20: 1 | I20: 2 | J20: 3 | K20: 4 | L20: 5 | M20: 6 | N20: 7 | O20: 8 | P20: 9 | Q20: 10
A21: A | B21: 1 | E21: =IF($F$8>=1,$F$6,0) -> 0 | H21: =IF($F$8<1,"",(IF(Questionnaire!C25="","",Questionnaire!C25))) ->  | I21: =IF($F$8<1,"",(IF(Questionnaire!D25="","",Questionnaire!D25))) ->  | J21: =IF($F$8<1,"",(IF(Questionnaire!E25="","",Questionnaire!E25))) ->  | K21: =IF($F$8<1,"",(IF(Questionnaire!F25="","",Questionnaire!F25))) ->  | L21: =IF($F$8<1,"",(IF(Questionnaire!G25="","",Questionnaire!G25))) ->  | M21: =IF($F$8<1,"",(IF(Questionnaire!H25="","",Questionnaire!H25))) ->  | N21: =IF($F$8<1,"",(IF(Questionnaire!I25="","",Questionnaire!I25))) ->  | R21: =ROUNDUP(IF(COUNTIF(H21:N21,"")=7,0,F$13/(7-(COUNTIF(H21:N21,"")))),0) -> 0
B22: 2 | E22: =IF($F$8>=2,$F$6,0) -> 0 | H22: =IF($F$8<2,"",(IF(Questionnaire!C26="","",Questionnaire!C26))) ->  | I22: =IF($F$8<2,"",(IF(Questionnaire!D26="","",Questionnaire!D26))) ->  | J22: =IF($F$8<2,"",(IF(Questionnaire!E26="","",Questionnaire!E26))) ->  | K22: =IF($F$8<2,"",(IF(Questionnaire!F26="","",Questionnaire!F26))) ->  | L22: =IF($F$8<2,"",(IF(Questionnaire!G26="","",Questionnaire!G26))) ->  | M22: =IF($F$8<2,"",(IF(Questionnaire!H26="","",Questionnaire!H26))) ->  | N22: =IF($F$8<2,"",(IF(Questionnaire!I26="","",Questionnaire!I26))) ->  | R22: =ROUNDUP(IF(COUNTIF(H22:N22,"")=7,0,G$13/(7-(COUNTIF(H22:N22,"")))),0) -> 0 | W22: Travaux forfaitaires
B23: 3 | E23: =IF($F$8>=3,$F$6,0) -> 0 | H23: =IF($F$8<3,"",(IF(Questionnaire!C27="","",Questionnaire!C27))) ->  | I23: =IF($F$8<3,"",(IF(Questionnaire!D27="","",Questionnaire!D27))) ->  | J23: =IF($F$8<3,"",(IF(Questionnaire!E27="","",Questionnaire!E27))) ->  | K23: =IF($F$8<3,"",(IF(Questionnaire!F27="","",Questionnaire!F27))) ->  | L23: =IF($F$8<3,"",(IF(Questionnaire!G27="","",Questionnaire!G27))) ->  | M23: =IF($F$8<3,"",(IF(Questionnaire!H27="","",Questionnaire!H27))) ->  | N23: =IF($F$8<3,"",(IF(Questionnaire!I27="","",Questionnaire!I27))) ->  | R23: =ROUNDUP(IF(COUNTIF(H23:N23,"")=7,0,H$13/(7-(COUNTIF(H23:N23,"")))),0) -> 0 | W23: Travail du sol et déroulage | X23: 1.5 | Y23: /m
B24: 4 | E24: =IF($F$8>=4,$F$6,0) -> 0 | H24: =IF($F$8<4,"",(IF(Questionnaire!C28="","",Questionnaire!C28))) ->  | I24: =IF($F$8<4,"",(IF(Questionnaire!D28="","",Questionnaire!D28))) ->  | J24: =IF($F$8<4,"",(IF(Questionnaire!E28="","",Questionnaire!E28))) ->  | K24: =IF($F$8<4,"",(IF(Questionnaire!F28="","",Questionnaire!F28))) ->  | L24: =IF($F$8<4,"",(IF(Questionnaire!G28="","",Questionnaire!G28))) ->  | M24: =IF($F$8<4,"",(IF(Questionnaire!H28="","",Questionnaire!H28))) ->  | N24: =IF($F$8<4,"",(IF(Questionnaire!I28="","",Questionnaire!I28))) ->  | R24: =ROUNDUP(IF(COUNTIF(H24:N24,"")=7,0,I$13/(7-(COUNTIF(H24:N24,"")))),0) -> 0 | W24: Frais de déplacement | X24: 120 | Y24: /h
B25: 5 | E25: =IF($F$8>=5,$F$6,0) -> 0 | H25: =IF($F$8<5,"",(IF(Questionnaire!C29="","",Questionnaire!C29))) ->  | I25: =IF($F$8<5,"",(IF(Questionnaire!D29="","",Questionnaire!D29))) ->  | J25: =IF($F$8<5,"",(IF(Questionnaire!E29="","",Questionnaire!E29))) ->  | K25: =IF($F$8<5,"",(IF(Questionnaire!F29="","",Questionnaire!F29))) ->  | L25: =IF($F$8<5,"",(IF(Questionnaire!G29="","",Questionnaire!G29))) ->  | M25: =IF($F$8<5,"",(IF(Questionnaire!H29="","",Questionnaire!H29))) ->  | N25: =IF($F$8<5,"",(IF(Questionnaire!I29="","",Questionnaire!I29))) ->  | R25: =ROUNDUP(IF(COUNTIF(H25:N25,"")=7,0,J$13/(7-(COUNTIF(H25:N25,"")))),0) -> 0 | W25: Travaux fait par producteur | X25: 0.6 | Y25: /m
B26: 6 | E26: =IF($F$8>=6,$F$6,0) -> 0 | H26: =IF($F$8<6,"",(IF(Questionnaire!C30="","",Questionnaire!C30))) ->  | I26: =IF($F$8<6,"",(IF(Questionnaire!D30="","",Questionnaire!D30))) ->  | J26: =IF($F$8<6,"",(IF(Questionnaire!E30="","",Questionnaire!E30))) ->  | K26: =IF($F$8<6,"",(IF(Questionnaire!F30="","",Questionnaire!F30))) ->  | L26: =IF($F$8<6,"",(IF(Questionnaire!G30="","",Questionnaire!G30))) ->  | M26: =IF($F$8<6,"",(IF(Questionnaire!H30="","",Questionnaire!H30))) ->  | N26: =IF($F$8<6,"",(IF(Questionnaire!I30="","",Questionnaire!I30))) ->  | R26: =ROUNDUP(IF(COUNTIF(H26:N26,"")=7,0,K$13/(7-(COUNTIF(H26:N26,"")))),0) -> 0 | W26: Vitesse moyenne de déplacement | X26: 80 | Y26: km/h
B27: 7 | E27: =IF($F$8>=7,$F$6,0) -> 0 | H27: =IF($F$8<7,"",(IF(Questionnaire!C31="","",Questionnaire!C31))) ->  | I27: =IF($F$8<7,"",(IF(Questionnaire!D31="","",Questionnaire!D31))) ->  | J27: =IF($F$8<7,"",(IF(Questionnaire!E31="","",Questionnaire!E31))) ->  | K27: =IF($F$8<7,"",(IF(Questionnaire!F31="","",Questionnaire!F31))) ->  | L27: =IF($F$8<7,"",(IF(Questionnaire!G31="","",Questionnaire!G31))) ->  | M27: =IF($F$8<7,"",(IF(Questionnaire!H31="","",Questionnaire!H31))) ->  | N27: =IF($F$8<7,"",(IF(Questionnaire!I31="","",Questionnaire!I31))) ->  | R27: =ROUNDUP(IF(COUNTIF(H27:N27,"")=7,0,L$13/(7-(COUNTIF(H27:N27,"")))),0) -> 0 | W27: Longueur plastique 4 pieds | X27: 457 | Y27: m
A28: B | B28: 1 | E28: =IF($I$8>=1,$I$6,0) -> 0 | R28: =ROUNDUP(IF(COUNTIF(H28:Q28,"")=10,0,F$13/(10-(COUNTIF(H28:Q28,"")))),0) -> 0 | W28: Longueur plastique 5 pieds | X28: 365 | Y28: m
B29: 2 | E29: =IF($I$8>=2,$I$6,0) -> 0 | R29: 0 | W29: Frais de déplacement | X29: =Paramètres!I30 -> 0.5 | Y29: /km
B30: 3 | E30: =IF($I$8>=3,$I$6,0) -> 0 | R30: 0
A31: C | B31: 1 | E31: =IF($L$8>=1,$L$6,0) -> 0 | R31: 0
B32: 2 | E32: =IF($L$8>=2,$L$6,0) -> 0 | R32: 0 | W32: Cacul du nombre de jour | X32: Nombre d'heure totales | Y32: Nombre de personnes | Z32: Nombre d'heure/personne | AA32: Nombre de jours
B33: 3 | E33: =IF($L$8>=3,$L$6,0) -> 0 | R33: 0 | W33: Plantation | X33: =(F47*X10/60) -> 0 | Y33: 4 | Z33: =X33/Y33 -> 0 | AA33: =ROUNDUP(Z33/8,0) -> 0
A34: D | B34: 1 | E34: =IF($O$8>=1,$O$6,0) -> 0 | R34: 0 | W34: Pose petites collerettes et broches | X34: =((F52*Y3/60)) -> 0 | Y34: 4 | Z34: =X34/Y34 -> 0 | AA34: =ROUNDUP(Z34/8,0) -> 0
B35: 2 | E35: =IF($O$8>=2,$O$6,0) -> 0 | R35: 0 | W35: Pose grandes collerettes et broches | X35: =((F53*Y4/60)) -> 0 | Y35: 4 | Z35: 0 | AA35: 0
B36: 3 | E36: =IF($O$8>=3,$O$6,0) -> 0 | R36: 0 | W36: Pose biodisques et broches | X36: =((F54*Y5/60)) -> 0 | Y36: 4 | Z36: 0 | AA36: 0
W37: Pose protecteurs à mulots | X37: =(F58*X17/60) -> 0 | Y37: 4 | Z37: 0 | AA37: 0
F38: A | O38: D | W38: Pose protecteurs à chevreuils | X38: =(F59*X18/60) -> 0 | Y38: 4 | Z38: 0 | AA38: 0
A39: # rangée | F39: 1 | G39: 2 | H39: 3 | I39: 4 | J39: 5 | K39: 6 | L39: 7 | M39: 2 | N39: 3 | O39: 1 | P39: 2 | Q39: 3 | W39: Pose structures pour la faune et auxiliaires | X39: =(SUM(F60:H62)*X19/60) -> 0 | Y39: 4 | Z39: 0 | AA39: 0
A40: Essences | D40: Total | E40: $/unité | F40: quantité | O40: quantité
A41: Arbres* | R41: Total ($) | T41: Subvention arbres
A42: Épinettes, Pins ou Thuyas | C42: =IF(Langue!$A$200 = "FR",Dictionnaire!A808,Dictionnaire!B808) -> CON | D42: =SUM(F42:L42) -> 0 | E42: =Questionnaire!E48 -> 9 | F42: =COUNTIF(H$21:N$21,$C42)*$R$21 -> 0 | G42: =COUNTIF(H$22:N$22,$C42)*$R$22 -> 0 | H42: =COUNTIF(H$23:N$23,$C42)*$R$23 -> 0 | I42: =COUNTIF(H$24:N$24,$C42)*$R$24 -> 0 | J42: =COUNTIF(H$25:N$25,$C42)*$R$25 -> 0 | K42: =COUNTIF(H$26:N$26,$C42)*$R$26 -> 0 | L42: =COUNTIF(H$27:N$27,$C42)*$R$27 -> 0 | R42: =E42*D42 -> 0 | T42: =MIN(D42*Z$78,D42*E42) -> 0 | W42: Données provenant de la subvention Prime-Vert
A43: Peupliers hybrides | C43: =IF(Langue!$A$200 = "FR",Dictionnaire!A809,Dictionnaire!B809) -> PEH | D43: =SUM(F43:L43) -> 0 | E43: =Questionnaire!E49 -> 9 | F43: =COUNTIF(H$21:N$21,$C43)*$R$21 -> 0 | G43: =COUNTIF(H$22:N$22,$C43)*$R$22 -> 0 | H43: =COUNTIF(H$23:N$23,$C43)*$R$23 -> 0 | I43: =COUNTIF(H$24:N$24,$C43)*$R$24 -> 0 | J43: =COUNTIF(H$25:N$25,$C43)*$R$25 -> 0 | K43: =COUNTIF(H$26:N$26,$C43)*$R$26 -> 0 | L43: =COUNTIF(H$27:N$27,$C43)*$R$27 -> 0 | R43: =E43*D43 -> 0 | T43: =MIN(D43*Z$78,D43*E43) -> 0 | W43: 7.5 | X43: maximum par mètre linéraire aménagé
A44: Feuillus nobles | C44: =IF(Langue!$A$200 = "FR",Dictionnaire!A810,Dictionnaire!B810) -> FNO | D44: =SUM(F44:L44) -> 0 | E44: =Questionnaire!E50 -> 9 | F44: =COUNTIF(H$21:N$21,$C44)*$R$21 -> 0 | G44: =COUNTIF(H$22:N$22,$C44)*$R$22 -> 0 | H44: =COUNTIF(H$23:N$23,$C44)*$R$23 -> 0 | I44: =COUNTIF(H$24:N$24,$C44)*$R$24 -> 0 | J44: =COUNTIF(H$25:N$25,$C44)*$R$25 -> 0 | K44: =COUNTIF(H$26:N$26,$C44)*$R$26 -> 0 | L44: =COUNTIF(H$27:N$27,$C44)*$R$27 -> 0 | R44: =E44*D44 -> 0 | T44: =MIN(D44*Z$78,D44*E44) -> 0 | W44: 12 | X44: maximum par végétaux
A45: Arbustes | C45: =IF(Langue!$A$200 = "FR",Dictionnaire!A811,Dictionnaire!B811) -> ARB | D45: =SUM(F45:L45) -> 0 | E45: =Questionnaire!E51 -> 9 | F45: =COUNTIF(H$21:N$21,$C45)*$R$21 -> 0 | G45: =COUNTIF(H$22:N$22,$C45)*$R$22 -> 0 | H45: =COUNTIF(H$23:N$23,$C45)*$R$23 -> 0 | I45: =COUNTIF(H$24:N$24,$C45)*$R$24 -> 0 | J45: =COUNTIF(H$25:N$25,$C45)*$R$25 -> 0 | K45: =COUNTIF(H$26:N$26,$C45)*$R$26 -> 0 | L45: =COUNTIF(H$27:N$27,$C45)*$R$27 -> 0 | R45: =E45*D45 -> 0 | T45: =MIN(D45*Z$78,D45*E45) -> 0 | W45: 1.16 | X45: maximum protection contre les rongeurs
A46: Saules hybrides | C46: =IF(Langue!$A$200 = "FR",Dictionnaire!A812,Dictionnaire!B812) -> SAH | D46: =SUM(F46:L46) -> 0 | E46: =Questionnaire!E52 -> 0.5 | F46: =COUNTIF(H$21:N$21,$C46)*$R$21 -> 0 | G46: =COUNTIF(H$22:N$22,$C46)*$R$22 -> 0 | H46: =COUNTIF(H$23:N$23,$C46)*$R$23 -> 0 | I46: =COUNTIF(H$24:N$24,$C46)*$R$24 -> 0 | J46: =COUNTIF(H$25:N$25,$C46)*$R$25 -> 0 | K46: =COUNTIF(H$26:N$26,$C46)*$R$26 -> 0 | L46: =COUNTIF(H$27:N$27,$C46)*$R$27 -> 0 | R46: =E46*D46 -> 0 | T46: =MIN(D46*Z$78,D46*E46) -> 0 | W46: 7.5 | X46: maximum protection contre les cervidés
A47: Nombre total de végétaux | D47: =SUM(D42:D46) -> 0 | F47: =SUM(F42:L46) -> 0 | W47: 0 | X47: maximum structures pour la faune et auxiliaires
O48: Total | P48: =SUM(R42:R46) -> 0 | T48: =SUM(T42:T47) -> 0 | W48: 800 | X48: maximum pour la conception des plans et devis
W49: 0.7 | X49: pourcentage de subvention Prime-Vert
A50: MATÉRIEL | F50: Quantité | I50: Coût unitaire ($) | L50: Coût total ($)
A51: =Paramètres!B24 -> Rouleau de pailllis de plastique de 1,2 ou 1,5 m de large | D51: =Questionnaire!G43 -> 4 | E51: =IF(D51="4"," ","x") ->  | F51: =IF(E51="x",F9/365,F9/457) -> 0 | I51: 288 | L51: =ROUNDUP(F51,1)*I51 -> 0
A52: =Paramètres!B25 -> Petite collerette (30 cm X 30 cm) | E52: =Paramètres!F25 -> 2 | F52: =SUMIF(F$7,Questionnaire!AC45,F$42:L$45) -> 0 | I52: =Paramètres!I25 -> 0.63 | L52: =I52*F52 -> 0
A53: =Paramètres!B26 -> Grande collerette (1 m X 1 m) | E53: =Paramètres!F26 -> 9 | F53: =SUMIF(F$7,Questionnaire!AC46,F$47:L$47) -> 0 | I53: =Paramètres!I26 -> 2 | L53: =I53*F53 -> 0
A54: =Paramètres!B27 -> Biodisque (60 cm) | E54: =Paramètres!F27 -> 5 | F54: =SUMIF(F$7,Questionnaire!AC47,F$47:L$47) -> 0 | I54: =Paramètres!I27 -> 2 | L54: =I54*F54 -> 0
A55: =Paramètres!B28 -> Broches servant à fixer les collerettes | F55: =(F52*E52)+(F53*E53)+(F54*E54) -> 0 | I55: =Paramètres!I28 -> 0.23 | L55: =I55*F55 -> 0 | O55: Total | P55: =SUM(L51:N55) -> 0
A57: PROTECTEURS ET STUCTURES ARTIFICIELLES FAUNE ET AUX. | F57: Quantité | I57: Coût unitaire ($) | L57: Coût total ($)
A58: Protecteurs contre mulots | F58: =IF(OR(Questionnaire!F64,Questionnaire!H64)=TRUE,SUM('Devis d''implantation des écrans'!D43:D44),0) -> 0 | I58: =Paramètres!I41 -> 1.25 | L58: =I58*F58 -> 0
A59: Protecteurs contre chevreuils (y compris les deux piquets) | F59: =IF(Questionnaire!F64=TRUE,SUM('Devis d''implantation des écrans'!D43:D44),0) -> 0 | I59: =Paramètres!I42 -> 7.5 | L59: =I59*F59 -> 0
A60: Structures pour la faune et auxiliaires | F60: 0 | L60: =I60*F60 -> 0
A61: Structures pour la faune et auxiliaires | F61: 0 | L61: =I61*F61 -> 0
A62: Structures pour la faune et auxiliaires | F62: 0 | L62: =I62*F62 -> 0 | O62: TOTAL | P62: =SUM(L58:N62) -> 0
A64: MAIN D'ŒUVRE | F64: Temps requis (hres) | I64: Taux horaire ($/hre) | L64: Coût total ($)
A65: Plantation | F65: =X33+(AA33*2*B$72/X$26)+(AA33*2*B$72*X$29/I65) -> 0 | I65: =Paramètres!$I$29 -> 35 | L65: =I65*F65 -> 0
A66: Pose petites collerettes et broches | F66: 0 | I66: =Paramètres!$I$29 -> 35 | L66: =I66*F66 -> 0
A67: Pose grandes collerettes et broches | F67: 0 | I67: =Paramètres!$I$29 -> 35 | L67: 0
A68: Pose biodisques et broches | F68: 0 | I68: =Paramètres!$I$29 -> 35 | L68: 0
A69: Pose protecteurs à mulots | F69: 0 | I69: =Paramètres!$I$29 -> 35 | L69: 0
A70: Pose protecteurs à chevreuils | F70: 0 | I70: =Paramètres!$I$29 -> 35 | L70: 0
A71: Pose structures pour la faune et auxiliaires | F71: 0 | I71: =Paramètres!$I$29 -> 35 | L71: 0 | O71: Total | P71: =SUM(L65:N71) -> 0
A72: Distance aller (km): | B72: =Questionnaire!H56 -> 0
A74: TRAVAIL FORFAITAIRE | L74: Coût total ($)
A75: TRAVAIL DU SOL ET DÉROULAGE DU PLASTIQUE (mettre un "X" si fait par producteur) | L75: =IF(F51=0,0,IF(K75="X",(F9*X25),(F9*X23)+(B72/80*2*X24))) -> 0
A76: PLANS ET DEVIS | L76: =Paramètres!I32 -> 800 | O76: Total | P76: =IF(P3>0,SUM(L75:N76),0) -> 0 | Z76: 1.7
Y77: Max subvention protection cultures ($/m): | Z77: 2
O78: SOUS-TOTAL SANS LES VÉGÉTAUX: | P78: =P55+P62+P71+P76 -> 0 | Y78: Max subvention protection bâtiments ($/m): | Z78: 7
O79: COÛT AU MÈTRE SANS VÉGÉTAUX: | P79: =IF(P3=0,0,P78/P3) -> 0 | Y79: Max subvention protection bâtiments ($/m):
O82: TOTAL AVANT SUBVENTION: | P82: =P78+P48 -> 0
O83: COÛT AU MÈTRE TOTAL AVEC VÉGÉTAUX: | P83: =IF(P3=0,0,P82/P3) -> 0
G86: Pourcentage de remboursement: | H86: =Questionnaire!H58 -> 0.7 | O86: DE REMBOURSEMENT PRIME-VERT OU AUTRE: | P86: =IF(Questionnaire!E58=TRUE,IF('Menu simulation'!H8=TRUE,((MIN(Z77*P3,P79*P3)+T48)*H86),((MIN(Z76*P3,P79*P3)+T48)*H86)),P82*H86) -> 0
M88: TOTAL: | P88: =P82-P86 -> 0
O89: COÛT AU MÈTRE TOTAL AVEC VÉGÉTAUX: | P89: =IF(P3=0,0,P88/P3) -> 0
E92: AVEC ARBRES DE FORT CALIBRE
A93: Mettre un X pour des arbres de fort calibre | D93: =IF(OR(Questionnaire!H60="Oui",Questionnaire!H60="Yes"),"x"," ") -> 
A95: Taux de conversion | B95: 9 | O95: TOTAL AVANT SUBVENTION POUR DES ARBRES DE FORT CALIBRES: | P95: =P82*B95 -> 0
O96: COÛT AU MÈTRE TOTAL AVEC VÉGÉTAUX DE FORT CALIBRES: | P96: =P83*9 -> 0
O98: DE REMBOURSEMENT PRIME-VERT : | P98: =MIN(P95*H86,(1.7*P3)+(9*D47)) -> 0
M100: TOTAL: | P100: =P95-P98 -> 0
O101: COÛT AU MÈTRE TOTAL AVEC VÉGÉTAUX: | P101: =IF(P3=0,0,P100/P3) -> 0
S821: Vérifier le prix des plançons de 3m

Sheet Coûts d'implantation
A2: ok
B4: Période | C4: Améliorations | E4: Détériorations | G4: Marge | H4: Marge actualisée | I4: Marge actualisée accumulée
B7: 0-5 ans | C7: 0 | E7: =C104 -> 0 | G7: =C7+E7 -> 0 | H7: =F104 -> 0 | I7: =F104 -> 0
B9: 5-10 ans | C9: 0 | E9: =C109 -> 0 | G9: =C9+E9 -> 0 | H9: =F109 -> 0 | I9: =G109 -> 0
B11: 10-20 ans | C11: 0 | E11: =C119 -> 0 | G11: =C11+E11 -> 0 | H11: =F119 -> 0 | I11: =G119 -> 0
B13: 20-40 ans | C13: 0 | E13: =C139 -> 0 | G13: =C13+E13 -> 0 | H13: =F139 -> 0 | I13: =G139 -> 0
B16: Coûts liés à l'implantation de 0 à 5 ans | D16: Coûts liés à l'implantation de 5 à 10 ans | F16: Coûts liés à l'implantation de 10 à 20 ans | H16: Coûts liés à l'implantation de 20 à 40 ans
B18: =IF('Devis d''implantation des écrans'!D93="X",'Devis d''implantation des écrans'!P100,'Devis d''implantation des écrans'!P88) -> 0 | D18: 0 | F18: 0 | H18: 0
E20: DEVIS D'IMPLANTATION
A97: Détériorations | E97: Marge actualisée | G97: Marge actualisée accumulée
A99: total cumulatif à l'an
A100: 1 | B100: =-1*$B$18 -> 0 | E100: =B100/POWER(1+Paramètres!$AF$14,A100) -> 0
A101: 2 | B101: =0*$B$18 -> 0 | E101: =B101/POWER(1+Paramètres!$AF$14,A101) -> 0
A102: 3 | B102: =0*$B$18 -> 0 | E102: =B102/POWER(1+Paramètres!$AF$14,A102) -> 0
A103: 4 | B103: 0 | E103: =B103/POWER(1+Paramètres!$AF$14,A103) -> 0
A104: 5 | B104: 0 | C104: =SUM(B100:B104) -> 0 | E104: =B104/POWER(1+Paramètres!$AF$14,A104) -> 0 | F104: =SUM(E100:E104) -> 0
A105: 6 | B105: 0 | E105: =B105/POWER(1+Paramètres!$AF$14,A105) -> 0
A106: 7 | B106: 0 | E106: =B106/POWER(1+Paramètres!$AF$14,A106) -> 0
A107: 8 | B107: 0 | E107: =B107/POWER(1+Paramètres!$AF$14,A107) -> 0
A108: 9 | B108: 0 | E108: =B108/POWER(1+Paramètres!$AF$14,A108) -> 0
A109: 10 | B109: 0 | C109: =SUM(B105:B109) -> 0 | E109: =B109/POWER(1+Paramètres!$AF$14,A109) -> 0 | F109: =SUM(E105:E109) -> 0 | G109: =SUM(E100:E109) -> 0
A110: 11 | B110: 0 | E110: =B110/POWER(1+Paramètres!$AF$14,A110) -> 0
A111: 12 | B111: 0 | E111: =B111/POWER(1+Paramètres!$AF$14,A111) -> 0
A112: 13 | B112: 0 | E112: =B112/POWER(1+Paramètres!$AF$14,A112) -> 0
A113: 14 | B113: 0 | E113: =B113/POWER(1+Paramètres!$AF$14,A113) -> 0
A114: 15 | B114: 0 | E114: =B114/POWER(1+Paramètres!$AF$14,A114) -> 0
A115: 16 | B115: 0 | E115: =B115/POWER(1+Paramètres!$AF$14,A115) -> 0
A116: 17 | B116: 0 | E116: =B116/POWER(1+Paramètres!$AF$14,A116) -> 0
A117: 18 | B117: 0 | E117: =B117/POWER(1+Paramètres!$AF$14,A117) -> 0
A118: 19 | B118: 0 | E118: =B118/POWER(1+Paramètres!$AF$14,A118) -> 0
A119: 20 | B119: 0 | C119: =SUM(B110:B119) -> 0 | E119: =B119/POWER(1+Paramètres!$AF$14,A119) -> 0 | F119: =SUM(E110:E119) -> 0 | G119: =SUM(E100:E119) -> 0
A120: 21 | B120: 0 | E120: =B120/POWER(1+Paramètres!$AF$14,A120) -> 0
A121: 22 | B121: 0 | E121: =B121/POWER(1+Paramètres!$AF$14,A121) -> 0
A122: 23 | B122: 0 | E122: =B122/POWER(1+Paramètres!$AF$14,A122) -> 0
A123: 24 | B123: 0 | E123: =B123/POWER(1+Paramètres!$AF$14,A123) -> 0
A124: 25 | B124: 0 | E124: =B124/POWER(1+Paramètres!$AF$14,A124) -> 0
A125: 26 | B125: 0 | E125: =B125/POWER(1+Paramètres!$AF$14,A125) -> 0
A126: 27 | B126: 0 | E126: =B126/POWER(1+Paramètres!$AF$14,A126) -> 0
A127: 28 | B127: 0 | E127: =B127/POWER(1+Paramètres!$AF$14,A127) -> 0
A128: 29 | B128: 0 | E128: =B128/POWER(1+Paramètres!$AF$14,A128) -> 0
A129: 30 | B129: 0 | E129: =B129/POWER(1+Paramètres!$AF$14,A129) -> 0
A130: 31 | B130: 0 | E130: =B130/POWER(1+Paramètres!$AF$14,A130) -> 0
A131: 32 | B131: 0 | E131: =B131/POWER(1+Paramètres!$AF$14,A131) -> 0
A132: 33 | B132: 0 | E132: =B132/POWER(1+Paramètres!$AF$14,A132) -> 0
A133: 34 | B133: 0 | E133: =B133/POWER(1+Paramètres!$AF$14,A133) -> 0
A134: 35 | B134: 0 | E134: =B134/POWER(1+Paramètres!$AF$14,A134) -> 0
A135: 36 | B135: 0 | E135: =B135/POWER(1+Paramètres!$AF$14,A135) -> 0
A136: 37 | B136: 0 | E136: =B136/POWER(1+Paramètres!$AF$14,A136) -> 0
A137: 38 | B137: 0 | E137: =B137/POWER(1+Paramètres!$AF$14,A137) -> 0
A138: 39 | B138: 0 | E138: =B138/POWER(1+Paramètres!$AF$14,A138) -> 0
A139: 40 | B139: 0 | C139: =SUM(B120:B139) -> 0 | E139: =B139/POWER(1+Paramètres!$AF$14,A139) -> 0 | F139: =SUM(E120:E139) -> 0 | G139: =SUM(E100:E139) -> 0

Sheet Calcul espace cultivable
B4: Période | C4: Améliorations | E4: Détériorations | G4: Marge | H4: Marge actualisée | I4: Marge actualisée accumulée
B7: 0-5 ans | C7: 0 | E7: =C118 -> 0 | G7: =C7+E7 -> 0 | H7: =F118 -> 0 | I7: =F118 -> 0
B9: 5-10 ans | C9: 0 | E9: =C123 -> 0 | G9: =C9+E9 -> 0 | H9: =F123 -> 0 | I9: =G123 -> 0
B11: 10-20 ans | C11: 0 | E11: =C133 -> 0 | G11: =C11+E11 -> 0 | H11: =F133 -> 0 | I11: =G133 -> 0
B13: 20-40 ans | C13: 0 | E13: =C153 -> 0 | G13: =C13+E13 -> 0 | H13: =F153 -> 0 | I13: =G153 -> 0
B16: Pertes liées à l'espace cultivable de 0 à 5 ans | D16: Pertes liées à l'espace cultivable de 5 à 10 ans | F16: Pertes liées à l'espace cultivable de 10 à 20 ans | H16: Pertes liées à l'espace cultivable de 20 à 40 ans
B18: =C108 -> 0 | D18: =E108 -> 0 | F18: =G108 -> 0 | H18: =I108 -> 0
K28: Haie | M28: Bande riveraine
J29: Largeur d'une rangée | K29: Non entretenu (FNO) | L29: Entretenu (FNO) ou Non entretenu (ARB-SAH) | M29: Bande riveraine non entretenue | N29: Bande riveraine entretenue
J30: 5 ans | K30: 2 | L30: 2 | M30: =K30/2 -> 1 | N30: 1
J31: 10 ans | K31: 4 | L31: 3 | M31: 2 | N31: 1.5
J32: 20 ans | K32: 5 | L32: 3 | M32: 2.5 | N32: 1.5
J33: 40 ans | K33: 8 | L33: 3 | M33: 4 | N33: 1.5
A35: Rangée 1 | C35: CON | D35: =IF('Devis d''implantation des écrans'!F$42>0,TRUE,FALSE) -> FALSE | F35: Nombre de rangées | H35: =Questionnaire!E18 -> 0
A36: Rangée 2 | C36: CON | D36: =IF('Devis d''implantation des écrans'!G$42>0,TRUE,FALSE) -> FALSE | F36: Longueur de la haie | H36: =Questionnaire!E16 -> 0
A37: Rangée 3 | C37: CON | D37: =IF('Devis d''implantation des écrans'!H$42>0,TRUE,FALSE) -> FALSE
A38: Rangée 4 | C38: CON | D38: =IF('Devis d''implantation des écrans'!I$42>0,TRUE,FALSE) -> FALSE
A39: Rangée 5 | C39: CON | D39: =IF('Devis d''implantation des écrans'!J$42>0,TRUE,FALSE) -> FALSE
A40: Rangée 6 | C40: CON | D40: =IF('Devis d''implantation des écrans'!K$42>0,TRUE,FALSE) -> FALSE
A41: Rangée 7 | C41: CON | D41: =IF('Devis d''implantation des écrans'!L$42>0,TRUE,FALSE) -> FALSE
A42: Largeur récupéré pour la culture pour bande riveraine | C42: 1.5
L43: Quoi faire avec les PEH
C44: Largeur en m à 5 ans | J44: Largeur en m à 10 ans | Q44: Largeur en m à 20ans | X44: Largeur en m à 40ans
A45: Nb de rangée | C45: 1 | D45: 2 | E45: 3 | F45: 4 | G45: 5 | H45: 6 | I45: 7 | J45: 1 | K45: 2 | L45: 3 | M45: 4 | N45: 5 | O45: 6 | P45: 7 | Q45: 1 | R45: 2 | S45: 3 | T45: 4 | U45: 5 | V45: 6 | W45: 7 | X45: 1 | Y45: 2 | Z45: 3 | AA45: 4 | AB45: 5 | AC45: 6 | AD45: 7
A46: Non entretenu | C46: =AND(OR(Questionnaire!$G$76="Non",Questionnaire!$G$76="No"),OR('Devis d''implantation des écrans'!$D44>0,'Devis d''implantation des écrans'!$D42>0),Questionnaire!$E$18=C45) -> FALSE | D46: =AND(OR(Questionnaire!$G$76="Non",Questionnaire!$G$76="No"),OR('Devis d''implantation des écrans'!$D44>0,'Devis d''implantation des écrans'!$D42>0),Questionnaire!$E$18=D45) -> FALSE | E46: =AND(OR(Questionnaire!$G$76="Non",Questionnaire!$G$76="No"),OR('Devis d''implantation des écrans'!$D44>0,'Devis d''implantation des écrans'!$D42>0),Questionnaire!$E$18=E45) -> FALSE | F46: =AND(OR(Questionnaire!$G$76="Non",Questionnaire!$G$76="No"),OR('Devis d''implantation des écrans'!$D44>0,'Devis d''implantation des écrans'!$D42>0),Questionnaire!$E$18=F45) -> FALSE | G46: =AND(OR(Questionnaire!$G$76="Non",Questionnaire!$G$76="No"),OR('Devis d''implantation des écrans'!$D44>0,'Devis d''implantation des écrans'!$D42>0),Questionnaire!$E$18=G45) -> FALSE | H46: =AND(OR(Questionnaire!$G$76="Non",Questionnaire!$G$76="No"),OR('Devis d''implantation des écrans'!$D44>0,'Devis d''implantation des écrans'!$D42>0),Questionnaire!$E$18=H45) -> FALSE | I46: =AND(OR(Questionnaire!$G$76="Non",Questionnaire!$G$76="No"),OR('Devis d''implantation des écrans'!$D44>0,'Devis d''implantation des écrans'!$D42>0),Questionnaire!$E$18=I45) -> FALSE | J46: =AND(OR(Questionnaire!$G$76="Non",Questionnaire!$G$76="No"),OR('Devis d''implantation des écrans'!$D44>0,'Devis d''implantation des écrans'!$D42>0),Questionnaire!$E$18=J45) -> FALSE | K46: =AND(OR(Questionnaire!$G$76="Non",Questionnaire!$G$76="No"),OR('Devis d''implantation des écrans'!$D44>0,'Devis d''implantation des écrans'!$D42>0),Questionnaire!$E$18=K45) -> FALSE | L46: =AND(OR(Questionnaire!$G$76="Non",Questionnaire!$G$76="No"),OR('Devis d''implantation des écrans'!$D44>0,'Devis d''implantation des écrans'!$D42>0),Questionnaire!$E$18=L45) -> FALSE | M46: =AND(OR(Questionnaire!$G$76="Non",Questionnaire!$G$76="No"),OR('Devis d''implantation des écrans'!$D44>0,'Devis d''implantation des écrans'!$D42>0),Questionnaire!$E$18=M45) -> FALSE | N46: =AND(OR(Questionnaire!$G$76="Non",Questionnaire!$G$76="No"),OR('Devis d''implantation des écrans'!$D44>0,'Devis d''implantation des écrans'!$D42>0),Questionnaire!$E$18=N45) -> FALSE | O46: =AND(OR(Questionnaire!$G$76="Non",Questionnaire!$G$76="No"),OR('Devis d''implantation des écrans'!$D44>0,'Devis d''implantation des écrans'!$D42>0),Questionnaire!$E$18=O45) -> FALSE | P46: =AND(OR(Questionnaire!$G$76="Non",Questionnaire!$G$76="No"),OR('Devis d''implantation des écrans'!$D44>0,'Devis d''implantation des écrans'!$D42>0),Questionnaire!$E$18=P45) -> FALSE | Q46: =AND(OR(Questionnaire!$G$76="Non",Questionnaire!$G$76="No"),OR('Devis d''implantation des écrans'!$D44>0,'Devis d''implantation des écrans'!$D42>0),Questionnaire!$E$18=Q45) -> FALSE | R46: =AND(OR(Questionnaire!$G$76="Non",Questionnaire!$G$76="No"),OR('Devis d''implantation des écrans'!$D44>0,'Devis d''implantation des écrans'!$D42>0),Questionnaire!$E$18=R45) -> FALSE | S46: =AND(OR(Questionnaire!$G$76="Non",Questionnaire!$G$76="No"),OR('Devis d''implantation des écrans'!$D44>0,'Devis d''implantation des écrans'!$D42>0),Questionnaire!$E$18=S45) -> FALSE | T46: =AND(OR(Questionnaire!$G$76="Non",Questionnaire!$G$76="No"),OR('Devis d''implantation des écrans'!$D44>0,'Devis d''implantation des écrans'!$D42>0),Questionnaire!$E$18=T45) -> FALSE | U46: =AND(OR(Questionnaire!$G$76="Non",Questionnaire!$G$76="No"),OR('Devis d''implantation des écrans'!$D44>0,'Devis d''implantation des écrans'!$D42>0),Questionnaire!$E$18=U45) -> FALSE | V46: =AND(OR(Questionnaire!$G$76="Non",Questionnaire!$G$76="No"),OR('Devis d''implantation des écrans'!$D44>0,'Devis d''implantation des écrans'!$D42>0),Questionnaire!$E$18=V45) -> FALSE | W46: =AND(OR(Questionnaire!$G$76="Non",Questionnaire!$G$76="No"),OR('Devis d''implantation des écrans'!$D44>0,'Devis d''implantation des écrans'!$D42>0),Questionnaire!$E$18=W45) -> FALSE | X46: =AND(OR(Questionnaire!$G$76="Non",Questionnaire!$G$76="No"),OR('Devis d''implantation des écrans'!$D44>0,'Devis d''implantation des écrans'!$D42>0),Questionnaire!$E$18=X45) -> FALSE | Y46: =AND(OR(Questionnaire!$G$76="Non",Questionnaire!$G$76="No"),OR('Devis d''implantation des écrans'!$D44>0,'Devis d''implantation des écrans'!$D42>0),Questionnaire!$E$18=Y45) -> FALSE | Z46: =AND(OR(Questionnaire!$G$76="Non",Questionnaire!$G$76="No"),OR('Devis d''implantation des écrans'!$D44>0,'Devis d''implantation des écrans'!$D42>0),Questionnaire!$E$18=Z45) -> FALSE | AA46: =AND(OR(Questionnaire!$G$76="Non",Questionnaire!$G$76="No"),OR('Devis d''implantation des écrans'!$D44>0,'Devis d''implantation des écrans'!$D42>0),Questionnaire!$E$18=AA45) -> FALSE | AB46: =AND(OR(Questionnaire!$G$76="Non",Questionnaire!$G$76="No"),OR('Devis d''implantation des écrans'!$D44>0,'Devis d''implantation des écrans'!$D42>0),Questionnaire!$E$18=AB45) -> FALSE | AC46: =AND(OR(Questionnaire!$G$76="Non",Questionnaire!$G$76="No"),OR('Devis d''implantation des écrans'!$D44>0,'Devis d''implantation des écrans'!$D42>0),Questionnaire!$E$18=AC45) -> FALSE | AD46: =AND(OR(Questionnaire!$G$76="Non",Questionnaire!$G$76="No"),OR('Devis d''implantation des écrans'!$D44>0,'Devis d''implantation des écrans'!$D42>0),Questionnaire!$E$18=AD45) -> FALSE
C47: =IF(C46=TRUE,K30,0) -> 0 | D47: =IF(D46=TRUE,K30+(1*+Questionnaire!$E$20),0) -> 0 | E47: =IF(E46=TRUE,K30+(2*+Questionnaire!$E$20),0) -> 0 | F47: =IF(F46=TRUE,K30+(3*+Questionnaire!$E$20),0) -> 0 | G47: =IF(G46=TRUE,K30+(4*+Questionnaire!$E$20),0) -> 0 | H47: =IF(H46=TRUE,K30+(5*+Questionnaire!$E$20),0) -> 0 | I47: =IF(I46=TRUE,K30+(6*+Questionnaire!$E$20),0) -> 0 | J47: =IF(J46=TRUE,K31,0) -> 0 | K47: =IF(K46=TRUE,K31+(1*Questionnaire!$E$20),0) -> 0 | L47: =IF(L46=TRUE,K31+(2*Questionnaire!$E$20),0) -> 0 | M47: =IF(M46=TRUE,K31+(3*Questionnaire!$E$20),0) -> 0 | N47: =IF(N46=TRUE,K31+(4*Questionnaire!$E$20),0) -> 0 | O47: =IF(O46=TRUE,K31+(5*Questionnaire!$E$20),0) -> 0 | P47: =IF(P46=TRUE,K31+(6*Questionnaire!$E$20),0) -> 0 | Q47: =IF(Q46=TRUE,K32,0) -> 0 | R47: =IF(R46=TRUE,K32+(1*Questionnaire!$E$20),0) -> 0 | S47: =IF(S46=TRUE,K32+(2*Questionnaire!$E$20),0) -> 0 | T47: =IF(T46=TRUE,K32+(3*Questionnaire!$E$20),0) -> 0 | U47: =IF(U46=TRUE,K32+(4*Questionnaire!$E$20),0) -> 0 | V47: =IF(V46=TRUE,K32+(5*Questionnaire!$E$20),0) -> 0 | W47: =IF(W46=TRUE,K32+(6*Questionnaire!$E$20),0) -> 0 | X47: =IF(X46=TRUE,K33,0) -> 0 | Y47: =IF(Y46=TRUE,K33+(1*Questionnaire!$E$20),0) -> 0 | Z47: =IF(Z46=TRUE,K33+(2*Questionnaire!$E$20),0) -> 0 | AA47: =IF(AA46=TRUE,K33+(3*Questionnaire!$E$20),0) -> 0 | AB47: =IF(AB46=TRUE,K33+(4*Questionnaire!$E$20),0) -> 0 | AC47: =IF(AC46=TRUE,K33+(5*Questionnaire!$E$20),0) -> 0 | AD47: =IF(AD46=TRUE,K33+(6*Questionnaire!$E$20),0) -> 0
A48: Entretenu (FNO) ou Non entretenu (ARB-SAH) | C48: =AND(OR(OR(Questionnaire!$G$76="Oui",Questionnaire!$G$76="Yes"),'Devis d''implantation des écrans'!$D45>0,'Devis d''implantation des écrans'!$D46>0),Questionnaire!$E$18=C45) -> FALSE | D48: =AND(OR(OR(Questionnaire!$G$76="Oui",Questionnaire!$G$76="Yes"),'Devis d''implantation des écrans'!$D45>0,'Devis d''implantation des écrans'!$D46>0),Questionnaire!$E$18=D45) -> FALSE | E48: =AND(OR(OR(Questionnaire!$G$76="Oui",Questionnaire!$G$76="Yes"),'Devis d''implantation des écrans'!$D45>0,'Devis d''implantation des écrans'!$D46>0),Questionnaire!$E$18=E45) -> FALSE | F48: =AND(OR(OR(Questionnaire!$G$76="Oui",Questionnaire!$G$76="Yes"),'Devis d''implantation des écrans'!$D45>0,'Devis d''implantation des écrans'!$D46>0),Questionnaire!$E$18=F45) -> FALSE | G48: =AND(OR(OR(Questionnaire!$G$76="Oui",Questionnaire!$G$76="Yes"),'Devis d''implantation des écrans'!$D45>0,'Devis d''implantation des écrans'!$D46>0),Questionnaire!$E$18=G45) -> FALSE | H48: =AND(OR(OR(Questionnaire!$G$76="Oui",Questionnaire!$G$76="Yes"),'Devis d''implantation des écrans'!$D45>0,'Devis d''implantation des écrans'!$D46>0),Questionnaire!$E$18=H45) -> FALSE | I48: =AND(OR(OR(Questionnaire!$G$76="Oui",Questionnaire!$G$76="Yes"),'Devis d''implantation des écrans'!$D45>0,'Devis d''implantation des écrans'!$D46>0),Questionnaire!$E$18=I45) -> FALSE | J48: =AND(OR(OR(Questionnaire!$G$76="Oui",Questionnaire!$G$76="Yes"),'Devis d''implantation des écrans'!$D45>0,'Devis d''implantation des écrans'!$D46>0),Questionnaire!$E$18=J45) -> FALSE | K48: =AND(OR(OR(Questionnaire!$G$76="Oui",Questionnaire!$G$76="Yes"),'Devis d''implantation des écrans'!$D45>0,'Devis d''implantation des écrans'!$D46>0),Questionnaire!$E$18=K45) -> FALSE | L48: =AND(OR(OR(Questionnaire!$G$76="Oui",Questionnaire!$G$76="Yes"),'Devis d''implantation des écrans'!$D45>0,'Devis d''implantation des écrans'!$D46>0),Questionnaire!$E$18=L45) -> FALSE | M48: =AND(OR(OR(Questionnaire!$G$76="Oui",Questionnaire!$G$76="Yes"),'Devis d''implantation des écrans'!$D45>0,'Devis d''implantation des écrans'!$D46>0),Questionnaire!$E$18=M45) -> FALSE | N48: =AND(OR(OR(Questionnaire!$G$76="Oui",Questionnaire!$G$76="Yes"),'Devis d''implantation des écrans'!$D45>0,'Devis d''implantation des écrans'!$D46>0),Questionnaire!$E$18=N45) -> FALSE | O48: =AND(OR(OR(Questionnaire!$G$76="Oui",Questionnaire!$G$76="Yes"),'Devis d''implantation des écrans'!$D45>0,'Devis d''implantation des écrans'!$D46>0),Questionnaire!$E$18=O45) -> FALSE | P48: =AND(OR(OR(Questionnaire!$G$76="Oui",Questionnaire!$G$76="Yes"),'Devis d''implantation des écrans'!$D45>0,'Devis d''implantation des écrans'!$D46>0),Questionnaire!$E$18=P45) -> FALSE | Q48: =AND(OR(OR(Questionnaire!$G$76="Oui",Questionnaire!$G$76="Yes"),'Devis d''implantation des écrans'!$D45>0,'Devis d''implantation des écrans'!$D46>0),Questionnaire!$E$18=Q45) -> FALSE | R48: =AND(OR(OR(Questionnaire!$G$76="Oui",Questionnaire!$G$76="Yes"),'Devis d''implantation des écrans'!$D45>0,'Devis d''implantation des écrans'!$D46>0),Questionnaire!$E$18=R45) -> FALSE | S48: =AND(OR(OR(Questionnaire!$G$76="Oui",Questionnaire!$G$76="Yes"),'Devis d''implantation des écrans'!$D45>0,'Devis d''implantation des écrans'!$D46>0),Questionnaire!$E$18=S45) -> FALSE | T48: =AND(OR(OR(Questionnaire!$G$76="Oui",Questionnaire!$G$76="Yes"),'Devis d''implantation des écrans'!$D45>0,'Devis d''implantation des écrans'!$D46>0),Questionnaire!$E$18=T45) -> FALSE | U48: =AND(OR(OR(Questionnaire!$G$76="Oui",Questionnaire!$G$76="Yes"),'Devis d''implantation des écrans'!$D45>0,'Devis d''implantation des écrans'!$D46>0),Questionnaire!$E$18=U45) -> FALSE | V48: =AND(OR(OR(Questionnaire!$G$76="Oui",Questionnaire!$G$76="Yes"),'Devis d''implantation des écrans'!$D45>0,'Devis d''implantation des écrans'!$D46>0),Questionnaire!$E$18=V45) -> FALSE | W48: =AND(OR(OR(Questionnaire!$G$76="Oui",Questionnaire!$G$76="Yes"),'Devis d''implantation des écrans'!$D45>0,'Devis d''implantation des écrans'!$D46>0),Questionnaire!$E$18=W45) -> FALSE | X48: =AND(OR(OR(Questionnaire!$G$76="Oui",Questionnaire!$G$76="Yes"),'Devis d''implantation des écrans'!$D45>0,'Devis d''implantation des écrans'!$D46>0),Questionnaire!$E$18=X45) -> FALSE | Y48: =AND(OR(OR(Questionnaire!$G$76="Oui",Questionnaire!$G$76="Yes"),'Devis d''implantation des écrans'!$D45>0,'Devis d''implantation des écrans'!$D46>0),Questionnaire!$E$18=Y45) -> FALSE | Z48: =AND(OR(OR(Questionnaire!$G$76="Oui",Questionnaire!$G$76="Yes"),'Devis d''implantation des écrans'!$D45>0,'Devis d''implantation des écrans'!$D46>0),Questionnaire!$E$18=Z45) -> FALSE | AA48: =AND(OR(OR(Questionnaire!$G$76="Oui",Questionnaire!$G$76="Yes"),'Devis d''implantation des écrans'!$D45>0,'Devis d''implantation des écrans'!$D46>0),Questionnaire!$E$18=AA45) -> FALSE | AB48: =AND(OR(OR(Questionnaire!$G$76="Oui",Questionnaire!$G$76="Yes"),'Devis d''implantation des écrans'!$D45>0,'Devis d''implantation des écrans'!$D46>0),Questionnaire!$E$18=AB45) -> FALSE | AC48: =AND(OR(OR(Questionnaire!$G$76="Oui",Questionnaire!$G$76="Yes"),'Devis d''implantation des écrans'!$D45>0,'Devis d''implantation des écrans'!$D46>0),Questionnaire!$E$18=AC45) -> FALSE | AD48: =AND(OR(OR(Questionnaire!$G$76="Oui",Questionnaire!$G$76="Yes"),'Devis d''implantation des écrans'!$D45>0,'Devis d''implantation des écrans'!$D46>0),Questionnaire!$E$18=AD45) -> FALSE
C49: =IF(C48=TRUE,L30,0) -> 0 | D49: =IF(D48=TRUE,L30+(1*Questionnaire!$E$20),0) -> 0 | E49: =IF(E48=TRUE,L30+(2*Questionnaire!$E$20),0) -> 0 | F49: =IF(F48=TRUE,L30+(3*Questionnaire!$E$20),0) -> 0 | G49: =IF(G48=TRUE,L30+(4*Questionnaire!$E$20),0) -> 0 | H49: =IF(H48=TRUE,L30+(5*Questionnaire!$E$20),0) -> 0 | I49: =IF(I48=TRUE,L30+(6*Questionnaire!$E$20),0) -> 0 | J49: =IF(J48,L31,0) -> 0 | K49: =IF(K48=TRUE,L31+(1*Questionnaire!$E$20),0) -> 0 | L49: =IF(L48=TRUE,L31+(2*Questionnaire!$E$20),0) -> 0 | M49: =IF(M48=TRUE,L31+(3*Questionnaire!$E$20),0) -> 0 | N49: =IF(N48=TRUE,L31+(4*Questionnaire!$E$20),0) -> 0 | O49: =IF(O48=TRUE,L31+(5*Questionnaire!$E$20),0) -> 0 | P49: =IF(P48=TRUE,L31+(6*Questionnaire!$E$20),0) -> 0 | Q49: =IF(Q48,L32,0) -> 0 | R49: =IF(R48=TRUE,L32+(1*Questionnaire!$E$20),0) -> 0 | S49: =IF(S48=TRUE,L32+(2*Questionnaire!$E$20),0) -> 0 | T49: =IF(T48=TRUE,L32+(3*Questionnaire!$E$20),0) -> 0 | U49: =IF(U48=TRUE,L32+(4*Questionnaire!$E$20),0) -> 0 | V49: =IF(V48=TRUE,L32+(5*Questionnaire!$E$20),0) -> 0 | W49: =IF(W48=TRUE,L32+(6*Questionnaire!$E$20),0) -> 0 | X49: =IF(X48,L33,0) -> 0 | Y49: =IF(Y48=TRUE,L33+(1*Questionnaire!$E$20),0) -> 0 | Z49: =IF(Z48=TRUE,L33+(2*Questionnaire!$E$20),0) -> 0 | AA49: =IF(AA48=TRUE,L33+(3*Questionnaire!$E$20),0) -> 0 | AB49: =IF(AB48=TRUE,L33+(4*Questionnaire!$E$20),0) -> 0 | AC49: =IF(AC48=TRUE,L33+(5*Questionnaire!$E$20),0) -> 0 | AD49: =IF(AD48=TRUE,L33+(6*Questionnaire!$E$20),0) -> 0
A50: Bandes riveraines | C50: =AND('Menu simulation'!$H10=TRUE,OR(C46=TRUE,C48=TRUE)) -> FALSE | D50: =AND('Menu simulation'!$H10=TRUE,OR(D46=TRUE,D48=TRUE)) -> FALSE | E50: =AND('Menu simulation'!$H10=TRUE,OR(E46=TRUE,E48=TRUE)) -> FALSE | F50: =AND('Menu simulation'!$H10=TRUE,OR(F46=TRUE,F48=TRUE)) -> FALSE | G50: =AND('Menu simulation'!$H10=TRUE,OR(G46=TRUE,G48=TRUE)) -> FALSE | H50: =AND('Menu simulation'!$H10=TRUE,OR(H46=TRUE,H48=TRUE)) -> FALSE | I50: =AND('Menu simulation'!$H10=TRUE,OR(I46=TRUE,I48=TRUE)) -> FALSE | J50: =AND('Menu simulation'!$H10=TRUE,OR(J46=TRUE,J48=TRUE)) -> FALSE | K50: =AND('Menu simulation'!$H10=TRUE,OR(K46=TRUE,K48=TRUE)) -> FALSE | L50: =AND('Menu simulation'!$H10=TRUE,OR(L46=TRUE,L48=TRUE)) -> FALSE | M50: =AND('Menu simulation'!$H10=TRUE,OR(M46=TRUE,M48=TRUE)) -> FALSE | N50: =AND('Menu simulation'!$H10=TRUE,OR(N46=TRUE,N48=TRUE)) -> FALSE | O50: =AND('Menu simulation'!$H10=TRUE,OR(O46=TRUE,O48=TRUE)) -> FALSE | P50: =AND('Menu simulation'!$H10=TRUE,OR(P46=TRUE,P48=TRUE)) -> FALSE | Q50: =AND('Menu simulation'!$H10=TRUE,OR(Q46=TRUE,Q48=TRUE)) -> FALSE | R50: =AND('Menu simulation'!$H10=TRUE,OR(R46=TRUE,R48=TRUE)) -> FALSE | S50: =AND('Menu simulation'!$H10=TRUE,OR(S46=TRUE,S48=TRUE)) -> FALSE | T50: =AND('Menu simulation'!$H10=TRUE,OR(T46=TRUE,T48=TRUE)) -> FALSE | U50: =AND('Menu simulation'!$H10=TRUE,OR(U46=TRUE,U48=TRUE)) -> FALSE | V50: =AND('Menu simulation'!$H10=TRUE,OR(V46=TRUE,V48=TRUE)) -> FALSE | W50: =AND('Menu simulation'!$H10=TRUE,OR(W46=TRUE,W48=TRUE)) -> FALSE | X50: =AND('Menu simulation'!$H10=TRUE,OR(X46=TRUE,X48=TRUE)) -> FALSE | Y50: =AND('Menu simulation'!$H10=TRUE,OR(Y46=TRUE,Y48=TRUE)) -> FALSE | Z50: =AND('Menu simulation'!$H10=TRUE,OR(Z46=TRUE,Z48=TRUE)) -> FALSE | AA50: =AND('Menu simulation'!$H10=TRUE,OR(AA46=TRUE,AA48=TRUE)) -> FALSE | AB50: =AND('Menu simulation'!$H10=TRUE,OR(AB46=TRUE,AB48=TRUE)) -> FALSE | AC50: =AND('Menu simulation'!$H10=TRUE,OR(AC46=TRUE,AC48=TRUE)) -> FALSE | AD50: =AND('Menu simulation'!$H10=TRUE,OR(AD46=TRUE,AD48=TRUE)) -> FALSE
A51: Bandes riveraines | C51: =IF(C46=TRUE,C47-$C42,IF(C48=TRUE,C49-$C42,0)) -> 0 | D51: =IF(D46=TRUE,D47-$C42,IF(D48=TRUE,D49-$C42,0)) -> 0 | E51: =IF(E46=TRUE,E47-$C42,IF(E48=TRUE,E49-$C42,0)) -> 0 | F51: =IF(F46=TRUE,F47-$C42,IF(F48=TRUE,F49-$C42,0)) -> 0 | G51: =IF(G46=TRUE,G47-$C42,IF(G48=TRUE,G49-$C42,0)) -> 0 | H51: =IF(H46=TRUE,H47-$C42,IF(H48=TRUE,H49-$C42,0)) -> 0 | I51: 0 | J51: 0 | K51: 0 | L51: 0 | M51: 0 | N51: =IF(N46=TRUE,N47-$C42,IF(N48=TRUE,N49-$C42,0)) -> 0 | O51: 0 | P51: 0 | Q51: =IF(Q46=TRUE,Q47-$C42,IF(Q48=TRUE,Q49-$C42,0)) -> 0 | R51: 0 | S51: 0 | T51: 0 | U51: =IF(U46=TRUE,U47-$C42,IF(U48=TRUE,U49-$C42,0)) -> 0 | V51: 0 | W51: 0 | X51: 0 | Y51: 0 | Z51: 0 | AA51: 0 | AB51: =IF(AB46=TRUE,AB47-$C42,IF(AB48=TRUE,AB49-$C42,0)) -> 0 | AC51: 0 | AD51: 0
A54: Longueur de la protection | D54: =Questionnaire!G81 -> 0
A56: Rotation sur combien d'années ? | D56: =IF(Questionnaire!G83=0,1,Questionnaire!G83) -> 1
G59: Année de référence | I59: Marge produits sur débours /ha
A60: Choix de rotation
A61: =Questionnaire!C$87 -> ... | G61: 1 | I61: =SUMIF(Paramètres!F$48:G$72,A$61:A$80,Paramètres!H$48:I$72) -> 0
A62: =Questionnaire!C$88 -> ... | G62: 2 | I62: =SUMIF(Paramètres!F$48:G$72,A$61:A$80,Paramètres!H$48:I$72) -> 0
A63: =Questionnaire!C$89 -> ... | G63: 3 | I63: =SUMIF(Paramètres!F$48:G$72,A$61:A$80,Paramètres!H$48:I$72) -> 0
A64: =Questionnaire!E$87 -> ... | G64: 4 | I64: =SUMIF(Paramètres!F$48:G$72,A$61:A$80,Paramètres!H$48:I$72) -> 0
A65: =Questionnaire!E$88 -> ... | G65: 5 | I65: =SUMIF(Paramètres!F$48:G$72,A$61:A$80,Paramètres!H$48:I$72) -> 0
A66: =Questionnaire!E$89 -> ... | G66: 6 | I66: =SUMIF(Paramètres!F$48:G$72,A$61:A$80,Paramètres!H$48:I$72) -> 0
A67: =Questionnaire!G$87 -> ... | G67: 7 | I67: =SUMIF(Paramètres!F$48:G$72,A$61:A$80,Paramètres!H$48:I$72) -> 0
A68: =Questionnaire!G$88 -> ... | G68: 8 | I68: =SUMIF(Paramètres!F$48:G$72,A$61:A$80,Paramètres!H$48:I$72) -> 0
A69: =Questionnaire!G$89 -> ... | G69: 9 | I69: =SUMIF(Paramètres!F$48:G$72,A$61:A$80,Paramètres!H$48:I$72) -> 0
A70: =Questionnaire!I$87 -> ... | G70: 10 | I70: =SUMIF(Paramètres!F$48:G$72,A$61:A$80,Paramètres!H$48:I$72) -> 0
A71: =Questionnaire!I$88 -> ... | G71: 11 | I71: =SUMIF(Paramètres!F$48:G$72,A$61:A$80,Paramètres!H$48:I$72) -> 0
A72: =Questionnaire!I$89 -> ... | G72: 12 | I72: =SUMIF(Paramètres!F$48:G$72,A$61:A$80,Paramètres!H$48:I$72) -> 0
A73: =Questionnaire!K$87 -> ... | G73: 13 | I73: =SUMIF(Paramètres!F$48:G$72,A$61:A$80,Paramètres!H$48:I$72) -> 0
A74: =Questionnaire!K$88 -> ... | G74: 14 | I74: =SUMIF(Paramètres!F$48:G$72,A$61:A$80,Paramètres!H$48:I$72) -> 0
A75: =Questionnaire!K$89 -> ... | G75: 15 | I75: =SUMIF(Paramètres!F$48:G$72,A$61:A$80,Paramètres!H$48:I$72) -> 0
A76: =Questionnaire!M$87 -> ... | G76: 16 | I76: =SUMIF(Paramètres!F$48:G$72,A$61:A$80,Paramètres!H$48:I$72) -> 0
A77: =Questionnaire!M$88 -> ... | G77: 17 | I77: =SUMIF(Paramètres!F$48:G$72,A$61:A$80,Paramètres!H$48:I$72) -> 0
A78: =Questionnaire!M$89 -> ... | G78: 18 | I78: =SUMIF(Paramètres!F$48:G$72,A$61:A$80,Paramètres!H$48:I$72) -> 0
A79: =Questionnaire!O$87 -> ... | G79: 19 | I79: =SUMIF(Paramètres!F$48:G$72,A$61:A$80,Paramètres!H$48:I$72) -> 0
A80: =Questionnaire!O$88 -> ... | G80: 20 | I80: =SUMIF(Paramètres!F$48:G$72,A$61:A$80,Paramètres!H$48:I$72) -> 0
G81: Marge moyenne des produits sur débours /ha | I81: =(SUM(I61:J80))/D56 -> 0
A84: Calcul de l'espace perdu
A86: Identification des haies | C86: Largeur en m à 5 ans | E86: Largeur en m à 10 ans | G86: Largeur en m à 20 ans | I86: Largeur en m à 40ans
A88: A | C88: =IF('Menu simulation'!$H$10=TRUE,SUM(C51:I51),SUM(C47:I47,C49:I49)) -> 0 | E88: =IF('Menu simulation'!$H$10=TRUE,SUM(J51:P51),SUM(J47:P47,J49:P49)) -> 0 | G88: =IF('Menu simulation'!$H$10=TRUE,SUM(Q51:W51),SUM(Q47:W47,Q49:W49)) -> 0 | I88: =IF('Menu simulation'!$H$10=TRUE,SUM(X51:AD51),SUM(X47:AD47,X49:AD49)) -> 0
A93: Identification des haies | C93: Surface perdue à 5 ans (ha) | E93: Surface perdue à 10 ans (ha) | G93: Surface perdue à 20 ans (ha) | I93: Surface perdue à 40 ans (ha)
A95: A | C95: =$D$54*C88/10000 -> 0 | E95: =$D$54*E88/10000 -> 0 | G95: =$D$54*G88/10000 -> 0 | I95: =$D$54*I88/10000 -> 0
A100: Calcul des revenus perdus
A102: Identification des haies | C102: Revenus perdus de 0 à 5 ans | E102: Revenus perdus de 5 à 10 ans | G102: Revenus perdus de 10 à 20 ans | I102: Revenus perdus de 20 à 40 ans
A104: A | C104: =C95*$I$81*5 -> 0 | E104: =E95*$I$81*5 -> 0 | G104: =G95*$I$81*10 -> 0 | I104: =I95*$I$81*20 -> 0
A108: Total | C108: =SUM(C104:D107) -> 0 | E108: =SUM(E104:F107) -> 0 | G108: =SUM(G104:H107) -> 0 | I108: =SUM(I104:J107) -> 0
A111: Détériorations | E111: Marge actualisée | G111: Marge actualisée accumulée
A113: total cumulatif à l'an
A114: 1 | B114: =-1*$B$18/5 -> 0 | E114: =B114/POWER(1+Paramètres!$AF$14,A114) -> 0
A115: 2 | B115: =-1*$B$18/5 -> 0 | E115: =B115/POWER(1+Paramètres!$AF$14,A115) -> 0
A116: 3 | B116: =-1*$B$18/5 -> 0 | E116: =B116/POWER(1+Paramètres!$AF$14,A116) -> 0
A117: 4 | B117: =-1*$B$18/5 -> 0 | E117: =B117/POWER(1+Paramètres!$AF$14,A117) -> 0
A118: 5 | B118: =-1*$B$18/5 -> 0 | C118: =SUM(B114:B118) -> 0 | E118: =B118/POWER(1+Paramètres!$AF$14,A118) -> 0 | F118: =SUM(E114:E118) -> 0
A119: 6 | B119: =-1*$D$18/5 -> 0 | E119: =B119/POWER(1+Paramètres!$AF$14,A119) -> 0
A120: 7 | B120: =-1*$D$18/5 -> 0 | E120: =B120/POWER(1+Paramètres!$AF$14,A120) -> 0
A121: 8 | B121: =-1*$D$18/5 -> 0 | E121: =B121/POWER(1+Paramètres!$AF$14,A121) -> 0
A122: 9 | B122: =-1*$D$18/5 -> 0 | E122: =B122/POWER(1+Paramètres!$AF$14,A122) -> 0
A123: 10 | B123: =-1*$D$18/5 -> 0 | C123: =SUM(B119:B123) -> 0 | E123: =B123/POWER(1+Paramètres!$AF$14,A123) -> 0 | F123: =SUM(E119:E123) -> 0 | G123: =SUM(E114:E123) -> 0
A124: 11 | B124: =-1*$F$18/10 -> 0 | E124: =B124/POWER(1+Paramètres!$AF$14,A124) -> 0
A125: 12 | B125: =-1*$F$18/10 -> 0 | E125: =B125/POWER(1+Paramètres!$AF$14,A125) -> 0
A126: 13 | B126: 0 | E126: =B126/POWER(1+Paramètres!$AF$14,A126) -> 0
A127: 14 | B127: 0 | E127: =B127/POWER(1+Paramètres!$AF$14,A127) -> 0
A128: 15 | B128: 0 | E128: =B128/POWER(1+Paramètres!$AF$14,A128) -> 0
A129: 16 | B129: 0 | E129: =B129/POWER(1+Paramètres!$AF$14,A129) -> 0
A130: 17 | B130: 0 | E130: =B130/POWER(1+Paramètres!$AF$14,A130) -> 0
A131: 18 | B131: 0 | E131: =B131/POWER(1+Paramètres!$AF$14,A131) -> 0
A132: 19 | B132: 0 | E132: =B132/POWER(1+Paramètres!$AF$14,A132) -> 0
A133: 20 | B133: 0 | C133: =SUM(B124:B133) -> 0 | E133: =B133/POWER(1+Paramètres!$AF$14,A133) -> 0 | F133: =SUM(E124:E133) -> 0 | G133: =SUM(E114:E133) -> 0
A134: 21 | B134: =-1*$H$18/20 -> 0 | E134: =B134/POWER(1+Paramètres!$AF$14,A134) -> 0
A135: 22 | B135: =-1*$H$18/20 -> 0 | E135: =B135/POWER(1+Paramètres!$AF$14,A135) -> 0
A136: 23 | B136: 0 | E136: =B136/POWER(1+Paramètres!$AF$14,A136) -> 0
A137: 24 | B137: 0 | E137: =B137/POWER(1+Paramètres!$AF$14,A137) -> 0
A138: 25 | B138: 0 | E138: =B138/POWER(1+Paramètres!$AF$14,A138) -> 0
A139: 26 | B139: 0 | E139: =B139/POWER(1+Paramètres!$AF$14,A139) -> 0
A140: 27 | B140: 0 | E140: =B140/POWER(1+Paramètres!$AF$14,A140) -> 0
A141: 28 | B141: 0 | E141: =B141/POWER(1+Paramètres!$AF$14,A141) -> 0
A142: 29 | B142: 0 | E142: =B142/POWER(1+Paramètres!$AF$14,A142) -> 0
A143: 30 | B143: 0 | E143: =B143/POWER(1+Paramètres!$AF$14,A143) -> 0
A144: 31 | B144: 0 | E144: =B144/POWER(1+Paramètres!$AF$14,A144) -> 0
A145: 32 | B145: 0 | E145: =B145/POWER(1+Paramètres!$AF$14,A145) -> 0
A146: 33 | B146: 0 | E146: =B146/POWER(1+Paramètres!$AF$14,A146) -> 0
A147: 34 | B147: 0 | E147: =B147/POWER(1+Paramètres!$AF$14,A147) -> 0
A148: 35 | B148: 0 | E148: =B148/POWER(1+Paramètres!$AF$14,A148) -> 0
A149: 36 | B149: 0 | E149: =B149/POWER(1+Paramètres!$AF$14,A149) -> 0
A150: 37 | B150: 0 | E150: =B150/POWER(1+Paramètres!$AF$14,A150) -> 0
A151: 38 | B151: 0 | E151: =B151/POWER(1+Paramètres!$AF$14,A151) -> 0
A152: 39 | B152: 0 | E152: =B152/POWER(1+Paramètres!$AF$14,A152) -> 0
A153: 40 | B153: 0 | C153: =SUM(B134:B153) -> 0 | E153: =B153/POWER(1+Paramètres!$AF$14,A153) -> 0 | F153: =SUM(E134:E153) -> 0 | G153: =SUM(E114:E153) -> 0

Sheet Entretien des écrans boisés
B4: Période | C4: Améliorations | E4: Détériorations | G4: Marge | H4: Marge actualisée | I4: Marge actualisée accumulée
B7: 0-5 ans | C7: 0 | E7: =C104 -> -90 | G7: =C7+E7 -> -90 | H7: =F104 -> -75.82254814 | I7: =F104 -> -75.82254814
B9: 5-10 ans | C9: 0 | E9: =C109 -> 0 | G9: =C9+E9 -> 0 | H9: =F109 -> 0 | I9: =G109 -> -75.82254814
B11: 10-20 ans | C11: 0 | E11: =C119 -> 0 | G11: =C11+E11 -> 0 | H11: =F119 -> 0 | I11: =G119 -> -75.82254814
B13: 20-40 ans | C13: 0 | E13: =C139 -> 0 | G13: =C13+E13 -> 0 | H13: =F139 -> 0 | I13: =G139 -> -75.82254814
B16: Coûts liés à l'entretien de 0 à 5 ans | D16: Coûts liés à l'entretien de 5 à 10 ans | F16: Coûts liés à l'entretien de 10 à 20 ans | H16: Coûts liés à l'entretien de 20 à 40 ans
B18: =(F22+F24+(IF(F41="Oui",F26,0))+(IF(F43="Oui",V35,0))+(IF(F45="Oui",W35,0)))*(1-Questionnaire!G68) -> 90 | D18: =(IF(F41="Oui",H41,0))+(IF(F43="Oui",V36,0)+(IF(F45="Oui",W36,0)))*(1-Questionnaire!G68) -> 0 | F18: =(IF(F43="Oui",V37,0)+IF(F45="Oui",W37,0))*(1-Questionnaire!G68) -> 0 | H18: =(IF(F43="Oui",V38,0)+IF(F45="Oui",W38,0))*(1-Questionnaire!G68) -> 0
F20: Coûts total sur 40 ans | H20: Critères retenus pour fin de calcul
A22: Remplacement des arbres morts la première année | F22: =IF(F37=$A$49,H37,0) -> 300
A24: Fauchage et inspection phytosanitaire les 5 premières années | F24: =IF(F39=$A$49,H39,0) -> 0 | P24: Croissance
P25: Année | Q25: PEH (m) | S25: FNO (m)
A26: Protection contre les rongeurs les 5 premières années | F26: =IF(F41=$A$49,H41,0) -> 0 | L26: La protection contre les rongeurs été retunue pour le scénarion conservateur seulement | O26: Hauteur à la plantation | P26: 1 | Q26: 1 | S26: 0.5
P27: 2 | Q27: =MIN('Amélioration de rendement'!M$35+Q26,Paramètres!I$100) -> 2 | R27: =IF(Q27<=5,"t","e") -> t | S27: =MIN('Amélioration de rendement'!M$36+S26,Paramètres!I$101) -> 1 | T27: t
A28: Taille de formation | F28: =IF(F43=$A$49,H43,0) -> 0 | P28: 3 | Q28: =MIN('Amélioration de rendement'!M$35+Q27,Paramètres!I$100) -> 3 | S28: =MIN('Amélioration de rendement'!M$36+S27,Paramètres!I$101) -> 1.5
P29: 4 | Q29: =MIN('Amélioration de rendement'!M$35+Q28,Paramètres!I$100) -> 4 | S29: =MIN('Amélioration de rendement'!M$36+S28,Paramètres!I$101) -> 2 | U29: Taille (m) | V29: Élagage PEH | W29: Élagage FNO
A30: Recépage des arbustes | F30: =IF($F$45=$A$49,H45,0) -> 0 | P30: 5 | Q30: =MIN('Amélioration de rendement'!M$35+Q29,Paramètres!I$100) -> 5 | R30: te | S30: =MIN('Amélioration de rendement'!M$36+S29,Paramètres!I$101) -> 2.5 | T30: t | U30: 5 | V30: =Paramètres!I100-0.1 -> 24.9 | W30: =Paramètres!I101-0.1 -> 14.9
P31: 6 | Q31: =MIN('Amélioration de rendement'!M$35+Q30,Paramètres!I$100) -> 6 | S31: =MIN('Amélioration de rendement'!M$36+S30,Paramètres!I$101) -> 3 | U31: 1.5 | V31: 5 | W31: 5
A32: Longueur totale des haies : | C32: =SUM('Devis d''implantation des écrans'!F6:Q6) -> 0 | D32: m | M32: Coûts recépage mécanisé saule ($/km) | N32: 200 | P32: 7 | Q32: =MIN('Amélioration de rendement'!M$35+Q31,Paramètres!I$100) -> 7 | S32: =MIN('Amélioration de rendement'!M$36+S31,Paramètres!I$101) -> 3.5 | U32: 0
A33: Nombre d'arbres total : | C33: ='Devis d''implantation des écrans'!D47 -> 0 | D33: arbres | M33: Coûts recépage mécanisé saule ($/m) | N33: =N32/1000 -> 0.2 | P33: 8 | Q33: =MIN('Amélioration de rendement'!M$35+Q32,Paramètres!I$100) -> 8 | S33: =MIN('Amélioration de rendement'!M$36+S32,Paramètres!I$101) -> 4
M34: Coûts recépage mécanisé arbustes ($/arbuste) | N34: 3 | P34: 9 | Q34: =MIN('Amélioration de rendement'!M$35+Q33,Paramètres!I$100) -> 9 | S34: =MIN('Amélioration de rendement'!M$36+S33,Paramètres!I$101) -> 4.5 | V34: Taille et élagage | W34: Recépage
P35: 10 | Q35: =MIN('Amélioration de rendement'!M$35+Q34,Paramètres!I$100) -> 10 | R35: e | S35: =MIN('Amélioration de rendement'!M$36+S34,Paramètres!I$101) -> 5 | T35: te | U35: 0-5 ans | V35: =(N51*1)+(N52*2)+(N53*1)+((('Devis d''implantation des écrans'!B$72*2/80*Paramètres!I$29)+('Devis d''implantation des écrans'!B$72*2*Paramètres!I$30))*(IF(AND('Devis d''implantation des écrans'!D44=0,'Devis d''implantation des écrans'!D43=0),0,2))) -> 0 | W35: =IF(AND('Devis d''implantation des écrans'!D46>0,SUM('Devis d''implantation des écrans'!D42:D45)=0),'Entretien des écrans boisés'!N33*Questionnaire!E16,0) -> 0
F36: Choix | H36: Coût | P36: 11 | Q36: =MIN('Amélioration de rendement'!M$35+Q35,Paramètres!I$100) -> 11 | S36: =MIN('Amélioration de rendement'!M$36+S35,Paramètres!I$101) -> 5.5 | U36: 5-10 ans | V36: =(N52*1)+(N54*1)+(N55*1)+((('Devis d''implantation des écrans'!B$72*2/80*Paramètres!I$29)+('Devis d''implantation des écrans'!B$72*2*Paramètres!I$30))*(IF(AND('Devis d''implantation des écrans'!D44=0,'Devis d''implantation des écrans'!D43=0),0,3))) -> 0 | W36: =IF(AND('Devis d''implantation des écrans'!D46>0,SUM('Devis d''implantation des écrans'!D42:D45)=0),'Entretien des écrans boisés'!N33*Questionnaire!E16,0)+IF('Devis d''implantation des écrans'!D45>0,SUM('Devis d''implantation des écrans'!D45:D46,0)*N34) -> 0
A37: Remplacement des arbres morts la deuxème année | F37: =IF(OR(Questionnaire!G70="Yes",Questionnaire!G70="Oui"),"Oui","Non") -> Oui | H37: =(('Devis d''implantation des écrans'!P48+(('Devis d''implantation des écrans'!L65+'Devis d''implantation des écrans'!L66)*2))*Paramètres!I36)+300 -> 300 | P37: 12 | Q37: =MIN('Amélioration de rendement'!M$35+Q36,Paramètres!I$100) -> 12 | S37: =MIN('Amélioration de rendement'!M$36+S36,Paramètres!I$101) -> 6 | U37: 10-20 ans | V37: =(N55*1)+(N56*2)+((('Devis d''implantation des écrans'!B$72*2/80*Paramètres!I$29)+('Devis d''implantation des écrans'!B$72*2*Paramètres!I$30))*(IF(AND('Devis d''implantation des écrans'!D44=0,'Devis d''implantation des écrans'!D43=0),0,5))) -> 0 | W37: =(IF(AND('Devis d''implantation des écrans'!D46>0,SUM('Devis d''implantation des écrans'!D42:D45)=0),'Entretien des écrans boisés'!N33*Questionnaire!E16,0)*4)+(IF('Devis d''implantation des écrans'!D45>0,SUM('Devis d''implantation des écrans'!D45:D46,0)*N34)*2) -> 0
P38: 13 | Q38: =MIN('Amélioration de rendement'!M$35+Q37,Paramètres!I$100) -> 13 | S38: =MIN('Amélioration de rendement'!M$36+S37,Paramètres!I$101) -> 6.5 | U38: 20-40 ans | V38: =(N56*2)+((('Devis d''implantation des écrans'!B$72*2/80*Paramètres!I$29)+('Devis d''implantation des écrans'!B$72*2*Paramètres!I$30))*(IF(AND('Devis d''implantation des écrans'!D44=0,'Devis d''implantation des écrans'!D43=0),0,(IF('Devis d''implantation des écrans'!D44>0,5,2))))) -> 0 | W38: =(IF(AND('Devis d''implantation des écrans'!D46>0,SUM('Devis d''implantation des écrans'!D42:D45)=0),'Entretien des écrans boisés'!N33*Questionnaire!E16,0)*8)+(IF('Devis d''implantation des écrans'!D45>0,SUM('Devis d''implantation des écrans'!D45:D46,0)*N34)*4) -> 0
A39: Fauchage et inspection phytosanitaire les 5 premières années | F39: =IF(OR(Questionnaire!G72="Yes",Questionnaire!G72="Oui"),"Oui","Non") -> Oui | H39: =('Devis d''implantation des écrans'!P3*2/1000/1*Paramètres!I37)*Paramètres!I39*5 -> 0 | P39: 14 | Q39: =MIN('Amélioration de rendement'!M$35+Q38,Paramètres!I$100) -> 14 | S39: =MIN('Amélioration de rendement'!M$36+S38,Paramètres!I$101) -> 7 | V39: =SUM(V35:V38) -> 0
I40: matériel | J40: retrait | N40: Temps de pose protection (min/arbre) | P40: 15 | Q40: =MIN('Amélioration de rendement'!M$35+Q39,Paramètres!I$100) -> 15 | R40: e | S40: =MIN('Amélioration de rendement'!M$36+S39,Paramètres!I$101) -> 7.5 | T40: e
A41: Protection contre les rongeurs les 5 premières années | F41: =IF(OR(Questionnaire!H62="Yes",Questionnaire!H62="Oui"),"Oui","Non") -> Non | H41: =IF(AND(OR(Questionnaire!$H$62="Oui",Questionnaire!$H$62="Yes"),Questionnaire!$H$64=TRUE),J41,0)+IF(AND(OR(Questionnaire!$H$62="Oui",Questionnaire!$H$62="Yes"),Questionnaire!$F$64=TRUE),J42,0) -> 0 | I41: ='Devis d''implantation des écrans'!L58 -> 0 | J41: ='Devis d''implantation des écrans'!L69 -> 0 | K41: Rongeurs seulement avec spirales | M41: Spirales | N41: 3.5 | P41: 16 | Q41: =MIN('Amélioration de rendement'!M$35+Q40,Paramètres!I$100) -> 16 | S41: =MIN('Amélioration de rendement'!M$36+S40,Paramètres!I$101) -> 8
I42: ='Devis d''implantation des écrans'!L59+'Devis d''implantation des écrans'!L58 -> 0 | J42: ='Devis d''implantation des écrans'!L70+'Devis d''implantation des écrans'!L69 -> 0 | K42: Chevreuils et rongeurs avec tubes (Climanet) | M42: Climanet | N42: 7 | P42: 17 | Q42: =MIN('Amélioration de rendement'!M$35+Q41,Paramètres!I$100) -> 17 | S42: =MIN('Amélioration de rendement'!M$36+S41,Paramètres!I$101) -> 8.5
A43: Taille de formation et élagage | F43: =IF(OR(Questionnaire!G74="Yes",Questionnaire!G74="Oui"),"Oui","Non") -> Oui | H43: =SUM(V35:V38) -> 0 | P43: 18 | Q43: =MIN('Amélioration de rendement'!M$35+Q42,Paramètres!I$100) -> 18 | S43: =MIN('Amélioration de rendement'!M$36+S42,Paramètres!I$101) -> 9
P44: 19 | Q44: =MIN('Amélioration de rendement'!M$35+Q43,Paramètres!I$100) -> 19 | S44: =MIN('Amélioration de rendement'!M$36+S43,Paramètres!I$101) -> 9.5 | U44: À régler si on modifie la croissance annuelle
A45: Recépage des arbustes | F45: =IF(OR(Questionnaire!G76="Yes",Questionnaire!G76="Oui"),"Oui","Non") -> Oui | H45: =SUM(W35:W38) -> 0 | N45: Temps de taille de formation (min./arbre) | P45: 20 | Q45: =MIN('Amélioration de rendement'!M$35+Q44,Paramètres!I$100) -> 20 | S45: =MIN('Amélioration de rendement'!M$36+S44,Paramètres!I$101) -> 10 | T45: =IF(S45<=5,"t","e") -> e
M46: 1 à 3 m | N46: 0.66 | P46: 21 | Q46: =IF(Questionnaire!C$111=TRUE,0,MIN('Amélioration de rendement'!M$35+Q45,Paramètres!I$100)) -> 21 | S46: =MIN('Amélioration de rendement'!M$36+S45,Paramètres!I$101) -> 10.5
M47: 3 à 5 m | N47: 1.25 | P47: 22 | Q47: =IF(Questionnaire!C$111=TRUE,0,MIN('Amélioration de rendement'!M$35+Q46,Paramètres!I$100)) -> 22 | S47: =MIN('Amélioration de rendement'!M$36+S46,Paramètres!I$101) -> 11
A48: Choix | M48: 5 m et plus | N48: 1.25 | P48: 23 | Q48: =IF(Questionnaire!C$111=TRUE,0,MIN('Amélioration de rendement'!M$35+Q47,Paramètres!I$100)) -> 23 | S48: =MIN('Amélioration de rendement'!M$36+S47,Paramètres!I$101) -> 11.5
A49: Oui | P49: 24 | Q49: =IF(Questionnaire!C$111=TRUE,0,MIN('Amélioration de rendement'!M$35+Q48,Paramètres!I$100)) -> 24 | S49: =MIN('Amélioration de rendement'!M$36+S48,Paramètres!I$101) -> 12
A50: Non | M50: Taille détails | N50: Coût de taille/visite (sans frais de déplacement) | O50: Nombre de visites | P50: 25 | Q50: =IF(Questionnaire!C$111=TRUE,0,MIN('Amélioration de rendement'!M$35+Q49,Paramètres!I$100)) -> 25 | S50: =MIN('Amélioration de rendement'!M$36+S49,Paramètres!I$101) -> 12.5 | T50: e
M51: PEH 1 à 3 m | N51: =('Devis d''implantation des écrans'!D$43*N46/60)*Paramètres!I$38 -> 0 | O51: 1 | P51: 26 | Q51: =IF(Questionnaire!C$111=TRUE,0,MIN('Amélioration de rendement'!M$35+Q50,Paramètres!I$100)) -> 25 | S51: =MIN('Amélioration de rendement'!M$36+S50,Paramètres!I$101) -> 13
M52: FNO 1 à 3 m | N52: ='Devis d''implantation des écrans'!D$44*N46/60*Paramètres!I$38 -> 0 | O52: 2 | P52: 27 | Q52: =IF(Questionnaire!C$111=TRUE,0,MIN('Amélioration de rendement'!M$35+Q51,Paramètres!I$100)) -> 25 | S52: =MIN('Amélioration de rendement'!M$36+S51,Paramètres!I$101) -> 13.5
M53: PEH 3 à 5 m | N53: ='Devis d''implantation des écrans'!D$43*N47/60*Paramètres!I$38 -> 0 | O53: 1 | P53: 28 | Q53: =IF(Questionnaire!C$111=TRUE,0,MIN('Amélioration de rendement'!M$35+Q52,Paramètres!I$100)) -> 25 | S53: =MIN('Amélioration de rendement'!M$36+S52,Paramètres!I$101) -> 14
M54: FNO 3 à 5 m | N54: ='Devis d''implantation des écrans'!D$44*N47/60*Paramètres!I$38 -> 0 | O54: 1 | P54: 29 | Q54: =IF(Questionnaire!C$111=TRUE,0,MIN('Amélioration de rendement'!M$35+Q53,Paramètres!I$100)) -> 25 | S54: =MIN('Amélioration de rendement'!M$36+S53,Paramètres!I$101) -> 14.5
M55: Élagage PEH 5 m et plus | N55: ='Devis d''implantation des écrans'!D$43*N48/60*Paramètres!I$38 -> 0 | O55: 3 | P55: 30 | Q55: =IF(Questionnaire!C$111=TRUE,0,MIN('Amélioration de rendement'!M$35+Q54,Paramètres!I$100)) -> 25 | S55: =MIN('Amélioration de rendement'!M$36+S54,Paramètres!I$101) -> 15 | T55: =IF(S55<=5,"t","e") -> e
M56: Élagage FNO 5 m et plus | N56: ='Devis d''implantation des écrans'!D$44*N48/60*Paramètres!I$38 -> 0 | O56: 5 | P56: 31 | Q56: =IF(Questionnaire!C$111=TRUE,0,MIN('Amélioration de rendement'!M$35+Q55,Paramètres!I$100)) -> 25 | S56: =MIN('Amélioration de rendement'!M$36+S55,Paramètres!I$101) -> 15
P57: 32 | Q57: =IF(Questionnaire!C$111=TRUE,0,MIN('Amélioration de rendement'!M$35+Q56,Paramètres!I$100)) -> 25 | S57: =MIN('Amélioration de rendement'!M$36+S56,Paramètres!I$101) -> 15
P58: 33 | Q58: =IF(Questionnaire!C$111=TRUE,0,MIN('Amélioration de rendement'!M$35+Q57,Paramètres!I$100)) -> 25 | S58: =MIN('Amélioration de rendement'!M$36+S57,Paramètres!I$101) -> 15
P59: 34 | Q59: =IF(Questionnaire!C$111=TRUE,0,MIN('Amélioration de rendement'!M$35+Q58,Paramètres!I$100)) -> 25 | S59: =MIN('Amélioration de rendement'!M$36+S58,Paramètres!I$101) -> 15
P60: 35 | Q60: =IF(Questionnaire!C$111=TRUE,0,MIN('Amélioration de rendement'!M$35+Q59,Paramètres!I$100)) -> 25 | S60: =MIN('Amélioration de rendement'!M$36+S59,Paramètres!I$101) -> 15
P61: 36 | Q61: =IF(Questionnaire!C$111=TRUE,0,MIN('Amélioration de rendement'!M$35+Q60,Paramètres!I$100)) -> 25 | S61: =MIN('Amélioration de rendement'!M$36+S60,Paramètres!I$101) -> 15
P62: 37 | Q62: =IF(Questionnaire!C$111=TRUE,0,MIN('Amélioration de rendement'!M$35+Q61,Paramètres!I$100)) -> 25 | S62: =MIN('Amélioration de rendement'!M$36+S61,Paramètres!I$101) -> 15
P63: 38 | Q63: =IF(Questionnaire!C$111=TRUE,0,MIN('Amélioration de rendement'!M$35+Q62,Paramètres!I$100)) -> 25 | S63: =MIN('Amélioration de rendement'!M$36+S62,Paramètres!I$101) -> 15
P64: 39 | Q64: =IF(Questionnaire!C$111=TRUE,0,MIN('Amélioration de rendement'!M$35+Q63,Paramètres!I$100)) -> 25 | S64: =MIN('Amélioration de rendement'!M$36+S63,Paramètres!I$101) -> 15
P65: 40 | Q65: =IF(Questionnaire!C$111=TRUE,0,MIN('Amélioration de rendement'!M$35+Q64,Paramètres!I$100)) -> 25 | S65: =MIN('Amélioration de rendement'!M$36+S64,Paramètres!I$101) -> 15
A97: Détériorations | E97: Marge actualisée | G97: Marge actualisée accumulée
A99: total cumulatif à l'an
A100: 1 | B100: =-1*$B$18/5 -> -18 | E100: =B100/POWER(1+Paramètres!$AF$14,A100) -> -16.98113208
A101: 2 | B101: =-1*$B$18/5 -> -18 | E101: =B101/POWER(1+Paramètres!$AF$14,A101) -> -16.01993592
A102: 3 | B102: =-1*$B$18/5 -> -18 | E102: =B102/POWER(1+Paramètres!$AF$14,A102) -> -15.11314709
A103: 4 | B103: =-1*$B$18/5 -> -18 | E103: =B103/POWER(1+Paramètres!$AF$14,A103) -> -14.25768594
A104: 5 | B104: =-1*$B$18/5 -> -18 | C104: =SUM(B100:B104) -> -90 | E104: =B104/POWER(1+Paramètres!$AF$14,A104) -> -13.45064711 | F104: =SUM(E100:E104) -> -75.82254814
A105: 6 | B105: =-1*$D$18/5 -> 0 | E105: =B105/POWER(1+Paramètres!$AF$14,A105) -> 0
A106: 7 | B106: =-1*$D$18/5 -> 0 | E106: =B106/POWER(1+Paramètres!$AF$14,A106) -> 0
A107: 8 | B107: =-1*$D$18/5 -> 0 | E107: =B107/POWER(1+Paramètres!$AF$14,A107) -> 0
A108: 9 | B108: =-1*$D$18/5 -> 0 | E108: =B108/POWER(1+Paramètres!$AF$14,A108) -> 0
A109: 10 | B109: =-1*$D$18/5 -> 0 | C109: =SUM(B105:B109) -> 0 | E109: =B109/POWER(1+Paramètres!$AF$14,A109) -> 0 | F109: =SUM(E105:E109) -> 0 | G109: =SUM(E100:E109) -> -75.82254814
A110: 11 | B110: =-1*$F$18/10 -> 0 | E110: =B110/POWER(1+Paramètres!$AF$14,A110) -> 0
A111: 12 | B111: =-1*$F$18/10 -> 0 | E111: =B111/POWER(1+Paramètres!$AF$14,A111) -> 0
A112: 13 | B112: 0 | E112: =B112/POWER(1+Paramètres!$AF$14,A112) -> 0
A113: 14 | B113: 0 | E113: =B113/POWER(1+Paramètres!$AF$14,A113) -> 0
A114: 15 | B114: 0 | E114: =B114/POWER(1+Paramètres!$AF$14,A114) -> 0
A115: 16 | B115: 0 | E115: =B115/POWER(1+Paramètres!$AF$14,A115) -> 0
A116: 17 | B116: 0 | E116: =B116/POWER(1+Paramètres!$AF$14,A116) -> 0
A117: 18 | B117: 0 | E117: =B117/POWER(1+Paramètres!$AF$14,A117) -> 0
A118: 19 | B118: 0 | E118: =B118/POWER(1+Paramètres!$AF$14,A118) -> 0
A119: 20 | B119: 0 | C119: =SUM(B110:B119) -> 0 | E119: =B119/POWER(1+Paramètres!$AF$14,A119) -> 0 | F119: =SUM(E110:E119) -> 0 | G119: =SUM(E100:E119) -> -75.82254814
A120: 21 | B120: =-1*$H$18/10 -> 0 | E120: =B120/POWER(1+Paramètres!$AF$14,A120) -> 0
A121: 22 | B121: =-1*$H$18/10 -> 0 | E121: =B121/POWER(1+Paramètres!$AF$14,A121) -> 0
A122: 23 | B122: 0 | E122: =B122/POWER(1+Paramètres!$AF$14,A122) -> 0
A123: 24 | B123: 0 | E123: =B123/POWER(1+Paramètres!$AF$14,A123) -> 0
A124: 25 | B124: 0 | E124: =B124/POWER(1+Paramètres!$AF$14,A124) -> 0
A125: 26 | B125: 0 | E125: =B125/POWER(1+Paramètres!$AF$14,A125) -> 0
A126: 27 | B126: 0 | E126: =B126/POWER(1+Paramètres!$AF$14,A126) -> 0
A127: 28 | B127: 0 | E127: =B127/POWER(1+Paramètres!$AF$14,A127) -> 0
A128: 29 | B128: 0 | E128: =B128/POWER(1+Paramètres!$AF$14,A128) -> 0
A129: 30 | B129: 0 | E129: =B129/POWER(1+Paramètres!$AF$14,A129) -> 0
A130: 31 | B130: 0 | E130: =B130/POWER(1+Paramètres!$AF$14,A130) -> 0
A131: 32 | B131: 0 | E131: =B131/POWER(1+Paramètres!$AF$14,A131) -> 0
A132: 33 | B132: 0 | E132: =B132/POWER(1+Paramètres!$AF$14,A132) -> 0
A133: 34 | B133: 0 | E133: =B133/POWER(1+Paramètres!$AF$14,A133) -> 0
A134: 35 | B134: 0 | E134: =B134/POWER(1+Paramètres!$AF$14,A134) -> 0
A135: 36 | B135: 0 | E135: =B135/POWER(1+Paramètres!$AF$14,A135) -> 0
A136: 37 | B136: 0 | E136: =B136/POWER(1+Paramètres!$AF$14,A136) -> 0
A137: 38 | B137: 0 | E137: =B137/POWER(1+Paramètres!$AF$14,A137) -> 0
A138: 39 | B138: 0 | E138: =B138/POWER(1+Paramètres!$AF$14,A138) -> 0
A139: 40 | B139: 0 | C139: =SUM(B120:B139) -> 0 | E139: =B139/POWER(1+Paramètres!$AF$14,A139) -> 0 | F139: =SUM(E120:E139) -> 0 | G139: =SUM(E100:E139) -> -75.82254814

Sheet Calcul d'économie de chauffage
B4: Période | C4: Améliorations | E4: Détériorations | G4: Marge | H4: Marge actualisée | I4: Marge actualisée accumulée
B7: 0-5 ans | C7: =C104 -> 0 | E7: 0 | G7: =C7+E7 -> 0 | H7: =F104 -> 0 | I7: =F104 -> 0
B9: 5-10 ans | C9: =C109 -> 0 | E9: 0 | G9: =C9+E9 -> 0 | H9: =F109 -> 0 | I9: =G109 -> 0
B11: 10-20 ans | C11: =C119 -> 0 | E11: 0 | G11: =C11+E11 -> 0 | H11: =F119 -> 0 | I11: =G119 -> 0
B13: 20-40 ans | C13: =C139 -> 0 | E13: 0 | G13: =C13+E13 -> 0 | H13: =F139 -> 0 | I13: =G139 -> 0
B16: Économies liées au chauffage de 0 à 5 ans | D16: Économies liées au chauffage de 5 à 10 ans | F16: Économies liées au chauffage de 10 à 20 ans | H16: Économies liées au chauffage de 20 à 40 ans
B18: =IF($D$41=TRUE,B44)+IF($D$45=TRUE,B48)+IF($D$49=TRUE,B52)+IF($D$53=TRUE,B56) -> 0 | D18: =IF($D$41=TRUE,D44)+IF($D$45=TRUE,D48)+IF($D$49=TRUE,D52)+IF($D$53=TRUE,D56) -> 0 | F18: =IF($D$41=TRUE,F44)+IF($D$45=TRUE,F48)+IF($D$49=TRUE,F52)+IF($D$53=TRUE,F56) -> 0 | H18: =IF($D$41=TRUE,H44)+IF($D$45=TRUE,H48)+IF($D$49=TRUE,H52)+IF($D$53=TRUE,H56) -> 0
A20: Quels sont vos coûts de chauffage annuels actuels ? | I20: =Questionnaire!H93*J20 -> 0 | J20: =IF('Menu simulation'!H8=TRUE,1,0) -> 0
A21: ou
A22: À combien s'élève votre facture d'énergie (incluant l'éclairage , la ventilation, etc…) ?
A24: Les économies à la maturité des haies seront de : | I24: =Questionnaire!H97 -> 0.1
A26: Efficacité de réduction des coûts de chauffage | H26: Conservateur 5%
B27: Sans PEH | C27: Avec PEH | H27: Réaliste 10%
A28: 0-5 ans | B28: 0 | C28: 0 | H28: Optimiste 15%
A30: 5-10 ans | B30: 0 | C30: 0.5 | E30: Facteur de conversion pour les haies de feuillus seulement | I30: 0.4
E31: PEH seul après 20 ans | I31: =IF('Devis d''implantation des écrans'!D44>0,I30,0) -> 0
A32: 10-20 ans | B32: 0.25 | C32: 1
A34: 20-40 ans | B34: 1 | C34: 1
A39: =I24 -> 0.1
B41: Avec conifère, avec PEH | D41: =AND('Devis d''implantation des écrans'!$D$42>0,'Devis d''implantation des écrans'!$D$43>0) -> FALSE | E41: * le facteur de correction pour les feuillus a été appliqué
B42: Économies liées au chauffage de 0 à 5 ans* | D42: Économies liées au chauffage de 5 à 10 ans* | F42: Économies liées au chauffage de 10 à 20 ans* | H42: Économies liées au chauffage de 20 à 40 ans
B44: =IF(Questionnaire!H95=TRUE,0,$I$20*$A$39*5*$C$28*I31) -> 0 | D44: =IF(Questionnaire!H95=TRUE,0,$I$20*$A$39*5*$C$30*I31) -> 0 | F44: =IF(Questionnaire!H95=TRUE,0,$I$20*$A$39*10*$C$32*I31) -> 0 | H44: =IF(Questionnaire!H95=TRUE,0,$I$20*$A$39*20*$C$34) -> 0
B45: Avec conifère sans PEH | D45: =AND('Devis d''implantation des écrans'!$D$42>0,'Devis d''implantation des écrans'!$D$43=0) -> FALSE
B46: Économies liées au chauffage de 0 à 5 ans | D46: Économies liées au chauffage de 5 à 10 ans | F46: Économies liées au chauffage de 10 à 20 ans | H46: Économies liées au chauffage de 20 à 40 ans
B48: =IF(Questionnaire!H95=TRUE,0,$I$20*$A$39*5*$B$28) -> 0 | D48: =IF(Questionnaire!H95=TRUE,0,$I$20*$A$39*5*$B$30) -> 0 | F48: =IF(Questionnaire!H95=TRUE,0,$I$20*$A$39*10*$B$32) -> 0 | H48: =IF(Questionnaire!H95=TRUE,0,$I$20*$A$39*20*$B$34) -> 0
B49: Sans conifère, avec PEH | D49: =AND('Devis d''implantation des écrans'!$D$42=0,'Devis d''implantation des écrans'!$D$43>0) -> FALSE
B50: Économies liées au chauffage de 0 à 5 ans* | D50: Économies liées au chauffage de 5 à 10 ans* | F50: Économies liées au chauffage de 10 à 20 ans* | H50: Économies liées au chauffage de 20 à 40 ans*
B52: =IF(Questionnaire!H95=TRUE,0,$I$20*$A$39*5*$C$28*$I$31) -> 0 | D52: =IF(Questionnaire!H95=TRUE,0,$I$20*$A$39*5*$C$30*$I$31) -> 0 | F52: =IF(Questionnaire!H95=TRUE,0,$I$20*$A$39*10*$C$32*$I$30) -> 0 | H52: =IF(Questionnaire!H95=TRUE,0,IF(Questionnaire!C111=TRUE,0,$I$20*$A$39*20*$C$34*$I$31)) -> 0
B53: Sans conifère, sans PEH | D53: =AND('Devis d''implantation des écrans'!$D$42=0,'Devis d''implantation des écrans'!$D$43=0,'Devis d''implantation des écrans'!D44>0) -> FALSE
B54: Économies liées au chauffage de 0 à 5 ans* | D54: Économies liées au chauffage de 5 à 10 ans* | F54: Économies liées au chauffage de 10 à 20 ans* | H54: Économies liées au chauffage de 20 à 40 ans*
B56: =IF(Questionnaire!H95=TRUE,0,$I$20*$A$39*5*$B$28*$I$31) -> 0 | D56: =IF(Questionnaire!H95=TRUE,0,$I$20*$A$39*5*$B$30*$I$31) -> 0 | F56: =IF(Questionnaire!H95=TRUE,0,$I$20*$A$39*10*$B$32*$I$30) -> 0 | H56: =IF(Questionnaire!H95=TRUE,0,$I$20*$A$39*20*$B$34*$I$31) -> 0
A97: Améliorations | E97: Marge actualisée | G97: Marge actualisée accumulée
A99: total cumulatif à l'an
A100: 1 | B100: =$B$18/5 -> 0 | E100: =B100/POWER(1+Paramètres!$AF$14,A100) -> 0
A101: 2 | B101: =$B$18/5 -> 0 | E101: =B101/POWER(1+Paramètres!$AF$14,A101) -> 0
A102: 3 | B102: =$B$18/5 -> 0 | E102: =B102/POWER(1+Paramètres!$AF$14,A102) -> 0
A103: 4 | B103: =$B$18/5 -> 0 | E103: =B103/POWER(1+Paramètres!$AF$14,A103) -> 0
A104: 5 | B104: =$B$18/5 -> 0 | C104: =SUM(B100:B104) -> 0 | E104: =B104/POWER(1+Paramètres!$AF$14,A104) -> 0 | F104: =SUM(E100:E104) -> 0
A105: 6 | B105: =$D$18/5 -> 0 | E105: =B105/POWER(1+Paramètres!$AF$14,A105) -> 0
A106: 7 | B106: =$D$18/5 -> 0 | E106: =B106/POWER(1+Paramètres!$AF$14,A106) -> 0
A107: 8 | B107: =$D$18/5 -> 0 | E107: =B107/POWER(1+Paramètres!$AF$14,A107) -> 0
A108: 9 | B108: =$D$18/5 -> 0 | E108: =B108/POWER(1+Paramètres!$AF$14,A108) -> 0
A109: 10 | B109: =$D$18/5 -> 0 | C109: =SUM(B105:B109) -> 0 | E109: =B109/POWER(1+Paramètres!$AF$14,A109) -> 0 | F109: =SUM(E105:E109) -> 0 | G109: =SUM(E100:E109) -> 0
A110: 11 | B110: =$F$18/10 -> 0 | E110: =B110/POWER(1+Paramètres!$AF$14,A110) -> 0
A111: 12 | B111: =$F$18/10 -> 0 | E111: =B111/POWER(1+Paramètres!$AF$14,A111) -> 0
A112: 13 | B112: 0 | E112: =B112/POWER(1+Paramètres!$AF$14,A112) -> 0
A113: 14 | B113: 0 | E113: =B113/POWER(1+Paramètres!$AF$14,A113) -> 0
A114: 15 | B114: 0 | E114: =B114/POWER(1+Paramètres!$AF$14,A114) -> 0
A115: 16 | B115: 0 | E115: =B115/POWER(1+Paramètres!$AF$14,A115) -> 0
A116: 17 | B116: 0 | E116: =B116/POWER(1+Paramètres!$AF$14,A116) -> 0
A117: 18 | B117: 0 | E117: =B117/POWER(1+Paramètres!$AF$14,A117) -> 0
A118: 19 | B118: 0 | E118: =B118/POWER(1+Paramètres!$AF$14,A118) -> 0
A119: 20 | B119: 0 | C119: =SUM(B110:B119) -> 0 | E119: =B119/POWER(1+Paramètres!$AF$14,A119) -> 0 | F119: =SUM(E110:E119) -> 0 | G119: =SUM(E100:E119) -> 0
A120: 21 | B120: =$H$18/20 -> 0 | E120: =B120/POWER(1+Paramètres!$AF$14,A120) -> 0
A121: 22 | B121: =$H$18/20 -> 0 | E121: =B121/POWER(1+Paramètres!$AF$14,A121) -> 0
A122: 23 | B122: 0 | E122: =B122/POWER(1+Paramètres!$AF$14,A122) -> 0
A123: 24 | B123: 0 | E123: =B123/POWER(1+Paramètres!$AF$14,A123) -> 0
A124: 25 | B124: 0 | E124: =B124/POWER(1+Paramètres!$AF$14,A124) -> 0
A125: 26 | B125: 0 | E125: =B125/POWER(1+Paramètres!$AF$14,A125) -> 0
A126: 27 | B126: 0 | E126: =B126/POWER(1+Paramètres!$AF$14,A126) -> 0
A127: 28 | B127: 0 | E127: =B127/POWER(1+Paramètres!$AF$14,A127) -> 0
A128: 29 | B128: 0 | E128: =B128/POWER(1+Paramètres!$AF$14,A128) -> 0
A129: 30 | B129: 0 | E129: =B129/POWER(1+Paramètres!$AF$14,A129) -> 0
A130: 31 | B130: 0 | E130: =B130/POWER(1+Paramètres!$AF$14,A130) -> 0
A131: 32 | B131: 0 | E131: =B131/POWER(1+Paramètres!$AF$14,A131) -> 0
A132: 33 | B132: 0 | E132: =B132/POWER(1+Paramètres!$AF$14,A132) -> 0
A133: 34 | B133: 0 | E133: =B133/POWER(1+Paramètres!$AF$14,A133) -> 0
A134: 35 | B134: 0 | E134: =B134/POWER(1+Paramètres!$AF$14,A134) -> 0
A135: 36 | B135: 0 | E135: =B135/POWER(1+Paramètres!$AF$14,A135) -> 0
A136: 37 | B136: 0 | E136: =B136/POWER(1+Paramètres!$AF$14,A136) -> 0
A137: 38 | B137: 0 | E137: =B137/POWER(1+Paramètres!$AF$14,A137) -> 0
A138: 39 | B138: 0 | E138: =B138/POWER(1+Paramètres!$AF$14,A138) -> 0
A139: 40 | B139: 0 | C139: =SUM(B120:B139) -> 0 | E139: =B139/POWER(1+Paramètres!$AF$14,A139) -> 0 | F139: =SUM(E120:E139) -> 0 | G139: =SUM(E100:E139) -> 0

Sheet Calcul d'économie déneigement
B4: Période | C4: Améliorations | E4: Détériorations | G4: Marge | H4: Marge actualisée | I4: Marge actualisée accumulée
B7: 0-5 ans | C7: =C104 -> 0 | E7: 0 | G7: =C7+E7 -> 0 | H7: =F104 -> 0 | I7: =F104 -> 0
B9: 5-10 ans | C9: =C109 -> 0 | E9: 0 | G9: =C9+E9 -> 0 | H9: =F109 -> 0 | I9: =G109 -> 0
B11: 10-20 ans | C11: =C119 -> 0 | E11: 0 | G11: =C11+E11 -> 0 | H11: =F119 -> 0 | I11: =G119 -> 0
B13: 20-40 ans | C13: =C139 -> 0 | E13: 0 | G13: =C13+E13 -> 0 | H13: =F139 -> 0 | I13: =G139 -> 0
B16: Économies liées au déneigement de 0 à 5 ans | D16: Économies liées au déneigement de 5 à 10 ans | F16: Économies liées au déneigement de 10 à 20 ans | H16: Économies liées au déneigement de 20 à 40 ans
B18: =IF($J$31=TRUE,5*$G$24*$G$22*$C$27,IF(AND($J$32=TRUE,$J$31=FALSE),5*$G$24*$G$22*$B$27)) -> FALSE | D18: =IF($J$31=TRUE,5*$G$24*$G$22*$C$29,IF(AND($J$32=TRUE,$J$31=FALSE),5*$G$24*$G$22*$B$29)) -> FALSE | F18: =IF($J$31=TRUE,10*$G$24*$G$22*$C$31,IF(AND($J$32=TRUE,$J$31=FALSE),10*$G$24*$G$22*$B$31)) -> FALSE | H18: =IF($J$31=TRUE,20*$G$24*$G$22*$C$33,IF(AND($J$32=TRUE,$J$31=FALSE),20*$G$24*$G$22*$B$33)) -> FALSE
A22: Combien d'heures par année sont consacrées aux opérations de déneigement ? | G22: =Questionnaire!H102*I22 -> 0 | H22: /heures | I22: =IF('Menu simulation'!H8=TRUE,1,0) -> 0
A24: Taux horaire pour les opérations de déneigement ? | G24: =Questionnaire!H104 -> 85 | H24: $/heure
A26: Efficacité de réduction des coûts de déneigement
A27: 0-5 ans | B27: 0 | C27: 0.1
E28: Facteur de conversion pour les haies de feuillus seulement | I28: 0
A29: 5-10 ans | B29: =B33/2 -> 0.1 | C29: 0.2
A31: 10-20 ans | B31: =B33 -> 0.2 | C31: =C33 -> 0.2 | H31: Saule | J31: ='Devis d''implantation des écrans'!D46>0 -> FALSE
E32: Conservateur 10% | H32: Conifère et arbuste | J32: =OR('Devis d''implantation des écrans'!D42>0,'Devis d''implantation des écrans'!D45>0) -> FALSE
A33: 20-40 ans | B33: 0.2 | C33: 0.2 | E33: Réaliste 20%
E34: Optimiste 30%
A97: Améliorations | E97: Marge actualisée | G97: Marge actualisée accumulée
A99: total cumulatif à l'an
A100: 1 | B100: =$B$18/5 -> 0 | E100: =B100/POWER(1+Paramètres!$AF$14,A100) -> 0
A101: 2 | B101: =$B$18/5 -> 0 | E101: =B101/POWER(1+Paramètres!$AF$14,A101) -> 0
A102: 3 | B102: =$B$18/5 -> 0 | E102: =B102/POWER(1+Paramètres!$AF$14,A102) -> 0
A103: 4 | B103: =$B$18/5 -> 0 | E103: =B103/POWER(1+Paramètres!$AF$14,A103) -> 0
A104: 5 | B104: =$B$18/5 -> 0 | C104: =SUM(B100:B104) -> 0 | E104: =B104/POWER(1+Paramètres!$AF$14,A104) -> 0 | F104: =SUM(E100:E104) -> 0
A105: 6 | B105: =$D$18/5 -> 0 | E105: =B105/POWER(1+Paramètres!$AF$14,A105) -> 0
A106: 7 | B106: =$D$18/5 -> 0 | E106: =B106/POWER(1+Paramètres!$AF$14,A106) -> 0
A107: 8 | B107: =$D$18/5 -> 0 | E107: =B107/POWER(1+Paramètres!$AF$14,A107) -> 0
A108: 9 | B108: =$D$18/5 -> 0 | E108: =B108/POWER(1+Paramètres!$AF$14,A108) -> 0
A109: 10 | B109: =$D$18/5 -> 0 | C109: =SUM(B105:B109) -> 0 | E109: =B109/POWER(1+Paramètres!$AF$14,A109) -> 0 | F109: =SUM(E105:E109) -> 0 | G109: =SUM(E100:E109) -> 0
A110: 11 | B110: =$F$18/10 -> 0 | E110: =B110/POWER(1+Paramètres!$AF$14,A110) -> 0
A111: 12 | B111: =$F$18/10 -> 0 | E111: =B111/POWER(1+Paramètres!$AF$14,A111) -> 0
A112: 13 | B112: 0 | E112: =B112/POWER(1+Paramètres!$AF$14,A112) -> 0
A113: 14 | B113: 0 | E113: =B113/POWER(1+Paramètres!$AF$14,A113) -> 0
A114: 15 | B114: 0 | E114: =B114/POWER(1+Paramètres!$AF$14,A114) -> 0
A115: 16 | B115: 0 | E115: =B115/POWER(1+Paramètres!$AF$14,A115) -> 0
A116: 17 | B116: 0 | E116: =B116/POWER(1+Paramètres!$AF$14,A116) -> 0
A117: 18 | B117: 0 | E117: =B117/POWER(1+Paramètres!$AF$14,A117) -> 0
A118: 19 | B118: 0 | E118: =B118/POWER(1+Paramètres!$AF$14,A118) -> 0
A119: 20 | B119: 0 | C119: =SUM(B110:B119) -> 0 | E119: =B119/POWER(1+Paramètres!$AF$14,A119) -> 0 | F119: =SUM(E110:E119) -> 0 | G119: =SUM(E100:E119) -> 0
A120: 21 | B120: =$H$18/20 -> 0 | E120: =B120/POWER(1+Paramètres!$AF$14,A120) -> 0
A121: 22 | B121: =$H$18/20 -> 0 | E121: =B121/POWER(1+Paramètres!$AF$14,A121) -> 0
A122: 23 | B122: 0 | E122: =B122/POWER(1+Paramètres!$AF$14,A122) -> 0
A123: 24 | B123: 0 | E123: =B123/POWER(1+Paramètres!$AF$14,A123) -> 0
A124: 25 | B124: 0 | E124: =B124/POWER(1+Paramètres!$AF$14,A124) -> 0
A125: 26 | B125: 0 | E125: =B125/POWER(1+Paramètres!$AF$14,A125) -> 0
A126: 27 | B126: 0 | E126: =B126/POWER(1+Paramètres!$AF$14,A126) -> 0
A127: 28 | B127: 0 | E127: =B127/POWER(1+Paramètres!$AF$14,A127) -> 0
A128: 29 | B128: 0 | E128: =B128/POWER(1+Paramètres!$AF$14,A128) -> 0
A129: 30 | B129: 0 | E129: =B129/POWER(1+Paramètres!$AF$14,A129) -> 0
A130: 31 | B130: 0 | E130: =B130/POWER(1+Paramètres!$AF$14,A130) -> 0
A131: 32 | B131: 0 | E131: =B131/POWER(1+Paramètres!$AF$14,A131) -> 0
A132: 33 | B132: 0 | E132: =B132/POWER(1+Paramètres!$AF$14,A132) -> 0
A133: 34 | B133: 0 | E133: =B133/POWER(1+Paramètres!$AF$14,A133) -> 0
A134: 35 | B134: 0 | E134: =B134/POWER(1+Paramètres!$AF$14,A134) -> 0
A135: 36 | B135: 0 | E135: =B135/POWER(1+Paramètres!$AF$14,A135) -> 0
A136: 37 | B136: 0 | E136: =B136/POWER(1+Paramètres!$AF$14,A136) -> 0
A137: 38 | B137: 0 | E137: =B137/POWER(1+Paramètres!$AF$14,A137) -> 0
A138: 39 | B138: 0 | E138: =B138/POWER(1+Paramètres!$AF$14,A138) -> 0
A139: 40 | B139: 0 | C139: =SUM(B120:B139) -> 0 | E139: =B139/POWER(1+Paramètres!$AF$14,A139) -> 0 | F139: =SUM(E120:E139) -> 0 | G139: =SUM(E100:E139) -> 0

Sheet Calcul du rendement en bois
B4: Période | C4: Améliorations | E4: Détériorations | G4: Marge | H4: Marge actualisée | I4: Marge actualisée accumulée
B7: 0-5 ans | C7: =C100 -> 0 | E7: 0 | G7: =C7+E7 -> 0 | H7: =F100 -> 0 | I7: =F100 -> 0
B9: 5-10 ans | C9: =C105 -> 0 | E9: 0 | G9: =C9+E9 -> 0 | H9: =F105 -> 0 | I9: =G105 -> 0
B11: 10-20 ans | C11: =C115 -> 0 | E11: 0 | G11: =C11+E11 -> 0 | H11: =F115 -> 0 | I11: =G115 -> 0
B13: 20-40 ans | C13: =C135 -> 0 | E13: 0 | G13: =C13+E13 -> 0 | H13: =F135 -> 0 | I13: =G135 -> 0
F15: Rangée | M15: Rangée récoltée
A16: Nombre d'arbres pour calcul biomasse | F16: 1 | G16: 2 | H16: 3 | I16: 4 | J16: 5 | K16: 6 | L16: 7 | M16: Toute | N16: 1 | O16: 2 | P16: 3 | Q16: 4 | R16: 5 | S16: 6 | T16: 7 | U16: Nombre d'arbre récolté
A17: Épinettes, Pins ou Thuyas | C17: =IF(Langue!$A$200 = "FR",Dictionnaire!A808,Dictionnaire!B808) -> CON | D17: =SUM(F17:L17) -> 0 | F17: =IF('Devis d''implantation des écrans'!F$14<=0.5,'Devis d''implantation des écrans'!F42,'Devis d''implantation des écrans'!F42*0.5/'Devis d''implantation des écrans'!F$14) -> 0 | G17: =IF('Devis d''implantation des écrans'!G$14<=0.5,'Devis d''implantation des écrans'!G42,'Devis d''implantation des écrans'!G42*0.5/'Devis d''implantation des écrans'!G$14) -> 0 | H17: =IF('Devis d''implantation des écrans'!H$14<=0.5,'Devis d''implantation des écrans'!H42,'Devis d''implantation des écrans'!H42*0.5/'Devis d''implantation des écrans'!H$14) -> 0 | I17: =IF('Devis d''implantation des écrans'!I$14<=0.5,'Devis d''implantation des écrans'!I42,'Devis d''implantation des écrans'!I42*0.5/'Devis d''implantation des écrans'!I$14) -> 0 | J17: =IF('Devis d''implantation des écrans'!J$14<=0.5,'Devis d''implantation des écrans'!J42,'Devis d''implantation des écrans'!J42*0.5/'Devis d''implantation des écrans'!J$14) -> 0 | K17: =IF('Devis d''implantation des écrans'!K$14<=0.5,'Devis d''implantation des écrans'!K42,'Devis d''implantation des écrans'!K42*0.5/'Devis d''implantation des écrans'!K$14) -> 0 | L17: =IF('Devis d''implantation des écrans'!L$14<=0.5,'Devis d''implantation des écrans'!L42,'Devis d''implantation des écrans'!L42*0.5/'Devis d''implantation des écrans'!L$14) -> 0 | N17: =IF(Questionnaire!H112="Oui",1,(IF(Questionnaire!H112="Yes",1,0))) -> 0 | O17: =IF(Questionnaire!I112="Oui",1,(IF(Questionnaire!I112="Yes",1,0))) -> 0 | P17: =IF(Questionnaire!J112="Oui",1,(IF(Questionnaire!J112="Yes",1,0))) -> 0 | Q17: =IF(Questionnaire!K112="Oui",1,(IF(Questionnaire!K112="Yes",1,0))) -> 0 | R17: =IF(Questionnaire!L112="Oui",1,(IF(Questionnaire!L112="Yes",1,0))) -> 0 | S17: =IF(Questionnaire!M112="Oui",1,(IF(Questionnaire!M112="Yes",1,0))) -> 0 | T17: =IF(Questionnaire!N112="Oui",1,(IF(Questionnaire!N112="Yes",1,0))) -> 0 | U17: =(N17*F17+G17*O17+P17*H17+Q17*I17+R17*J17+K17*S17+T17*L17) -> 0
A18: Peupliers hybrides | C18: =IF(Langue!$A$200 = "FR",Dictionnaire!A809,Dictionnaire!B809) -> PEH | D18: =SUM(F18:L18) -> 0 | F18: =IF('Devis d''implantation des écrans'!F$14<=0.5,'Devis d''implantation des écrans'!F43,'Devis d''implantation des écrans'!F43*0.5/'Devis d''implantation des écrans'!F$14) -> 0 | G18: =IF('Devis d''implantation des écrans'!G$14<=0.5,'Devis d''implantation des écrans'!G43,'Devis d''implantation des écrans'!G43*0.5/'Devis d''implantation des écrans'!G$14) -> 0 | H18: =IF('Devis d''implantation des écrans'!H$14<=0.5,'Devis d''implantation des écrans'!H43,'Devis d''implantation des écrans'!H43*0.5/'Devis d''implantation des écrans'!H$14) -> 0 | I18: =IF('Devis d''implantation des écrans'!I$14<=0.5,'Devis d''implantation des écrans'!I43,'Devis d''implantation des écrans'!I43*0.5/'Devis d''implantation des écrans'!I$14) -> 0 | J18: =IF('Devis d''implantation des écrans'!J$14<=0.5,'Devis d''implantation des écrans'!J43,'Devis d''implantation des écrans'!J43*0.5/'Devis d''implantation des écrans'!J$14) -> 0 | K18: =IF('Devis d''implantation des écrans'!K$14<=0.5,'Devis d''implantation des écrans'!K43,'Devis d''implantation des écrans'!K43*0.5/'Devis d''implantation des écrans'!K$14) -> 0 | L18: =IF('Devis d''implantation des écrans'!L$14<=0.5,'Devis d''implantation des écrans'!L43,'Devis d''implantation des écrans'!L43*0.5/'Devis d''implantation des écrans'!L$14) -> 0 | N18: =IF(Questionnaire!H111="Oui",1,(IF(Questionnaire!H111="Yes",1,0))) -> 0 | O18: =IF(Questionnaire!I111="Oui",1,(IF(Questionnaire!I111="Yes",1,0))) -> 0 | P18: =IF(Questionnaire!J111="Oui",1,(IF(Questionnaire!J111="Yes",1,0))) -> 0 | Q18: =IF(Questionnaire!K111="Oui",1,(IF(Questionnaire!K111="Yes",1,0))) -> 0 | R18: =IF(Questionnaire!L111="Oui",1,(IF(Questionnaire!L111="Yes",1,0))) -> 0 | S18: =IF(Questionnaire!M111="Oui",1,(IF(Questionnaire!M111="Yes",1,0))) -> 0 | T18: =IF(Questionnaire!N111="Oui",1,(IF(Questionnaire!N111="Yes",1,0))) -> 0 | U18: =(N18*F18+G18*O18+P18*H18+Q18*I18+R18*J18+K18*S18+T18*L18) -> 0
A19: Feuillus nobles | C19: =IF(Langue!$A$200 = "FR",Dictionnaire!A810,Dictionnaire!B810) -> FNO | D19: =SUM(F19:L19) -> 0 | F19: =IF('Devis d''implantation des écrans'!F$14<=0.5,'Devis d''implantation des écrans'!F44,'Devis d''implantation des écrans'!F44*0.5/'Devis d''implantation des écrans'!F$14) -> 0 | G19: =IF('Devis d''implantation des écrans'!G$14<=0.5,'Devis d''implantation des écrans'!G44,'Devis d''implantation des écrans'!G44*0.5/'Devis d''implantation des écrans'!G$14) -> 0 | H19: =IF('Devis d''implantation des écrans'!H$14<=0.5,'Devis d''implantation des écrans'!H44,'Devis d''implantation des écrans'!H44*0.5/'Devis d''implantation des écrans'!H$14) -> 0 | I19: =IF('Devis d''implantation des écrans'!I$14<=0.5,'Devis d''implantation des écrans'!I44,'Devis d''implantation des écrans'!I44*0.5/'Devis d''implantation des écrans'!I$14) -> 0 | J19: =IF('Devis d''implantation des écrans'!J$14<=0.5,'Devis d''implantation des écrans'!J44,'Devis d''implantation des écrans'!J44*0.5/'Devis d''implantation des écrans'!J$14) -> 0 | K19: =IF('Devis d''implantation des écrans'!K$14<=0.5,'Devis d''implantation des écrans'!K44,'Devis d''implantation des écrans'!K44*0.5/'Devis d''implantation des écrans'!K$14) -> 0 | L19: =IF('Devis d''implantation des écrans'!L$14<=0.5,'Devis d''implantation des écrans'!L44,'Devis d''implantation des écrans'!L44*0.5/'Devis d''implantation des écrans'!L$14) -> 0 | N19: =IF(Questionnaire!H113="Oui",1,(IF(Questionnaire!H113="Yes",1,0))) -> 0 | O19: =IF(Questionnaire!I113="Oui",1,(IF(Questionnaire!I113="Yes",1,0))) -> 0 | P19: =IF(Questionnaire!J113="Oui",1,(IF(Questionnaire!J113="Yes",1,0))) -> 0 | Q19: =IF(Questionnaire!K113="Oui",1,(IF(Questionnaire!K113="Yes",1,0))) -> 0 | R19: =IF(Questionnaire!L113="Oui",1,(IF(Questionnaire!L113="Yes",1,0))) -> 0 | S19: =IF(Questionnaire!M113="Oui",1,(IF(Questionnaire!M113="Yes",1,0))) -> 0 | T19: =IF(Questionnaire!N113="Oui",1,(IF(Questionnaire!N113="Yes",1,0))) -> 0 | U19: =(N19*F19+G19*O19+P19*H19+Q19*I19+R19*J19+K19*S19+T19*L19) -> 0
A20: Arbustes | C20: =IF(Langue!$A$200 = "FR",Dictionnaire!A811,Dictionnaire!B811) -> ARB | D20: =SUM(F20:L20) -> 0 | F20: =IF('Devis d''implantation des écrans'!F$14<=0.5,'Devis d''implantation des écrans'!F45,'Devis d''implantation des écrans'!F45*0.5/'Devis d''implantation des écrans'!F$14) -> 0 | G20: =IF('Devis d''implantation des écrans'!G$14<=0.5,'Devis d''implantation des écrans'!G45,'Devis d''implantation des écrans'!G45*0.5/'Devis d''implantation des écrans'!G$14) -> 0 | H20: =IF('Devis d''implantation des écrans'!H$14<=0.5,'Devis d''implantation des écrans'!H45,'Devis d''implantation des écrans'!H45*0.5/'Devis d''implantation des écrans'!H$14) -> 0 | I20: =IF('Devis d''implantation des écrans'!I$14<=0.5,'Devis d''implantation des écrans'!I45,'Devis d''implantation des écrans'!I45*0.5/'Devis d''implantation des écrans'!I$14) -> 0 | J20: =IF('Devis d''implantation des écrans'!J$14<=0.5,'Devis d''implantation des écrans'!J45,'Devis d''implantation des écrans'!J45*0.5/'Devis d''implantation des écrans'!J$14) -> 0 | K20: =IF('Devis d''implantation des écrans'!K$14<=0.5,'Devis d''implantation des écrans'!K45,'Devis d''implantation des écrans'!K45*0.5/'Devis d''implantation des écrans'!K$14) -> 0 | L20: =IF('Devis d''implantation des écrans'!L$14<=0.5,'Devis d''implantation des écrans'!L45,'Devis d''implantation des écrans'!L45*0.5/'Devis d''implantation des écrans'!L$14) -> 0
A21: Saules hybrides | C21: =IF(Langue!$A$200 = "FR",Dictionnaire!A812,Dictionnaire!B812) -> SAH | D21: =SUM(F21:L21) -> 0 | F21: =IF('Devis d''implantation des écrans'!F$14<=0.5,'Devis d''implantation des écrans'!F46,'Devis d''implantation des écrans'!F46*0.5/'Devis d''implantation des écrans'!F$14) -> 0 | G21: =IF('Devis d''implantation des écrans'!G$14<=0.5,'Devis d''implantation des écrans'!G46,'Devis d''implantation des écrans'!G46*0.5/'Devis d''implantation des écrans'!G$14) -> 0 | H21: =IF('Devis d''implantation des écrans'!H$14<=0.5,'Devis d''implantation des écrans'!H46,'Devis d''implantation des écrans'!H46*0.5/'Devis d''implantation des écrans'!H$14) -> 0 | I21: =IF('Devis d''implantation des écrans'!I$14<=0.5,'Devis d''implantation des écrans'!I46,'Devis d''implantation des écrans'!I46*0.5/'Devis d''implantation des écrans'!I$14) -> 0 | J21: =IF('Devis d''implantation des écrans'!J$14<=0.5,'Devis d''implantation des écrans'!J46,'Devis d''implantation des écrans'!J46*0.5/'Devis d''implantation des écrans'!J$14) -> 0 | K21: =IF('Devis d''implantation des écrans'!K$14<=0.5,'Devis d''implantation des écrans'!K46,'Devis d''implantation des écrans'!K46*0.5/'Devis d''implantation des écrans'!K$14) -> 0 | L21: =IF('Devis d''implantation des écrans'!L$14<=0.5,'Devis d''implantation des écrans'!L46,'Devis d''implantation des écrans'!L46*0.5/'Devis d''implantation des écrans'!L$14) -> 0 | N21: =IF(Questionnaire!H114="Oui",1,(IF(Questionnaire!H114="Yes",1,0))) -> 0 | O21: =IF(Questionnaire!I114="Oui",1,(IF(Questionnaire!I114="Yes",1,0))) -> 0 | P21: =IF(Questionnaire!J114="Oui",1,(IF(Questionnaire!J114="Yes",1,0))) -> 0 | Q21: =IF(Questionnaire!K114="Oui",1,(IF(Questionnaire!K114="Yes",1,0))) -> 0 | R21: =IF(Questionnaire!L114="Oui",1,(IF(Questionnaire!L114="Yes",1,0))) -> 0 | S21: =IF(Questionnaire!M114="Oui",1,(IF(Questionnaire!M114="Yes",1,0))) -> 0 | T21: =IF(Questionnaire!N114="Oui",1,(IF(Questionnaire!N114="Yes",1,0))) -> 0 | U21: =(N21*F21+G21*O21+P21*H21+Q21*I21+R21*J21+K21*S21+T21*L21) -> 0
A22: Nombre total de végétaux calcul biomasse | D22: =SUM(D17:D21) -> 0 | F22: =SUM(F17:F21) -> 0 | G22: =SUM(G17:G21) -> 0 | H22: 0 | I22: 0 | J22: 0 | K22: 0 | L22: 0
B24: Nombre de m3 à maturité | C24: Valeur si le bois est vendu pour le sciage | E24: Valeur si le bois est vendu pour le déroulage | G24: Valeur si le bois est vendu pour du bois de chauffage | I24: Valeur de la biomasse brut (pâte ou autres destinations) | K24: Valeur si bois vendu pour sciage + pâte
M25: Site pour calculé facteur de conversion | P25: https://www.foretprivee.ca/bibliotheque/outils/nos-facteurs-de-conversion-et-mesures/
M26: Équivalence http://www.spfbsl.com/mise-en-marche-collective/facteurs-dequivalence.html
C27: /m3 | E27: /m3 | G27: Corde de 8' | I27: $/TMV | M27: 1000PMP | N27: 4,6 m3 solide | O27: 4,6 TMV | P27: 2 TMA
A28: Épinettes, Pins ou Thuyas | B28: =H58*U17 -> 0 | C28: =Paramètres!F82 -> 52 | D28: =IF($B$49=A43,C28*I58*U17,0) -> 0 | I28: =Paramètres!I82 -> 30 | J28: =IF($B$49=$A$46,I28*U31*H58*U17,IF(OR($B$49=$A$43,$B$49=$A$45),(H58-I58)*U17*I28*U31*L58,0)) -> 0 | K28: =IF($B$43=B49,((C28*I58*U17)+((H58*L58-I58)*U17*U31*I28)),0) -> 0 | M28: MPMP | N28: m3 solide | O28: TMV | P28: TMA | Q28: m3 apparent | R28: TIV | S28: corde 4 X4 X8 | T28: corde 8 x 4 x 8 | U28: 1m3 à TMV | V28: 1 m3 à une corde de 4 X * X 8
A29: Peupliers hybrides | B29: =H53*U18 -> 0 | C29: =Paramètres!F83 -> 41 | D29: =IF($B$48=A43,C29*I53*U18,0) -> 0 | E29: =Paramètres!G83 -> 65 | F29: =IF($B$48=A45,E29*U18*I53,0) -> 0 | I29: =Paramètres!I83 -> 32 | J29: =IF($B$48=$A$46,I29*U18*H53*U29,IF(OR($B$48=$A$43,$B$48=$A$45),(H53-I53)*U18*I29*U29*L53,0)) -> 0 | K29: =IF($B$43=B48,((C29*I53*U18)+((H53*L53-I53)*U18*U29*I29)),0) -> 0 | L29: Peuplier | M29: 1 | N29: 5.5 | O29: 5.5 | P29: 2.5 | Q29: 8.25 | R29: 6.05 | S29: 2.276 | T29: 1.308 | U29: =1*O29/N29 -> 1
A30: Feuillus nobles | B30: =H52*U19 -> 0 | C30: =Paramètres!F84 -> 61 | D30: =IF($B$50=A43,C30*I52*U19,0) -> 0 | E30: =Paramètres!G84 -> 145 | F30: =IF($B$50=A45,E30*U19*I52,0) -> 0 | G30: =Paramètres!H84 -> 225 | H30: =IF($B$50=$A$44,G30*U19*H52*$V$30*L52,0) -> 0 | I30: =Paramètres!I84 -> 40 | J30: =IF($B$50=$A$46,I30*U19*H52*U30,IF(OR($B$50=$A43,$B$50=$A$45),(H52-I52)*U19*I30*U30*L52,0)) -> 0 | K30: =IF($B$43=B50,((C30*I52*U19)+((H52*L52-I52)*U19*U30*I30)),0) -> 0 | L30: Feuillus | M30: 1 | N30: 5.2 | O30: 5.909 | P30: 2.938 | Q30: 7.8 | R30: 6.5 | S30: 2.152 | T30: 1.221 | U30: =1*O30/N30 -> 1.136346154 | V30: 0.235
A31: Saules hybrides (tonne M.S.) | B31: =G40 -> 0 | I31: =Paramètres!I85 -> 32 | J31: =IF($B$51=A46,U21/E40*0.87*I31,0) -> 0 | L31: Résineux | M31: 1 | N31: 5.5 | O31: 4.774 | P31: 2.5 | Q31: 8.25 | R31: 5.252 | S31: 2.276 | T31: 1.265 | U31: =1*O31/N31 -> 0.868
A32: Total | B32: =SUM(B29:B30) -> 0 | C32: 193 | D32: =SUM(D28:D30) -> 0 | F32: =SUM(F29:F30) -> 0 | H32: =SUM(H29:H30) -> 0 | J32: =SUM(J28:J31) -> 0 | K32: =SUM(K28:K31) -> 0 | L32: Site pour calculé facteur de conversion | O32: https://www.foretprivee.ca/bibliotheque/outils/nos-facteurs-de-conversion-et-mesures/
C33: =C30*I52*U21 -> 0 | I33: Grand total | J33: =D32+F32+H32+J32+K32 -> 0 | L33: Références: Michel Labrecque communication personnelle voir CEPAF/colloque/conférence BR
A35: Essences | B35: Abbréviation | C35: =A16 -> Nombre d'arbres pour calcul biomasse | E35: Nombre d'arbres requis pour faire 1 m3 | G35: Nombre de m3 à maturité | J35: =300/320 -> 0.9375 | K35: =+J35*3.7*3.27*3.27 -> 37.09099688
A36: Épinettes, Pins ou Thuyas | B36: CON | C36: =D17 -> 0 | E36: =1/H58 -> 1.090084953 | G36: =C36/E36 -> 0
A37: Peupliers hybrides | B37: ='Devis d''implantation des écrans'!C43 -> PEH | C37: =D18 -> 0 | E37: =1/H53 -> 0.8964197647 | G37: =C37/E37 -> 0
A38: Feuillus nobles | B38: ='Devis d''implantation des écrans'!C44 -> FNO | C38: =D19 -> 0 | E38: =1/H52 -> 1.147978338 | G38: =C38/E38 -> 0 | T38: 1
A39: Arbustes | B39: ARB | C39: =D20 -> 0 | E39: 25 | G39: =C39/E39 -> 0
A40: Saules hybrides | B40: SAH | C40: =D21 -> 0 | E40: 25 | G40: =C40/E40 -> 0
A42: Type de bois | D42: Saules | E42: Rendement tonne M.S./ha/an | G42: Espacement entre les tiges | I42: Espacement entre les rangs | K42: Tiges / tonne
A43: =IF(Langue!$A$200 = "FR",Dictionnaire!A291,Dictionnaire!B291) -> Sciage | B43: =IF(Langue!$A$200 = "FR",Dictionnaire!A295,Dictionnaire!B295) -> Sciage et pâte | E43: 18 | G43: 0.5 | I43: 3 | K43: =10000/I43/(G43/2)/E43 -> 740.7407407
A44: =IF(Langue!$A$200 = "FR",Dictionnaire!A293,Dictionnaire!B293) -> Bois de chauffage | E44: 18 | G44: 0.6 | I44: 3 | K44: 617.2839506
A45: =IF(Langue!$A$200 = "FR",Dictionnaire!A292,Dictionnaire!B292) -> Déroulage | E45: 18
A46: =IF(Langue!$A$200 = "FR",Dictionnaire!A294,Dictionnaire!B294) -> Pâte ou biomasse | E46: 15 | G46: 0.5 | I46: 3 | K46: 888.8888889
A47: Choix | E47: 15 | G47: 0.6 | I47: 3 | K47: 740.7407407
A48: PEH | B48: =Questionnaire!F111 -> Sciage | E48: 15
A49: CON | B49: =Questionnaire!F112 -> Sciage
A50: FNO | B50: =Questionnaire!F113 -> Sciage
A51: SAH | B51: =Questionnaire!F114 -> Pâte ou biomasse | H51: Vol marchard arbre entier (m3) | I51: Bille seulement (bille de 12 pieds) (% sciage en m3) | K51: % deroulage | L51: % bois utilisable
A52: FNO | H52: =Q72 -> 0.8710965763 | I52: =((O78^2 +O79^2)/2*O80*0.07854)*0.001 -> 0.365902152 | J52: m3/arbre | K52: \Prixmoyenboishaiebriseodeur.xls | L52: 0.9
A53: Dans le cas des PEH, on relate les mesures de volume obtenus en haies brise-vent à La Pocatière, (24 ans après plantation) | H53: =R76 -> 1.115548808 | I53: =((Q78^2 +Q79^2)/2*Q80*0.07854)*0.001 -> 0.432158496 | J53: m3/arbre | K53: \rendements brise-vent.xls | L53: 0.9
K54: \84_Cubage_bois_abattus_SB011999.pdf
K55: \boischauffageMonteregie.pdf
A58: CON | H58: =Y71 -> 0.9173596949 | I58: =((P78^2 + P79^2)/2*P80*0.07854)*0.001 -> 0.432158496 | L58: 0.9
N61: Feuille des volumes à utiliser
B63: formule pour tige | C63: =(3.1416*3*((0.4+0.36)/2)*((0.4+0.36)/2))/4 -> 0.34023528
G64: volume d'un cylindre (rayon=12,5 cm), hauteur 15 m | I64: =3.1416*0.125*0.125*18 -> 0.883575 | P64: Selon table de Perron | U64: Résineux | V64: 40 ans
N65: FNO | O65: H | P65: 36 | Q65: 38 | R65: 40 | S65: 42 | V65: H | W65: 36 | X65: 38 | Y65: 40 | Z65: 42
N66: ERS | O66: 18 | P66: =(7.5092 -2.3793097*$O66+0.0336075*P$65*P$65*$O66)*0.001 -> 0.7486773854 | Q66: =(7.5092 -2.3793097*$O66+0.0336075*Q$65*Q$65*$O66)*0.001 -> 0.8382077654 | R66: =(7.5092 -2.3793097*$O66+0.0336075*R$65*R$65*$O66)*0.001 -> 0.9325776254 | S66: =(7.5092 -2.3793097*$O66+0.0336075*S$65*S$65*$O66)*0.001 -> 1.031786965 | U66: EPB | V66: 18 | W66: =(-24.9889 + 4.90312*W$65-0.21366*W$65*W$65-4.6912003*$V66+0.33143*$V66*W$65+0.0313*W$65*W$65*$V66)*0.001 -> 0.7351114946 | X66: =(-24.9889 + 4.90312*X$65-0.21366*X$65*X$65-4.6912003*$V66+0.33143*$V66*X65+0.0313*X65*X65*$V66)*0.001 -> 0.8086107346 | Y66: =(-24.9889 + 4.90312*Y$65-0.21366*Y$65*Y$65-4.6912003*$V66+0.33143*$V66*Y65+0.0313*Y65*Y65*$V66)*0.001 -> 0.8849078946 | Z66: =(-24.9889 + 4.90312*Z$65-0.21366*Z$65*Z$65-4.6912003*$V66+0.33143*$V66*Z65+0.0313*Z65*Z65*$V66)*0.001 -> 0.9640029746
N67: CHR | O67: 18 | P67: =(-7.6298 - 0.0911019*$O67*$O67 +0.035163*P$65*P$65*$O67)*0.001 -> 0.7831356484 | Q67: =(-7.6298 - 0.0911019*$O67*$O67 +0.035163*Q$65*Q$65*$O67)*0.001 -> 0.8768098804 | R67: =(-7.6298 - 0.0911019*$O67*$O67 +0.035163*R$65*R$65*$O67)*0.001 -> 0.9755475844 | S67: =(-7.6298 - 0.0911019*$O67*$O67 +0.035163*S$65*S$65*$O67)*0.001 -> 1.07934876 | U67: EPR | V67: 18 | W67: =(1.5134-4.3801899*$V67+0.36715*$V67*W$65+0.02595*W$65*W$65*$V67)*0.001 -> 0.7659447818 | X67: =(1.5134-4.3801899*$V67+0.36715*$V67*X$65+0.02595*X$65*X$65*$V67)*0.001 -> 0.8482929818 | Y67: =(1.5134-4.3801899*$V67+0.36715*$V67*Y$65+0.02595*Y$65*Y$65*$V67)*0.001 -> 0.9343779818 | Z67: =(1.5134-4.3801899*$V67+0.36715*$V67*Z$65+0.02595*Z$65*Z$65*$V67)*0.001 -> 1.024199782
N68: FRP | O68: 18 | P68: =(0.4784-0.52712*P$65+0.101104*P$65*P$65-0.27414*P$65*$O68+0.03885*P$65*P$65*$O68)*0.001 -> 0.841182944 | Q68: =(0.4784-0.52712*Q$65+0.101104*Q$65*Q$65-0.27414*Q$65*$O68+0.03885*Q$65*Q$65*$O68)*0.001 -> 0.948719456 | R68: =(0.4784-0.52712*R$65+0.101104*R$65*R$65-0.27414*R$65*$O68+0.03885*R$65*R$65*$O68)*0.001 -> 1.0626592 | S68: =(0.4784-0.52712*S$65+0.101104*S$65*S$65-0.27414*S$65*$O68+0.03885*S$65*S$65*$O68)*0.001 -> 1.183002176 | U68: MEL | V68: 18 | W68: =(-9.7692+0.032166*W$65*W$65*$V68)*0.001 -> 0.740599248 | X68: =(-9.7692+0.032166*X$65*X$65*$V68)*0.001 -> 0.826289472 | Y68: =(-9.7692+0.032166*Y$65*Y$65*$V68)*0.001 -> 0.9166116 | Z68: =(-9.7692+0.032166*Z$65*Z$65*$V68)*0.001 -> 1.011565632
N69: TIL | O69: 18 | P69: =(-2.1279802*$O69+0.0339905*P$65*P$65*$O69)*0.001 -> 0.7546267404 | Q69: =(-2.1279802*$O69+0.0339905*Q$65*Q$65*$O69)*0.001 -> 0.8451774324 | R69: =(-2.1279802*$O69+0.0339905*R$65*R$65*$O69)*0.001 -> 0.9406227564 | S69: =(-2.1279802*$O69+0.0339905*S$65*S$65*$O69)*0.001 -> 1.040962712 | U69: PIB | V69: 18 | W69: =(-5.1688604*$V69+0.489927*$V69*W$65+0.0238181*W$65*W$65*$V69)*0.001 -> 0.7800618456 | X69: =(-5.1688604*$V69+0.489927*$V69*X$65+0.0238181*X$65*X$65*$V69)*0.001 -> 0.861150636 | Y69: =(-5.1688604*$V69+0.489927*$V69*Y$65+0.0238181*Y$65*Y$65*$V69)*0.001 -> 0.9456692328 | Z69: =(-5.1688604*$V69+0.489927*$V69*Z$65+0.0238181*Z$65*Z$65*$V69)*0.001 -> 1.033617636
N70: ORM | O70: 18 | P70: =(0.7829+0.132188*$O70-0.271184*$O70*P$65+0.0395851*$O70*P$65*P$65)*0.001 -> 0.7508762648 | Q70: =(0.7829+0.132188*$O70-0.271184*$O70*Q$65+0.0395851*$O70*Q$65*Q$65)*0.001 -> 0.8465683472 | R70: =(0.7829+0.132188*$O70-0.271184*$O70*R$65+0.0395851*$O70*R$65*R$65)*0.001 -> 0.947960684 | S70: =(0.7829+0.132188*$O70-0.271184*$O70*S$65+0.0395851*$O70*S$65*S$65)*0.001 -> 1.055053275 | U70: PIR | V70: 18 | W70: =(-0.04629*W$65*W$65-2.1198797*$V70+0.19273*$V70*W$65+0.03051*W$65*W$65*$V70)*0.001 -> 0.7384766454 | X70: =(-0.04629*X$65*X$65-2.1198797*$V70+0.19273*$V70*X$65+0.03051*X$65*X$65*$V70)*0.001 -> 0.8198426454 | Y70: =(-0.04629*Y$65*Y$65-2.1198797*$V70+0.19273*$V70*Y$65+0.03051*Y$65*Y$65*$V70)*0.001 -> 0.9052317654 | Z70: =(-0.04629*Z$65*Z$65-2.1198797*$V70+0.19273*$V70*Z$65+0.03051*Z$65*Z$65*$V70)*0.001 -> 0.9946440054
N71: CET | O71: 18 | P71: =(-1.8224401*$O71+0.034424*P$65*P$65*$O71)*0.001 -> 0.7702391502 | Q71: =(-1.8224401*$O71+0.034424*Q$65*Q$65*$O71)*0.001 -> 0.8619446862 | R71: =(-1.8224401*$O71+0.034424*R$65*R$65*$O71)*0.001 -> 0.9586072782 | S71: =(-1.8224401*$O71+0.034424*S$65*S$65*$O71)*0.001 -> 1.060226926 | V71: moyenne | W71: =AVERAGE(W66:W70) -> 0.7520388031 | X71: =AVERAGE(X66:X70) -> 0.832837294 | Y71: =AVERAGE(Y66:Y70) -> 0.9173596949 | Z71: =AVERAGE(Z66:Z70) -> 1.005606006
O72: Moyenne | P72: =AVERAGE(P66:P70) -> 0.7756997966 | Q72: =AVERAGE(Q66:Q70) -> 0.8710965763 | R72: =AVERAGE(R66:R70) -> 0.97187357 | S72: =AVERAGE(S66:S70) -> 1.078030778
N74: Calcul volume de la première bille
O75: H | P75: 36 | Q75: 38 | R75: 40 | S75: 42
N76: PET | O76: 20 | P76: =( -1.5881596*$O76+0.0358535*P75*P75*$O76)*0.001 -> 0.897559528 | Q76: =( -1.5881596*$O76+0.0358535*Q75*Q75*$O76)*0.001 -> 1.003685888 | R76: =( -1.5881596*$O76+0.0358535*R75*R75*$O76)*0.001 -> 1.115548808 | S76: =( -1.5881596*$O76+0.0358535*S75*S75*$O76)*0.001 -> 1.233148288
O77: FNO | P77: CON | Q77: PEH
N78: DIA fin bout | O78: 34 | P78: 36 | Q78: 36
N79: DIA début | O79: 36 | P79: 40 | Q79: 40
N80: longueur | O80: 3.8 | P80: 3.8 | Q80: 3.8
N81: pieds | O81: =O80*3.281 -> 12.4678
A93: Améliorations | E93: Marge actualisée | G93: Marge actualisée accumulée
A95: total cumulatif à l'an
A96: 1 | B96: =IF(Questionnaire!C$114=TRUE,(0*$J$31*Questionnaire!$G$120),0) -> 0 | E96: =B96/POWER(1+Paramètres!$AF$14,A96) -> 0
A97: 2 | B97: =IF(Questionnaire!C$114=TRUE,(0*$J$31*Questionnaire!$G$120),0) -> 0 | E97: =B97/POWER(1+Paramètres!$AF$14,A97) -> 0
A98: 3 | B98: =IF(Questionnaire!C$114=TRUE,(3*$J$31*Questionnaire!$G$120),0) -> 0 | E98: =B98/POWER(1+Paramètres!$AF$14,A98) -> 0
A99: 4 | B99: =IF(Questionnaire!C$114=TRUE,(0*$J$31*Questionnaire!$G$120),0) -> 0 | E99: =B99/POWER(1+Paramètres!$AF$14,A99) -> 0
A100: 5 | B100: =IF(Questionnaire!C$114=TRUE,(0*$J$31*Questionnaire!$G$120),0) -> 0 | C100: =SUM(B96:B100) -> 0 | E100: =B100/POWER(1+Paramètres!$AF$14,A100) -> 0 | F100: =SUM(E96:E100) -> 0
A101: 6 | B101: =IF(Questionnaire!C$114=TRUE,(3*$J$31*Questionnaire!$G$120),0) -> 0 | E101: =B101/POWER(1+Paramètres!$AF$14,A101) -> 0
A102: 7 | B102: =IF(Questionnaire!C$114=TRUE,(0*$J$31*Questionnaire!$G$120),0) -> 0 | E102: =B102/POWER(1+Paramètres!$AF$14,A102) -> 0
A103: 8 | B103: =IF(Questionnaire!C$114=TRUE,(0*$J$31*Questionnaire!$G$120),0) -> 0 | E103: =B103/POWER(1+Paramètres!$AF$14,A103) -> 0
A104: 9 | B104: =IF(Questionnaire!C$114=TRUE,(3*$J$31*Questionnaire!$G$120),0) -> 0 | E104: =B104/POWER(1+Paramètres!$AF$14,A104) -> 0
A105: 10 | B105: =IF(Questionnaire!C$114=TRUE,(0*$J$31*Questionnaire!$G$120),0) -> 0 | C105: =SUM(B101:B105) -> 0 | E105: =B105/POWER(1+Paramètres!$AF$14,A105) -> 0 | F105: =SUM(E101:E105) -> 0 | G105: =SUM(E96:E105) -> 0
A106: 11 | B106: =IF(Questionnaire!C$114=TRUE,(0*$J$31*Questionnaire!$G$120),0) -> 0 | E106: =B106/POWER(1+Paramètres!$AF$14,A106) -> 0
A107: 12 | B107: =IF(Questionnaire!C$114=TRUE,(3*$J$31*Questionnaire!$G$120),0) -> 0 | E107: =B107/POWER(1+Paramètres!$AF$14,A107) -> 0
A108: 13 | B108: =IF(Questionnaire!C$114=TRUE,(0*$J$31*Questionnaire!$G$120),0) -> 0 | E108: =B108/POWER(1+Paramètres!$AF$14,A108) -> 0
A109: 14 | B109: =IF(Questionnaire!C$114=TRUE,(0*$J$31*Questionnaire!$G$120),0) -> 0 | E109: =B109/POWER(1+Paramètres!$AF$14,A109) -> 0
A110: 15 | B110: =IF(Questionnaire!C$114=TRUE,(3*$J$31*Questionnaire!$G$120),0) -> 0 | E110: =B110/POWER(1+Paramètres!$AF$14,A110) -> 0
A111: 16 | B111: =IF(Questionnaire!C$114=TRUE,(0*$J$31*Questionnaire!$G$120),0) -> 0 | E111: =B111/POWER(1+Paramètres!$AF$14,A111) -> 0
A112: 17 | B112: =IF(Questionnaire!C$114=TRUE,(0*$J$31*Questionnaire!$G$120),0) -> 0 | E112: =B112/POWER(1+Paramètres!$AF$14,A112) -> 0
A113: 18 | B113: =IF(Questionnaire!C$114=TRUE,(3*$J$31*Questionnaire!$G$120),0) -> 0 | E113: =B113/POWER(1+Paramètres!$AF$14,A113) -> 0
A114: 19 | B114: =IF(Questionnaire!C$114=TRUE,(0*$J$31*Questionnaire!$G$120),0) -> 0 | E114: =B114/POWER(1+Paramètres!$AF$14,A114) -> 0
A115: 20 | B115: =IF(Questionnaire!$C$114=TRUE,(0*$J$31*Questionnaire!$G$120),0)+IF(Questionnaire!$C$111=TRUE,($D$29+$F$29+$H$29+J29)*Questionnaire!$G$117,0) -> 0 | C115: =SUM(B106:B115) -> 0 | E115: =B115/POWER(1+Paramètres!$AF$14,A115) -> 0 | F115: =SUM(E106:E115) -> 0 | G115: =SUM(E96:E115) -> 0
A116: 21 | B116: =IF(Questionnaire!$C$114=TRUE,(3*$J$31*Questionnaire!$G$120),0) -> 0 | E116: =B116/POWER(1+Paramètres!$AF$14,A116) -> 0
A117: 22 | B117: =IF(Questionnaire!$C$114=TRUE,(0*$J$31*Questionnaire!$G$120),0) -> 0 | E117: =B117/POWER(1+Paramètres!$AF$14,A117) -> 0
A118: 23 | B118: =IF(Questionnaire!$C$114=TRUE,(0*$J$31*Questionnaire!$G$120),0) -> 0 | E118: =B118/POWER(1+Paramètres!$AF$14,A118) -> 0
A119: 24 | B119: =IF(Questionnaire!$C$114=TRUE,(3*$J$31*Questionnaire!$G$120),0) -> 0 | E119: =B119/POWER(1+Paramètres!$AF$14,A119) -> 0
A120: 25 | B120: =IF(Questionnaire!$C$114=TRUE,(0*$J$31*Questionnaire!$G$120),0) -> 0 | E120: =B120/POWER(1+Paramètres!$AF$14,A120) -> 0
A121: 26 | B121: =IF(Questionnaire!$C$114=TRUE,(0*$J$31*Questionnaire!$G$120),0) -> 0 | E121: =B121/POWER(1+Paramètres!$AF$14,A121) -> 0
A122: 27 | B122: =IF(Questionnaire!$C$114=TRUE,(3*$J$31*Questionnaire!$G$120),0) -> 0 | E122: =B122/POWER(1+Paramètres!$AF$14,A122) -> 0
A123: 28 | B123: =IF(Questionnaire!$C$114=TRUE,(0*$J$31*Questionnaire!$G$120),0) -> 0 | E123: =B123/POWER(1+Paramètres!$AF$14,A123) -> 0
A124: 29 | B124: =IF(Questionnaire!$C$114=TRUE,(0*$J$31*Questionnaire!$G$120),0) -> 0 | E124: =B124/POWER(1+Paramètres!$AF$14,A124) -> 0
A125: 30 | B125: =IF(Questionnaire!$C$114=TRUE,(3*$J$31*Questionnaire!$G$120),0) -> 0 | C125: =SUM(B116:B125) -> 0 | E125: =B125/POWER(1+Paramètres!$AF$14,A125) -> 0
A126: 31 | B126: =IF(Questionnaire!$C$114=TRUE,(0*$J$31*Questionnaire!$G$120),0) -> 0 | E126: =B126/POWER(1+Paramètres!$AF$14,A126) -> 0
A127: 32 | B127: =IF(Questionnaire!$C$114=TRUE,(0*$J$31*Questionnaire!$G$120),0) -> 0 | E127: =B127/POWER(1+Paramètres!$AF$14,A127) -> 0
A128: 33 | B128: =IF(Questionnaire!$C$114=TRUE,(3*$J$31*Questionnaire!$G$120),0) -> 0 | E128: =B128/POWER(1+Paramètres!$AF$14,A128) -> 0
A129: 34 | B129: =IF(Questionnaire!$C$114=TRUE,(0*$J$31*Questionnaire!$G$120),0) -> 0 | E129: =B129/POWER(1+Paramètres!$AF$14,A129) -> 0
A130: 35 | B130: =IF(Questionnaire!$C$114=TRUE,(0*$J$31*Questionnaire!$G$120),0) -> 0 | E130: =B130/POWER(1+Paramètres!$AF$14,A130) -> 0
A131: 36 | B131: =IF(Questionnaire!$C$114=TRUE,(3*$J$31*Questionnaire!$G$120),0) -> 0 | E131: =B131/POWER(1+Paramètres!$AF$14,A131) -> 0
A132: 37 | B132: =IF(Questionnaire!$C$114=TRUE,(0*$J$31*Questionnaire!$G$120),0) -> 0 | E132: =B132/POWER(1+Paramètres!$AF$14,A132) -> 0
A133: 38 | B133: =IF(Questionnaire!$C$114=TRUE,(0*$J$31*Questionnaire!$G$120),0) -> 0 | E133: =B133/POWER(1+Paramètres!$AF$14,A133) -> 0
A134: 39 | B134: =IF(Questionnaire!$C$114=TRUE,(3*$J$31*Questionnaire!$G$120),0) -> 0 | E134: =B134/POWER(1+Paramètres!$AF$14,A134) -> 0
A135: 40 | B135: =(IF(Questionnaire!$C$114=TRUE,(0*$J$31*Questionnaire!$G$120),0)+IF(Questionnaire!$C$113=TRUE,($D$30+$F$30+$H$30+J30)*Questionnaire!$G$119,0)+IF(Questionnaire!$C$112=TRUE,D28+J28,0)*Questionnaire!$G$118) -> 0 | C135: =SUM(B116:B135) -> 0 | E135: =B135/POWER(1+Paramètres!$AF$14,A135) -> 0 | F135: =SUM(E116:E135) -> 0 | G135: =SUM(E96:E135) -> 0
C136: =SUM(C96:C135) -> 0

Sheet Calcul du rendement en petits f
B4: Période | C4: Améliorations | E4: Détériorations | G4: Marge | H4: Marge actualisée | I4: Marge actualisée accumulée
L5: 275 | M5: 250 à 300 | N5: 2 à 4
L6: 625 | M6: 550 à 700 | N6: 2 à 4
B7: 0-5 ans | C7: =C104 -> 0 | E7: 0 | G7: =C7+E7 -> 0 | H7: =F104 -> 0 | I7: =F104 -> 0 | L7: 400 | M7: 350 à 450 | N7: 2 à 4
L8: 125 | M8: 100 à 150 | N8: 2 à 4
B9: 5-10 ans | C9: =C109 -> 0 | E9: 0 | G9: =C9+E9 -> 0 | H9: =F109 -> 0 | I9: =G109 -> 0 | L9: 125 | M9: 100 à 150 | N9: 2 à 4
L10: 150 | M10: 100 à 200 | N10: 2 à 4
B11: 10-20 ans | C11: =C119 -> 0 | E11: 0 | G11: =C11+E11 -> 0 | H11: =F119 -> 0 | I11: =G119 -> 0 | L11: 200 | M11: 150 à 250 | N11: 2 à 4
L12: =AVERAGE(L5:L11) -> 271.4285714
B13: 20-40 ans | C13: =C139 -> 0 | E13: 0 | G13: =C13+E13 -> 0 | H13: =F139 -> 0 | I13: =G139 -> 0
L14: =L12/25 -> 10.85714286
B16: Revenus liés aux PFNL de 0 à 5 ans | D16: Revenus liés aux PFNL de 5 à 10 ans | F16: Revenus liés aux PFNL de 10 à 20 ans | H16: Revenus liés aux PFNL de 20 à 40 ans
B18: =$D$22*'Devis d''implantation des écrans'!$D$45*$D$24*$D$20*3 -> 0 | D18: =$D$22*'Devis d''implantation des écrans'!$D$45*$D$24*$D$20*5 -> 0 | F18: =$D$22*'Devis d''implantation des écrans'!$D$45*$D$24*$D$20*10 -> 0 | H18: =$D$22*'Devis d''implantation des écrans'!$D$45*$D$24*$D$20*20 -> 0
A20: Pourcentage de profit net anticipé ? | D20: =Questionnaire!F133 -> 0.2 | F20: Conservateur sans petits fruits, réaliste avec petits fruits,4 kg/tige, $800/tonne et 5% de profit net; optimiste avec petits fruits, 6 kg/, $1000/tonne et 10% de profit net
A22: Récolte par tige | D22: =Questionnaire!F129 -> 1.25 | E22: kg
A24: Prix la tonne | D24: =Questionnaire!F131 -> 0.8 | E24: kg
A26: Pourcentage en arbustes fruitier | D26: =Questionnaire!H124 -> 0
A28: Les fruits seront récoltés | D28: =Questionnaire!F126 -> Non | E28: =IF(OR(D28="Oui",D28="Yes"),1,0) -> 0 | F28: Facteur égal à 0 s'il n'y a pas de récolte et égal à 1 s'il y a une récolte
A97: Améliorations | E97: Marge actualisée | G97: Marge actualisée accumulée
A99: total cumulatif à l'an
A100: 1 | B100: =(0*$D$26*$E$28*$D$22*'Devis d''implantation des écrans'!$D$45*$D$24/1000*$D$20) -> 0 | E100: =B100/POWER(1+Paramètres!$AF$14,A100) -> 0
A101: 2 | B101: =(0*$D$26*$E$28*$D$22*'Devis d''implantation des écrans'!$D$45*$D$24/1000*$D$20) -> 0 | E101: =B101/POWER(1+Paramètres!$AF$14,A101) -> 0
A102: 3 | B102: =($D$26*$E$28*$D$22*'Devis d''implantation des écrans'!$D$45*$D$24*$D$20) -> 0 | E102: =B102/POWER(1+Paramètres!$AF$14,A102) -> 0
A103: 4 | B103: =($D$26*$E$28*$D$22*'Devis d''implantation des écrans'!$D$45*$D$24*$D$20) -> 0 | E103: =B103/POWER(1+Paramètres!$AF$14,A103) -> 0
A104: 5 | B104: =($D$26*$E$28*$D$22*'Devis d''implantation des écrans'!$D$45*$D$24*$D$20) -> 0 | C104: =SUM(B100:B104) -> 0 | E104: =B104/POWER(1+Paramètres!$AF$14,A104) -> 0 | F104: =SUM(E100:E104) -> 0
A105: 6 | B105: =($D$26*$E$28*$D$22*'Devis d''implantation des écrans'!$D$45*$D$24*$D$20) -> 0 | E105: =B105/POWER(1+Paramètres!$AF$14,A105) -> 0
A106: 7 | B106: =($D$26*$E$28*$D$22*'Devis d''implantation des écrans'!$D$45*$D$24*$D$20) -> 0 | E106: =B106/POWER(1+Paramètres!$AF$14,A106) -> 0
A107: 8 | B107: =($D$26*$E$28*$D$22*'Devis d''implantation des écrans'!$D$45*$D$24*$D$20) -> 0 | E107: =B107/POWER(1+Paramètres!$AF$14,A107) -> 0
A108: 9 | B108: =($D$26*$E$28*$D$22*'Devis d''implantation des écrans'!$D$45*$D$24*$D$20) -> 0 | E108: =B108/POWER(1+Paramètres!$AF$14,A108) -> 0
A109: 10 | B109: =($D$26*$E$28*$D$22*'Devis d''implantation des écrans'!$D$45*$D$24*$D$20) -> 0 | C109: =SUM(B105:B109) -> 0 | E109: =B109/POWER(1+Paramètres!$AF$14,A109) -> 0 | F109: =SUM(E105:E109) -> 0 | G109: =SUM(E100:E109) -> 0
A110: 11 | B110: =($D$26*$E$28*$D$22*'Devis d''implantation des écrans'!$D$45*$D$24*$D$20) -> 0 | E110: =B110/POWER(1+Paramètres!$AF$14,A110) -> 0
A111: 12 | B111: =($D$26*$E$28*$D$22*'Devis d''implantation des écrans'!$D$45*$D$24*$D$20) -> 0 | E111: =B111/POWER(1+Paramètres!$AF$14,A111) -> 0
A112: 13 | B112: =($D$26*$E$28*$D$22*'Devis d''implantation des écrans'!$D$45*$D$24*$D$20) -> 0 | E112: =B112/POWER(1+Paramètres!$AF$14,A112) -> 0
A113: 14 | B113: =($D$26*$E$28*$D$22*'Devis d''implantation des écrans'!$D$45*$D$24*$D$20) -> 0 | E113: =B113/POWER(1+Paramètres!$AF$14,A113) -> 0
A114: 15 | B114: =($D$26*$E$28*$D$22*'Devis d''implantation des écrans'!$D$45*$D$24*$D$20) -> 0 | E114: =B114/POWER(1+Paramètres!$AF$14,A114) -> 0
A115: 16 | B115: =($D$26*$E$28*$D$22*'Devis d''implantation des écrans'!$D$45*$D$24*$D$20) -> 0 | E115: =B115/POWER(1+Paramètres!$AF$14,A115) -> 0
A116: 17 | B116: =($D$26*$E$28*$D$22*'Devis d''implantation des écrans'!$D$45*$D$24*$D$20) -> 0 | E116: =B116/POWER(1+Paramètres!$AF$14,A116) -> 0
A117: 18 | B117: =($D$26*$E$28*$D$22*'Devis d''implantation des écrans'!$D$45*$D$24*$D$20) -> 0 | E117: =B117/POWER(1+Paramètres!$AF$14,A117) -> 0
A118: 19 | B118: =($D$26*$E$28*$D$22*'Devis d''implantation des écrans'!$D$45*$D$24*$D$20) -> 0 | E118: =B118/POWER(1+Paramètres!$AF$14,A118) -> 0
A119: 20 | B119: =($D$26*$E$28*$D$22*'Devis d''implantation des écrans'!$D$45*$D$24*$D$20) -> 0 | C119: =SUM(B110:B119) -> 0 | E119: =B119/POWER(1+Paramètres!$AF$14,A119) -> 0 | F119: =SUM(E110:E119) -> 0 | G119: =SUM(E100:E119) -> 0
A120: 21 | B120: =($D$26*$E$28*$D$22*'Devis d''implantation des écrans'!$D$45*$D$24*$D$20) -> 0 | E120: =B120/POWER(1+Paramètres!$AF$14,A120) -> 0
A121: 22 | B121: =($D$26*$E$28*$D$22*'Devis d''implantation des écrans'!$D$45*$D$24*$D$20) -> 0 | E121: =B121/POWER(1+Paramètres!$AF$14,A121) -> 0
A122: 23 | B122: =($D$26*$E$28*$D$22*'Devis d''implantation des écrans'!$D$45*$D$24*$D$20) -> 0 | E122: =B122/POWER(1+Paramètres!$AF$14,A122) -> 0
A123: 24 | B123: =($D$26*$E$28*$D$22*'Devis d''implantation des écrans'!$D$45*$D$24*$D$20) -> 0 | E123: =B123/POWER(1+Paramètres!$AF$14,A123) -> 0
A124: 25 | B124: =($D$26*$E$28*$D$22*'Devis d''implantation des écrans'!$D$45*$D$24*$D$20) -> 0 | E124: =B124/POWER(1+Paramètres!$AF$14,A124) -> 0
A125: 26 | B125: =($D$26*$E$28*$D$22*'Devis d''implantation des écrans'!$D$45*$D$24*$D$20) -> 0 | E125: =B125/POWER(1+Paramètres!$AF$14,A125) -> 0
A126: 27 | B126: =($D$26*$E$28*$D$22*'Devis d''implantation des écrans'!$D$45*$D$24*$D$20) -> 0 | E126: =B126/POWER(1+Paramètres!$AF$14,A126) -> 0
A127: 28 | B127: =($D$26*$E$28*$D$22*'Devis d''implantation des écrans'!$D$45*$D$24*$D$20) -> 0 | E127: =B127/POWER(1+Paramètres!$AF$14,A127) -> 0
A128: 29 | B128: =($D$26*$E$28*$D$22*'Devis d''implantation des écrans'!$D$45*$D$24*$D$20) -> 0 | E128: =B128/POWER(1+Paramètres!$AF$14,A128) -> 0
A129: 30 | B129: =($D$26*$E$28*$D$22*'Devis d''implantation des écrans'!$D$45*$D$24*$D$20) -> 0 | E129: =B129/POWER(1+Paramètres!$AF$14,A129) -> 0
A130: 31 | B130: =($D$26*$E$28*$D$22*'Devis d''implantation des écrans'!$D$45*$D$24*$D$20) -> 0 | E130: =B130/POWER(1+Paramètres!$AF$14,A130) -> 0
A131: 32 | B131: =($D$26*$E$28*$D$22*'Devis d''implantation des écrans'!$D$45*$D$24*$D$20) -> 0 | E131: =B131/POWER(1+Paramètres!$AF$14,A131) -> 0
A132: 33 | B132: =($D$26*$E$28*$D$22*'Devis d''implantation des écrans'!$D$45*$D$24*$D$20) -> 0 | E132: =B132/POWER(1+Paramètres!$AF$14,A132) -> 0
A133: 34 | B133: =($D$26*$E$28*$D$22*'Devis d''implantation des écrans'!$D$45*$D$24*$D$20) -> 0 | E133: =B133/POWER(1+Paramètres!$AF$14,A133) -> 0
A134: 35 | B134: =($D$26*$E$28*$D$22*'Devis d''implantation des écrans'!$D$45*$D$24*$D$20) -> 0 | E134: =B134/POWER(1+Paramètres!$AF$14,A134) -> 0
A135: 36 | B135: =($D$26*$E$28*$D$22*'Devis d''implantation des écrans'!$D$45*$D$24*$D$20) -> 0 | E135: =B135/POWER(1+Paramètres!$AF$14,A135) -> 0
A136: 37 | B136: =($D$26*$E$28*$D$22*'Devis d''implantation des écrans'!$D$45*$D$24*$D$20) -> 0 | E136: =B136/POWER(1+Paramètres!$AF$14,A136) -> 0
A137: 38 | B137: =($D$26*$E$28*$D$22*'Devis d''implantation des écrans'!$D$45*$D$24*$D$20) -> 0 | E137: =B137/POWER(1+Paramètres!$AF$14,A137) -> 0
A138: 39 | B138: =($D$26*$E$28*$D$22*'Devis d''implantation des écrans'!$D$45*$D$24*$D$20) -> 0 | E138: =B138/POWER(1+Paramètres!$AF$14,A138) -> 0
A139: 40 | B139: =($D$26*$E$28*$D$22*'Devis d''implantation des écrans'!$D$45*$D$24*$D$20) -> 0 | C139: =SUM(B120:B139) -> 0 | E139: =B139/POWER(1+Paramètres!$AF$14,A139) -> 0 | F139: =SUM(E120:E139) -> 0 | G139: =SUM(E100:E139) -> 0

Sheet Amélioration de rendement
B4: Période | C4: Améliorations | E4: Détériorations | G4: Marge | H4: Marge actualisée | I4: Marge actualisée accumulée
B7: 0-5 ans | C7: =C118 -> 0 | E7: 0 | G7: =C7+E7 -> 0 | H7: =F118 -> 0 | I7: =F118 -> 0
B9: 5-10 ans | C9: =C123 -> 0 | E9: 0 | G9: =C9+E9 -> 0 | H9: =F123 -> 0 | I9: =G123 -> 0
B11: 10-20 ans | C11: =C133 -> 0 | E11: 0 | G11: =C11+E11 -> 0 | H11: =F133 -> 0 | I11: =G133 -> 0
B13: 20-40 ans | C13: =C153 -> 0 | E13: 0 | G13: =C13+E13 -> 0 | H13: =F153 -> 0 | I13: =G153 -> 0
L34: Croissance annuelle
A35: Rangée 1 | C35: CON ou FNO | D35: =IF(OR('Devis d''implantation des écrans'!F42>0,'Devis d''implantation des écrans'!F44>0),TRUE,FALSE) -> FALSE | E35: PEH | F35: =IF('Devis d''implantation des écrans'!F43>0,TRUE,FALSE) -> FALSE | G35: SAV | H35: =IF('Devis d''implantation des écrans'!F46>0,TRUE,FALSE) -> FALSE | I35: ARB | J35: =IF('Devis d''implantation des écrans'!F45>0,TRUE,FALSE) -> FALSE | L35: PEH | M35: 1
A36: Rangée 2 | C36: CON ou FNO | D36: =IF(OR('Devis d''implantation des écrans'!G42>0,'Devis d''implantation des écrans'!G44>0),TRUE,FALSE) -> FALSE | E36: PEH | F36: =IF('Devis d''implantation des écrans'!G43>0,TRUE,FALSE) -> FALSE | G36: SAV | H36: =IF('Devis d''implantation des écrans'!G46>0,TRUE,FALSE) -> FALSE | I36: ARB | J36: =IF('Devis d''implantation des écrans'!G45>0,TRUE,FALSE) -> FALSE | L36: CON | M36: 0.5
A37: Rangée 3 | C37: CON ou FNO | D37: =IF(OR('Devis d''implantation des écrans'!H42>0,'Devis d''implantation des écrans'!H44>0),TRUE,FALSE) -> FALSE | E37: PEH | F37: =IF('Devis d''implantation des écrans'!H43>0,TRUE,FALSE) -> FALSE | G37: SAV | H37: =IF('Devis d''implantation des écrans'!H46>0,TRUE,FALSE) -> FALSE | I37: ARB | J37: =IF('Devis d''implantation des écrans'!H45>0,TRUE,FALSE) -> FALSE | L37: FNO
A38: Rangée 4 | C38: CON ou FNO | D38: =IF(OR('Devis d''implantation des écrans'!H43>0,'Devis d''implantation des écrans'!H45>0),TRUE,FALSE) -> FALSE | E38: PEH | F38: =IF('Devis d''implantation des écrans'!H44>0,TRUE,FALSE) -> FALSE | G38: SAV | H38: =IF('Devis d''implantation des écrans'!H47>0,TRUE,FALSE) -> FALSE | I38: ARB | J38: =IF('Devis d''implantation des écrans'!H46>0,TRUE,FALSE) -> FALSE | L38: ARB | M38: 0.5
A39: Rangée 5 | C39: CON ou FNO | D39: =IF(OR('Devis d''implantation des écrans'!H44>0,'Devis d''implantation des écrans'!H46>0),TRUE,FALSE) -> FALSE | E39: PEH | F39: =IF('Devis d''implantation des écrans'!H45>0,TRUE,FALSE) -> FALSE | G39: SAV | H39: =IF('Devis d''implantation des écrans'!H48>0,TRUE,FALSE) -> FALSE | I39: ARB | J39: =IF('Devis d''implantation des écrans'!H47>0,TRUE,FALSE) -> FALSE | L39: SAH | M39: 2
A40: Rangée 6 | C40: CON ou FNO | D40: =IF(OR('Devis d''implantation des écrans'!H45>0,'Devis d''implantation des écrans'!H47>0),TRUE,FALSE) -> FALSE | E40: PEH | F40: =IF('Devis d''implantation des écrans'!H46>0,TRUE,FALSE) -> FALSE | G40: SAV | H40: =IF('Devis d''implantation des écrans'!H49>0,TRUE,FALSE) -> FALSE | I40: ARB | J40: =IF('Devis d''implantation des écrans'!H48>0,TRUE,FALSE) -> FALSE
A41: Rangée 7 | C41: CON ou FNO | D41: =IF(OR('Devis d''implantation des écrans'!H46>0,'Devis d''implantation des écrans'!H48>0),TRUE,FALSE) -> FALSE | E41: PEH | F41: =IF('Devis d''implantation des écrans'!H47>0,TRUE,FALSE) -> FALSE | G41: SAV | H41: =IF('Devis d''implantation des écrans'!H50>0,TRUE,FALSE) -> FALSE | I41: ARB | J41: =IF('Devis d''implantation des écrans'!H49>0,TRUE,FALSE) -> FALSE
A42: Haie | C42: CON ou FNO | D42: =OR(D35=TRUE,D36=TRUE,D37=TRUE,D38=TRUE,D39=TRUE,D40=TRUE,D41=TRUE) -> FALSE | F42: =OR(F35=TRUE,F36=TRUE,F37=TRUE,F38=TRUE,F39=TRUE,F40=TRUE,F41=TRUE) -> FALSE | H42: =OR(H35=TRUE,H36=TRUE,H37=TRUE,H38=TRUE,H39=TRUE,H40=TRUE,H41=TRUE) -> FALSE | J42: =OR(J35=TRUE,J36=TRUE,J37=TRUE,J38=TRUE,J39=TRUE,J40=TRUE,J41=TRUE) -> FALSE
A44: Croissance annuelle | D44: =MAX(IF('Devis d''implantation des écrans'!D$43>0,M35,0),IF(OR('Devis d''implantation des écrans'!D$42>0,'Devis d''implantation des écrans'!D$44),M36,0),IF('Devis d''implantation des écrans'!D$46>0,M39,0),IF('Devis d''implantation des écrans'!D$45>0,M38,0)) -> 0 | E44: m
A45: Hauteur maximale de la haie | D45: =MAX(IF('Devis d''implantation des écrans'!D$43>0,Paramètres!I100,0),IF(OR('Devis d''implantation des écrans'!D$42>0,'Devis d''implantation des écrans'!D$44),Paramètres!I101,0),IF('Devis d''implantation des écrans'!D$46>0,Paramètres!I102,0),IF('Devis d''implantation des écrans'!D$45>0,Paramètres!I103,0)) -> 0 | E45: m
A46: Protection de culture | D46: =AND(OR(Questionnaire!F144="Oui",Questionnaire!F144="Yes")) -> FALSE | E46: =IF(D46=FALSE,0,Questionnaire!F151)*IF('Devis d''implantation des écrans'!D47>0,1,0) -> 0 | F46: %
C47: Hauteur début protection | D47: 2 | E47: m
A54: Longueur de la protection | D54: =Questionnaire!G147 -> 0
A56: Rotation sur combien d'année ? | D56: =Questionnaire!G83 -> 0
H59: Année de référence | J59: Amélioration de la marge (produits sur débours/ha) avec protection de culture
A60: Choix de rotation | N60: Le calcul de la marge moyenne des produits sur débours n'est pas bon car ça vient fausser les données si on avait des culture de grandes valeurs semées lorsque le brise-vent est plus mature….
A61: =Questionnaire!C$87 -> ... | H61: 1 | J61: =SUMIF(Paramètres!F$107:G$131,A$61:A$80,Paramètres!H$107:I$131)*E$46 -> 0
A62: =Questionnaire!C$88 -> ... | H62: 2 | J62: =SUMIF(Paramètres!F$107:G$131,A$61:A$80,Paramètres!H$107:I$131)*E$46 -> 0
A63: =Questionnaire!C$89 -> ... | H63: 3 | J63: =SUMIF(Paramètres!F$107:G$131,A$61:A$80,Paramètres!H$107:I$131)*E$46 -> 0
A64: =Questionnaire!E$87 -> ... | H64: 4 | J64: =SUMIF(Paramètres!F$107:G$131,A$61:A$80,Paramètres!H$107:I$131)*E$46 -> 0
A65: =Questionnaire!E$88 -> ... | H65: 5 | J65: =SUMIF(Paramètres!F$107:G$131,A$61:A$80,Paramètres!H$107:I$131)*E$46 -> 0
A66: =Questionnaire!E$89 -> ... | H66: 6 | J66: =SUMIF(Paramètres!F$107:G$131,A$61:A$80,Paramètres!H$107:I$131)*E$46 -> 0
A67: =Questionnaire!G$87 -> ... | H67: 7 | J67: =SUMIF(Paramètres!F$107:G$131,A$61:A$80,Paramètres!H$107:I$131)*E$46 -> 0
A68: =Questionnaire!G$88 -> ... | H68: 8 | J68: =SUMIF(Paramètres!F$107:G$131,A$61:A$80,Paramètres!H$107:I$131)*E$46 -> 0
A69: =Questionnaire!G$89 -> ... | H69: 9 | J69: =SUMIF(Paramètres!F$107:G$131,A$61:A$80,Paramètres!H$107:I$131)*E$46 -> 0
A70: =Questionnaire!I$87 -> ... | H70: 10 | J70: =SUMIF(Paramètres!F$107:G$131,A$61:A$80,Paramètres!H$107:I$131)*E$46 -> 0
A71: =Questionnaire!I$88 -> ... | H71: 11 | J71: =SUMIF(Paramètres!F$107:G$131,A$61:A$80,Paramètres!H$107:I$131)*E$46 -> 0
A72: =Questionnaire!I$89 -> ... | H72: 12 | J72: =SUMIF(Paramètres!F$107:G$131,A$61:A$80,Paramètres!H$107:I$131)*E$46 -> 0
A73: =Questionnaire!K$87 -> ... | H73: 13 | J73: =SUMIF(Paramètres!F$107:G$131,A$61:A$80,Paramètres!H$107:I$131)*E$46 -> 0
A74: =Questionnaire!K$88 -> ... | H74: 14 | J74: =SUMIF(Paramètres!F$107:G$131,A$61:A$80,Paramètres!H$107:I$131)*E$46 -> 0
A75: =Questionnaire!K$89 -> ... | H75: 15 | J75: =SUMIF(Paramètres!F$107:G$131,A$61:A$80,Paramètres!H$107:I$131)*E$46 -> 0
A76: =Questionnaire!M$87 -> ... | H76: 16 | J76: =SUMIF(Paramètres!F$107:G$131,A$61:A$80,Paramètres!H$107:I$131)*E$46 -> 0
A77: =Questionnaire!M$88 -> ... | H77: 17 | J77: =SUMIF(Paramètres!F$107:G$131,A$61:A$80,Paramètres!H$107:I$131)*E$46 -> 0
A78: =Questionnaire!M$89 -> ... | H78: 18 | J78: =SUMIF(Paramètres!F$107:G$131,A$61:A$80,Paramètres!H$107:I$131)*E$46 -> 0
A79: =Questionnaire!O$87 -> ... | H79: 19 | J79: =SUMIF(Paramètres!F$107:G$131,A$61:A$80,Paramètres!H$107:I$131)*E$46 -> 0
A80: =Questionnaire!O$88 -> ... | H80: 20 | J80: =SUMIF(Paramètres!F$107:G$131,A$61:A$80,Paramètres!H$107:I$131)*E$46 -> 0
H81: Marge moyenne des produits sur débours /ha | J81: =IF(OR(Questionnaire!F144="Oui",Questionnaire!F144="Yes"),(SUM(J61:L80))/D56,0) -> 0
A111: Améliorations | D111: Marge actualisée | G111: Marge actualisée accumulée
I112: hauteur de la haie selon les années | K112: ajusté en fonction de la récolte des PEH à 20 ans et la présence de FNO ou CON
A113: total cumulatif à l'an | I113: année | J113: hauteur | K113: année saule
A114: 1 | B114: =IF(J114>D$47,($E$46*$J$81*Questionnaire!H$149*$D$54*J114)/10000,0) -> 0 | E114: =IF(J114>D$47,(($E$46*$J$81*Questionnaire!H$149*$D$54*J114)/10000)/POWER(1+Paramètres!$AF$14,A114),0) -> 0 | I114: 1 | J114: =MAX(IF(D$42=TRUE,'Entretien des écrans boisés'!S26),IF(F$42=TRUE,'Entretien des écrans boisés'!Q26),IF(H$42=TRUE,(IF(Questionnaire!$C$114=TRUE,M$39*K114,MIN(M$39*I114,D$45))),IF(J$42=TRUE,MIN(M$38*I114,D$45)))) -> 0 | K114: 1
A115: 2 | B115: =IF(J115>D$47,($E$46*$J$81*Questionnaire!H$149*$D$54*J115)/10000,0) -> 0 | E115: =IF(J115>D$47,(($E$46*$J$81*Questionnaire!H$149*$D$54*J115)/10000)/POWER(1+Paramètres!$AF$14,A115),0) -> 0 | I115: 2 | J115: =MAX(IF(D$42=TRUE,'Entretien des écrans boisés'!S27),IF(F$42=TRUE,'Entretien des écrans boisés'!Q27),IF(H$42=TRUE,(IF(Questionnaire!$C$114=TRUE,M$39*K115,MIN(M$39*I115,D$45))),IF(J$42=TRUE,MIN(M$38*I115,D$45)))) -> 0 | K115: 2
A116: 3 | B116: =IF(J116>D$47,($E$46*$J$81*Questionnaire!H$149*$D$54*J116)/10000,0) -> 0 | E116: =IF(J116>D$47,(($E$46*$J$81*Questionnaire!H$149*$D$54*J116)/10000)/POWER(1+Paramètres!$AF$14,A116),0) -> 0 | I116: 3 | J116: =MAX(IF(D$42=TRUE,'Entretien des écrans boisés'!S28),IF(F$42=TRUE,'Entretien des écrans boisés'!Q28),IF(H$42=TRUE,(IF(Questionnaire!$C$114=TRUE,M$39*K116,MIN(M$39*I116,D$45))),IF(J$42=TRUE,MIN(M$38*I116,D$45)))) -> 0 | K116: 3
A117: 4 | B117: =IF(J117>D$47,($E$46*$J$81*Questionnaire!H$149*$D$54*J117)/10000,0) -> 0 | E117: =IF(J117>D$47,(($E$46*$J$81*Questionnaire!H$149*$D$54*J117)/10000)/POWER(1+Paramètres!$AF$14,A117),0) -> 0 | I117: 4 | J117: =MAX(IF(D$42=TRUE,'Entretien des écrans boisés'!S29),IF(F$42=TRUE,'Entretien des écrans boisés'!Q29),IF(H$42=TRUE,(IF(Questionnaire!$C$114=TRUE,M$39*K117,MIN(M$39*I117,D$45))),IF(J$42=TRUE,MIN(M$38*I117,D$45)))) -> 0 | K117: 1
A118: 5 | B118: =IF(J118>D$47,($E$46*$J$81*Questionnaire!H$149*$D$54*J118)/10000,0) -> 0 | C118: =SUM(B114:B118) -> 0 | E118: =IF(J118>D$47,(($E$46*$J$81*Questionnaire!H$149*$D$54*J118)/10000)/POWER(1+Paramètres!$AF$14,A118),0) -> 0 | F118: =SUM(E114:E118) -> 0 | I118: 5 | J118: =MAX(IF(D$42=TRUE,'Entretien des écrans boisés'!S30),IF(F$42=TRUE,'Entretien des écrans boisés'!Q30),IF(H$42=TRUE,(IF(Questionnaire!$C$114=TRUE,M$39*K118,MIN(M$39*I118,D$45))),IF(J$42=TRUE,MIN(M$38*I118,D$45)))) -> 0 | K118: 2
A119: 6 | B119: =IF(J119>D$47,($E$46*$J$81*Questionnaire!H$149*$D$54*J119)/10000,0) -> 0 | E119: =IF(J119>D$47,(($E$46*$J$81*Questionnaire!H$149*$D$54*J119)/10000)/POWER(1+Paramètres!$AF$14,A119),0) -> 0 | I119: 6 | J119: =MAX(IF(D$42=TRUE,'Entretien des écrans boisés'!S31),IF(F$42=TRUE,'Entretien des écrans boisés'!Q31),IF(H$42=TRUE,(IF(Questionnaire!$C$114=TRUE,M$39*K119,MIN(M$39*I119,D$45))),IF(J$42=TRUE,MIN(M$38*I119,D$45)))) -> 0 | K119: 3
A120: 7 | B120: =IF(J120>D$47,($E$46*$J$81*Questionnaire!H$149*$D$54*J120)/10000,0) -> 0 | E120: =IF(J120>D$47,(($E$46*$J$81*Questionnaire!H$149*$D$54*J120)/10000)/POWER(1+Paramètres!$AF$14,A120),0) -> 0 | I120: 7 | J120: =MAX(IF(D$42=TRUE,'Entretien des écrans boisés'!S32),IF(F$42=TRUE,'Entretien des écrans boisés'!Q32),IF(H$42=TRUE,(IF(Questionnaire!$C$114=TRUE,M$39*K120,MIN(M$39*I120,D$45))),IF(J$42=TRUE,MIN(M$38*I120,D$45)))) -> 0 | K120: 1
A121: 8 | B121: =IF(J121>D$47,($E$46*$J$81*Questionnaire!H$149*$D$54*J121)/10000,0) -> 0 | E121: =IF(J121>D$47,(($E$46*$J$81*Questionnaire!H$149*$D$54*J121)/10000)/POWER(1+Paramètres!$AF$14,A121),0) -> 0 | I121: 8 | J121: =MAX(IF(D$42=TRUE,'Entretien des écrans boisés'!S33),IF(F$42=TRUE,'Entretien des écrans boisés'!Q33),IF(H$42=TRUE,(IF(Questionnaire!$C$114=TRUE,M$39*K121,MIN(M$39*I121,D$45))),IF(J$42=TRUE,MIN(M$38*I121,D$45)))) -> 0 | K121: 2
A122: 9 | B122: =IF(J122>D$47,($E$46*$J$81*Questionnaire!H$149*$D$54*J122)/10000,0) -> 0 | E122: =IF(J122>D$47,(($E$46*$J$81*Questionnaire!H$149*$D$54*J122)/10000)/POWER(1+Paramètres!$AF$14,A122),0) -> 0 | I122: 9 | J122: =MAX(IF(D$42=TRUE,'Entretien des écrans boisés'!S34),IF(F$42=TRUE,'Entretien des écrans boisés'!Q34),IF(H$42=TRUE,(IF(Questionnaire!$C$114=TRUE,M$39*K122,MIN(M$39*I122,D$45))),IF(J$42=TRUE,MIN(M$38*I122,D$45)))) -> 0 | K122: 3
A123: 10 | B123: =IF(J123>D$47,($E$46*$J$81*Questionnaire!H$149*$D$54*J123)/10000,0) -> 0 | C123: =SUM(B119:B123) -> 0 | D123: =SUM(B114:B123) -> 0 | E123: =IF(J123>D$47,(($E$46*$J$81*Questionnaire!H$149*$D$54*J123)/10000)/POWER(1+Paramètres!$AF$14,A123),0) -> 0 | F123: =SUM(E119:E123) -> 0 | G123: =SUM(E114:E123) -> 0 | I123: 10 | J123: =MAX(IF(D$42=TRUE,'Entretien des écrans boisés'!S35),IF(F$42=TRUE,'Entretien des écrans boisés'!Q35),IF(H$42=TRUE,(IF(Questionnaire!$C$114=TRUE,M$39*K123,MIN(M$39*I123,D$45))),IF(J$42=TRUE,MIN(M$38*I123,D$45)))) -> 0 | K123: 1
A124: 11 | B124: =IF(J124>D$47,($E$46*$J$81*Questionnaire!H$149*$D$54*J124)/10000,0) -> 0 | E124: =IF(J124>D$47,(($E$46*$J$81*Questionnaire!H$149*$D$54*J124)/10000)/POWER(1+Paramètres!$AF$14,A124),0) -> 0 | I124: 11 | J124: =MAX(IF(D$42=TRUE,'Entretien des écrans boisés'!S36),IF(F$42=TRUE,'Entretien des écrans boisés'!Q36),IF(H$42=TRUE,(IF(Questionnaire!$C$114=TRUE,M$39*K124,MIN(M$39*I124,D$45))),IF(J$42=TRUE,MIN(M$38*I124,D$45)))) -> 0 | K124: 2
A125: 12 | B125: =IF(J125>D$47,($E$46*$J$81*Questionnaire!H$149*$D$54*J125)/10000,0) -> 0 | E125: =IF(J125>D$47,(($E$46*$J$81*Questionnaire!H$149*$D$54*J125)/10000)/POWER(1+Paramètres!$AF$14,A125),0) -> 0 | I125: 12 | J125: =MAX(IF(D$42=TRUE,'Entretien des écrans boisés'!S37),IF(F$42=TRUE,'Entretien des écrans boisés'!Q37),IF(H$42=TRUE,(IF(Questionnaire!$C$114=TRUE,M$39*K125,MIN(M$39*I125,D$45))),IF(J$42=TRUE,MIN(M$38*I125,D$45)))) -> 0 | K125: 3
A126: 13 | B126: =IF(J126>D$47,($E$46*$J$81*Questionnaire!H$149*$D$54*J126)/10000,0) -> 0 | E126: =IF(J126>D$47,(($E$46*$J$81*Questionnaire!H$149*$D$54*J126)/10000)/POWER(1+Paramètres!$AF$14,A126),0) -> 0 | I126: 13 | J126: =MAX(IF(D$42=TRUE,'Entretien des écrans boisés'!S38),IF(F$42=TRUE,'Entretien des écrans boisés'!Q38),IF(H$42=TRUE,(IF(Questionnaire!$C$114=TRUE,M$39*K126,MIN(M$39*I126,D$45))),IF(J$42=TRUE,MIN(M$38*I126,D$45)))) -> 0 | K126: 1
A127: 14 | B127: =IF(J127>D$47,($E$46*$J$81*Questionnaire!H$149*$D$54*J127)/10000,0) -> 0 | E127: =IF(J127>D$47,(($E$46*$J$81*Questionnaire!H$149*$D$54*J127)/10000)/POWER(1+Paramètres!$AF$14,A127),0) -> 0 | I127: 14 | J127: =MAX(IF(D$42=TRUE,'Entretien des écrans boisés'!S39),IF(F$42=TRUE,'Entretien des écrans boisés'!Q39),IF(H$42=TRUE,(IF(Questionnaire!$C$114=TRUE,M$39*K127,MIN(M$39*I127,D$45))),IF(J$42=TRUE,MIN(M$38*I127,D$45)))) -> 0 | K127: 2
A128: 15 | B128: =IF(J128>D$47,($E$46*$J$81*Questionnaire!H$149*$D$54*J128)/10000,0) -> 0 | E128: =IF(J128>D$47,(($E$46*$J$81*Questionnaire!H$149*$D$54*J128)/10000)/POWER(1+Paramètres!$AF$14,A128),0) -> 0 | I128: 15 | J128: =MAX(IF(D$42=TRUE,'Entretien des écrans boisés'!S40),IF(F$42=TRUE,'Entretien des écrans boisés'!Q40),IF(H$42=TRUE,(IF(Questionnaire!$C$114=TRUE,M$39*K128,MIN(M$39*I128,D$45))),IF(J$42=TRUE,MIN(M$38*I128,D$45)))) -> 0 | K128: 3
A129: 16 | B129: =IF(J129>D$47,($E$46*$J$81*Questionnaire!H$149*$D$54*J129)/10000,0) -> 0 | E129: =IF(J129>D$47,(($E$46*$J$81*Questionnaire!H$149*$D$54*J129)/10000)/POWER(1+Paramètres!$AF$14,A129),0) -> 0 | I129: 16 | J129: =MAX(IF(D$42=TRUE,'Entretien des écrans boisés'!S41),IF(F$42=TRUE,'Entretien des écrans boisés'!Q41),IF(H$42=TRUE,(IF(Questionnaire!$C$114=TRUE,M$39*K129,MIN(M$39*I129,D$45))),IF(J$42=TRUE,MIN(M$38*I129,D$45)))) -> 0 | K129: 1
A130: 17 | B130: =IF(J130>D$47,($E$46*$J$81*Questionnaire!H$149*$D$54*J130)/10000,0) -> 0 | E130: =IF(J130>D$47,(($E$46*$J$81*Questionnaire!H$149*$D$54*J130)/10000)/POWER(1+Paramètres!$AF$14,A130),0) -> 0 | I130: 17 | J130: =MAX(IF(D$42=TRUE,'Entretien des écrans boisés'!S42),IF(F$42=TRUE,'Entretien des écrans boisés'!Q42),IF(H$42=TRUE,(IF(Questionnaire!$C$114=TRUE,M$39*K130,MIN(M$39*I130,D$45))),IF(J$42=TRUE,MIN(M$38*I130,D$45)))) -> 0 | K130: 2
A131: 18 | B131: =IF(J131>D$47,($E$46*$J$81*Questionnaire!H$149*$D$54*J131)/10000,0) -> 0 | E131: =IF(J131>D$47,(($E$46*$J$81*Questionnaire!H$149*$D$54*J131)/10000)/POWER(1+Paramètres!$AF$14,A131),0) -> 0 | I131: 18 | J131: =MAX(IF(D$42=TRUE,'Entretien des écrans boisés'!S43),IF(F$42=TRUE,'Entretien des écrans boisés'!Q43),IF(H$42=TRUE,(IF(Questionnaire!$C$114=TRUE,M$39*K131,MIN(M$39*I131,D$45))),IF(J$42=TRUE,MIN(M$38*I131,D$45)))) -> 0 | K131: 3
A132: 19 | B132: =IF(J132>D$47,($E$46*$J$81*Questionnaire!H$149*$D$54*J132)/10000,0) -> 0 | E132: =IF(J132>D$47,(($E$46*$J$81*Questionnaire!H$149*$D$54*J132)/10000)/POWER(1+Paramètres!$AF$14,A132),0) -> 0 | I132: 19 | J132: =MAX(IF(D$42=TRUE,'Entretien des écrans boisés'!S44),IF(F$42=TRUE,'Entretien des écrans boisés'!Q44),IF(H$42=TRUE,(IF(Questionnaire!$C$114=TRUE,M$39*K132,MIN(M$39*I132,D$45))),IF(J$42=TRUE,MIN(M$38*I132,D$45)))) -> 0 | K132: 1
A133: 20 | B133: =IF(J133>D$47,($E$46*$J$81*Questionnaire!H$149*$D$54*J133)/10000,0) -> 0 | C133: =SUM(B124:B133) -> 0 | D133: =SUM(B114:B133) -> 0 | E133: =IF(J133>D$47,(($E$46*$J$81*Questionnaire!H$149*$D$54*J133)/10000)/POWER(1+Paramètres!$AF$14,A133),0) -> 0 | F133: =SUM(E124:E133) -> 0 | G133: =SUM(E114:E133) -> 0 | I133: 20 | J133: =MAX(IF(D$42=TRUE,'Entretien des écrans boisés'!S45),IF(F$42=TRUE,'Entretien des écrans boisés'!Q45),IF(H$42=TRUE,(IF(Questionnaire!$C$114=TRUE,M$39*K133,MIN(M$39*I133,D$45))),IF(J$42=TRUE,MIN(M$38*I133,D$45)))) -> 0 | K133: 2
A134: 21 | B134: =IF(J134>D$47,($E$46*$J$81*Questionnaire!H$149*$D$54*J134)/10000,0) -> 0 | E134: =IF(J134>D$47,(($E$46*$J$81*Questionnaire!H$149*$D$54*J134)/10000)/POWER(1+Paramètres!$AF$14,A134),0) -> 0 | I134: 21 | J134: =MAX(IF(D$42=TRUE,'Entretien des écrans boisés'!S46),IF(F$42=TRUE,'Entretien des écrans boisés'!Q46),IF(H$42=TRUE,(IF(Questionnaire!$C$114=TRUE,M$39*K134,MIN(M$39*I134,D$45))),IF(J$42=TRUE,MIN(M$38*I134,D$45)))) -> 0 | K134: 3
A135: 22 | B135: =IF(J135>D$47,($E$46*$J$81*Questionnaire!H$149*$D$54*J135)/10000,0) -> 0 | E135: =IF(J135>D$47,(($E$46*$J$81*Questionnaire!H$149*$D$54*J135)/10000)/POWER(1+Paramètres!$AF$14,A135),0) -> 0 | I135: 22 | J135: =MAX(IF(D$42=TRUE,'Entretien des écrans boisés'!S47),IF(F$42=TRUE,'Entretien des écrans boisés'!Q47),IF(H$42=TRUE,(IF(Questionnaire!$C$114=TRUE,M$39*K135,MIN(M$39*I135,D$45))),IF(J$42=TRUE,MIN(M$38*I135,D$45)))) -> 0 | K135: 1
A136: 23 | B136: =IF(J136>D$47,($E$46*$J$81*Questionnaire!H$149*$D$54*J136)/10000,0) -> 0 | E136: =IF(J136>D$47,(($E$46*$J$81*Questionnaire!H$149*$D$54*J136)/10000)/POWER(1+Paramètres!$AF$14,A136),0) -> 0 | I136: 23 | J136: =MAX(IF(D$42=TRUE,'Entretien des écrans boisés'!S48),IF(F$42=TRUE,'Entretien des écrans boisés'!Q48),IF(H$42=TRUE,(IF(Questionnaire!$C$114=TRUE,M$39*K136,MIN(M$39*I136,D$45))),IF(J$42=TRUE,MIN(M$38*I136,D$45)))) -> 0 | K136: 2
A137: 24 | B137: =IF(J137>D$47,($E$46*$J$81*Questionnaire!H$149*$D$54*J137)/10000,0) -> 0 | E137: =IF(J137>D$47,(($E$46*$J$81*Questionnaire!H$149*$D$54*J137)/10000)/POWER(1+Paramètres!$AF$14,A137),0) -> 0 | I137: 24 | J137: =MAX(IF(D$42=TRUE,'Entretien des écrans boisés'!S49),IF(F$42=TRUE,'Entretien des écrans boisés'!Q49),IF(H$42=TRUE,(IF(Questionnaire!$C$114=TRUE,M$39*K137,MIN(M$39*I137,D$45))),IF(J$42=TRUE,MIN(M$38*I137,D$45)))) -> 0 | K137: 3
A138: 25 | B138: =IF(J138>D$47,($E$46*$J$81*Questionnaire!H$149*$D$54*J138)/10000,0) -> 0 | E138: =IF(J138>D$47,(($E$46*$J$81*Questionnaire!H$149*$D$54*J138)/10000)/POWER(1+Paramètres!$AF$14,A138),0) -> 0 | I138: 25 | J138: =MAX(IF(D$42=TRUE,'Entretien des écrans boisés'!S50),IF(F$42=TRUE,'Entretien des écrans boisés'!Q50),IF(H$42=TRUE,(IF(Questionnaire!$C$114=TRUE,M$39*K138,MIN(M$39*I138,D$45))),IF(J$42=TRUE,MIN(M$38*I138,D$45)))) -> 0 | K138: 1
A139: 26 | B139: =IF(J139>D$47,($E$46*$J$81*Questionnaire!H$149*$D$54*J139)/10000,0) -> 0 | E139: =IF(J139>D$47,(($E$46*$J$81*Questionnaire!H$149*$D$54*J139)/10000)/POWER(1+Paramètres!$AF$14,A139),0) -> 0 | I139: 26 | J139: =MAX(IF(D$42=TRUE,'Entretien des écrans boisés'!S51),IF(F$42=TRUE,'Entretien des écrans boisés'!Q51),IF(H$42=TRUE,(IF(Questionnaire!$C$114=TRUE,M$39*K139,MIN(M$39*I139,D$45))),IF(J$42=TRUE,MIN(M$38*I139,D$45)))) -> 0 | K139: 2
A140: 27 | B140: =IF(J140>D$47,($E$46*$J$81*Questionnaire!H$149*$D$54*J140)/10000,0) -> 0 | E140: =IF(J140>D$47,(($E$46*$J$81*Questionnaire!H$149*$D$54*J140)/10000)/POWER(1+Paramètres!$AF$14,A140),0) -> 0 | I140: 27 | J140: =MAX(IF(D$42=TRUE,'Entretien des écrans boisés'!S52),IF(F$42=TRUE,'Entretien des écrans boisés'!Q52),IF(H$42=TRUE,(IF(Questionnaire!$C$114=TRUE,M$39*K140,MIN(M$39*I140,D$45))),IF(J$42=TRUE,MIN(M$38*I140,D$45)))) -> 0 | K140: 3
A141: 28 | B141: =IF(J141>D$47,($E$46*$J$81*Questionnaire!H$149*$D$54*J141)/10000,0) -> 0 | E141: =IF(J141>D$47,(($E$46*$J$81*Questionnaire!H$149*$D$54*J141)/10000)/POWER(1+Paramètres!$AF$14,A141),0) -> 0 | I141: 28 | J141: =MAX(IF(D$42=TRUE,'Entretien des écrans boisés'!S53),IF(F$42=TRUE,'Entretien des écrans boisés'!Q53),IF(H$42=TRUE,(IF(Questionnaire!$C$114=TRUE,M$39*K141,MIN(M$39*I141,D$45))),IF(J$42=TRUE,MIN(M$38*I141,D$45)))) -> 0 | K141: 1
A142: 29 | B142: =IF(J142>D$47,($E$46*$J$81*Questionnaire!H$149*$D$54*J142)/10000,0) -> 0 | E142: =IF(J142>D$47,(($E$46*$J$81*Questionnaire!H$149*$D$54*J142)/10000)/POWER(1+Paramètres!$AF$14,A142),0) -> 0 | I142: 29 | J142: =MAX(IF(D$42=TRUE,'Entretien des écrans boisés'!S54),IF(F$42=TRUE,'Entretien des écrans boisés'!Q54),IF(H$42=TRUE,(IF(Questionnaire!$C$114=TRUE,M$39*K142,MIN(M$39*I142,D$45))),IF(J$42=TRUE,MIN(M$38*I142,D$45)))) -> 0 | K142: 2
A143: 30 | B143: =IF(J143>D$47,($E$46*$J$81*Questionnaire!H$149*$D$54*J143)/10000,0) -> 0 | E143: =IF(J143>D$47,(($E$46*$J$81*Questionnaire!H$149*$D$54*J143)/10000)/POWER(1+Paramètres!$AF$14,A143),0) -> 0 | I143: 30 | J143: =MAX(IF(D$42=TRUE,'Entretien des écrans boisés'!S55),IF(F$42=TRUE,'Entretien des écrans boisés'!Q55),IF(H$42=TRUE,(IF(Questionnaire!$C$114=TRUE,M$39*K143,MIN(M$39*I143,D$45))),IF(J$42=TRUE,MIN(M$38*I143,D$45)))) -> 0 | K143: 3
A144: 31 | B144: =IF(J144>D$47,($E$46*$J$81*Questionnaire!H$149*$D$54*J144)/10000,0) -> 0 | E144: =IF(J144>D$47,(($E$46*$J$81*Questionnaire!H$149*$D$54*J144)/10000)/POWER(1+Paramètres!$AF$14,A144),0) -> 0 | I144: 31 | J144: =MAX(IF(D$42=TRUE,'Entretien des écrans boisés'!S56),IF(F$42=TRUE,'Entretien des écrans boisés'!Q56),IF(H$42=TRUE,(IF(Questionnaire!$C$114=TRUE,M$39*K144,MIN(M$39*I144,D$45))),IF(J$42=TRUE,MIN(M$38*I144,D$45)))) -> 0 | K144: 1
A145: 32 | B145: =IF(J145>D$47,($E$46*$J$81*Questionnaire!H$149*$D$54*J145)/10000,0) -> 0 | E145: =IF(J145>D$47,(($E$46*$J$81*Questionnaire!H$149*$D$54*J145)/10000)/POWER(1+Paramètres!$AF$14,A145),0) -> 0 | I145: 32 | J145: =MAX(IF(D$42=TRUE,'Entretien des écrans boisés'!S57),IF(F$42=TRUE,'Entretien des écrans boisés'!Q57),IF(H$42=TRUE,(IF(Questionnaire!$C$114=TRUE,M$39*K145,MIN(M$39*I145,D$45))),IF(J$42=TRUE,MIN(M$38*I145,D$45)))) -> 0 | K145: 2
A146: 33 | B146: =IF(J146>D$47,($E$46*$J$81*Questionnaire!H$149*$D$54*J146)/10000,0) -> 0 | E146: =IF(J146>D$47,(($E$46*$J$81*Questionnaire!H$149*$D$54*J146)/10000)/POWER(1+Paramètres!$AF$14,A146),0) -> 0 | I146: 33 | J146: =MAX(IF(D$42=TRUE,'Entretien des écrans boisés'!S58),IF(F$42=TRUE,'Entretien des écrans boisés'!Q58),IF(H$42=TRUE,(IF(Questionnaire!$C$114=TRUE,M$39*K146,MIN(M$39*I146,D$45))),IF(J$42=TRUE,MIN(M$38*I146,D$45)))) -> 0 | K146: 3
A147: 34 | B147: =IF(J147>D$47,($E$46*$J$81*Questionnaire!H$149*$D$54*J147)/10000,0) -> 0 | E147: =IF(J147>D$47,(($E$46*$J$81*Questionnaire!H$149*$D$54*J147)/10000)/POWER(1+Paramètres!$AF$14,A147),0) -> 0 | I147: 34 | J147: =MAX(IF(D$42=TRUE,'Entretien des écrans boisés'!S59),IF(F$42=TRUE,'Entretien des écrans boisés'!Q59),IF(H$42=TRUE,(IF(Questionnaire!$C$114=TRUE,M$39*K147,MIN(M$39*I147,D$45))),IF(J$42=TRUE,MIN(M$38*I147,D$45)))) -> 0 | K147: 1
A148: 35 | B148: =IF(J148>D$47,($E$46*$J$81*Questionnaire!H$149*$D$54*J148)/10000,0) -> 0 | E148: =IF(J148>D$47,(($E$46*$J$81*Questionnaire!H$149*$D$54*J148)/10000)/POWER(1+Paramètres!$AF$14,A148),0) -> 0 | I148: 35 | J148: =MAX(IF(D$42=TRUE,'Entretien des écrans boisés'!S60),IF(F$42=TRUE,'Entretien des écrans boisés'!Q60),IF(H$42=TRUE,(IF(Questionnaire!$C$114=TRUE,M$39*K148,MIN(M$39*I148,D$45))),IF(J$42=TRUE,MIN(M$38*I148,D$45)))) -> 0 | K148: 2
A149: 36 | B149: =IF(J149>D$47,($E$46*$J$81*Questionnaire!H$149*$D$54*J149)/10000,0) -> 0 | E149: =IF(J149>D$47,(($E$46*$J$81*Questionnaire!H$149*$D$54*J149)/10000)/POWER(1+Paramètres!$AF$14,A149),0) -> 0 | I149: 36 | J149: =MAX(IF(D$42=TRUE,'Entretien des écrans boisés'!S61),IF(F$42=TRUE,'Entretien des écrans boisés'!Q61),IF(H$42=TRUE,(IF(Questionnaire!$C$114=TRUE,M$39*K149,MIN(M$39*I149,D$45))),IF(J$42=TRUE,MIN(M$38*I149,D$45)))) -> 0 | K149: 3
A150: 37 | B150: =IF(J150>D$47,($E$46*$J$81*Questionnaire!H$149*$D$54*J150)/10000,0) -> 0 | E150: =IF(J150>D$47,(($E$46*$J$81*Questionnaire!H$149*$D$54*J150)/10000)/POWER(1+Paramètres!$AF$14,A150),0) -> 0 | I150: 37 | J150: =MAX(IF(D$42=TRUE,'Entretien des écrans boisés'!S62),IF(F$42=TRUE,'Entretien des écrans boisés'!Q62),IF(H$42=TRUE,(IF(Questionnaire!$C$114=TRUE,M$39*K150,MIN(M$39*I150,D$45))),IF(J$42=TRUE,MIN(M$38*I150,D$45)))) -> 0 | K150: 1
A151: 38 | B151: =IF(J151>D$47,($E$46*$J$81*Questionnaire!H$149*$D$54*J151)/10000,0) -> 0 | E151: =IF(J151>D$47,(($E$46*$J$81*Questionnaire!H$149*$D$54*J151)/10000)/POWER(1+Paramètres!$AF$14,A151),0) -> 0 | I151: 38 | J151: =MAX(IF(D$42=TRUE,'Entretien des écrans boisés'!S63),IF(F$42=TRUE,'Entretien des écrans boisés'!Q63),IF(H$42=TRUE,(IF(Questionnaire!$C$114=TRUE,M$39*K151,MIN(M$39*I151,D$45))),IF(J$42=TRUE,MIN(M$38*I151,D$45)))) -> 0 | K151: 2
A152: 39 | B152: =IF(J152>D$47,($E$46*$J$81*Questionnaire!H$149*$D$54*J152)/10000,0) -> 0 | E152: =IF(J152>D$47,(($E$46*$J$81*Questionnaire!H$149*$D$54*J152)/10000)/POWER(1+Paramètres!$AF$14,A152),0) -> 0 | I152: 39 | J152: =MAX(IF(D$42=TRUE,'Entretien des écrans boisés'!S64),IF(F$42=TRUE,'Entretien des écrans boisés'!Q64),IF(H$42=TRUE,(IF(Questionnaire!$C$114=TRUE,M$39*K152,MIN(M$39*I152,D$45))),IF(J$42=TRUE,MIN(M$38*I152,D$45)))) -> 0 | K152: 3
A153: 40 | B153: =IF(J153>D$47,($E$46*$J$81*Questionnaire!H$149*$D$54*J153)/10000,0) -> 0 | C153: =SUM(B134:B153) -> 0 | D153: =SUM(B114:B153) -> 0 | E153: =IF(J153>D$47,(($E$46*$J$81*Questionnaire!H$149*$D$54*J153)/10000)/POWER(1+Paramètres!$AF$14,A153),0) -> 0 | F153: =SUM(E134:E153) -> 0 | G153: =SUM(E114:E153) -> 0 | I153: 40 | J153: =MAX(IF(D$42=TRUE,'Entretien des écrans boisés'!S65),IF(F$42=TRUE,'Entretien des écrans boisés'!Q65),IF(H$42=TRUE,(IF(Questionnaire!$C$114=TRUE,M$39*K153,MIN(M$39*I153,D$45))),IF(J$42=TRUE,MIN(M$38*I153,D$45)))) -> 0

Sheet Pertes de sol
